Workbook

Sheet Cover
B4: Precise Mortgage Funding 2018-2B plc
B15: PLEASE READ THE FOLLOWING TERMS AND CONDITIONS CAREFULLY. BY ACCESSING THIS SPREAD SHEET LIABILITIES WATERFALL MODEL FILE AND THE INFORMATION CONTAINED HEREIN, YOU (1) REPRESENT THAT YOU ARE A PERSON INTO WHOSE POSSESSION THESE MATERIALS CAN BE LAWFULLY DELIVERED IN ACCORDANCE WITH THE LAWS OF THE JURISDICTION IN WHICH YOU ARE LOCATED AND (2) AGREE TO BE BOUND BY THE TERMS AND CONDITIONS BELOW. IF YOU DO NOT AGREE TO THESE TERMS AND CONDITIONS, DO NOT ACCESS THIS FILE OR ANY OF THE INFORMATION CONTAINED HEREIN.
B17: ="The information in this file is based on information provided by " & B4 & " and publicly available information relating to " & B4 & ". EuroABS Limited accepts no liability for any use of the information or computer code contained in this file. The user uses this file at his or her own risk." -> The information in this file is based on information provided by Precise Mortgage Funding 2018-2B plc and publicly available information relating to Precise Mortgage Funding 2018-2B plc. EuroABS Limited accepts no liability for any use of the information or computer code contained in this file. The user uses this file at his or her own risk.
B19: No offer or solicitation
B20: The information in this file is provided for information purposes only and does not constitute an offer or the solicitation of an offer to acquire or dispose of any debt or other securities. In particular, nothing in this file constitutes an offer of securities for sale in the United States or in any jurisdiction or country where such distribution would be contrary to local law or regulation.
B22: No distribution
B23: The information in this file must not be reproduced, redistributed or passed on to any person or published, in whole or in part, for any purpose.
B25: No advice
B26: The information in this file should not be considered as a recommendation or advice to any investor to subscribe for or purchase any securities. Prospective investors should also consult their own financial and legal advisors about risks associated with investment in a particular issue of securities and the suitability of investing in the securities in light of their particular circumstances.
B28: No liability
B29: EuroABS Limited is not responsible for any errors in or omissions from the information contained in or accessed through this file. EuroABS Limited accepts no liability for losses or damages arising from the use of any of the information in this file. In no event shall EuroABS Limited be liable for any special, incidental, indirect or consequential damages of any kind, or any damages whatsoever, on any theory of liability arising out of or in connection with the use of any information in this file.
B31: ="Before any investment decision is made the accuracy of the contents of this file must be checked against the documentation relating to " & B4 & " for which EuroABS Limited accepts no liability. The information in this file may be changed or modified at any time. EuroABS Limited has no duty to update the information in this file. " -> Before any investment decision is made the accuracy of the contents of this file must be checked against the documentation relating to Precise Mortgage Funding 2018-2B plc for which EuroABS Limited accepts no liability. The information in this file may be changed or modified at any time. EuroABS Limited has no duty to update the information in this file.
B33: Investment considerations
B34: ="The information in this file contains certain tables and other statistical analyses (the 'Statistical Information') which have been prepared in reliance on information provided by " & B4 & "." -> The information in this file contains certain tables and other statistical analyses (the 'Statistical Information') which have been prepared in reliance on information provided by Precise Mortgage Funding 2018-2B plc.
B35: Numerous assumptions have been used in preparing the Statistical Information, which may or may not be reflected in the material. As such, no assurance can be given as to the Statistical Information's accuracy, appropriateness or completeness in any particular context, or as to whether the Statistical Information and/or the assumptions upon which they are based reflect present market conditions or future market performance. The Statistical Information should not be construed as either projections or predictions or as legal, tax, financial or accounting advice.
B36: ="The information in this file may contain projections and forward looking statements. Any such forward-looking statements involve known and unknown risks, uncertainties and other factors which may affect " & B4 & "'s actual results, performance or achievements to be materially different from any future results, performance or achievements expressed or implied by such forward-looking statements." -> The information in this file may contain projections and forward looking statements. Any such forward-looking statements involve known and unknown risks, uncertainties and other factors which may affect Precise Mortgage Funding 2018-2B plc's actual results, performance or achievements to be materially different from any future results, performance or achievements expressed or implied by such forward-looking statements.
B37: ="Any such forward-looking statements will be based on numerous assumptions regarding " & B4 & "'s present and future business strategies and the environment in which " & B4 & " will operate in the future." -> Any such forward-looking statements will be based on numerous assumptions regarding Precise Mortgage Funding 2018-2B plc's present and future business strategies and the environment in which Precise Mortgage Funding 2018-2B plc will operate in the future.
B38: Further, any forward-looking statements are solely for the purpose of illustrating how the file can be used by its user and will be based upon illustrative assumptions of future events and which are not intended to be accurate. EuroABS Limited assumes no obligation to update or provide any additional information in relation to such forward-looking statements.

Sheet Information
B4: Precise Mortgage Funding 2018-2B plc
B8: Initial Information | E8: Interest Payments
B9: Closing Date | C9: 2018-03-20 | E9: Payment Frequency | G9: Quarterly
B10: Closing: Mortgage Balance | C10: 374470477.6 | E10: Day of month | G10: 12
B11: Issuer Profit Amount | C11: 300 | D11: per quarter | E11: Step-up Date | G11: 2023-03-12
B12: First Cut-Off Date | C12: 2018-02-28 | E12: Optional Redemption Date | G12: 2023-03-12
E13: Final Maturity Date | G13: 2055-03-12
E14: First Interest Payment Date | G14: 2018-06-12
E15: Clean-up Call | G15: 0.1
B17: Notes | C17: A | D17: B | E17: C | F17: D | G17: E | H17: X | I17: RC1 Certificates | J17: RC2 Certificates
B18: Opening Balance | C18: 338900000 | D18: 11230000 | E18: 11230000 | F18: 7490000 | G18: 5620000 | H18: 13110000 | I18: N/A | J18: N/A
B19: Margin | C19: 0.0068 | D19: 0.01 | E19: 0.0145 | F19: 0.018 | G19: 0.0315 | H19: 0.0295 | I19: N/A | J19: N/A
B20: Step-up Margin | C20: 0.0102 | D20: 0.015 | E20: 0.02175 | F20: 0.027 | G20: 0.0415 | I20: N/A | J20: N/A
B21: Interest Rate | C21: 3 Month GBP LIBOR | D21: 3 Month GBP LIBOR | E21: 3 Month GBP LIBOR | F21: 3 Month GBP LIBOR | G21: 3 Month GBP LIBOR | H21: 3 Month GBP LIBOR | I21: N/A | J21: N/A
B22: Date System | C22: Actual/365 (Fixed) | D22: Actual/365 (Fixed) | E22: Actual/365 (Fixed) | F22: Actual/365 (Fixed) | G22: Actual/365 (Fixed) | H22: Actual/365 (Fixed) | I22: N/A | J22: N/A
B23: Final Maturity Date | C23: =FinalMaturityDate -> 2055-03-12 | D23: 2055-03-12 | E23: 2055-03-12 | F23: 2055-03-12 | G23: 2055-03-12 | H23: 2055-03-12 | I23: N/A | J23: N/A
B24: Ratings (Moody’s/S&P) | C24: AAAsf Aaa(sf) | D24: AAsf/Aa1(sf) | E24: A+sf/A2(sf) | F24: BBB+sf/Baa2(sf) | G24: BBB-sf/Ba3(sf) | H24: BB+sf/B3(sf) | I24: N/A | J24: N/A
B26: Funds | E26: Other Fees and Rates
B27: Initial General Reserve Fund % | C27: 0.015 | E27: Other Fees and Expenses | F27: 110000 | G27: pa
B28: General Reserve Required Amount | C28: =General_Reserve_Percent*SUM(C18:G18)-ClassAB_Liquidity_Closing -> 365100 | E28: Fixed Swap | F28: 0.013
B29: General Reserve Reserve ( at Closing)
B31: Class A Note Liquidity Reserve (at Closing) | C31: =ClassAB_Liquidity_Fund_Percent*SUM(C18:D18) -> 5251950
B32: Class A & B Liquidity Reserve Fund % | C32: 0.015
B34: Information Items
B35: Expenses related to the admission of the notes | C35: 10000

Sheet UserInputs
A1: User Inputs
D2: Key Information | I2: Dates | M2: Rates
D3: Closing Date | G3: =ClosingDate -> 2018-03-20 | I3: Enforcement Notice Date | M3: Assumed CPR | O3: 0.043
D4: First Payment Date | G4: =FirstPaymentDate -> 2018-06-12 | I4: Insolvency Event | M4: Assumed CDR | O4: 0.005
D5: Payment Frequency | G5: =PaymentFrequency -> Quarterly | I5: Issuer Optional Redemption Date | M5: 3 Month LIBOR | O5: 0.005
D6: Initial Outstanding Collateral Balance | G6: =MortgageBalanceClosing -> 374470477.6 | I6: Clean-Up Call
D7: Total Opening Balance of Notes | G7: =OpeningBalanceA+OpeningBalanceB+OpeningBalanceC+OpeningBalanceD+OpeningBalanceE+OpeningBalanceX -> 387580000
D8: Legal Maturity Date | G8: =FinalMaturityDate -> 2055-03-12
Y9: Senior Fees
L12: Floating Rate Mortgages | P12: Fixed Rate Mortgages | Y12: Servicer Fees (b)(iii) | AE12: Third Parties Costs (c)(i) | AF12: Transfer Costs (c)(ii) | AG12: Hedge Subordinated Amounts Post (i) & Pre (r) | AH12: Issuer Profit (e)
A13: Period | B13: Target Interest Payment Date | C13: Note Day Factor (Actual/365) | D13: Contracted amortisation % | E13: LIBOR | F13: CDR Assumption (% annualised) | G13: CPR Assumption (% annualised) | H13: Defaults (Balance of Loans Repossessed in Period) | I13: Weighted average loss severity in period | J13: Losses Allocated | K13: Pool Balance | L13: % Floating Rate | M13: Floating Pool Balance | N13: Weighted Average Floating Rate | O13: Revenue on Floating Rate | P13: % Fixed Rate | Q13: Fixed Pool Balance | R13: Weighted Average Fixed Rate | S13: Revenue on Fixed Rate | T13: Scheduled Principal | U13: Prepayment | V13: Total Principal Received from the Pool | W13: Total Revenue Received from the Pool | Y13: Agg Current Balance of all of Loans | Z13: Rate | AA13: Fee Due | AC13: Determination Date? | AJ13: Other Net Income of the Issuer
A14: 0 | B14: =Timing!B16 -> 2018-03-20 | K14: =OpeningPoolBalance -> 374470477.6
A15: 1 | B15: =Timing!B17 -> 2018-06-12 | C15: =Timing!F17 -> 0.2301369863 | D15: 0.01131179961 | E15: =LIBOR -> 0.005 | F15: 0.005 | G15: 0.043 | H15: =ROUND(K14*(1-(1-F15)^Timing!L17),2) -> 477956.5 | I15: 0.25 | J15: =H15*I15 -> 119489.125 | K15: =K14-(J15+V15) -> 366022905.7 | L15: =1-P15 -> 0.3345 | M15: =L15*K15 -> 122434662 | N15: 0.05 | O15: =N15*M15*C15 -> 1408837.206 | P15: 0.6655 | Q15: =P15*K15 -> 243588243.8 | R15: 0.03 | S15: =R15*Q15*C15 -> 1681759.929 | T15: =D15*K14 -> 4235935.002 | U15: =K14*(1-(1-G15)^(1/4)) -> 4092147.704 | V15: =MIN(K14-J15,SUM(T15,U15)) -> 8328082.706 | W15: =O15+S15 -> 3090597.136 | Y15: =K15 -> 366022905.7 | Z15: 0.002 | AA15: =Y15*Z15*C15 -> 168470.8169 | AC15: FALSE | AH15: 300
A16: 2 | B16: =Timing!B18 -> 2018-09-12 | C16: =Timing!F18 -> 0.2520547945 | D16: 0.00971425574 | E16: 0.005 | F16: 0.005 | G16: 0.043 | H16: =ROUND(K15*(1-(1-F16)^Timing!L18),2) -> 462154.21 | I16: 0.25 | J16: =H16*I16 -> 115538.5525 | K16: =K15-(J16+V16) -> 358351892.9 | L16: 0.3345 | M16: =L16*K16 -> 119868708.2 | N16: 0.05 | O16: 1510674.131 | P16: 0.6655 | Q16: 238483184.7 | R16: 0.03 | S16: 1803324.904 | T16: =D16*K15 -> 3555640.113 | U16: =K15*(1-(1-G16)^(1/4)) -> 3999834.12 | V16: =MIN(K15-J16,SUM(T16,U16)) -> 7555474.233 | W16: =O16+S16 -> 3313999.034 | Y16: =K16 -> 358351892.9 | Z16: 0.002 | AA16: 180648.6255 | AC16: FALSE | AH16: 300
A17: 3 | B17: =Timing!B19 -> 2018-12-12 | C17: =Timing!F19 -> 0.2493150685 | D17: 0.009541891224 | E17: 0.005 | F17: 0.005 | G17: 0.043 | H17: =ROUND(K16*(1-(1-F17)^Timing!L19),2) -> 447553.44 | I17: 0.25 | J17: 111888.36 | K17: 350904643.2 | L17: 0.3345 | M17: 117377603.1 | N17: 0.05 | O17: 1463200.258 | P17: 0.6655 | Q17: 233527040 | R17: 0.03 | S17: 1746654.299 | T17: 3419354.782 | U17: 3916006.638 | V17: 7335361.42 | W17: =O17+S17 -> 3209854.558 | Y17: 350904643.2 | Z17: 0.002 | AA17: 174971.6303 | AC17: FALSE | AH17: 300
A18: 4 | B18: =Timing!B20 -> 2019-03-12 | C18: =Timing!F20 -> 0.2465753425 | D18: 0.009163479668 | E18: 0.005 | F18: 0.005 | G18: 0.043 | H18: =ROUND(K17*(1-(1-F18)^Timing!L20),2) -> 433439.42 | I18: 0.25 | J18: 108359.855 | K18: 343746151.3 | L18: 0.3345 | M18: 114983087.6 | N18: 0.05 | O18: 1417599.71 | P18: 0.6655 | Q18: 228763063.7 | R18: 0.03 | S18: 1692219.923 | T18: 3215507.563 | U18: 3834624.399 | V18: 7050131.961 | W18: 3109819.634 | Y18: 343746151.3 | Z18: 0.002 | AA18: 169518.65 | AC18: FALSE | AH18: 300
A19: 5 | B19: =Timing!B21 -> 2019-06-12 | C19: =Timing!F21 -> 0.2520547945 | D19: 0.009416917266 | E19: 0.005 | F19: 0.005 | G19: 0.043 | H19: =ROUND(K18*(1-(1-F19)^Timing!L21),2) -> 434026.75 | I19: 0.25 | J19: 108506.6875 | K19: 336644217.9 | L19: 0.3345 | M19: 112607490.9 | N19: 0.05 | O19: 1419162.899 | P19: 0.6655 | Q19: 224036727 | R19: 0.03 | S19: 1694085.936 | T19: 3237029.068 | U19: 3756397.655 | V19: 6993426.723 | W19: 3113248.835 | Y19: 336644217.9 | Z19: 0.002 | AA19: 169705.5784 | AC19: FALSE | AH19: 300
A20: 6 | B20: =Timing!B22 -> 2019-09-12 | C20: =Timing!F22 -> 0.2520547945 | D20: 0.007979687106 | E20: 0.005 | F20: 0.005 | G20: 0.043 | H20: =ROUND(K19*(1-(1-F20)^Timing!L22),2) -> 425059.58 | I20: 0.25 | J20: 106264.895 | K20: 330172848.5 | L20: 0.3345 | M20: 110442817.8 | N20: 0.05 | O20: 1391882.088 | P20: 0.6655 | Q20: 219730030.7 | R20: 0.03 | S20: 1661520.232 | T20: 2686315.525 | U20: 3678788.973 | V20: 6365104.498 | W20: 3053402.32 | Y20: 330172848.5 | Z20: 0.002 | AA20: 166443.299 | AC20: FALSE | AH20: 300
A21: 7 | B21: =Timing!B23 -> 2019-12-12 | C21: =Timing!F23 -> 0.2493150685 | D21: 0.008207991319 | E21: 0.005 | F21: 0.005 | G21: 0.043 | H21: =ROUND(K20*(1-(1-F21)^Timing!L23),2) -> 412360.02 | I21: 0.25 | J21: 103090.005 | K21: 323751631.7 | L21: 0.3345 | M21: 108294920.8 | N21: 0.05 | O21: 1349977.78 | P21: 0.6655 | Q21: 215456710.9 | R21: 0.03 | S21: 1611498.139 | T21: 2710055.875 | U21: 3608070.983 | V21: 6318126.858 | W21: 2961475.919 | Y21: 323751631.7 | Z21: 0.002 | AA21: 161432.3204 | AC21: FALSE | AH21: 300
A22: 8 | B22: =Timing!B24 -> 2020-03-12 | C22: =Timing!F24 -> 0.2493150685 | D22: 0.008272128285 | E22: =LIBOR -> 0.005 | F22: 0.005 | G22: 0.043 | H22: =ROUND(K21*(1-(1-F22)^Timing!L24),2) -> 403236.36 | I22: 0.25 | J22: 100809.09 | K22: 317434806.5 | L22: 0.3345 | M22: 106181942.8 | N22: 0.05 | O22: 1323637.917 | P22: 0.6655 | Q22: 211252863.7 | R22: 0.03 | S22: 1580055.666 | T22: 2678115.03 | U22: 3537901.051 | V22: 6216016.081 | W22: 2903693.582 | Y22: 317434806.5 | Z22: 0.002 | AA22: 158282.561 | AC22: FALSE | AH22: 300
A23: 9 | B23: =Timing!B25 -> 2020-06-12 | C23: =Timing!F25 -> 0.2520547945 | D23: 0.006823138637 | E23: 0.005 | F23: 0.005 | G23: 0.043 | H23: =ROUND(K22*(1-(1-F23)^Timing!L25),2) -> 399710.65 | I23: 0.25 | J23: 99927.6625 | K23: 311700105.3 | L23: 0.3345 | M23: 104263685.2 | N23: 0.05 | O23: 1314008.088 | P23: 0.6655 | Q23: 207436420 | R23: 0.03 | S23: 1568560.327 | T23: 2165901.693 | U23: 3468871.894 | V23: 5634773.586 | W23: 2882568.414 | Y23: 311700105.3 | Z23: 0.002 | AA23: 157131.012 | AC23: FALSE | AH23: 300
A24: 10 | B24: =Timing!B26 -> 2020-09-12 | C24: =Timing!F26 -> 0.2575342466 | D24: 0.00741476973 | E24: 0.005 | F24: 0.005 | G24: 0.043 | H24: =ROUND(K23*(1-(1-F24)^Timing!L26),2) -> 392489.58 | I24: 0.25 | J24: 98122.395 | K24: 305884594.3 | L24: 0.3345 | M24: 102318396.8 | N24: 0.05 | O24: 1317524.561 | P24: 0.6655 | Q24: 203566197.5 | R24: 0.03 | S24: 1572758.019 | T24: 2311184.505 | U24: 3406204.084 | V24: 5717388.589 | W24: 2890282.58 | Y24: 305884594.3 | Z24: 0.002 | AA24: 157551.517 | AC24: FALSE | AH24: 300
A25: 11 | B25: =Timing!B27 -> 2020-12-12 | C25: =Timing!F27 -> 0.2493150685 | D25: 0.006777359176 | E25: 0.005 | F25: 0.005 | G25: 0.043 | H25: =ROUND(K24*(1-(1-F25)^Timing!L27),2) -> 380982.76 | I25: 0.25 | J25: 95245.69 | K25: 300373605.6 | L25: 0.3345 | M25: 100474971.1 | N25: 0.05 | O25: 1252496.215 | P25: 0.6655 | Q25: 199898634.5 | R25: 0.03 | S25: 1495132.253 | T25: 2073089.762 | U25: 3342653.2 | V25: 5415742.962 | W25: 2747628.468 | Y25: 300373605.6 | Z25: 0.002 | AA25: 149775.3321 | AC25: FALSE | AH25: 300
A26: 12 | B26: =Timing!B28 -> 2021-03-12 | C26: =Timing!F28 -> 0.2410958904 | D26: 0.007430960037 | E26: 0.005 | F26: 0.005 | G26: 0.043 | H26: =ROUND(K25*(1-(1-F26)^Timing!L28),2) -> 371023.2 | I26: 0.25 | J26: 92755.8 | K26: 294766355.5 | L26: =1-P26 -> 0.3345 | M26: 98599345.91 | N26: 0.05 | O26: 1188594.855 | P26: 0.6655 | Q26: 196167009.6 | R26: 0.03 | S26: 1418851.795 | T26: 2232064.26 | U26: 3282430.083 | V26: 5514494.342 | W26: 2607446.65 | Y26: 294766355.5 | Z26: 0.002 | AA26: 142133.9139 | AC26: FALSE | AH26: 300
A27: 13 | B27: =Timing!B29 -> 2021-06-12 | C27: =Timing!F29 -> 0.2575342466 | D27: 0.006717636814 | E27: 0.005 | F27: 0.005 | G27: 0.043 | H27: =ROUND(K26*(1-(1-F27)^Timing!L29),2) -> 372183.03 | I27: 0.25 | J27: 93045.7575 | K27: 289472021.4 | L27: 0.3345 | M27: 96828391.14 | N27: 0.05 | O27: 1246831.338 | P27: 0.6655 | Q27: 192643630.2 | R27: 0.03 | S27: 1488369.965 | T27: 1980133.321 | U27: 3221155.036 | V27: 5201288.357 | W27: 2735201.303 | Y27: 289472021.4 | Z27: 0.002 | AA27: 149097.9179 | AC27: FALSE | AH27: 300
A28: 14 | B28: =Timing!B30 -> 2021-09-12 | C28: =Timing!F30 -> 0.2493150685 | D28: 0.007242201312 | E28: 0.005 | F28: 0.005 | G28: 0.043 | H28: =ROUND(K27*(1-(1-F28)^Timing!L30),2) -> 365498.2 | I28: 0.25 | J28: 91374.55 | K28: 284120932.7 | L28: 0.3345 | M28: 95038451.98 | N28: 0.05 | O28: 1184725.908 | P28: 0.6655 | Q28: 189082480.7 | R28: 0.03 | S28: 1414233.349 | T28: 2096414.653 | U28: 3163299.482 | V28: 5259714.135 | W28: 2598959.257 | Y28: 284120932.7 | Z28: 0.002 | AA28: 141671.2596 | AC28: FALSE | AH28: 300
A29: 15 | B29: =Timing!B31 -> 2021-12-12 | C29: =Timing!F31 -> 0.2493150685 | D29: 0.007670882325 | E29: 0.005 | F29: 0.005 | G29: 0.043 | H29: =ROUND(K28*(1-(1-F29)^Timing!L31),2) -> 354844.79 | I29: 0.25 | J29: 88711.1975 | K29: 278747939.5 | L29: 0.3345 | M29: 93241185.77 | N29: 0.05 | O29: 1162321.631 | P29: 0.6655 | Q29: 185506753.7 | R29: 0.03 | S29: 1387488.87 | T29: 2179458.241 | U29: 3104823.723 | V29: 5284281.964 | W29: 2549810.501 | Y29: 278747939.5 | Z29: 0.002 | AA29: 138992.1233 | AC29: FALSE | AH29: 300
A30: 16 | B30: =Timing!B32 -> 2022-03-12 | C30: =Timing!F32 -> 0.2493150685 | D30: 0.005699155234 | E30: 0.005 | F30: 0.005 | G30: 0.043 | H30: =ROUND(K29*(1-(1-F30)^Timing!L32),2) -> 344311.05 | I30: 0.25 | J30: 86077.7625 | K30: 274027125.4 | L30: 0.3345 | M30: 91662073.44 | N30: 0.05 | O30: 1142636.806 | P30: 0.6655 | Q30: 182365051.9 | R30: 0.03 | S30: 1363990.662 | T30: 1588627.778 | U30: 3046108.596 | V30: 4634736.374 | W30: 2506627.468 | Y30: 274027125.4 | Z30: 0.002 | AA30: 136638.1831 | AC30: FALSE | AH30: 300
A31: 17 | B31: =Timing!B33 -> 2022-06-12 | C31: =Timing!F33 -> 0.2493150685 | D31: 0.006796736925 | E31: 0.005 | F31: 0.005 | G31: 0.043 | H31: =ROUND(K30*(1-(1-F31)^Timing!L33),2) -> 345996.9 | I31: 0.25 | J31: 86499.225 | K31: 269083615.5 | L31: 0.3345 | M31: 90008469.39 | N31: 0.05 | O31: 1122023.385 | P31: 0.6655 | Q31: 179075146.1 | R31: 0.03 | S31: 1339383.97 | T31: 1862490.281 | U31: 2994520.367 | V31: 4857010.649 | W31: 2461407.355 | Y31: 269083615.5 | Z31: 0.002 | AA31: 134173.2001 | AC31: FALSE | AH31: 300
A32: 18 | B32: =Timing!B34 -> 2022-09-12 | C32: =Timing!F34 -> 0.2493150685 | D32: 0.006429489076 | E32: 0.005 | F32: 0.005 | G32: 0.043 | H32: =ROUND(K31*(1-(1-F32)^Timing!L34),2) -> 339755.04 | I32: 0.25 | J32: 84938.76 | K32: 264328108 | L32: 0.3345 | M32: 88417752.13 | N32: 0.05 | O32: 1102193.896 | P32: 0.6655 | Q32: 175910355.9 | R32: 0.03 | S32: 1315713.073 | T32: 1730070.166 | U32: 2940498.558 | V32: 4670568.725 | W32: 2417906.969 | Y32: 264328108 | Z32: 0.002 | AA32: 131801.9607 | AC32: FALSE | AH32: 300
A33: 19 | B33: =Timing!B35 -> 2022-12-12 | C33: =Timing!F35 -> 0.2493150685 | D33: 0.006995584526 | E33: 0.005 | F33: 0.005 | G33: 0.043 | H33: =ROUND(K32*(1-(1-F33)^Timing!L35),2) -> 330125.1 | I33: 0.25 | J33: 82531.275 | K33: 259507915.9 | L33: 0.3345 | M33: 86805397.87 | N33: 0.05 | O33: 1082094.686 | P33: 0.6655 | Q33: 172702518 | R33: 0.03 | S33: 1291720.203 | T33: 1849129.622 | U33: 2888531.206 | V33: 4737660.829 | W33: 2373814.889 | Y33: 259507915.9 | Z33: 0.002 | AA33: 129398.4677 | AC33: FALSE | AH33: 300
A34: 20 | B34: =Timing!B36 -> 2023-03-12 | C34: =Timing!F36 -> 0.2493150685 | D34: 0.007398535258 | E34: 0.005 | F34: 0.005 | G34: 0.043 | H34: =ROUND(K33*(1-(1-F34)^Timing!L36),2) -> 320545.66 | I34: 0.25 | J34: 80136.415 | K34: 254671944 | L34: 0.3345 | M34: 85187765.28 | N34: 0.05 | O34: 1061929.677 | P34: 0.6655 | Q34: 169484178.8 | R34: 0.03 | S34: 1267648.789 | T34: 1919978.466 | U34: 2835856.993 | V34: 4755835.458 | W34: 2329578.466 | Y34: 254671944 | Z34: 0.002 | AA34: 126987.1063 | AC34: FALSE | AH34: 300
A35: 21 | B35: =Timing!B37 -> 2023-06-12 | C35: =Timing!F37 -> 0.2493150685 | D35: 0.006333015219 | E35: 0.005 | F35: 0.005 | G35: 0.043 | H35: =ROUND(K34*(1-(1-F35)^Timing!L37),2) -> 321558.32 | I35: 0.25 | J35: 80389.58 | K35: 250195702.8 | L35: 0.3345 | M35: 83690462.59 | N35: 0.05 | O35: 1043264.671 | P35: 0.6655 | Q35: 166505240.2 | R35: 0.03 | S35: 1245367.961 | T35: 1612841.298 | U35: 2783010.34 | V35: 4395851.638 | W35: 2288632.632 | Y35: 250195702.8 | Z35: 0.002 | AA35: 124755.1176 | AC35: FALSE | AH35: 300
A36: 22 | B36: =Timing!B38 -> 2023-09-12 | C36: =Timing!F38 -> 0.2520547945 | D36: 0.006662310608 | E36: 0.005 | F36: 0.005 | G36: 0.043 | H36: =ROUND(K35*(1-(1-F36)^Timing!L38),2) -> 315906.45 | I36: 0.25 | J36: 78976.6125 | K36: 245715750 | L36: 0.3345 | M36: 82191918.36 | N36: 0.05 | O36: 1035843.355 | P36: 0.6655 | Q36: 163523831.6 | R36: 0.03 | S36: 1236508.973 | T36: 1666881.485 | U36: 2734094.761 | V36: 4400976.246 | W36: 2272352.328 | Y36: 245715750 | Z36: 0.002 | AA36: 123867.6657 | AC36: FALSE | AH36: 300
A37: 23 | B37: =Timing!B39 -> 2023-12-12 | C37: =Timing!F39 -> 0.2493150685 | D37: 0.006466861037 | E37: 0.005 | F37: 0.005 | G37: 0.043 | H37: =ROUND(K36*(1-(1-F37)^Timing!L39),2) -> 306879.72 | I37: 0.25 | J37: 76719.93 | K37: 241364881.8 | L37: 0.3345 | M37: 80736552.96 | N37: 0.05 | O37: 1006441.962 | P37: 0.6655 | Q37: 160628328.8 | R37: 0.03 | S37: 1201411.884 | T37: 1589009.61 | U37: 2685138.622 | V37: 4274148.231 | W37: 2207853.846 | Y37: 241364881.8 | Z37: 0.002 | AA37: 120351.8041 | AC37: FALSE | AH37: 300
A38: 24 | B38: =Timing!B40 -> 2024-03-12 | C38: =Timing!F40 -> 0.2493150685 | D38: 0.007022631524 | E38: 0.005 | F38: 0.005 | G38: 0.043 | H38: =ROUND(K37*(1-(1-F38)^Timing!L40),2) -> 300622.72 | I38: 0.25 | J38: 75155.68 | K38: 236957116.4 | L38: 0.3345 | M38: 79262155.43 | N38: 0.05 | O38: 988062.4856 | P38: 0.6655 | Q38: 157694961 | R38: 0.03 | S38: 1179471.9 | T38: 1695016.628 | U38: 2637593.098 | V38: 4332609.725 | W38: 2167534.385 | Y38: 236957116.4 | Z38: 0.002 | AA38: 118153.9594 | AC38: FALSE | AH38: 300
A39: 25 | B39: =Timing!B41 -> 2024-06-12 | C39: =Timing!F41 -> 0.2520547945 | D39: 0.008228686744 | E39: 0.005 | F39: 0.005 | G39: 0.043 | H39: =ROUND(K38*(1-(1-F39)^Timing!L41),2) -> 298373.97 | I39: 0.25 | J39: 74593.4925 | K39: 232343251.2 | L39: 0.3345 | M39: 77718817.53 | N39: 0.05 | O39: 979470.0291 | P39: 0.6655 | Q39: 154624433.7 | R39: 0.03 | S39: 1169214.896 | T39: 1949845.883 | U39: 2589425.81 | V39: 4539271.693 | W39: 2148684.925 | Y39: 232343251.2 | Z39: 0.002 | AA39: 117126.4609 | AC39: FALSE | AH39: 300
A40: 26 | B40: =Timing!B42 -> 2024-09-12 | C40: =Timing!F42 -> 0.2520547945 | D40: 0.007246131374 | E40: 0.005 | F40: 0.005 | G40: 0.043 | H40: =ROUND(K39*(1-(1-F40)^Timing!L42),2) -> 292564.24 | I40: 0.25 | J40: 73141.06 | K40: 228047514.1 | L40: 0.3345 | M40: 76281893.48 | N40: 0.05 | O40: 961360.8493 | P40: 0.6655 | Q40: 151765620.7 | R40: 0.03 | S40: 1147597.57 | T40: 1683589.722 | U40: 2539006.301 | V40: 4222596.023 | W40: 2108958.419 | Y40: 228047514.1 | Z40: 0.002 | AA40: 114960.9386 | AC40: FALSE | AH40: 300
A41: 27 | B41: =Timing!B43 -> 2024-12-12 | C41: =Timing!F43 -> 0.2493150685 | D41: 0.007729509362 | E41: 0.005 | F41: 0.005 | G41: 0.043 | H41: =ROUND(K40*(1-(1-F41)^Timing!L43),2) -> 284035.78 | I41: 0.25 | J41: 71008.945 | K41: 223721746.5 | L41: 0.3345 | M41: 74834924.22 | N41: 0.05 | O41: 932873.7129 | P41: 0.6655 | Q41: 148886822.3 | R41: 0.03 | S41: 1113591.849 | T41: 1762695.395 | U41: 2492063.239 | V41: 4254758.635 | W41: 2046465.562 | Y41: 223721746.5 | Z41: 0.002 | AA41: 111554.4051 | AC41: FALSE | AH41: 300
A42: 28 | B42: =Timing!B44 -> 2025-03-12 | C42: =Timing!F44 -> 0.2465753425 | D42: 0.007382858059 | E42: 0.005 | F42: 0.005 | G42: 0.043 | H42: =ROUND(K41*(1-(1-F42)^Timing!L44),2) -> 276342.38 | I42: 0.25 | J42: 69085.595 | K42: 219556163 | L42: 0.3345 | M42: 73441536.54 | N42: 0.05 | O42: 905443.6012 | P42: 0.6655 | Q42: 146114626.5 | R42: 0.03 | S42: 1080847.922 | T42: 1651705.899 | U42: 2444792.01 | V42: 4096497.909 | W42: 1986291.523 | Y42: 219556163 | Z42: 0.002 | AA42: 108274.2722 | AC42: FALSE | AH42: 300
A43: 29 | B43: =Timing!B45 -> 2025-06-12 | C43: =Timing!F45 -> 0.2520547945 | D43: 0.008118708415 | E43: 0.005 | F43: 0.005 | G43: 0.043 | H43: =ROUND(K42*(1-(1-F43)^Timing!L45),2) -> 277219.82 | I43: 0.25 | J43: 69304.955 | K43: 215305074.4 | L43: 0.3345 | M43: 72019547.38 | N43: 0.05 | O43: 907643.6108 | P43: 0.6655 | Q43: 143285527 | R43: 0.03 | S43: 1083474.122 | T43: 1782512.469 | U43: 2399271.244 | V43: 4181783.712 | W43: 1991117.733 | Y43: 215305074.4 | Z43: 0.002 | AA43: 108537.3526 | AC43: FALSE | AH43: 300
A44: 30 | B44: =Timing!B46 -> 2025-09-12 | C44: =Timing!F46 -> 0.2520547945 | D44: 0.007749311421 | E44: 0.005 | F44: 0.005 | G44: 0.043 | H44: =ROUND(K43*(1-(1-F44)^Timing!L46),2) -> 271852.24 | I44: 0.25 | J44: 67963.06 | K44: 211215829.2 | L44: 0.3345 | M44: 70651694.85 | N44: 0.05 | O44: 890404.9214 | P44: 0.6655 | Q44: 140564134.3 | R44: 0.03 | S44: 1062895.92 | T44: 1668466.072 | U44: 2352816.093 | V44: 4021282.164 | W44: 1953300.841 | Y44: 211215829.2 | Z44: 0.002 | AA44: 106475.9248 | AC44: FALSE | AH44: 300
A45: 31 | B45: =Timing!B47 -> 2025-12-12 | C45: =Timing!F47 -> 0.2493150685 | D45: 0.007542073918 | E45: 0.005 | F45: 0.005 | G45: 0.043 | H45: =ROUND(K44*(1-(1-F45)^Timing!L47),2) -> 263792.02 | I45: 0.25 | J45: 65948.005 | K45: 207248746.2 | L45: 0.3345 | M45: 69324705.61 | N45: 0.05 | O45: 864184.6864 | P45: 0.6655 | Q45: 137924040.6 | R45: 0.03 | S45: 1031596.249 | T45: 1593005.396 | U45: 2308129.538 | V45: 3901134.934 | W45: 1895780.935 | Y45: 207248746.2 | Z45: 0.002 | AA45: 103340.4707 | AC45: FALSE | AH45: 300
A46: 32 | B46: =Timing!B48 -> 2026-03-12 | C46: =Timing!F48 -> 0.2465753425 | D46: 0.008996436897 | E46: =LIBOR -> 0.005 | F46: 0.005 | G46: 0.043 | H46: =ROUND(K45*(1-(1-F46)^Timing!L48),2) -> 255994.84 | I46: 0.25 | J46: 63998.71 | K46: 203055469.3 | L46: 0.3345 | M46: 67922054.48 | N46: 0.05 | O46: =N46*M46*C46 -> 837395.1922 | P46: 0.6655 | Q46: 135133414.8 | R46: 0.03 | S46: =R46*Q46*C46 -> 999617.0411 | T46: 1864500.267 | U46: 2264777.951 | V46: 4129278.219 | W46: =O46+S46 -> 1837012.233 | Y46: 203055469.3 | Z46: 0.002 | AA46: 100136.9438 | AC46: FALSE | AH46: 300
A47: 33 | B47: =Timing!B49 -> 2026-06-12 | C47: =Timing!F49 -> 0.2520547945 | D47: 0.007970383286 | E47: 0.005 | F47: 0.005 | G47: 0.043 | H47: =ROUND(K46*(1-(1-F47)^Timing!L49),2) -> 256385.43 | I47: 0.25 | J47: 64096.3575 | K47: 199153988.5 | L47: 0.3345 | M47: 66617009.14 | N47: 0.05 | O47: 839556.8275 | P47: 0.6655 | Q47: 132536979.3 | R47: 0.03 | S47: 1002197.433 | T47: =D47*K46 -> 1618429.919 | U47: =K46*(1-(1-G47)^(1/4)) -> 2218954.556 | V47: =MIN(K46-J47,SUM(T47,U47)) -> 3837384.475 | W47: 1841754.26 | Y47: 199153988.5 | Z47: 0.002 | AA47: =Y47*Z47*C47 -> 100395.4353 | AC47: FALSE | AH47: 300
A48: 34 | B48: =Timing!B50 -> 2026-09-12 | C48: =Timing!F50 -> 0.2575342466 | D48: 0.006904470547 | E48: 0.005 | F48: 0.005 | G48: 0.043 | H48: =ROUND(K47*(1-(1-F48)^Timing!L50),2) -> 251459.27 | I48: 0.25 | J48: 62864.8175 | K48: 195539750.9 | L48: 0.3345 | M48: 65408046.69 | N48: 0.05 | O48: 842240.6012 | P48: 0.6655 | Q48: 130131704.2 | R48: 0.03 | S48: 1005401.112 | T48: 1375052.848 | U48: 2176319.858 | V48: 3551372.706 | W48: 1847641.713 | Y48: 195539750.9 | Z48: 0.002 | AA48: 100716.3649 | AC48: FALSE | AH48: 300
A49: 35 | B49: =Timing!B51 -> 2026-12-12 | C49: =Timing!F51 -> 0.2493150685 | D49: 0.007677165468 | E49: 0.005 | F49: 0.005 | G49: 0.043 | H49: =ROUND(K48*(1-(1-F49)^Timing!L51),2) -> 244213.83 | I49: 0.25 | J49: 61053.4575 | K49: 191840682.3 | L49: 0.3345 | M49: 64170708.24 | N49: 0.05 | O49: 799936.2261 | P49: 0.6655 | Q49: 127669974.1 | R49: 0.03 | S49: 954901.4501 | T49: 1501191.023 | U49: 2136824.104 | V49: 3638015.128 | W49: 1754837.676 | Y49: 191840682.3 | Z49: 0.002 | AA49: 95657.54572 | AC49: FALSE | AH49: 300
A50: 36 | B50: =Timing!B52 -> 2027-03-12 | C50: =Timing!F52 -> 0.2410958904 | D50: 0.009025826797 | E50: 0.005 | F50: 0.005 | G50: 0.043 | H50: =ROUND(K49*(1-(1-F50)^Timing!L52),2) -> 236962.71 | I50: 0.25 | J50: 59240.6775 | K50: 187953519.6 | L50: 0.3345 | M50: 62870452.29 | N50: 0.05 | O50: 757890.3838 | P50: 0.6655 | Q50: 125083067.3 | R50: 0.03 | S50: 904710.4044 | T50: 1731520.772 | U50: 2096401.332 | V50: 3827922.103 | W50: 1662600.788 | Y50: 187953519.6 | Z50: 0.002 | AA50: 90629.64231 | AC50: FALSE | AH50: 300
A51: 37 | B51: =Timing!B53 -> 2027-06-12 | C51: =Timing!F53 -> 0.2575342466 | D51: 0.008858680481 | E51: 0.005 | F51: 0.005 | G51: 0.043 | H51: =ROUND(K50*(1-(1-F51)^Timing!L53),2) -> 237317.14 | I51: 0.25 | J51: 59329.285 | K51: 184175247 | L51: 0.3345 | M51: 61606620.12 | N51: 0.05 | O51: 793290.7249 | P51: 0.6655 | Q51: 122568626.9 | R51: 0.03 | S51: 946968.5693 | T51: 1665020.175 | U51: 2053923.098 | V51: 3718943.274 | W51: 1740259.294 | Y51: 184175247 | Z51: 0.002 | AA51: 94862.86695 | AC51: FALSE | AH51: 300
A52: 38 | B52: =Timing!B54 -> 2027-09-12 | C52: =Timing!F54 -> 0.2493150685 | D52: 0.008173517153 | E52: 0.005 | F52: 0.005 | G52: 0.043 | H52: =ROUND(K51*(1-(1-F52)^Timing!L54),2) -> 232546.56 | I52: 0.25 | J52: 58136.64 | K52: 180599116 | L52: 0.3345 | M52: 60410404.31 | N52: 0.05 | O52: 753061.2044 | P52: 0.6655 | Q52: 120188711.7 | R52: 0.03 | S52: 898945.7068 | T52: 1505359.541 | U52: 2012634.799 | V52: 3517994.339 | W52: 1652006.911 | Y52: 180599116 | Z52: 0.002 | AA52: 90052.16196 | AC52: FALSE | AH52: 300
A53: 39 | B53: =Timing!B55 -> 2027-12-12 | C53: =Timing!F55 -> 0.2493150685 | D53: 0.00716523808 | E53: 0.005 | F53: 0.005 | G53: 0.043 | H53: =ROUND(K52*(1-(1-F53)^Timing!L55),2) -> 225554.15 | I53: 0.25 | J53: 56388.5375 | K53: 177275136.4 | L53: 0.3345 | M53: 59298533.11 | N53: 0.05 | O53: 739200.8922 | P53: 0.6655 | Q53: 117976603.2 | R53: 0.03 | S53: 882400.3476 | T53: 1294035.663 | U53: 1973555.466 | V53: 3267591.13 | W53: 1621601.24 | Y53: 177275136.4 | Z53: 0.002 | AA53: 88394.72553 | AC53: FALSE | AH53: 300
A54: 40 | B54: =Timing!B56 -> 2028-03-12 | C54: =Timing!F56 -> 0.2493150685 | D54: 0.008861773617 | E54: 0.005 | F54: 0.005 | G54: 0.043 | H54: =ROUND(K53*(1-(1-F54)^Timing!L56),2) -> 220798.21 | I54: 0.25 | J54: 55199.5525 | K54: 173711733.1 | L54: 0.3345 | M54: 58106574.72 | N54: 0.05 | O54: 724342.2328 | P54: 0.6655 | Q54: 115605158.4 | R54: 0.03 | S54: 864663.2393 | T54: 1570972.126 | U54: 1937231.6 | V54: 3508203.726 | W54: 1589005.472 | Y54: 173711733.1 | Z54: 0.002 | AA54: 86617.90526 | AC54: FALSE | AH54: 300
A55: 41 | B55: =Timing!B57 -> 2028-06-12 | C55: =Timing!F57 -> 0.2493150685 | D55: 0.006659355737 | E55: 0.005 | F55: 0.005 | G55: 0.043 | H55: =ROUND(K54*(1-(1-F55)^Timing!L57),2) -> 218736.03 | I55: 0.25 | J55: 54684.0075 | K55: 170601949.5 | L55: 0.3345 | M55: 57066352.11 | N55: 0.05 | O55: 711375.0742 | P55: 0.6655 | Q55: 113535597.4 | R55: 0.03 | S55: 849184.0572 | T55: 1156808.226 | U55: 1898291.353 | V55: 3055099.58 | W55: 1560559.131 | Y55: 170601949.5 | Z55: 0.002 | AA55: 85067.27345 | AC55: FALSE | AH55: 300
A56: 42 | B56: =Timing!B58 -> 2028-09-12 | C56: =Timing!F58 -> 0.2520547945 | D56: 0.006756932773 | E56: 0.005 | F56: 0.005 | G56: 0.043 | H56: =ROUND(K55*(1-(1-F56)^Timing!L58),2) -> 214820.23 | I56: 0.25 | J56: 53705.0575 | K56: 167531190.3 | L56: 0.3345 | M56: 56039183.17 | N56: 0.05 | O56: 706247.24 | P56: 0.6655 | Q56: 111492007.2 | R56: 0.03 | S56: 843062.8488 | T56: 1152745.904 | U56: 1864308.184 | V56: 3017054.088 | W56: 1549310.089 | Y56: 167531190.3 | Z56: 0.002 | AA56: 84454.07952 | AC56: FALSE | AH56: 300
A57: 43 | B57: =Timing!B59 -> 2028-12-12 | C57: =Timing!F59 -> 0.2493150685 | D57: 0.0068566131 | E57: 0.005 | F57: 0.005 | G57: 0.043 | H57: =ROUND(K56*(1-(1-F57)^Timing!L59),2) -> 208662.01 | I57: 0.25 | J57: 52165.5025 | K57: 164499576.8 | L57: 0.3345 | M57: 55025108.45 | N57: 0.05 | O57: 685929.4341 | P57: 0.6655 | Q57: 109474468.4 | R57: 0.03 | S57: 818809.0374 | T57: 1148696.554 | U57: 1830751.466 | V57: 2979448.021 | W57: 1504738.472 | Y57: 164499576.8 | Z57: 0.002 | AA57: 82024.44653 | AC57: FALSE | AH57: 300
A58: 44 | B58: =Timing!B60 -> 2029-03-12 | C58: =Timing!F60 -> 0.2465753425 | D58: 0.006958462271 | E58: 0.005 | F58: 0.005 | G58: 0.043 | H58: =ROUND(K57*(1-(1-F58)^Timing!L60),2) -> 203190.82 | I58: 0.25 | J58: 50797.705 | K58: 161506492.5 | L58: 0.3345 | M58: 54023921.74 | N58: 0.05 | O58: 666048.3502 | P58: 0.6655 | Q58: 107482570.8 | R58: 0.03 | S58: 795076.5508 | T58: 1144664.099 | U58: 1797622.526 | V58: 2942286.624 | W58: 1461124.901 | Y58: 161506492.5 | Z58: 0.002 | AA58: 79647.0374 | AC58: FALSE | AH58: 300
A59: 45 | B59: =Timing!B61 -> 2029-06-12 | C59: =Timing!F61 -> 0.2520547945 | D59: 0.01938663188 | E59: 0.005 | F59: 0.005 | G59: 0.043 | H59: =ROUND(K58*(1-(1-F59)^Timing!L61),2) -> 203924.14 | I59: 0.25 | J59: 50981.035 | K59: 156559529.9 | L59: 0.3345 | M59: 52369162.76 | N59: 0.05 | O59: 659994.9279 | P59: 0.6655 | Q59: 104190367.2 | R59: 0.03 | S59: 787850.4476 | T59: 3131066.916 | U59: 1764914.625 | V59: 4895981.541 | W59: 1447845.375 | Y59: 156559529.9 | Z59: 0.002 | AA59: 78923.16029 | AC59: FALSE | AH59: 300
A60: 46 | B60: =Timing!B62 -> 2029-09-12 | C60: =Timing!F62 -> 0.2520547945 | D60: 0.01805539401 | E60: 0.005 | F60: 0.005 | G60: 0.043 | H60: =ROUND(K59*(1-(1-F60)^Timing!L62),2) -> 197677.92 | I60: 0.25 | J60: 49419.48 | K60: 151972511.4 | L60: 0.3345 | M60: 50834805.05 | N60: 0.05 | O60: 640657.817 | P60: 0.6655 | Q60: 101137706.3 | R60: 0.03 | S60: 764767.3134 | T60: 2826743.999 | U60: 1710855.085 | V60: 4537599.084 | W60: 1405425.13 | Y60: 151972511.4 | Z60: 0.002 | AA60: 76610.80024 | AC60: FALSE | AH60: 300
A61: 47 | B61: =Timing!B63 -> 2029-12-12 | C61: =Timing!F63 -> 0.2493150685 | D61: 0.01614864368 | E61: 0.005 | F61: 0.005 | G61: 0.043 | H61: =ROUND(K60*(1-(1-F61)^Timing!L63),2) -> 189801.76 | I61: 0.25 | J61: 47450.44 | K61: 147810182 | L61: 0.3345 | M61: 49442505.89 | N61: 0.05 | O61: 616338.0871 | P61: 0.6655 | Q61: 98367676.14 | R61: 0.03 | S61: 735736.3174 | T61: 2454149.935 | U61: 1660728.951 | V61: 4114878.886 | W61: 1352074.405 | Y61: 147810182 | Z61: 0.002 | AA61: 73702.61131 | AC61: FALSE | AH61: 300
A62: 48 | B62: =Timing!B64 -> 2030-03-12 | C62: =Timing!F64 -> 0.2465753425 | D62: 0.02097115374 | E62: 0.005 | F62: 0.005 | G62: 0.043 | H62: =ROUND(K61*(1-(1-F62)^Timing!L64),2) -> 182575.98 | I62: 0.25 | J62: 45643.995 | K62: 143049544.2 | L62: 0.3345 | M62: 47850072.55 | N62: 0.05 | O62: 589932.4013 | P62: 0.6655 | Q62: 95199471.69 | R62: 0.03 | S62: 704215.27 | T62: 3099750.051 | U62: 1615243.746 | V62: 4714993.797 | W62: 1294147.671 | Y62: 143049544.2 | Z62: 0.002 | AA62: 70544.98072 | AC62: FALSE | AH62: 300
A63: 49 | B63: =Timing!B65 -> 2030-06-12 | C63: =Timing!F65 -> 0.2520547945 | D63: 0.01700815684 | E63: 0.005 | F63: 0.005 | G63: 0.043 | H63: =ROUND(K62*(1-(1-F63)^Timing!L65),2) -> 180619.7 | I63: 0.25 | J63: 45154.925 | K63: 139008159.9 | L63: 0.3345 | M63: 46498229.49 | N63: 0.05 | O63: 586005.0839 | P63: 0.6655 | Q63: 92509930.41 | R63: 0.03 | S63: 699527.145 | T63: 2433009.084 | U63: 1563220.331 | V63: 3996229.415 | W63: 1285532.229 | Y63: 139008159.9 | Z63: 0.002 | AA63: 70075.34636 | AC63: FALSE | AH63: 300
A64: 50 | B64: =Timing!B66 -> 2030-09-12 | C64: =Timing!F66 -> 0.2520547945 | D64: 0.01887854783 | E64: 0.005 | F64: 0.005 | G64: 0.043 | H64: =ROUND(K63*(1-(1-F64)^Timing!L66),2) -> 175516.9 | I64: 0.25 | J64: 43879.225 | K64: 134820951.7 | L64: 0.3345 | M64: 45097608.34 | N64: 0.05 | O64: 568353.4202 | P64: 0.6655 | Q64: 89723343.35 | R64: 0.03 | S64: 678455.9661 | T64: 2624272.195 | U64: 1519056.792 | V64: 4143328.987 | W64: 1246809.386 | Y64: 134820951.7 | Z64: 0.002 | AA64: 67964.53455 | AC64: FALSE | AH64: 300
A65: 51 | B65: =Timing!B67 -> 2030-12-12 | C65: =Timing!F67 -> 0.2493150685 | D65: 0.02037153639 | E65: 0.005 | F65: 0.005 | G65: 0.043 | H65: =ROUND(K64*(1-(1-F65)^Timing!L67),2) -> 168380.81 | I65: 0.25 | J65: 42095.2025 | K65: 130559046.8 | L65: 0.3345 | M65: 43672001.17 | N65: 0.05 | O65: 544404.3981 | P65: 0.6655 | Q65: 86887045.68 | R65: 0.03 | S65: 649867.4923 | T65: 2746509.923 | U65: 1473299.715 | V65: 4219809.638 | W65: 1194271.89 | Y65: 130559046.8 | Z65: 0.002 | AA65: 65100.67541 | AC65: FALSE | AH65: 300
A66: 52 | B66: =Timing!B68 -> 2031-03-12 | C66: =Timing!F68 -> 0.2465753425 | D66: 0.01670787806 | E66: 0.005 | F66: 0.005 | G66: 0.043 | H66: =ROUND(K65*(1-(1-F66)^Timing!L68),2) -> 161267.28 | I66: 0.25 | J66: 40316.82 | K66: 126910639 | L66: 0.3345 | M66: 42451608.75 | N66: 0.05 | O66: 523375.9983 | P66: 0.6655 | Q66: 84459030.27 | R66: 0.03 | S66: 624765.4294 | T66: 2181364.635 | U66: 1426726.366 | V66: 3608091.001 | W66: 1148141.428 | Y66: 126910639 | Z66: 0.002 | AA66: 62586.06856 | AC66: FALSE | AH66: 300
A67: 53 | B67: =Timing!B69 -> 2031-06-12 | C67: =Timing!F69 -> 0.2520547945 | D67: 0.02182889262 | E67: 0.005 | F67: 0.005 | G67: 0.043 | H67: =ROUND(K66*(1-(1-F67)^Timing!L69),2) -> 160242.12 | I67: 0.25 | J67: 40060.53 | K67: 122713402.6 | L67: 0.3345 | M67: 41047633.16 | N67: 0.05 | O67: 517312.6371 | P67: 0.6655 | Q67: 81665769.41 | R67: 0.03 | S67: 617527.4619 | T67: 2770318.712 | U67: 1386857.206 | V67: 4157175.918 | W67: 1134840.099 | Y67: 122713402.6 | Z67: 0.002 | AA67: 61861.00294 | AC67: FALSE | AH67: 300
A68: 54 | B68: =Timing!B70 -> 2031-09-12 | C68: =Timing!F70 -> 0.2520547945 | D68: 0.02071864036 | E68: 0.005 | F68: 0.005 | G68: 0.043 | H68: =ROUND(K67*(1-(1-F68)^Timing!L70),2) -> 154942.53 | I68: 0.25 | J68: 38735.6325 | K68: 118791221.5 | L68: 0.3345 | M68: 39735663.61 | N68: 0.05 | O68: 500778.2263 | P68: 0.6655 | Q68: 79055557.94 | R68: 0.03 | S68: 597789.9724 | T68: 2542454.856 | U68: 1340990.542 | V68: 3883445.398 | W68: 1098568.199 | Y68: 118791221.5 | Z68: 0.002 | AA68: 59883.79388 | AC68: FALSE | AH68: 300
A69: 55 | B69: =Timing!B71 -> 2031-12-12 | C69: =Timing!F71 -> 0.2493150685 | D69: 0.01942215889 | E69: 0.005 | F69: 0.005 | G69: 0.043 | H69: =ROUND(K68*(1-(1-F69)^Timing!L71),2) -> 148360.93 | I69: 0.25 | J69: 37090.2325 | K69: 115148819.7 | L69: 0.3345 | M69: 38517280.19 | N69: 0.05 | O69: 480146.9174 | P69: 0.6655 | Q69: 76631539.51 | R69: 0.03 | S69: 573161.9256 | T69: 2307181.979 | U69: 1298129.635 | V69: 3605311.615 | W69: 1053308.843 | Y69: 115148819.7 | Z69: 0.002 | AA69: 57416.67174 | AC69: FALSE | AH69: 300
A70: 56 | B70: =Timing!B72 -> 2032-03-12 | C70: =Timing!F72 -> 0.2493150685 | D70: 0.02578209997 | E70: 0.005 | F70: 0.005 | G70: 0.043 | H70: =ROUND(K69*(1-(1-F70)^Timing!L72),2) -> 143419.17 | I70: 0.25 | J70: 35854.7925 | K70: 110885860.4 | L70: 0.3345 | M70: 37091320.31 | N70: 0.05 | O70: 462371.2532 | P70: 0.6655 | Q70: 73794540.11 | R70: 0.03 | S70: 551942.7247 | T70: 2968778.381 | U70: 1258326.107 | V70: 4227104.488 | W70: 1014313.978 | Y70: 110885860.4 | Z70: 0.002 | AA70: 55291.03177 | AC70: FALSE | AH70: 300
A71: 57 | B71: =Timing!B73 -> 2032-06-12 | C71: =Timing!F73 -> 0.2575342466 | D71: 0.01986904641 | E71: 0.005 | F71: 0.005 | G71: 0.043 | H71: =ROUND(K70*(1-(1-F71)^Timing!L73),2) -> 139626.34 | I71: 0.25 | J71: 34906.585 | K71: 107436016.3 | L71: 0.3345 | M71: 35937347.45 | N71: 0.05 | O71: 462754.885 | P71: 0.6655 | Q71: 71498668.84 | R71: 0.03 | S71: 552400.6743 | T71: 2203196.307 | U71: 1211741.235 | V71: 3414937.542 | W71: 1015155.559 | Y71: 107436016.3 | Z71: 0.002 | AA71: 55336.90702 | AC71: FALSE | AH71: 300
A72: 58 | B72: =Timing!B74 -> 2032-09-12 | C72: =Timing!F74 -> 0.2493150685 | D72: 0.02251827448 | E72: 0.005 | F72: 0.005 | G72: 0.043 | H72: =ROUND(K71*(1-(1-F72)^Timing!L74),2) -> 135282.33 | I72: 0.25 | J72: 33820.5825 | K72: 103808880.1 | L72: 0.3345 | M72: 34724070.38 | N72: 0.05 | O72: 432861.6993 | P72: 0.6655 | Q72: 69084809.68 | R72: 0.03 | S72: 516716.5217 | T72: 2419273.704 | U72: 1174041.944 | V72: 3593315.648 | W72: 949578.221 | Y72: 103808880.1 | Z72: 0.002 | AA72: 51762.23609 | AC72: FALSE | AH72: 300
A73: 59 | B73: =Timing!B75 -> 2032-12-12 | C73: =Timing!F75 -> 0.2493150685 | D73: 0.02665941359 | E73: 0.005 | F73: 0.005 | G73: 0.043 | H73: =ROUND(K72*(1-(1-F73)^Timing!L75),2) -> 129295.15 | I73: 0.25 | J73: 32323.7875 | K73: 99874667.17 | L73: 0.3345 | M73: 33408076.17 | N73: 0.05 | O73: 416456.8399 | P73: 0.6655 | Q73: 66466591 | R73: 0.03 | S73: 497133.6806 | T73: 2767483.868 | U73: 1134405.235 | V73: 3901889.104 | W73: 913590.5206 | Y73: 99874667.17 | Z73: 0.002 | AA73: 49800.51897 | AC73: FALSE | AH73: 300
A74: 60 | B74: =Timing!B76 -> 2033-03-12 | C74: =Timing!F76 -> 0.2493150685 | D74: 0.02308119192 | E74: 0.005 | F74: 0.005 | G74: 0.043 | H74: =ROUND(K73*(1-(1-F74)^Timing!L76),2) -> 123365.76 | I74: 0.25 | J74: 30841.44 | K74: 96447186.52 | L74: 0.3345 | M74: 32261583.89 | N74: 0.05 | O74: 402164.9499 | P74: 0.6655 | Q74: 64185602.63 | R74: 0.03 | S74: 480073.1375 | T74: 2305226.36 | U74: 1091412.847 | V74: 3396639.207 | W74: 882238.0874 | Y74: 96447186.52 | Z74: 0.002 | AA74: 48091.47383 | AC74: FALSE | AH74: 300
A75: 61 | B75: =Timing!B77 -> 2033-06-12 | C75: =Timing!F77 -> 0.2493150685 | D75: 0.008707816019 | E75: 0.005 | F75: 0.005 | G75: 0.043 | H75: =ROUND(K74*(1-(1-F75)^Timing!L77),2) -> 121777.82 | I75: 0.25 | J75: 30444.455 | K75: 94522939.77 | L75: 0.3345 | M75: 31617923.35 | N75: 0.05 | O75: 394141.2363 | P75: 0.6655 | Q75: 62905016.42 | R75: 0.03 | S75: 470495.0543 | T75: 839844.3558 | U75: 1053957.939 | V75: 1893802.295 | W75: 864636.2906 | Y75: 94522939.77 | Z75: 0.002 | AA75: 47131.98641 | AC75: FALSE | AH75: 300
A76: 62 | B76: =Timing!B78 -> 2033-09-12 | C76: =Timing!F78 -> 0.2493150685 | D76: 0.00753313863 | E76: 0.005 | F76: 0.005 | G76: 0.043 | H76: =ROUND(K75*(1-(1-F76)^Timing!L78),2) -> 119348.2 | I76: 0.25 | J76: 29837.05 | K76: 92748118.21 | L76: 0.3345 | M76: 31024245.54 | N76: 0.05 | O76: 386740.5951 | P76: 0.6655 | Q76: 61723872.67 | R76: 0.03 | S76: 461660.7462 | T76: 712054.409 | U76: 1032930.108 | V76: 1744984.517 | W76: 848401.3413 | Y76: 92748118.21 | Z76: 0.002 | AA76: 46247.00689 | AC76: FALSE | AH76: 300
A77: 63 | B77: =Timing!B79 -> 2033-12-12 | C77: =Timing!F79 -> 0.2493150685 | D77: 0.007650248342 | E77: 0.005 | F77: 0.005 | G77: 0.043 | H77: =ROUND(K76*(1-(1-F77)^Timing!L79),2) -> 115835.13 | I77: 0.25 | J77: 28958.7825 | K77: 90996078.12 | L77: 0.3345 | M77: 30438188.13 | N77: 0.05 | O77: 379434.9479 | P77: 0.6655 | Q77: 60557889.99 | R77: 0.03 | S77: 452939.8347 | T77: 709546.1376 | U77: 1013535.17 | V77: 1723081.307 | W77: 832374.7826 | Y77: 90996078.12 | Z77: 0.002 | AA77: 45373.3869 | AC77: FALSE | AH77: 300
A78: 64 | B78: =Timing!B80 -> 2034-03-12 | C78: =Timing!F80 -> 0.2493150685 | D78: 0.007770095486 | E78: =LIBOR -> 0.005 | F78: 0.005 | G78: 0.043 | H78: =ROUND(K77*(1-(1-F78)^Timing!L80),2) -> 112398.88 | I78: 0.25 | J78: 28099.72 | K78: 89266541 | L78: 0.3345 | M78: =L78*K78 -> 29859657.96 | N78: 0.05 | O78: =N78*M78*C78 -> 372223.1335 | P78: 0.6655 | Q78: =P78*K78 -> 59406883.03 | R78: 0.03 | S78: =R78*Q78*C78 -> 444330.9334 | T78: 707048.2158 | U78: 994389.1827 | V78: 1701437.399 | W78: =O78+S78 -> 816554.0669 | Y78: 89266541 | Z78: 0.002 | AA78: 44510.98757 | AC78: FALSE | AH78: 300
A79: 65 | B79: =Timing!B81 -> 2034-06-12 | C79: =Timing!F81 -> 0.2493150685 | D79: 0.03974873881 | E79: 0.005 | F79: 0.005 | G79: 0.043 | H79: =ROUND(K78*(1-(1-F79)^Timing!L81),2) -> 112711.27 | I79: 0.25 | J79: 28177.8175 | K79: 84714641.65 | L79: =1-P79 -> 0.3345 | M79: 28337047.63 | N79: 0.05 | O79: 353242.6486 | P79: 0.6655 | Q79: 56377594.02 | R79: 0.03 | S79: 421673.5114 | T79: =D79*K78 -> 3548232.423 | U79: =K78*(1-(1-G79)^(1/4)) -> 975489.1044 | V79: =MIN(K78-J79,SUM(T79,U79)) -> 4523721.527 | W79: 774916.16 | Y79: 84714641.65 | Z79: 0.002 | AA79: =Y79*Z79*C79 -> 42241.27337 | AC79: FALSE | AH79: 300
A80: 66 | B80: =Timing!B82 -> 2034-09-12 | C80: =Timing!F82 -> 0.2520547945 | D80: 0.04531030439 | E80: 0.005 | F80: 0.005 | G80: 0.043 | H80: =ROUND(K79*(1-(1-F80)^Timing!L82),2) -> 106963.87 | I80: 0.25 | J80: =H80*I80 -> 26740.9675 | K80: =K79-(J80+V80) -> 79923707.74 | L80: 0.3345 | M80: 26734480.24 | N80: 0.05 | O80: 336927.6962 | P80: 0.6655 | Q80: 53189227.5 | R80: 0.03 | S80: 402197.9942 | T80: 3838446.2 | U80: 925746.7467 | V80: 4764192.947 | W80: 739125.6904 | Y80: =K80 -> 79923707.74 | Z80: 0.002 | AA80: 40290.30746 | AC80: FALSE | AH80: 300
A81: 67 | B81: =Timing!B83 -> 2034-12-12 | C81: =Timing!F83 -> 0.2493150685 | D81: 0.04286228932 | E81: 0.005 | F81: 0.005 | G81: 0.043 | H81: =ROUND(K80*(1-(1-F81)^Timing!L83),2) -> 99818.45 | I81: 0.25 | J81: 24954.6125 | K81: 75599647.78 | L81: 0.3345 | M81: 25288082.18 | N81: 0.05 | O81: 315234.9971 | P81: 0.6655 | Q81: 50311565.6 | R81: 0.03 | S81: 376302.9427 | T81: 3425713.085 | U81: 873392.2611 | V81: 4299105.346 | W81: 691537.9398 | Y81: 75599647.78 | Z81: 0.002 | AA81: 37696.26273 | AC81: FALSE | AH81: 300
A82: 68 | B82: =Timing!B84 -> 2035-03-12 | C82: =Timing!F84 -> 0.2465753425 | D82: 0.04786045623 | E82: 0.005 | F82: 0.005 | G82: 0.043 | H82: =ROUND(K81*(1-(1-F82)^Timing!L84),2) -> 93381.12 | I82: 0.25 | J82: 23345.28 | K82: 71131929.17 | L82: 0.3345 | M82: 23793630.31 | N82: 0.05 | O82: 293346.1271 | P82: 0.6655 | Q82: 47338298.87 | R82: 0.03 | S82: 350173.7176 | T82: 3618233.633 | U82: 826139.6922 | V82: 4444373.326 | W82: 643519.8447 | Y82: 71131929.17 | Z82: 0.002 | AA82: 35078.75959 | AC82: FALSE | AH82: 300
A83: 69 | B83: =Timing!B85 -> 2035-06-12 | C83: =Timing!F85 -> 0.2520547945 | D83: 0.05218694053 | E83: 0.005 | F83: 0.005 | G83: 0.043 | H83: =ROUND(K82*(1-(1-F83)^Timing!L85),2) -> 89813.83 | I83: 0.25 | J83: 22453.4575 | K83: 66620000.71 | L83: 0.3345 | M83: 22284390.24 | N83: 0.05 | O83: 280844.3701 | P83: 0.6655 | Q83: 44335610.47 | R83: 0.03 | S83: 335250.0956 | T83: 3712157.758 | U83: 777317.2469 | V83: 4489475.005 | W83: 616094.4658 | Y83: 66620000.71 | Z83: 0.002 | AA83: 33583.78118 | AC83: FALSE | AH83: 300
A84: 70 | B84: =Timing!B86 -> 2035-09-12 | C84: =Timing!F86 -> 0.2520547945 | D84: 0.05261383206 | E84: 0.005 | F84: 0.005 | G84: 0.043 | H84: =ROUND(K83*(1-(1-F84)^Timing!L86),2) -> 84116.9 | I84: 0.25 | J84: 21029.225 | K84: 62365826.27 | L84: 0.3345 | M84: 20861368.89 | N84: 0.05 | O84: 262910.4024 | P84: 0.6655 | Q84: 41504457.39 | R84: 0.03 | S84: 313841.9243 | T84: 3505133.529 | U84: 728011.6839 | V84: 4233145.213 | W84: 576752.3268 | Y84: 62365826.27 | Z84: 0.002 | AA84: 31439.21105 | AC84: FALSE | AH84: 300
A85: 71 | B85: =Timing!B87 -> 2035-12-12 | C85: =Timing!F87 -> 0.2493150685 | D85: 0.04813914757 | E85: 0.005 | F85: 0.005 | G85: 0.043 | H85: =ROUND(K84*(1-(1-F85)^Timing!L87),2) -> 77890.03 | I85: 0.25 | J85: 19472.5075 | K85: 58662593.24 | L85: 0.3345 | M85: 19622637.44 | N85: 0.05 | O85: 244610.9599 | P85: 0.6655 | Q85: 39039955.8 | R85: 0.03 | S85: 291997.4776 | T85: 3002237.715 | U85: 681522.8118 | V85: 3683760.526 | W85: 536608.4375 | Y85: 58662593.24 | Z85: 0.002 | AA85: 29250.9369 | AC85: FALSE | AH85: 300
A86: 72 | B86: =Timing!B88 -> 2036-03-12 | C86: =Timing!F88 -> 0.2493150685 | D86: 0.06698429101 | E86: 0.005 | F86: 0.005 | G86: 0.043 | H86: =ROUND(K85*(1-(1-F86)^Timing!L88),2) -> 73064.93 | I86: 0.25 | J86: 18266.2325 | K86: 54073800.26 | L86: 0.3345 | M86: 18087686.19 | N86: 0.05 | O86: 225476.636 | P86: 0.6655 | Q86: 35986114.07 | R86: 0.03 | S86: 269156.4148 | T86: 3929472.217 | U86: 641054.5307 | V86: 4570526.747 | W86: 494633.0509 | Y86: 54073800.26 | Z86: 0.002 | AA86: 26962.82643 | AC86: FALSE | AH86: 300
A87: 73 | B87: =Timing!B89 -> 2036-06-12 | C87: =Timing!F89 -> 0.2520547945 | D87: 0.06070960126 | E87: 0.005 | F87: 0.005 | G87: 0.043 | H87: =ROUND(K86*(1-(1-F87)^Timing!L89),2) -> 68089.17 | I87: 0.25 | J87: 17022.2925 | K87: 50183070.11 | L87: 0.3345 | M87: 16786236.95 | N87: 0.05 | O87: 211552.5753 | P87: 0.6655 | Q87: 33396833.16 | R87: 0.03 | S87: 252534.9576 | T87: 3282798.853 | U87: 590909.0058 | V87: 3873707.858 | W87: 464087.5329 | Y87: 50183070.11 | Z87: 0.002 | AA87: 25297.76685 | AC87: FALSE | AH87: 300
A88: 74 | B88: =Timing!B90 -> 2036-09-12 | C88: =Timing!F90 -> 0.2520547945 | D88: 0.06281209174 | E88: 0.005 | F88: 0.005 | G88: 0.043 | H88: =ROUND(K87*(1-(1-F88)^Timing!L90),2) -> 63190.01 | I88: 0.25 | J88: 15797.5025 | K88: 46466777.21 | L88: 0.3345 | M88: 15543136.98 | N88: 0.05 | O88: 195886.1099 | P88: 0.6655 | Q88: 30923640.24 | R88: 0.03 | S88: 233833.5536 | T88: 3152103.604 | U88: 548391.789 | V88: 3700495.393 | W88: 429719.6634 | Y88: 46466777.21 | Z88: 0.002 | AA88: 23424.34797 | AC88: FALSE | AH88: 300
A89: 75 | B89: =Timing!B91 -> 2036-12-12 | C89: =Timing!F91 -> 0.2493150685 | D89: 0.06629232858 | E89: 0.005 | F89: 0.005 | G89: 0.043 | H89: =ROUND(K88*(1-(1-F89)^Timing!L91),2) -> 57874.9 | I89: 0.25 | J89: 14468.725 | K89: 42864136.83 | L89: 0.3345 | M89: 14338053.77 | N89: 0.05 | O89: 178734.6429 | P89: 0.6655 | Q89: 28526083.06 | R89: 0.03 | S89: 213359.4706 | T89: 3080390.863 | U89: 507780.792 | V89: 3588171.655 | W89: 392094.1135 | Y89: 42864136.83 | Z89: 0.002 | AA89: 21373.35042 | AC89: FALSE | AH89: 300
A90: 76 | B90: =Timing!B92 -> 2037-03-12 | C90: =Timing!F92 -> 0.2465753425 | D90: 0.07697612749 | E90: 0.005 | F90: 0.005 | G90: 0.043 | H90: =ROUND(K89*(1-(1-F90)^Timing!L92),2) -> 52946.03 | I90: 0.25 | J90: 13236.5075 | K90: 39082973.3 | L90: 0.3345 | M90: 13073254.57 | N90: 0.05 | O90: 161177.1111 | P90: 0.6655 | Q90: 26009718.73 | R90: 0.03 | S90: 192400.6591 | T90: 3299515.262 | U90: 468411.7698 | V90: 3767927.031 | W90: 353577.7702 | Y90: 39082973.3 | Z90: 0.002 | AA90: 19273.79505 | AC90: FALSE | AH90: 300
A91: 77 | B91: =Timing!B93 -> 2037-06-12 | C91: =Timing!F93 -> 0.2520547945 | D91: 0.080551338 | E91: 0.005 | F91: 0.005 | G91: 0.043 | H91: =ROUND(K90*(1-(1-F91)^Timing!L93),2) -> 49347.62 | I91: 0.25 | J91: 12336.905 | K91: 35495358.72 | L91: 0.3345 | M91: 11873197.49 | N91: 0.05 | O91: 149634.8177 | P91: 0.6655 | Q91: 23622161.23 | R91: 0.03 | S91: 178622.3698 | T91: 3148185.792 | U91: 427091.8778 | V91: 3575277.67 | W91: 328257.1875 | Y91: 35495358.72 | Z91: 0.002 | AA91: 17893.5507 | AC91: FALSE | AH91: 300
A92: 78 | B92: =Timing!B94 -> 2037-09-12 | C92: =Timing!F94 -> 0.2575342466 | D92: 0.07320994433 | E92: 0.005 | F92: 0.005 | G92: 0.043 | H92: =ROUND(K91*(1-(1-F92)^Timing!L94),2) -> 44817.77 | I92: 0.25 | J92: 11204.4425 | K92: 32497653.99 | L92: 0.3345 | M92: 10870465.26 | N92: 0.05 | O92: 139975.854 | P92: 0.6655 | Q92: 21627188.73 | R92: 0.03 | S92: 167092.2526 | T92: 2598613.236 | U92: 387887.0549 | V92: 2986500.291 | W92: 307068.1067 | Y92: 32497653.99 | Z92: 0.002 | AA92: 16738.51767 | AC92: FALSE | AH92: 300
A93: 79 | B93: =Timing!B95 -> 2037-12-12 | C93: =Timing!F95 -> 0.2493150685 | D93: 0.09248441906 | E93: 0.005 | F93: 0.005 | G93: 0.043 | H93: =ROUND(K92*(1-(1-F93)^Timing!L95),2) -> 40587.02 | I93: 0.25 | J93: 10146.755 | K93: 29126851.92 | L93: 0.3345 | M93: 9742931.967 | N93: 0.05 | O93: 121452.9875 | P93: 0.6655 | Q93: 19383919.95 | R93: 0.03 | S93: 144981.0999 | T93: 3005526.65 | U93: 355128.6633 | V93: 3360655.313 | W93: 266434.0874 | Y93: 29126851.92 | Z93: 0.002 | AA93: 14523.52616 | AC93: FALSE | AH93: 300
A94: 80 | B94: =Timing!B96 -> 2038-03-12 | C94: =Timing!F96 -> 0.2410958904 | D94: 0.09889463825 | E94: 0.005 | F94: 0.005 | G94: 0.043 | H94: =ROUND(K93*(1-(1-F94)^Timing!L96),2) -> 35977.65 | I94: 0.25 | J94: 8994.4125 | K94: 25919074.89 | L94: 0.3345 | M94: 8669930.552 | N94: 0.05 | O94: 104514.2313 | P94: 0.6655 | Q94: 17249144.34 | R94: 0.03 | S94: 124760.9344 | T94: 2880489.484 | U94: 318293.1295 | V94: 3198782.613 | W94: 229275.1657 | Y94: 25919074.89 | Z94: 0.002 | AA94: 12497.96488 | AC94: FALSE | AH94: 300
A95: 81 | B95: =Timing!B97 -> 2038-06-12 | C95: =Timing!F97 -> 0.2575342466 | D95: 0.008085468886 | E95: 0.005 | F95: 0.005 | G95: 0.043 | H95: =ROUND(K94*(1-(1-F95)^Timing!L97),2) -> 32726.39 | I95: 0.25 | J95: 8181.5975 | K95: 25418086.32 | L95: 0.3345 | M95: 8502349.873 | N95: 0.05 | O95: 109482.3134 | P95: 0.6655 | Q95: 16915736.44 | R95: 0.03 | S95: 130691.4432 | T95: 209567.8736 | U95: 283239.1047 | V95: 492806.9784 | W95: 240173.7566 | Y95: 25418086.32 | Z95: 0.002 | AA95: 13092.05542 | AC95: FALSE | AH95: 300
A96: 82 | B96: =Timing!B98 -> 2038-09-12 | C96: =Timing!F98 -> 0.2493150685 | D96: 0.007402025919 | E96: 0.005 | F96: 0.005 | G96: 0.043 | H96: =ROUND(K95*(1-(1-F96)^Timing!L98),2) -> 32093.83 | I96: 0.25 | J96: 8023.4575 | K96: 24944153.14 | L96: 0.3345 | M96: 8343819.224 | N96: 0.05 | O96: 104011.9931 | P96: 0.6655 | Q96: 16600333.91 | R96: 0.03 | S96: 124161.4016 | T96: 188145.3337 | U96: 277764.3894 | V96: 465909.7232 | W96: 228173.3947 | Y96: 24944153.14 | Z96: 0.002 | AA96: 12437.9065 | AC96: FALSE | AH96: 300
A97: 83 | B97: =Timing!B99 -> 2038-12-12 | C97: =Timing!F99 -> 0.2493150685 | D97: 0.007516104265 | E97: 0.005 | F97: 0.005 | G97: 0.043 | H97: =ROUND(K96*(1-(1-F97)^Timing!L99),2) -> 31153.29 | I97: 0.25 | J97: 7788.3225 | K97: 24476296.63 | L97: 0.3345 | M97: 8187321.222 | N97: 0.05 | O97: 102061.1276 | P97: 0.6655 | Q97: 16288975.41 | R97: 0.03 | S97: 121832.6106 | T97: 187482.8558 | U97: 272585.3308 | V97: 460068.1865 | W97: 223893.7381 | Y97: 24476296.63 | Z97: 0.002 | AA97: 12204.61914 | AC97: FALSE | AH97: 300
A98: 84 | B98: =Timing!B100 -> 2039-03-12 | C98: =Timing!F100 -> 0.2493150685 | D98: 0.007632818265 | E98: 0.005 | F98: 0.005 | G98: 0.043 | H98: =ROUND(K97*(1-(1-F98)^Timing!L100),2) -> 30233.26 | I98: 0.25 | J98: 7558.315 | K98: 24014442.51 | L98: 0.3345 | M98: 8032831.02 | N98: 0.05 | O98: 100135.2908 | P98: 0.6655 | Q98: 15981611.49 | R98: 0.03 | S98: 119533.6969 | T98: 186823.124 | U98: 267472.6769 | V98: 454295.8008 | W98: 219668.9877 | Y98: 24014442.51 | Z98: 0.002 | AA98: 11974.32476 | AC98: FALSE | AH98: 300
A99: 85 | B99: =Timing!B101 -> 2039-06-12 | C99: =Timing!F101 -> 0.2493150685 | D99: 0.04869791771 | E99: 0.005 | F99: 0.005 | G99: 0.043 | H99: =ROUND(K98*(1-(1-F99)^Timing!L101),2) -> 30321.53 | I99: 0.25 | J99: 7580.3825 | K99: 22574983.17 | L99: 0.3345 | M99: 7551331.87 | N99: 0.05 | O99: 94133.04112 | P99: 0.6655 | Q99: 15023651.3 | R99: 0.03 | S99: 112368.6796 | T99: 1169453.345 | U99: 262425.6161 | V99: 1431878.961 | W99: 206501.7207 | Y99: 22574983.17 | Z99: 0.002 | AA99: 11256.56695 | AC99: FALSE | AH99: 300
A100: 86 | B100: =Timing!B102 -> 2039-09-12 | C100: =Timing!F102 -> 0.2493150685 | D100: 0.07254773954 | E100: 0.005 | F100: 0.005 | G100: 0.043 | H100: =ROUND(K99*(1-(1-F100)^Timing!L102),2) -> 28504.02 | I100: 0.25 | J100: 7126.005 | K100: 20683397.71 | L100: 0.3345 | M100: 6918596.533 | N100: 0.05 | O100: 86245.51843 | P100: 0.6655 | Q100: 13764801.17 | R100: 0.03 | S100: 102953.1704 | T100: 1637763.999 | U100: 246695.4569 | V100: 1884459.456 | W100: 189198.6889 | Y100: 20683397.71 | Z100: 0.002 | AA100: 10313.36543 | AC100: FALSE | AH100: 300
A101: 87 | B101: =Timing!B103 -> 2039-12-12 | C101: =Timing!F103 -> 0.2493150685 | D101: 0.06698780206 | E101: 0.005 | F101: 0.005 | G101: 0.043 | H101: =ROUND(K100*(1-(1-F101)^Timing!L103),2) -> 25831.94 | I101: 0.25 | J101: 6457.985 | K101: 19065379.83 | L101: 0.3345 | M101: 6377369.552 | N101: 0.05 | O101: 79498.71634 | P101: 0.6655 | Q101: 12688010.28 | R101: 0.03 | S101: 94899.36453 | T101: 1385535.352 | U101: 226024.5427 | V101: 1611559.894 | W101: 174398.0809 | Y101: 19065379.83 | Z101: 0.002 | AA101: 9506.572955 | AC101: FALSE | AH101: 300
A102: 88 | B102: =Timing!B104 -> 2040-03-12 | C102: =Timing!F104 -> 0.2493150685 | D102: 0.09328960761 | E102: 0.005 | F102: 0.005 | G102: 0.043 | H102: =ROUND(K101*(1-(1-F102)^Timing!L104),2) -> 23746.15 | I102: 0.25 | J102: 5936.5375 | K102: 17072498.36 | L102: 0.3345 | M102: 5710750.702 | N102: 0.05 | O102: 71188.81011 | P102: 0.6655 | Q102: 11361747.66 | R102: 0.03 | S102: 84979.64687 | T102: 1778601.803 | U102: 208343.1271 | V102: 1986944.93 | W102: 156168.457 | Y102: 17072498.36 | Z102: 0.002 | AA102: 8512.862196 | AC102: FALSE | AH102: 300
A103: 89 | B103: =Timing!B105 -> 2040-06-12 | C103: =Timing!F105 -> 0.2520547945 | D103: 0.09045063065 | E103: 0.005 | F103: 0.005 | G103: 0.043 | H103: =ROUND(K102*(1-(1-F103)^Timing!L105),2) -> 21497.51 | I103: 0.25 | J103: 5374.3775 | K103: 15336340.47 | L103: 0.3345 | M103: 5130005.888 | N103: 0.05 | O103: 64652.129 | P103: 0.6655 | Q103: 10206334.58 | R103: 0.03 | S103: 77176.66699 | T103: 1544218.243 | U103: 186565.2679 | V103: 1730783.511 | W103: 141828.796 | Y103: 15336340.47 | Z103: 0.002 | AA103: 7731.196292 | AC103: FALSE | AH103: 300
A104: 90 | B104: =Timing!B106 -> 2040-09-12 | C104: =Timing!F106 -> 0.2520547945 | D104: 0.08764077585 | E104: 0.005 | F104: 0.005 | G104: 0.043 | H104: =ROUND(K103*(1-(1-F104)^Timing!L106),2) -> 19311.36 | I104: 0.25 | J104: 4827.84 | K104: 13819831.01 | L104: 0.3345 | M104: 4622733.474 | N104: 0.05 | O104: 58259.1068 | P104: 0.6655 | Q104: 9197097.54 | R104: 0.03 | S104: 69545.17592 | T104: 1344088.778 | U104: 167592.839 | V104: 1511681.617 | W104: 127804.2827 | Y104: 13819831.01 | Z104: 0.002 | AA104: 6966.709333 | AC104: FALSE | AH104: 300
A105: 91 | B105: =Timing!B107 -> 2040-12-12 | C105: =Timing!F107 -> 0.2493150685 | D105: 0.09688337135 | E105: 0.005 | F105: 0.005 | G105: 0.043 | H105: =ROUND(K104*(1-(1-F105)^Timing!L107),2) -> 17212.76 | I105: 0.25 | J105: 4303.19 | K105: 12325595.31 | L105: 0.3345 | M105: 4122911.633 | N105: 0.05 | O105: 51395.19981 | P105: 0.6655 | Q105: 8202683.682 | R105: 0.03 | S105: 61351.57932 | T105: 1338911.82 | U105: 151020.6896 | V105: 1489932.51 | W105: 112746.7791 | Y105: 12325595.31 | Z105: 0.002 | AA105: 6145.91328 | AC105: FALSE | AH105: 300
A106: 92 | B106: =Timing!B108 -> 2041-03-12 | C106: =Timing!F108 -> 0.2465753425 | D106: 0.08305899782 | E106: 0.005 | F106: 0.005 | G106: 0.043 | H106: =ROUND(K105*(1-(1-F106)^Timing!L108),2) -> 15224.65 | I106: 0.25 | J106: 3806.1625 | K106: 11163345.61 | L106: 0.3345 | M106: 3734139.108 | N106: 0.05 | O106: 46037.33147 | P106: 0.6655 | Q106: 7429206.506 | R106: 0.03 | S106: 54955.77416 | T106: 1023751.594 | U106: 134691.9439 | V106: 1158443.538 | W106: 100993.1056 | Y106: 11163345.61 | Z106: 0.002 | AA106: 5505.211536 | AC106: FALSE | AH106: 300
A107: 93 | B107: =Timing!B109 -> 2041-06-12 | C107: =Timing!F109 -> 0.2520547945 | D107: 0.1100575155 | E107: 0.005 | F107: 0.005 | G107: 0.043 | H107: =ROUND(K106*(1-(1-F107)^Timing!L109),2) -> 14095.26 | I107: 0.25 | J107: 3523.815 | K107: 9809220.633 | L107: 0.3345 | M107: 3281184.302 | N107: 0.05 | O107: 41351.91175 | P107: 0.6655 | Q107: 6528036.331 | R107: 0.03 | S107: 49362.68568 | T107: 1228610.083 | U107: 121991.083 | V107: 1350601.166 | W107: 90714.59743 | Y107: 9809220.633 | Z107: 0.002 | AA107: 4944.922182 | AC107: FALSE | AH107: 300
A108: 94 | B108: =Timing!B110 -> 2041-09-12 | C108: =Timing!F110 -> 0.2520547945 | D108: 0.1323364599 | E108: 0.005 | F108: 0.005 | G108: 0.043 | H108: =ROUND(K107*(1-(1-F108)^Timing!L110),2) -> 12385.49 | I108: 0.25 | J108: 3096.3725 | K108: 8400813.285 | L108: 0.3345 | M108: 2810072.044 | N108: 0.05 | O108: 35414.60658 | P108: 0.6655 | Q108: 5590741.241 | R108: 0.03 | S108: 42275.19404 | T108: 1298117.533 | U108: 107193.4427 | V108: 1405310.976 | W108: 77689.80062 | Y108: 8400813.285 | Z108: 0.002 | AA108: 4234.930532 | AC108: FALSE | AH108: 300
A109: 95 | B109: =Timing!B111 -> 2041-12-12 | C109: =Timing!F111 -> 0.2493150685 | D109: 0.1391799038 | E109: 0.005 | F109: 0.005 | G109: 0.043 | H109: =ROUND(K108*(1-(1-F109)^Timing!L111),2) -> 10491.96 | I109: 0.25 | J109: 2622.99 | K109: 7137163.295 | L109: 0.3345 | M109: 2387381.122 | N109: 0.05 | O109: 29760.5044 | P109: 0.6655 | Q109: 4749782.173 | R109: 0.03 | S109: 35525.76803 | T109: 1169224.385 | U109: 91802.61424 | V109: 1261026.999 | W109: 65286.27243 | Y109: 7137163.295 | Z109: 0.002 | AA109: 3558.804712 | AC109: FALSE | AH109: 300
A110: 96 | B110: =Timing!B112 -> 2042-03-12 | C110: =Timing!F112 -> 0.2465753425 | D110: 0.1584303418 | E110: =LIBOR -> 0.005 | F110: 0.005 | G110: 0.043 | H110: =ROUND(K109*(1-(1-F110)^Timing!L112),2) -> 8815.86 | I110: 0.25 | J110: 2203.965 | K110: 5926222.441 | L110: 0.3345 | M110: 1982321.407 | N110: 0.05 | O110: =N110*M110*C110 -> 24439.57899 | P110: 0.6655 | Q110: 3943901.035 | R110: 0.03 | S110: =R110*Q110*C110 -> 29174.06245 | T110: 1130743.22 | U110: 77993.66877 | V110: 1208736.889 | W110: =O110+S110 -> 53613.64143 | Y110: 5926222.441 | Z110: 0.002 | AA110: 2922.520656 | AC110: FALSE | AH110: 300
A111: 97 | B111: =Timing!B113 -> 2042-06-12 | C111: =Timing!F113 -> 0.2520547945 | D111: 0.2069872402 | E111: 0.005 | F111: 0.005 | G111: 0.043 | H111: =ROUND(K110*(1-(1-F111)^Timing!L113),2) -> 7482.67 | I111: 0.25 | J111: 1870.6675 | K111: 4632938.626 | L111: 0.3345 | M111: 1549717.97 | N111: 0.05 | O111: 19530.69223 | P111: 0.6655 | Q111: 3083220.656 | R111: 0.03 | S111: 23314.21647 | T111: =D111*K110 -> 1226652.428 | U111: =K110*(1-(1-G111)^(1/4)) -> 64760.7195 | V111: =MIN(K110-J111,SUM(T111,U111)) -> 1291413.148 | W111: 42844.9087 | Y111: 4632938.626 | Z111: 0.002 | AA111: =Y111*Z111*C111 -> 2335.508787 | AC111: FALSE | AH111: 300
A112: 98 | B112: =Timing!B114 -> 2042-09-12 | C112: =Timing!F114 -> 0.2520547945 | D112: 0.2079363734 | E112: 0.005 | F112: 0.005 | G112: 0.043 | H112: =ROUND(K111*(1-(1-F112)^Timing!L114),2) -> 5849.72 | I112: 0.25 | J112: 1462.43 | K112: 3617491.799 | L112: 0.3345 | M112: 1210051.007 | N112: 0.05 | O112: 15249.9579 | P112: 0.6655 | Q112: 2407440.793 | R112: 0.03 | S112: 18204.20983 | T112: 963356.456 | U112: 50627.94078 | V112: 1013984.397 | W112: 33454.16772 | Y112: 3617491.799 | Z112: 0.002 | AA112: 1823.612304 | AC112: FALSE | AH112: 300
A113: 99 | B113: =Timing!B115 -> 2042-12-12 | C113: =Timing!F115 -> 0.2493150685 | D113: 0.2418755633 | E113: 0.005 | F113: 0.005 | G113: 0.043 | H113: =ROUND(K112*(1-(1-F113)^Timing!L115),2) -> 4517.96 | I113: 0.25 | J113: 1129.49 | K113: 2701848.127 | L113: 0.3345 | M113: 903768.1984 | N113: 0.05 | O113: 11266.15151 | P113: 0.6655 | Q113: 1798079.928 | R113: 0.03 | S113: 13448.65262 | T113: 874982.8667 | U113: 39531.31595 | V113: 914514.1827 | W113: 24714.80413 | Y113: 2701848.127 | Z113: 0.002 | AA113: 1347.222902 | AC113: FALSE | AH113: 300
A114: 100 | B114: =Timing!B116 -> 2043-03-12 | C114: =Timing!F116 -> 0.2465753425 | D114: 0.4778707421 | E114: 0.005 | F114: 0.005 | G114: 0.043 | H114: =ROUND(K113*(1-(1-F114)^Timing!L116),2) -> 3337.34 | I114: 0.25 | J114: 834.335 | K114: 1380354.3 | L114: 0.3345 | M114: 461728.5133 | N114: 0.05 | O114: 5692.543315 | P114: 0.6655 | Q114: 918625.7865 | R114: 0.03 | S114: 6795.314037 | T114: 1291134.169 | U114: 29525.32248 | V114: 1320659.492 | W114: 12487.85735 | Y114: 1380354.3 | Z114: 0.002 | AA114: 680.7226684 | AC114: FALSE | AH114: 300
A115: 101 | B115: =Timing!B117 -> 2043-06-12 | C115: =Timing!F117 -> 0.2520547945 | D115: 0.01202374616 | E115: 0.005 | F115: 0.005 | G115: 0.043 | H115: =ROUND(K114*(1-(1-F115)^Timing!L117),2) -> 1742.89 | I115: 0.25 | J115: 435.7225 | K115: 1348237.278 | L115: 0.3345 | M115: 450985.3695 | N115: 0.05 | O115: 5683.651232 | P115: 0.6655 | Q115: 897251.9085 | R115: 0.03 | S115: 6784.699363 | T115: 16597.02971 | U115: 15084.2697 | V115: 31681.29941 | W115: 12468.35059 | Y115: 1348237.278 | Z115: 0.002 | AA115: 679.6593401 | AC115: FALSE | AH115: 300
A116: 102 | B116: =Timing!B118 -> 2043-09-12 | C116: =Timing!F118 -> 0.2575342466 | D116: 0.021 | E116: 0.005 | F116: 0.005 | G116: 0.043 | H116: =ROUND(K115*(1-(1-F116)^Timing!L118),2) -> 1702.33 | I116: 0.25 | J116: 425.5825 | K116: 1304765.412 | L116: 0.3345 | M116: 436444.0303 | N116: 0.05 | O116: 5619.964226 | P116: 0.6655 | Q116: 868321.3817 | R116: 0.03 | S116: 6708.674785 | T116: 28312.98284 | U116: 14733.30052 | V116: 43046.28335 | W116: 12328.63901 | Y116: 1304765.412 | Z116: 0.002 | AA116: 672.0435547 | AC116: FALSE | AH116: 300
A117: 103 | B117: =Timing!B119 -> 2043-12-12 | C117: =Timing!F119 -> 0.2493150685 | D117: 0.02 | E117: 0.005 | F117: 0.005 | G117: 0.043 | H117: =ROUND(K116*(1-(1-F117)^Timing!L119),2) -> 1629.55 | I117: 0.25 | J117: 407.3875 | K117: 1264004.469 | L117: 0.3345 | M117: 422809.4948 | N117: 0.05 | O117: 5270.638908 | P117: 0.6655 | Q117: 841194.9739 | R117: 0.03 | S117: 6291.677476 | T117: 26095.30824 | U117: 14258.24759 | V117: 40353.55583 | W117: 11562.31638 | Y117: 1264004.469 | Z117: 0.002 | AA117: 630.2707214 | AC117: FALSE | AH117: 300
A118: 104 | B118: =Timing!B120 -> 2044-03-12 | C118: =Timing!F120 -> 0.2493150685 | D118: 0.017 | E118: 0.005 | F118: 0.005 | G118: 0.043 | H118: =ROUND(K117*(1-(1-F118)^Timing!L120),2) -> 1574.33 | I118: 0.25 | J118: 393.5825 | K118: 1228309.991 | L118: 0.3345 | M118: 410869.692 | N118: 0.05 | O118: 5121.80027 | P118: 0.6655 | Q118: 817440.2991 | R118: 0.03 | S118: 6114.005525 | T118: 21488.07597 | U118: 13812.81915 | V118: 35300.89512 | W118: 11235.8058 | Y118: 1228309.991 | Z118: 0.002 | AA118: 612.4723791 | AC118: FALSE | AH118: 300
A119: 105 | B119: =Timing!B121 -> 2044-06-12 | C119: =Timing!F121 -> 0.2493150685 | D119: 0.147527758 | E119: 0.005 | F119: 0.005 | G119: 0.043 | H119: =ROUND(K118*(1-(1-F119)^Timing!L121),2) -> 1546.68 | I119: 0.25 | J119: 386.67 | K119: 1033290.746 | L119: 0.3345 | M119: 345635.7545 | N119: 0.05 | O119: 4308.61009 | P119: 0.6655 | Q119: 687654.9913 | R119: 0.03 | S119: 5143.282538 | T119: 181209.8192 | U119: 13422.75616 | V119: 194632.5753 | W119: 9451.892628 | Y119: 1033290.746 | Z119: 0.002 | AA119: 515.2299061 | AC119: FALSE | AH119: 300
A120: 106 | B120: =Timing!B122 -> 2044-09-12 | C120: =Timing!F122 -> 0.2493150685 | D120: 0.3297769862 | E120: 0.005 | F120: 0.005 | G120: 0.043 | H120: =ROUND(K119*(1-(1-F120)^Timing!L122),2) -> 1301.11 | I120: 0.25 | J120: 325.2775 | K120: 680918.3402 | L120: 0.3345 | M120: 227767.1848 | N120: 0.05 | O120: 2839.289564 | P120: 0.6655 | Q120: 453151.1554 | R120: 0.03 | S120: 3389.32234 | T120: 340755.508 | U120: 11291.62005 | V120: 352047.1281 | W120: 6228.611904 | Y120: 680918.3402 | Z120: 0.002 | AA120: 339.5264053 | AC120: FALSE | AH120: 300
A121: 107 | B121: =Timing!B123 -> 2044-12-12 | C121: =Timing!F123 -> 0.2493150685 | D121: 0.3990335858 | E121: 0.005 | F121: 0.005 | G121: 0.043 | H121: =ROUND(K120*(1-(1-F121)^Timing!L123),2) -> 848.09 | I121: 0.25 | J121: 212.0225 | K121: 401556.0746 | L121: 0.3345 | M121: 134320.507 | N121: 0.05 | O121: 1674.40632 | P121: 0.6655 | Q121: 267235.5676 | R121: 0.03 | S121: 1998.775616 | T121: 271709.2869 | U121: 7440.956202 | V121: 279150.2431 | W121: 3673.181935 | Y121: 401556.0746 | Z121: 0.002 | AA121: 200.2279605 | AC121: FALSE | AH121: 300
A122: 108 | B122: =Timing!B124 -> 2045-03-12 | C122: =Timing!F124 -> 0.2493150685 | D122: 0.6068572536 | E122: 0.005 | F122: 0.005 | G122: 0.043 | H122: =ROUND(K121*(1-(1-F122)^Timing!L124),2) -> 496 | I122: 0.25 | J122: 124 | K122: 153356.7237 | L122: 0.3345 | M122: 51297.82406 | N122: 0.05 | O122: 639.466026 | P122: 0.6655 | Q122: 102058.8996 | R122: 0.03 | S122: 763.3446463 | T122: 243687.2166 | U122: 4388.134358 | V122: 248075.3509 | W122: 1402.810672 | Y122: 153356.7237 | Z122: 0.002 | AA122: 76.46828413 | AC122: FALSE | AH122: 300
A123: 109 | B123: =Timing!B125 -> 2045-06-12 | C123: =Timing!F125 -> 0.2493150685 | D123: 1 | E123: 0.005 | F123: 0.005 | G123: 0.043 | H123: =ROUND(K122*(1-(1-F123)^Timing!L125),2) -> 193.63 | I123: 0.25 | J123: 48.4075 | K123: 0 | L123: 0.3345 | M123: 0 | N123: 0.05 | O123: 0 | P123: 0.6655 | Q123: 0 | R123: 0.03 | S123: 0 | T123: 153356.7237 | U123: 1675.85538 | V123: 153308.3162 | W123: 0 | Y123: 0 | Z123: 0.002 | AA123: 0 | AC123: FALSE | AH123: 300
A124: 110 | B124: =Timing!B126 -> 2045-09-12 | C124: =Timing!F126 -> 0.2520547945 | D124: 0 | E124: 0.005 | F124: 0.005 | G124: 0.043 | H124: =ROUND(K123*(1-(1-F124)^Timing!L126),2) -> 0 | I124: 0.25 | J124: 0 | K124: 0 | L124: 0.3345 | M124: 0 | N124: 0.05 | O124: 0 | P124: 0.6655 | Q124: 0 | R124: 0.03 | S124: 0 | T124: 0 | U124: 0 | V124: 0 | W124: 0 | Y124: 0 | Z124: 0.002 | AA124: 0 | AC124: FALSE | AH124: 300
A125: 111 | B125: =Timing!B127 -> 2045-12-12 | C125: =Timing!F127 -> 0.2493150685 | D125: 0 | E125: 0.005 | F125: 0.005 | G125: 0.043 | H125: =ROUND(K124*(1-(1-F125)^Timing!L127),2) -> 0 | I125: 0.25 | J125: 0 | K125: 0 | L125: 0.3345 | M125: 0 | N125: 0.05 | O125: 0 | P125: 0.6655 | Q125: 0 | R125: 0.03 | S125: 0 | T125: 0 | U125: 0 | V125: 0 | W125: 0 | Y125: 0 | Z125: 0.002 | AA125: 0 | AC125: FALSE | AH125: 300
A126: 112 | B126: =Timing!B128 -> 2046-03-12 | C126: =Timing!F128 -> 0.2465753425 | D126: 0 | E126: 0.005 | F126: 0.005 | G126: 0.043 | H126: =ROUND(K125*(1-(1-F126)^Timing!L128),2) -> 0 | I126: 0.25 | J126: 0 | K126: 0 | L126: 0.3345 | M126: 0 | N126: 0.05 | O126: 0 | P126: 0.6655 | Q126: 0 | R126: 0.03 | S126: 0 | T126: 0 | U126: 0 | V126: 0 | W126: 0 | Y126: 0 | Z126: 0.002 | AA126: 0 | AC126: FALSE | AH126: 300
A127: 113 | B127: =Timing!B129 -> 2046-06-12 | C127: =Timing!F129 -> 0.2520547945 | D127: 0 | E127: 0.005 | F127: 0.005 | G127: 0.043 | H127: =ROUND(K126*(1-(1-F127)^Timing!L129),2) -> 0 | I127: 0.25 | J127: 0 | K127: 0 | L127: 0.3345 | M127: 0 | N127: 0.05 | O127: 0 | P127: 0.6655 | Q127: 0 | R127: 0.03 | S127: 0 | T127: 0 | U127: 0 | V127: 0 | W127: 0 | Y127: 0 | Z127: 0.002 | AA127: 0 | AC127: FALSE | AH127: 300
A128: 114 | B128: =Timing!B130 -> 2046-09-12 | C128: =Timing!F130 -> 0.2520547945 | D128: 0 | E128: 0.005 | F128: 0.005 | G128: 0.043 | H128: =ROUND(K127*(1-(1-F128)^Timing!L130),2) -> 0 | I128: 0.25 | J128: 0 | K128: 0 | L128: 0.3345 | M128: 0 | N128: 0.05 | O128: 0 | P128: 0.6655 | Q128: 0 | R128: 0.03 | S128: 0 | T128: 0 | U128: 0 | V128: 0 | W128: 0 | Y128: 0 | Z128: 0.002 | AA128: 0 | AC128: FALSE | AH128: 300
A129: 115 | B129: =Timing!B131 -> 2046-12-12 | C129: =Timing!F131 -> 0.2493150685 | D129: 0 | E129: 0.005 | F129: 0.005 | G129: 0.043 | H129: =ROUND(K128*(1-(1-F129)^Timing!L131),2) -> 0 | I129: 0.25 | J129: 0 | K129: 0 | L129: 0.3345 | M129: 0 | N129: 0.05 | O129: 0 | P129: 0.6655 | Q129: 0 | R129: 0.03 | S129: 0 | T129: 0 | U129: 0 | V129: 0 | W129: 0 | Y129: 0 | Z129: 0.002 | AA129: 0 | AC129: FALSE | AH129: 300
A130: 116 | B130: =Timing!B132 -> 2047-03-12 | C130: =Timing!F132 -> 0.2465753425 | D130: 0 | E130: 0.005 | F130: 0.005 | G130: 0.043 | H130: =ROUND(K129*(1-(1-F130)^Timing!L132),2) -> 0 | I130: 0.25 | J130: 0 | K130: 0 | L130: 0.3345 | M130: 0 | N130: 0.05 | O130: 0 | P130: 0.6655 | Q130: 0 | R130: 0.03 | S130: 0 | T130: 0 | U130: 0 | V130: 0 | W130: 0 | Y130: 0 | Z130: 0.002 | AA130: 0 | AC130: FALSE | AH130: 300
A131: 117 | B131: =Timing!B133 -> 2047-06-12 | C131: =Timing!F133 -> 0.2520547945 | D131: 0 | E131: 0.005 | F131: 0.005 | G131: 0.043 | H131: =ROUND(K130*(1-(1-F131)^Timing!L133),2) -> 0 | I131: 0.25 | J131: 0 | K131: 0 | L131: 0.3345 | M131: 0 | N131: 0.05 | O131: 0 | P131: 0.6655 | Q131: 0 | R131: 0.03 | S131: 0 | T131: 0 | U131: 0 | V131: 0 | W131: 0 | Y131: 0 | Z131: 0.002 | AA131: 0 | AC131: FALSE | AH131: 300
A132: 118 | B132: =Timing!B134 -> 2047-09-12 | C132: =Timing!F134 -> 0.2520547945 | D132: 0 | E132: 0.005 | F132: 0.005 | G132: 0.043 | H132: =ROUND(K131*(1-(1-F132)^Timing!L134),2) -> 0 | I132: 0.25 | J132: 0 | K132: 0 | L132: 0.3345 | M132: 0 | N132: 0.05 | O132: 0 | P132: 0.6655 | Q132: 0 | R132: 0.03 | S132: 0 | T132: 0 | U132: 0 | V132: 0 | W132: 0 | Y132: 0 | Z132: 0.002 | AA132: 0 | AC132: FALSE | AH132: 300
A133: 119 | B133: =Timing!B135 -> 2047-12-12 | C133: =Timing!F135 -> 0.2493150685 | D133: 0 | E133: 0.005 | F133: 0.005 | G133: 0.043 | H133: =ROUND(K132*(1-(1-F133)^Timing!L135),2) -> 0 | I133: 0.25 | J133: 0 | K133: 0 | L133: 0.3345 | M133: 0 | N133: 0.05 | O133: 0 | P133: 0.6655 | Q133: 0 | R133: 0.03 | S133: 0 | T133: 0 | U133: 0 | V133: 0 | W133: 0 | Y133: 0 | Z133: 0.002 | AA133: 0 | AC133: FALSE | AH133: 300
A134: 120 | B134: =Timing!B136 -> 2048-03-12 | C134: =Timing!F136 -> 0.2493150685 | D134: 0 | E134: 0.005 | F134: 0.005 | G134: 0.043 | H134: =ROUND(K133*(1-(1-F134)^Timing!L136),2) -> 0 | I134: 0.25 | J134: 0 | K134: 0 | L134: 0.3345 | M134: 0 | N134: 0.05 | O134: 0 | P134: 0.6655 | Q134: 0 | R134: 0.03 | S134: 0 | T134: 0 | U134: 0 | V134: 0 | W134: 0 | Y134: 0 | Z134: 0.002 | AA134: 0 | AC134: FALSE | AH134: 300
A135: 121 | B135: =Timing!B137 -> 2048-06-12 | C135: =Timing!F137 -> 0.2520547945 | D135: 0 | E135: 0.005 | F135: 0.005 | G135: 0.043 | H135: =ROUND(K134*(1-(1-F135)^Timing!L137),2) -> 0 | I135: 0.25 | J135: 0 | K135: 0 | L135: 0.3345 | M135: 0 | N135: 0.05 | O135: 0 | P135: 0.6655 | Q135: 0 | R135: 0.03 | S135: 0 | T135: 0 | U135: 0 | V135: 0 | W135: 0 | Y135: 0 | Z135: 0.002 | AA135: 0 | AC135: FALSE | AH135: 300
A136: 122 | B136: =Timing!B138 -> 2048-09-12 | C136: =Timing!F138 -> 0.2575342466 | D136: 0 | E136: 0.005 | F136: 0.005 | G136: 0.043 | H136: =ROUND(K135*(1-(1-F136)^Timing!L138),2) -> 0 | I136: 0.25 | J136: 0 | K136: 0 | L136: 0.3345 | M136: 0 | N136: 0.05 | O136: 0 | P136: 0.6655 | Q136: 0 | R136: 0.03 | S136: 0 | T136: 0 | U136: 0 | V136: 0 | W136: 0 | Y136: 0 | Z136: 0.002 | AA136: 0 | AC136: FALSE | AH136: 300
A137: 123 | B137: =Timing!B139 -> 2048-12-12 | C137: =Timing!F139 -> 0.2493150685 | D137: 0 | E137: 0.005 | F137: 0.005 | G137: 0.043 | H137: =ROUND(K136*(1-(1-F137)^Timing!L139),2) -> 0 | I137: 0.25 | J137: 0 | K137: 0 | L137: 0.3345 | M137: 0 | N137: 0.05 | O137: 0 | P137: 0.6655 | Q137: 0 | R137: 0.03 | S137: 0 | T137: 0 | U137: 0 | V137: 0 | W137: 0 | Y137: 0 | Z137: 0.002 | AA137: 0 | AC137: FALSE | AH137: 300
A138: 124 | B138: =Timing!B140 -> 2049-03-12 | C138: =Timing!F140 -> 0.2410958904 | D138: 0 | E138: 0.005 | F138: 0.005 | G138: 0.043 | H138: =ROUND(K137*(1-(1-F138)^Timing!L140),2) -> 0 | I138: 0.25 | J138: 0 | K138: 0 | L138: 0.3345 | M138: 0 | N138: 0.05 | O138: 0 | P138: 0.6655 | Q138: 0 | R138: 0.03 | S138: 0 | T138: 0 | U138: 0 | V138: 0 | W138: 0 | Y138: 0 | Z138: 0.002 | AA138: 0 | AC138: FALSE | AH138: 300
A139: 125 | B139: =Timing!B141 -> 2049-06-12 | C139: =Timing!F141 -> 0.2575342466 | D139: 0 | E139: 0.005 | F139: 0.005 | G139: 0.043 | H139: =ROUND(K138*(1-(1-F139)^Timing!L141),2) -> 0 | I139: 0.25 | J139: 0 | K139: 0 | L139: 0.3345 | M139: 0 | N139: 0.05 | O139: 0 | P139: 0.6655 | Q139: 0 | R139: 0.03 | S139: 0 | T139: 0 | U139: 0 | V139: 0 | W139: 0 | Y139: 0 | Z139: 0.002 | AA139: 0 | AC139: FALSE | AH139: 300
A140: 126 | B140: =Timing!B142 -> 2049-09-12 | C140: =Timing!F142 -> 0.2493150685 | D140: 0 | E140: 0.005 | F140: 0.005 | G140: 0.043 | H140: =ROUND(K139*(1-(1-F140)^Timing!L142),2) -> 0 | I140: 0.25 | J140: 0 | K140: 0 | L140: 0.3345 | M140: 0 | N140: 0.05 | O140: 0 | P140: 0.6655 | Q140: 0 | R140: 0.03 | S140: 0 | T140: 0 | U140: 0 | V140: 0 | W140: 0 | Y140: 0 | Z140: 0.002 | AA140: 0 | AC140: FALSE | AH140: 300
A141: 127 | B141: =Timing!B143 -> 2049-12-12 | C141: =Timing!F143 -> 0.2493150685 | D141: 0 | E141: 0.005 | F141: 0.005 | G141: 0.043 | H141: =ROUND(K140*(1-(1-F141)^Timing!L143),2) -> 0 | I141: 0.25 | J141: 0 | K141: 0 | L141: 0.3345 | M141: 0 | N141: 0.05 | O141: 0 | P141: 0.6655 | Q141: 0 | R141: 0.03 | S141: 0 | T141: 0 | U141: 0 | V141: 0 | W141: 0 | Y141: 0 | Z141: 0.002 | AA141: 0 | AC141: FALSE | AH141: 300
A142: 128 | B142: =Timing!B144 -> 2050-03-12 | C142: =Timing!F144 -> 0.2493150685 | D142: 0 | E142: =LIBOR -> 0.005 | F142: 0.005 | G142: 0.043 | H142: =ROUND(K141*(1-(1-F142)^Timing!L144),2) -> 0 | I142: 0.25 | J142: 0 | K142: 0 | L142: 0.3345 | M142: =L142*K142 -> 0 | N142: 0.05 | O142: =N142*M142*C142 -> 0 | P142: 0.6655 | Q142: =P142*K142 -> 0 | R142: 0.03 | S142: =R142*Q142*C142 -> 0 | T142: 0 | U142: 0 | V142: 0 | W142: 0 | Y142: 0 | Z142: 0.002 | AA142: 0 | AC142: FALSE | AH142: 300
A143: 129 | B143: =Timing!B145 -> 2050-06-12 | C143: =Timing!F145 -> 0.2493150685 | D143: 0 | E143: 0.005 | F143: 0.005 | G143: 0.043 | H143: =ROUND(K142*(1-(1-F143)^Timing!L145),2) -> 0 | I143: 0.25 | J143: 0 | K143: 0 | L143: =1-P143 -> 0.3345 | M143: =L143*K143 -> 0 | N143: 0.05 | O143: 0 | P143: 0.6655 | Q143: =P143*K143 -> 0 | R143: 0.03 | S143: 0 | T143: =D143*K142 -> 0 | U143: =K142*(1-(1-G143)^(1/4)) -> 0 | V143: =MIN(K142-J143,SUM(T143,U143)) -> 0 | W143: =O143+S143 -> 0 | Y143: 0 | Z143: 0.002 | AA143: =Y143*Z143*C143 -> 0 | AC143: FALSE | AH143: 300
A144: 130 | B144: =Timing!B146 -> 2050-09-12 | C144: =Timing!F146 -> 0.2493150685 | D144: 0 | E144: 0.005 | F144: 0.005 | G144: 0.043 | H144: =ROUND(K143*(1-(1-F144)^Timing!L146),2) -> 0 | I144: 0.25 | J144: =H144*I144 -> 0 | K144: =K143-(J144+V144) -> 0 | L144: 0.3345 | M144: 0 | N144: 0.05 | O144: 0 | P144: 0.6655 | Q144: 0 | R144: 0.03 | S144: 0 | T144: 0 | U144: 0 | V144: 0 | W144: 0 | Y144: =K144 -> 0 | Z144: 0.002 | AA144: 0 | AC144: FALSE | AH144: 300
A145: 131 | B145: =Timing!B147 -> 2050-12-12 | C145: =Timing!F147 -> 0.2493150685 | D145: 0 | E145: 0.005 | F145: 0.005 | G145: 0.043 | H145: =ROUND(K144*(1-(1-F145)^Timing!L147),2) -> 0 | I145: 0.25 | J145: 0 | K145: 0 | L145: 0.3345 | M145: 0 | N145: 0.05 | O145: 0 | P145: 0.6655 | Q145: 0 | R145: 0.03 | S145: 0 | T145: 0 | U145: 0 | V145: 0 | W145: 0 | Y145: 0 | Z145: 0.002 | AA145: 0 | AC145: FALSE | AH145: 300
A146: 132 | B146: =Timing!B148 -> 2051-03-12 | C146: =Timing!F148 -> 0.2493150685 | D146: 0 | E146: 0.005 | F146: 0.005 | G146: 0.043 | H146: =ROUND(K145*(1-(1-F146)^Timing!L148),2) -> 0 | I146: 0.25 | J146: 0 | K146: 0 | L146: 0.3345 | M146: 0 | N146: 0.05 | O146: 0 | P146: 0.6655 | Q146: 0 | R146: 0.03 | S146: 0 | T146: 0 | U146: 0 | V146: 0 | W146: 0 | Y146: 0 | Z146: 0.002 | AA146: 0 | AC146: FALSE | AH146: 300
A147: 133 | B147: =Timing!B149 -> 2051-06-12 | C147: =Timing!F149 -> 0.2493150685 | D147: 0 | E147: 0.005 | F147: 0.005 | G147: 0.043 | H147: =ROUND(K146*(1-(1-F147)^Timing!L149),2) -> 0 | I147: 0.25 | J147: 0 | K147: 0 | L147: 0.3345 | M147: 0 | N147: 0.05 | O147: 0 | P147: 0.6655 | Q147: 0 | R147: 0.03 | S147: 0 | T147: 0 | U147: 0 | V147: 0 | W147: 0 | Y147: 0 | Z147: 0.002 | AA147: 0 | AC147: FALSE | AH147: 300
A148: 134 | B148: =Timing!B150 -> 2051-09-12 | C148: =Timing!F150 -> 0.2520547945 | D148: 0 | E148: 0.005 | F148: 0.005 | G148: 0.043 | H148: =ROUND(K147*(1-(1-F148)^Timing!L150),2) -> 0 | I148: 0.25 | J148: 0 | K148: 0 | L148: 0.3345 | M148: 0 | N148: 0.05 | O148: 0 | P148: 0.6655 | Q148: 0 | R148: 0.03 | S148: 0 | T148: 0 | U148: 0 | V148: 0 | W148: 0 | Y148: 0 | Z148: 0.002 | AA148: 0 | AC148: FALSE | AH148: 300
A149: 135 | B149: =Timing!B151 -> 2051-12-12 | C149: =Timing!F151 -> 0.2493150685 | D149: 0 | E149: 0.005 | F149: 0.005 | G149: 0.043 | H149: =ROUND(K148*(1-(1-F149)^Timing!L151),2) -> 0 | I149: 0.25 | J149: 0 | K149: 0 | L149: 0.3345 | M149: 0 | N149: 0.05 | O149: 0 | P149: 0.6655 | Q149: 0 | R149: 0.03 | S149: 0 | T149: 0 | U149: 0 | V149: 0 | W149: 0 | Y149: 0 | Z149: 0.002 | AA149: 0 | AC149: FALSE | AH149: 300
A150: 136 | B150: =Timing!B152 -> 2052-03-12 | C150: =Timing!F152 -> 0.2493150685 | D150: 0 | E150: 0.005 | F150: 0.005 | G150: 0.043 | H150: =ROUND(K149*(1-(1-F150)^Timing!L152),2) -> 0 | I150: 0.25 | J150: 0 | K150: 0 | L150: 0.3345 | M150: 0 | N150: 0.05 | O150: 0 | P150: 0.6655 | Q150: 0 | R150: 0.03 | S150: 0 | T150: 0 | U150: 0 | V150: 0 | W150: 0 | Y150: 0 | Z150: 0.002 | AA150: 0 | AC150: FALSE | AH150: 300
A151: 137 | B151: =Timing!B153 -> 2052-06-12 | C151: =Timing!F153 -> 0.2520547945 | D151: 0 | E151: 0.005 | F151: 0.005 | G151: 0.043 | H151: =ROUND(K150*(1-(1-F151)^Timing!L153),2) -> 0 | I151: 0.25 | J151: 0 | K151: 0 | L151: 0.3345 | M151: 0 | N151: 0.05 | O151: 0 | P151: 0.6655 | Q151: 0 | R151: 0.03 | S151: 0 | T151: 0 | U151: 0 | V151: 0 | W151: 0 | Y151: 0 | Z151: 0.002 | AA151: 0 | AC151: FALSE | AH151: 300
A152: 138 | B152: =Timing!B154 -> 2052-09-12 | C152: =Timing!F154 -> 0.2520547945 | D152: 0 | E152: 0.005 | F152: 0.005 | G152: 0.043 | H152: =ROUND(K151*(1-(1-F152)^Timing!L154),2) -> 0 | I152: 0.25 | J152: 0 | K152: 0 | L152: 0.3345 | M152: 0 | N152: 0.05 | O152: 0 | P152: 0.6655 | Q152: 0 | R152: 0.03 | S152: 0 | T152: 0 | U152: 0 | V152: 0 | W152: 0 | Y152: 0 | Z152: 0.002 | AA152: 0 | AC152: FALSE | AH152: 300
A153: 139 | B153: =Timing!B155 -> 2052-12-12 | C153: =Timing!F155 -> 0.2493150685 | D153: 0 | E153: 0.005 | F153: 0.005 | G153: 0.043 | H153: =ROUND(K152*(1-(1-F153)^Timing!L155),2) -> 0 | I153: 0.25 | J153: 0 | K153: 0 | L153: 0.3345 | M153: 0 | N153: 0.05 | O153: 0 | P153: 0.6655 | Q153: 0 | R153: 0.03 | S153: 0 | T153: 0 | U153: 0 | V153: 0 | W153: 0 | Y153: 0 | Z153: 0.002 | AA153: 0 | AC153: FALSE | AH153: 300
A154: 140 | B154: =Timing!B156 -> 2053-03-12 | C154: =Timing!F156 -> 0.2465753425 | D154: 0 | E154: 0.005 | F154: 0.005 | G154: 0.043 | H154: =ROUND(K153*(1-(1-F154)^Timing!L156),2) -> 0 | I154: 0.25 | J154: 0 | K154: 0 | L154: 0.3345 | M154: 0 | N154: 0.05 | O154: 0 | P154: 0.6655 | Q154: 0 | R154: 0.03 | S154: 0 | T154: 0 | U154: 0 | V154: 0 | W154: 0 | Y154: 0 | Z154: 0.002 | AA154: 0 | AC154: FALSE | AH154: 300
A155: 141 | B155: =Timing!B157 -> 2053-06-12 | C155: =Timing!F157 -> 0.2520547945 | D155: 0 | E155: 0.005 | F155: 0.005 | G155: 0.043 | H155: =ROUND(K154*(1-(1-F155)^Timing!L157),2) -> 0 | I155: 0.25 | J155: 0 | K155: 0 | L155: 0.3345 | M155: 0 | N155: 0.05 | O155: 0 | P155: 0.6655 | Q155: 0 | R155: 0.03 | S155: 0 | T155: 0 | U155: 0 | V155: 0 | W155: 0 | Y155: 0 | Z155: 0.002 | AA155: 0 | AC155: FALSE | AH155: 300
A156: 142 | B156: =Timing!B158 -> 2053-09-12 | C156: =Timing!F158 -> 0.2520547945 | D156: 0 | E156: 0.005 | F156: 0.005 | G156: 0.043 | H156: =ROUND(K155*(1-(1-F156)^Timing!L158),2) -> 0 | I156: 0.25 | J156: 0 | K156: 0 | L156: 0.3345 | M156: 0 | N156: 0.05 | O156: 0 | P156: 0.6655 | Q156: 0 | R156: 0.03 | S156: 0 | T156: 0 | U156: 0 | V156: 0 | W156: 0 | Y156: 0 | Z156: 0.002 | AA156: 0 | AC156: FALSE | AH156: 300
A157: 143 | B157: =Timing!B159 -> 2053-12-12 | C157: =Timing!F159 -> 0.2493150685 | D157: 0 | E157: 0.005 | F157: 0.005 | G157: 0.043 | H157: =ROUND(K156*(1-(1-F157)^Timing!L159),2) -> 0 | I157: 0.25 | J157: 0 | K157: 0 | L157: 0.3345 | M157: 0 | N157: 0.05 | O157: 0 | P157: 0.6655 | Q157: 0 | R157: 0.03 | S157: 0 | T157: 0 | U157: 0 | V157: 0 | W157: 0 | Y157: 0 | Z157: 0.002 | AA157: 0 | AC157: FALSE | AH157: 300
A158: 144 | B158: =Timing!B160 -> 2054-03-12 | C158: =Timing!F160 -> 0.2465753425 | D158: 0 | E158: 0.005 | F158: 0.005 | G158: 0.043 | H158: =ROUND(K157*(1-(1-F158)^Timing!L160),2) -> 0 | I158: 0.25 | J158: 0 | K158: 0 | L158: 0.3345 | M158: 0 | N158: 0.05 | O158: 0 | P158: 0.6655 | Q158: 0 | R158: 0.03 | S158: 0 | T158: 0 | U158: 0 | V158: 0 | W158: 0 | Y158: 0 | Z158: 0.002 | AA158: 0 | AC158: FALSE | AH158: 300
A159: 145 | B159: =Timing!B161 -> 2054-06-12 | C159: =Timing!F161 -> 0.2520547945 | D159: 0 | E159: 0.005 | F159: 0.005 | G159: 0.043 | H159: =ROUND(K158*(1-(1-F159)^Timing!L161),2) -> 0 | I159: 0.25 | J159: 0 | K159: 0 | L159: 0.3345 | M159: 0 | N159: 0.05 | O159: 0 | P159: 0.6655 | Q159: 0 | R159: 0.03 | S159: 0 | T159: 0 | U159: 0 | V159: 0 | W159: 0 | Y159: 0 | Z159: 0.002 | AA159: 0 | AC159: FALSE | AH159: 300
A160: 146 | B160: =Timing!B162 -> 2054-09-12 | C160: =Timing!F162 -> 0.2575342466 | D160: 0 | E160: 0.005 | F160: 0.005 | G160: 0.043 | H160: =ROUND(K159*(1-(1-F160)^Timing!L162),2) -> 0 | I160: 0.25 | J160: =H160*I160 -> 0 | K160: =K159-(J160+V160) -> 0 | L160: =1-P160 -> 0.3345 | M160: =L160*K160 -> 0 | N160: 0.05 | O160: =N160*M160*C160 -> 0 | P160: 0.6655 | Q160: =P160*K160 -> 0 | R160: 0.03 | S160: =R160*Q160*C160 -> 0 | T160: =D160*K159 -> 0 | U160: =K159*(1-(1-G160)^(1/4)) -> 0 | V160: =MIN(K159-J160,SUM(T160,U160)) -> 0 | W160: =O160+S160 -> 0 | Y160: =K160 -> 0 | Z160: 0.002 | AA160: =Y160*Z160*C160 -> 0 | AC160: FALSE | AH160: 300
A161: 147 | B161: =Timing!B163 -> 2054-12-12 | C161: =Timing!F163 -> 0.2493150685 | D161: 0 | E161: 0.005 | F161: 0.005 | G161: 0.043 | H161: =ROUND(K160*(1-(1-F161)^Timing!L163),2) -> 0 | I161: 0.25 | J161: 0 | K161: 0 | L161: 0.3345 | M161: 0 | N161: 0.05 | O161: 0 | P161: 0.6655 | Q161: 0 | R161: 0.03 | S161: 0 | T161: 0 | U161: 0 | V161: 0 | W161: 0 | Y161: 0 | Z161: 0.002 | AA161: 0 | AC161: FALSE | AH161: 300
A162: 148 | B162: =Timing!B164 -> 2055-03-12 | C162: =Timing!F164 -> 0.2410958904 | D162: 0 | E162: 0.005 | F162: 0.005 | G162: 0.043 | H162: =ROUND(K161*(1-(1-F162)^Timing!L164),2) -> 0 | I162: 0.25 | J162: 0 | K162: 0 | L162: 0.3345 | M162: 0 | N162: 0.05 | O162: 0 | P162: 0.6655 | Q162: 0 | R162: 0.03 | S162: 0 | T162: 0 | U162: 0 | V162: 0 | W162: 0 | Y162: 0 | Z162: 0.002 | AA162: 0 | AC162: FALSE | AH162: 300

Sheet InitialReserves
A1: Reserve Requirements Calculation
D14: General Reserve Fund | L14: Class A & B Liquidity Reserve Fund | M14: Class A & B Liquidity Reserve Fund
A15: Period | B15: Date | D15: Reserve Fund Amortising Trigger Event Occurred? | E15: Collateralised Notes: Relevant Balance | F15: General Reserve Fund Required Amount | G15: General Reserve Fund Carried Forward | H15: General Reserve Top-Up | I15: General Reserve Excess | K15: Class B Redemption Date Occurred? | L15: Class A & B Notes: Relevant Balance | M15: Class A & B Liquidity Reserve Required Amount | N15: Class A & B Liquidity Reserve Fund Carried Forward | O15: Liquidity Top-Up | P15: Liquidity Excess | S15: NL+L = RF? | T15: Excess OK
A16: 0 | B16: =UserInputs!B14 -> 2018-03-20 | E16: =OpeningBalanceA+OpeningBalanceB+OpeningBalanceC+OpeningBalanceD+OpeningBalanceE -> 374470000 | L16: =OpeningBalanceA+OpeningBalanceB -> 350130000
A17: 1 | B17: =UserInputs!B15 -> 2018-06-12 | D17: =OR(AND(TriggersEvents!N17,SUM(CashFlowsLedgers!BB16,CashFlowsLedgers!BF16,CashFlowsLedgers!BJ16,CashFlowsLedgers!BN16,CashFlowsLedgers!BR16)>0.1),SUM(UserInputs!H$15:'UserInputs'!H15)>0.05*OpeningPoolBalance) -> FALSE | E17: =IF(D17,E16,CashFlowsLedgers!BB16+CashFlowsLedgers!BF16+CashFlowsLedgers!BJ16+CashFlowsLedgers!BN16+CashFlowsLedgers!BR16) -> 374470000 | F17: =IF(CashFlowsLedgers!CH16,0,General_Reserve_Percent*E17)-M17 -> 365100 | G17: =CashFlowsLedgers!BX16 -> 365100 | H17: =MAX(F17-G17,0) -> 0 | I17: =MAX(0,G17-F17) -> 0 | K17: =CashFlowsLedgers!BF16<0.1 -> FALSE | L17: =IF(D17,L16,CashFlowsLedgers!BB16+CashFlowsLedgers!BF16) -> 350130000 | M17: =IF(K17,0,ClassAB_Liquidity_Fund_Percent*L17) -> 5251950 | N17: =CashFlowsLedgers!BY16 -> 5251950 | O17: =MAX(M17-N17,0) -> 0 | P17: =MAX(0,N17-M17) -> 0 | S17: =IF(#REF!-#REF!-#REF!=0,"OK") ->  | T17: =IF(#REF!>#REF!,IF(#REF!-#REF!=SUM(#REF!),"OK","Oops"),"No Excess") -> 
A18: 2 | B18: =UserInputs!B16 -> 2018-09-12 | D18: =OR(AND(TriggersEvents!N18,SUM(CashFlowsLedgers!BB17,CashFlowsLedgers!BF17,CashFlowsLedgers!BJ17,CashFlowsLedgers!BN17,CashFlowsLedgers!BR17)>0.1),SUM(UserInputs!H$15:'UserInputs'!H16)>0.05*OpeningPoolBalance) -> FALSE | E18: =IF(D18,E17,CashFlowsLedgers!BB17+CashFlowsLedgers!BF17+CashFlowsLedgers!BJ17+CashFlowsLedgers!BN17+CashFlowsLedgers!BR17) -> 366022428.2 | F18: =IF(CashFlowsLedgers!CH17,0,General_Reserve_Percent*E18)-M18 -> 365100 | G18: =CashFlowsLedgers!BX17 -> 365100 | H18: =MAX(F18-G18,0) -> 0 | I18: =MAX(0,G18-F18) -> 0 | K18: =CashFlowsLedgers!BF17<0.1 -> FALSE | L18: =IF(D18,L17,CashFlowsLedgers!BB17+CashFlowsLedgers!BF17) -> 341682428.2 | M18: 5125236.423 | N18: =CashFlowsLedgers!BY17 -> 5251950 | O18: =MAX(M18-N18,0) -> 0 | P18: =MAX(0,N18-M18) -> 126713.5774 | S18: =IF(#REF!-#REF!-#REF!=0,"OK") ->  | T18: =IF(#REF!>#REF!,IF(#REF!-#REF!=SUM(#REF!),"OK","Oops"),"No Excess") -> 
A19: 3 | B19: =UserInputs!B17 -> 2018-12-12 | D19: =OR(AND(TriggersEvents!N19,SUM(CashFlowsLedgers!BB18,CashFlowsLedgers!BF18,CashFlowsLedgers!BJ18,CashFlowsLedgers!BN18,CashFlowsLedgers!BR18)>0.1),SUM(UserInputs!H$15:'UserInputs'!H17)>0.05*OpeningPoolBalance) -> FALSE | E19: =IF(D19,E18,CashFlowsLedgers!BB18+CashFlowsLedgers!BF18+CashFlowsLedgers!BJ18+CashFlowsLedgers!BN18+CashFlowsLedgers!BR18) -> 358351415.4 | F19: =IF(CashFlowsLedgers!CH18,0,General_Reserve_Percent*E19)-M19 -> 365100 | G19: =CashFlowsLedgers!BX18 -> 365100 | H19: 0 | I19: 0 | K19: =CashFlowsLedgers!BF18<0.1 -> FALSE | L19: =IF(D19,L18,CashFlowsLedgers!BB18+CashFlowsLedgers!BF18) -> 334011415.4 | M19: 5010171.231 | N19: =CashFlowsLedgers!BY18 -> 5125236.423 | O19: 0 | P19: 115065.1919 | S19: =IF(#REF!-#REF!-#REF!=0,"OK") ->  | T19: =IF(#REF!>#REF!,IF(#REF!-#REF!=SUM(#REF!),"OK","Oops"),"No Excess") -> 
A20: 4 | B20: =UserInputs!B18 -> 2019-03-12 | D20: =OR(AND(TriggersEvents!N20,SUM(CashFlowsLedgers!BB19,CashFlowsLedgers!BF19,CashFlowsLedgers!BJ19,CashFlowsLedgers!BN19,CashFlowsLedgers!BR19)>0.1),SUM(UserInputs!H$15:'UserInputs'!H18)>0.05*OpeningPoolBalance) -> FALSE | E20: =IF(D20,E19,CashFlowsLedgers!BB19+CashFlowsLedgers!BF19+CashFlowsLedgers!BJ19+CashFlowsLedgers!BN19+CashFlowsLedgers!BR19) -> 350904165.6 | F20: =IF(CashFlowsLedgers!CH19,0,General_Reserve_Percent*E20)-M20 -> 365100 | G20: =CashFlowsLedgers!BX19 -> 365100 | H20: 0 | I20: 0 | K20: =CashFlowsLedgers!BF19<0.1 -> FALSE | L20: =IF(D20,L19,CashFlowsLedgers!BB19+CashFlowsLedgers!BF19) -> 326564165.6 | M20: 4898462.484 | N20: =CashFlowsLedgers!BY19 -> 5010171.231 | O20: 0 | P20: 111708.7467 | S20: =IF(#REF!-#REF!-#REF!=0,"OK") ->  | T20: =IF(#REF!>#REF!,IF(#REF!-#REF!=SUM(#REF!),"OK","Oops"),"No Excess") -> 
A21: 5 | B21: =UserInputs!B19 -> 2019-06-12 | D21: =OR(AND(TriggersEvents!N21,SUM(CashFlowsLedgers!BB20,CashFlowsLedgers!BF20,CashFlowsLedgers!BJ20,CashFlowsLedgers!BN20,CashFlowsLedgers!BR20)>0.1),SUM(UserInputs!H$15:'UserInputs'!H19)>0.05*OpeningPoolBalance) -> FALSE | E21: =IF(D21,E20,CashFlowsLedgers!BB20+CashFlowsLedgers!BF20+CashFlowsLedgers!BJ20+CashFlowsLedgers!BN20+CashFlowsLedgers!BR20) -> 343745673.8 | F21: =IF(CashFlowsLedgers!CH20,0,General_Reserve_Percent*E21)-M21 -> 365100 | G21: =CashFlowsLedgers!BX20 -> 365100 | H21: 0 | I21: 0 | K21: =CashFlowsLedgers!BF20<0.1 -> FALSE | L21: =IF(D21,L20,CashFlowsLedgers!BB20+CashFlowsLedgers!BF20) -> 319405673.8 | M21: 4791085.107 | N21: =CashFlowsLedgers!BY20 -> 4898462.484 | O21: 0 | P21: 107377.3773 | S21: =IF(#REF!-#REF!-#REF!=0,"OK") ->  | T21: =IF(#REF!>#REF!,IF(#REF!-#REF!=SUM(#REF!),"OK","Oops"),"No Excess") -> 
A22: 6 | B22: =UserInputs!B20 -> 2019-09-12 | D22: =OR(AND(TriggersEvents!N22,SUM(CashFlowsLedgers!BB21,CashFlowsLedgers!BF21,CashFlowsLedgers!BJ21,CashFlowsLedgers!BN21,CashFlowsLedgers!BR21)>0.1),SUM(UserInputs!H$15:'UserInputs'!H20)>0.05*OpeningPoolBalance) -> FALSE | E22: =IF(D22,E21,CashFlowsLedgers!BB21+CashFlowsLedgers!BF21+CashFlowsLedgers!BJ21+CashFlowsLedgers!BN21+CashFlowsLedgers!BR21) -> 336643740.4 | F22: =IF(CashFlowsLedgers!CH21,0,General_Reserve_Percent*E22)-M22 -> 365100 | G22: =CashFlowsLedgers!BX21 -> 365100 | H22: 0 | I22: 0 | K22: =CashFlowsLedgers!BF21<0.1 -> FALSE | L22: =IF(D22,L21,CashFlowsLedgers!BB21+CashFlowsLedgers!BF21) -> 312303740.4 | M22: 4684556.106 | N22: =CashFlowsLedgers!BY21 -> 4791085.107 | O22: 0 | P22: 106529.0011 | S22: =IF(#REF!-#REF!-#REF!=0,"OK") ->  | T22: =IF(#REF!>#REF!,IF(#REF!-#REF!=SUM(#REF!),"OK","Oops"),"No Excess") -> 
A23: 7 | B23: =UserInputs!B21 -> 2019-12-12 | D23: =OR(AND(TriggersEvents!N23,SUM(CashFlowsLedgers!BB22,CashFlowsLedgers!BF22,CashFlowsLedgers!BJ22,CashFlowsLedgers!BN22,CashFlowsLedgers!BR22)>0.1),SUM(UserInputs!H$15:'UserInputs'!H21)>0.05*OpeningPoolBalance) -> FALSE | E23: =IF(D23,E22,CashFlowsLedgers!BB22+CashFlowsLedgers!BF22+CashFlowsLedgers!BJ22+CashFlowsLedgers!BN22+CashFlowsLedgers!BR22) -> 330172371 | F23: =IF(CashFlowsLedgers!CH22,0,General_Reserve_Percent*E23)-M23 -> 365100 | G23: =CashFlowsLedgers!BX22 -> 365100 | H23: 0 | I23: 0 | K23: =CashFlowsLedgers!BF22<0.1 -> FALSE | L23: =IF(D23,L22,CashFlowsLedgers!BB22+CashFlowsLedgers!BF22) -> 305832371 | M23: 4587485.565 | N23: =CashFlowsLedgers!BY22 -> 4684556.106 | O23: 0 | P23: 97070.54085 | S23: =IF(#REF!-#REF!-#REF!=0,"OK") ->  | T23: =IF(#REF!>#REF!,IF(#REF!-#REF!=SUM(#REF!),"OK","Oops"),"No Excess") -> 
A24: 8 | B24: =UserInputs!B22 -> 2020-03-12 | D24: =OR(AND(TriggersEvents!N24,SUM(CashFlowsLedgers!BB23,CashFlowsLedgers!BF23,CashFlowsLedgers!BJ23,CashFlowsLedgers!BN23,CashFlowsLedgers!BR23)>0.1),SUM(UserInputs!H$15:'UserInputs'!H22)>0.05*OpeningPoolBalance) -> FALSE | E24: =IF(D24,E23,CashFlowsLedgers!BB23+CashFlowsLedgers!BF23+CashFlowsLedgers!BJ23+CashFlowsLedgers!BN23+CashFlowsLedgers!BR23) -> 323751154.1 | F24: =IF(CashFlowsLedgers!CH23,0,General_Reserve_Percent*E24)-M24 -> 365100 | G24: =CashFlowsLedgers!BX23 -> 365100 | H24: 0 | I24: 0 | K24: =CashFlowsLedgers!BF23<0.1 -> FALSE | L24: =IF(D24,L23,CashFlowsLedgers!BB23+CashFlowsLedgers!BF23) -> 299411154.1 | M24: 4491167.312 | N24: =CashFlowsLedgers!BY23 -> 4587485.565 | O24: 0 | P24: 96318.2529 | S24: =IF(#REF!-#REF!-#REF!=0,"OK") ->  | T24: =IF(#REF!>#REF!,IF(#REF!-#REF!=SUM(#REF!),"OK","Oops"),"No Excess") -> 
A25: 9 | B25: =UserInputs!B23 -> 2020-06-12 | D25: =OR(AND(TriggersEvents!N25,SUM(CashFlowsLedgers!BB24,CashFlowsLedgers!BF24,CashFlowsLedgers!BJ24,CashFlowsLedgers!BN24,CashFlowsLedgers!BR24)>0.1),SUM(UserInputs!H$15:'UserInputs'!H23)>0.05*OpeningPoolBalance) -> FALSE | E25: =IF(D25,E24,CashFlowsLedgers!BB24+CashFlowsLedgers!BF24+CashFlowsLedgers!BJ24+CashFlowsLedgers!BN24+CashFlowsLedgers!BR24) -> 317434328.9 | F25: =IF(CashFlowsLedgers!CH24,0,General_Reserve_Percent*E25)-M25 -> 365100 | G25: =CashFlowsLedgers!BX24 -> 365100 | H25: 0 | I25: 0 | K25: =CashFlowsLedgers!BF24<0.1 -> FALSE | L25: =IF(D25,L24,CashFlowsLedgers!BB24+CashFlowsLedgers!BF24) -> 293094328.9 | M25: 4396414.934 | N25: =CashFlowsLedgers!BY24 -> 4491167.312 | O25: 0 | P25: 94752.37755 | S25: =IF(#REF!-#REF!-#REF!=0,"OK") ->  | T25: =IF(#REF!>#REF!,IF(#REF!-#REF!=SUM(#REF!),"OK","Oops"),"No Excess") -> 
A26: 10 | B26: =UserInputs!B24 -> 2020-09-12 | D26: =OR(AND(TriggersEvents!N26,SUM(CashFlowsLedgers!BB25,CashFlowsLedgers!BF25,CashFlowsLedgers!BJ25,CashFlowsLedgers!BN25,CashFlowsLedgers!BR25)>0.1),SUM(UserInputs!H$15:'UserInputs'!H24)>0.05*OpeningPoolBalance) -> FALSE | E26: =IF(D26,E25,CashFlowsLedgers!BB25+CashFlowsLedgers!BF25+CashFlowsLedgers!BJ25+CashFlowsLedgers!BN25+CashFlowsLedgers!BR25) -> 311699627.7 | F26: =IF(CashFlowsLedgers!CH25,0,General_Reserve_Percent*E26)-M26 -> 365100 | G26: =CashFlowsLedgers!BX25 -> 365100 | H26: 0 | I26: 9.313225746e-10 | K26: =CashFlowsLedgers!BF25<0.1 -> FALSE | L26: =IF(D26,L25,CashFlowsLedgers!BB25+CashFlowsLedgers!BF25) -> 287359627.7 | M26: 4310394.416 | N26: =CashFlowsLedgers!BY25 -> 4396414.934 | O26: 0 | P26: 86020.51875 | S26: =IF(#REF!-#REF!-#REF!=0,"OK") ->  | T26: =IF(#REF!>#REF!,IF(#REF!-#REF!=SUM(#REF!),"OK","Oops"),"No Excess") -> 
A27: 11 | B27: =UserInputs!B25 -> 2020-12-12 | D27: =OR(AND(TriggersEvents!N27,SUM(CashFlowsLedgers!BB26,CashFlowsLedgers!BF26,CashFlowsLedgers!BJ26,CashFlowsLedgers!BN26,CashFlowsLedgers!BR26)>0.1),SUM(UserInputs!H$15:'UserInputs'!H25)>0.05*OpeningPoolBalance) -> FALSE | E27: =IF(D27,E26,CashFlowsLedgers!BB26+CashFlowsLedgers!BF26+CashFlowsLedgers!BJ26+CashFlowsLedgers!BN26+CashFlowsLedgers!BR26) -> 305884116.7 | F27: =IF(CashFlowsLedgers!CH26,0,General_Reserve_Percent*E27)-M27 -> 365100 | G27: =CashFlowsLedgers!BX26 -> 365100 | H27: 9.313225746e-10 | I27: 0 | K27: =CashFlowsLedgers!BF26<0.1 -> FALSE | L27: =IF(D27,L26,CashFlowsLedgers!BB26+CashFlowsLedgers!BF26) -> 281544116.7 | M27: 4223161.751 | N27: =CashFlowsLedgers!BY26 -> 4310394.416 | O27: 0 | P27: 87232.6647 | S27: =IF(#REF!-#REF!-#REF!=0,"OK") ->  | T27: =IF(#REF!>#REF!,IF(#REF!-#REF!=SUM(#REF!),"OK","Oops"),"No Excess") -> 
A28: 12 | B28: =UserInputs!B26 -> 2021-03-12 | D28: =OR(AND(TriggersEvents!N28,SUM(CashFlowsLedgers!BB27,CashFlowsLedgers!BF27,CashFlowsLedgers!BJ27,CashFlowsLedgers!BN27,CashFlowsLedgers!BR27)>0.1),SUM(UserInputs!H$15:'UserInputs'!H26)>0.05*OpeningPoolBalance) -> FALSE | E28: =IF(D28,E27,CashFlowsLedgers!BB27+CashFlowsLedgers!BF27+CashFlowsLedgers!BJ27+CashFlowsLedgers!BN27+CashFlowsLedgers!BR27) -> 300373128.1 | F28: =IF(CashFlowsLedgers!CH27,0,General_Reserve_Percent*E28)-M28 -> 365100 | G28: =CashFlowsLedgers!BX27 -> 365100 | H28: 4.656612873e-10 | I28: 0 | K28: =CashFlowsLedgers!BF27<0.1 -> FALSE | L28: =IF(D28,L27,CashFlowsLedgers!BB27+CashFlowsLedgers!BF27) -> 276033128.1 | M28: 4140496.921 | N28: =CashFlowsLedgers!BY27 -> 4223161.751 | O28: 0 | P28: 82664.82975 | S28: =IF(#REF!-#REF!-#REF!=0,"OK") ->  | T28: =IF(#REF!>#REF!,IF(#REF!-#REF!=SUM(#REF!),"OK","Oops"),"No Excess") -> 
A29: 13 | B29: =UserInputs!B27 -> 2021-06-12 | D29: =OR(AND(TriggersEvents!N29,SUM(CashFlowsLedgers!BB28,CashFlowsLedgers!BF28,CashFlowsLedgers!BJ28,CashFlowsLedgers!BN28,CashFlowsLedgers!BR28)>0.1),SUM(UserInputs!H$15:'UserInputs'!H27)>0.05*OpeningPoolBalance) -> FALSE | E29: =IF(D29,E28,CashFlowsLedgers!BB28+CashFlowsLedgers!BF28+CashFlowsLedgers!BJ28+CashFlowsLedgers!BN28+CashFlowsLedgers!BR28) -> 294765877.9 | F29: =IF(CashFlowsLedgers!CH28,0,General_Reserve_Percent*E29)-M29 -> 365100 | G29: =CashFlowsLedgers!BX28 -> 365100 | H29: 0 | I29: 4.656612873e-10 | K29: =CashFlowsLedgers!BF28<0.1 -> FALSE | L29: =IF(D29,L28,CashFlowsLedgers!BB28+CashFlowsLedgers!BF28) -> 270425877.9 | M29: 4056388.169 | N29: =CashFlowsLedgers!BY28 -> 4140496.921 | O29: 0 | P29: 84108.7521 | S29: =IF(#REF!-#REF!-#REF!=0,"OK") ->  | T29: =IF(#REF!>#REF!,IF(#REF!-#REF!=SUM(#REF!),"OK","Oops"),"No Excess") -> 
A30: 14 | B30: =UserInputs!B28 -> 2021-09-12 | D30: =OR(AND(TriggersEvents!N30,SUM(CashFlowsLedgers!BB29,CashFlowsLedgers!BF29,CashFlowsLedgers!BJ29,CashFlowsLedgers!BN29,CashFlowsLedgers!BR29)>0.1),SUM(UserInputs!H$15:'UserInputs'!H28)>0.05*OpeningPoolBalance) -> FALSE | E30: =IF(D30,E29,CashFlowsLedgers!BB29+CashFlowsLedgers!BF29+CashFlowsLedgers!BJ29+CashFlowsLedgers!BN29+CashFlowsLedgers!BR29) -> 289471543.8 | F30: =IF(CashFlowsLedgers!CH29,0,General_Reserve_Percent*E30)-M30 -> 365100 | G30: =CashFlowsLedgers!BX29 -> 365100 | H30: 4.656612873e-10 | I30: 0 | K30: =CashFlowsLedgers!BF29<0.1 -> FALSE | L30: =IF(D30,L29,CashFlowsLedgers!BB29+CashFlowsLedgers!BF29) -> 265131543.8 | M30: 3976973.157 | N30: =CashFlowsLedgers!BY29 -> 4056388.169 | O30: 0 | P30: 79415.01165 | S30: =IF(#REF!-#REF!-#REF!=0,"OK") ->  | T30: =IF(#REF!>#REF!,IF(#REF!-#REF!=SUM(#REF!),"OK","Oops"),"No Excess") -> 
A31: 15 | B31: =UserInputs!B29 -> 2021-12-12 | D31: =OR(AND(TriggersEvents!N31,SUM(CashFlowsLedgers!BB30,CashFlowsLedgers!BF30,CashFlowsLedgers!BJ30,CashFlowsLedgers!BN30,CashFlowsLedgers!BR30)>0.1),SUM(UserInputs!H$15:'UserInputs'!H29)>0.05*OpeningPoolBalance) -> FALSE | E31: =IF(D31,E30,CashFlowsLedgers!BB30+CashFlowsLedgers!BF30+CashFlowsLedgers!BJ30+CashFlowsLedgers!BN30+CashFlowsLedgers!BR30) -> 284120455.1 | F31: =IF(CashFlowsLedgers!CH30,0,General_Reserve_Percent*E31)-M31 -> 365100 | G31: =CashFlowsLedgers!BX30 -> 365100 | H31: 0 | I31: 4.656612873e-10 | K31: =CashFlowsLedgers!BF30<0.1 -> FALSE | L31: =IF(D31,L30,CashFlowsLedgers!BB30+CashFlowsLedgers!BF30) -> 259780455.1 | M31: 3896706.827 | N31: =CashFlowsLedgers!BY30 -> 3976973.157 | O31: 0 | P31: 80266.3302 | S31: =IF(#REF!-#REF!-#REF!=0,"OK") ->  | T31: =IF(#REF!>#REF!,IF(#REF!-#REF!=SUM(#REF!),"OK","Oops"),"No Excess") -> 
A32: 16 | B32: =UserInputs!B30 -> 2022-03-12 | D32: =OR(AND(TriggersEvents!N32,SUM(CashFlowsLedgers!BB31,CashFlowsLedgers!BF31,CashFlowsLedgers!BJ31,CashFlowsLedgers!BN31,CashFlowsLedgers!BR31)>0.1),SUM(UserInputs!H$15:'UserInputs'!H30)>0.05*OpeningPoolBalance) -> FALSE | E32: =IF(D32,E31,CashFlowsLedgers!BB31+CashFlowsLedgers!BF31+CashFlowsLedgers!BJ31+CashFlowsLedgers!BN31+CashFlowsLedgers!BR31) -> 278747462 | F32: =IF(CashFlowsLedgers!CH31,0,General_Reserve_Percent*E32)-M32 -> 365100 | G32: =CashFlowsLedgers!BX31 -> 365100 | H32: 4.656612873e-10 | I32: 0 | K32: =CashFlowsLedgers!BF31<0.1 -> FALSE | L32: =IF(D32,L31,CashFlowsLedgers!BB31+CashFlowsLedgers!BF31) -> 254407462 | M32: 3816111.93 | N32: =CashFlowsLedgers!BY31 -> 3896706.827 | O32: 0 | P32: 80594.8974 | S32: =IF(#REF!-#REF!-#REF!=0,"OK") ->  | T32: =IF(#REF!>#REF!,IF(#REF!-#REF!=SUM(#REF!),"OK","Oops"),"No Excess") -> 
A33: 17 | B33: =UserInputs!B31 -> 2022-06-12 | D33: =OR(AND(TriggersEvents!N33,SUM(CashFlowsLedgers!BB32,CashFlowsLedgers!BF32,CashFlowsLedgers!BJ32,CashFlowsLedgers!BN32,CashFlowsLedgers!BR32)>0.1),SUM(UserInputs!H$15:'UserInputs'!H31)>0.05*OpeningPoolBalance) -> FALSE | E33: =IF(D33,E32,CashFlowsLedgers!BB32+CashFlowsLedgers!BF32+CashFlowsLedgers!BJ32+CashFlowsLedgers!BN32+CashFlowsLedgers!BR32) -> 274026647.8 | F33: =IF(CashFlowsLedgers!CH32,0,General_Reserve_Percent*E33)-M33 -> 365100 | G33: =CashFlowsLedgers!BX32 -> 365100 | H33: 0 | I33: 0 | K33: =CashFlowsLedgers!BF32<0.1 -> FALSE | L33: =IF(D33,L32,CashFlowsLedgers!BB32+CashFlowsLedgers!BF32) -> 249686647.8 | M33: 3745299.718 | N33: =CashFlowsLedgers!BY32 -> 3816111.93 | O33: 0 | P33: 70812.2121 | S33: =IF(#REF!-#REF!-#REF!=0,"OK") ->  | T33: =IF(#REF!>#REF!,IF(#REF!-#REF!=SUM(#REF!),"OK","Oops"),"No Excess") -> 
A34: 18 | B34: =UserInputs!B32 -> 2022-09-12 | D34: =OR(AND(TriggersEvents!N34,SUM(CashFlowsLedgers!BB33,CashFlowsLedgers!BF33,CashFlowsLedgers!BJ33,CashFlowsLedgers!BN33,CashFlowsLedgers!BR33)>0.1),SUM(UserInputs!H$15:'UserInputs'!H32)>0.05*OpeningPoolBalance) -> FALSE | E34: =IF(D34,E33,CashFlowsLedgers!BB33+CashFlowsLedgers!BF33+CashFlowsLedgers!BJ33+CashFlowsLedgers!BN33+CashFlowsLedgers!BR33) -> 269083138 | F34: =IF(CashFlowsLedgers!CH33,0,General_Reserve_Percent*E34)-M34 -> 365100 | G34: =CashFlowsLedgers!BX33 -> 365100 | H34: 0 | I34: 0 | K34: =CashFlowsLedgers!BF33<0.1 -> FALSE | L34: =IF(D34,L33,CashFlowsLedgers!BB33+CashFlowsLedgers!BF33) -> 244743138 | M34: 3671147.07 | N34: =CashFlowsLedgers!BY33 -> 3745299.718 | O34: 0 | P34: 74152.64805 | S34: =IF(#REF!-#REF!-#REF!=0,"OK") ->  | T34: =IF(#REF!>#REF!,IF(#REF!-#REF!=SUM(#REF!),"OK","Oops"),"No Excess") -> 
A35: 19 | B35: =UserInputs!B33 -> 2022-12-12 | D35: =OR(AND(TriggersEvents!N35,SUM(CashFlowsLedgers!BB34,CashFlowsLedgers!BF34,CashFlowsLedgers!BJ34,CashFlowsLedgers!BN34,CashFlowsLedgers!BR34)>0.1),SUM(UserInputs!H$15:'UserInputs'!H33)>0.05*OpeningPoolBalance) -> FALSE | E35: =IF(D35,E34,CashFlowsLedgers!BB34+CashFlowsLedgers!BF34+CashFlowsLedgers!BJ34+CashFlowsLedgers!BN34+CashFlowsLedgers!BR34) -> 264327630.5 | F35: =IF(CashFlowsLedgers!CH34,0,General_Reserve_Percent*E35)-M35 -> 365100 | G35: =CashFlowsLedgers!BX34 -> 365100 | H35: 0 | I35: 4.656612873e-10 | K35: =CashFlowsLedgers!BF34<0.1 -> FALSE | L35: =IF(D35,L34,CashFlowsLedgers!BB34+CashFlowsLedgers!BF34) -> 239987630.5 | M35: 3599814.457 | N35: =CashFlowsLedgers!BY34 -> 3671147.07 | O35: 0 | P35: 71332.6122 | S35: =IF(#REF!-#REF!-#REF!=0,"OK") ->  | T35: =IF(#REF!>#REF!,IF(#REF!-#REF!=SUM(#REF!),"OK","Oops"),"No Excess") -> 
A36: 20 | B36: =UserInputs!B34 -> 2023-03-12 | D36: =OR(AND(TriggersEvents!N36,SUM(CashFlowsLedgers!BB35,CashFlowsLedgers!BF35,CashFlowsLedgers!BJ35,CashFlowsLedgers!BN35,CashFlowsLedgers!BR35)>0.1),SUM(UserInputs!H$15:'UserInputs'!H34)>0.05*OpeningPoolBalance) -> TRUE | E36: =IF(D36,E35,CashFlowsLedgers!BB35+CashFlowsLedgers!BF35+CashFlowsLedgers!BJ35+CashFlowsLedgers!BN35+CashFlowsLedgers!BR35) -> 264327630.5 | F36: =IF(CashFlowsLedgers!CH35,0,General_Reserve_Percent*E36)-M36 -> 365100 | G36: =CashFlowsLedgers!BX35 -> 365100 | H36: 0 | I36: 0 | K36: =CashFlowsLedgers!BF35<0.1 -> FALSE | L36: =IF(D36,L35,CashFlowsLedgers!BB35+CashFlowsLedgers!BF35) -> 239987630.5 | M36: 3599814.457 | N36: =CashFlowsLedgers!BY35 -> 3599814.457 | O36: 0 | P36: 0 | S36: =IF(#REF!-#REF!-#REF!=0,"OK") ->  | T36: =IF(#REF!>#REF!,IF(#REF!-#REF!=SUM(#REF!),"OK","Oops"),"No Excess") -> 
A37: 21 | B37: =UserInputs!B35 -> 2023-06-12 | D37: =OR(AND(TriggersEvents!N37,SUM(CashFlowsLedgers!BB36,CashFlowsLedgers!BF36,CashFlowsLedgers!BJ36,CashFlowsLedgers!BN36,CashFlowsLedgers!BR36)>0.1),SUM(UserInputs!H$15:'UserInputs'!H35)>0.05*OpeningPoolBalance) -> TRUE | E37: =IF(D37,E36,CashFlowsLedgers!BB36+CashFlowsLedgers!BF36+CashFlowsLedgers!BJ36+CashFlowsLedgers!BN36+CashFlowsLedgers!BR36) -> 264327630.5 | F37: =IF(CashFlowsLedgers!CH36,0,General_Reserve_Percent*E37)-M37 -> 365100 | G37: =CashFlowsLedgers!BX36 -> 365100 | H37: 0 | I37: 0 | K37: =CashFlowsLedgers!BF36<0.1 -> FALSE | L37: =IF(D37,L36,CashFlowsLedgers!BB36+CashFlowsLedgers!BF36) -> 239987630.5 | M37: 3599814.457 | N37: =CashFlowsLedgers!BY36 -> 3599814.457 | O37: 0 | P37: 0 | S37: =IF(#REF!-#REF!-#REF!=0,"OK") ->  | T37: =IF(#REF!>#REF!,IF(#REF!-#REF!=SUM(#REF!),"OK","Oops"),"No Excess") -> 
A38: 22 | B38: =UserInputs!B36 -> 2023-09-12 | D38: =OR(AND(TriggersEvents!N38,SUM(CashFlowsLedgers!BB37,CashFlowsLedgers!BF37,CashFlowsLedgers!BJ37,CashFlowsLedgers!BN37,CashFlowsLedgers!BR37)>0.1),SUM(UserInputs!H$15:'UserInputs'!H36)>0.05*OpeningPoolBalance) -> TRUE | E38: =IF(D38,E37,CashFlowsLedgers!BB37+CashFlowsLedgers!BF37+CashFlowsLedgers!BJ37+CashFlowsLedgers!BN37+CashFlowsLedgers!BR37) -> 264327630.5 | F38: =IF(CashFlowsLedgers!CH37,0,General_Reserve_Percent*E38)-M38 -> 365100 | G38: =CashFlowsLedgers!BX37 -> 365100 | H38: 0 | I38: 0 | K38: =CashFlowsLedgers!BF37<0.1 -> FALSE | L38: =IF(D38,L37,CashFlowsLedgers!BB37+CashFlowsLedgers!BF37) -> 239987630.5 | M38: 3599814.457 | N38: =CashFlowsLedgers!BY37 -> 3599814.457 | O38: 0 | P38: 0 | S38: =IF(#REF!-#REF!-#REF!=0,"OK") ->  | T38: =IF(#REF!>#REF!,IF(#REF!-#REF!=SUM(#REF!),"OK","Oops"),"No Excess") -> 
A39: 23 | B39: =UserInputs!B37 -> 2023-12-12 | D39: =OR(AND(TriggersEvents!N39,SUM(CashFlowsLedgers!BB38,CashFlowsLedgers!BF38,CashFlowsLedgers!BJ38,CashFlowsLedgers!BN38,CashFlowsLedgers!BR38)>0.1),SUM(UserInputs!H$15:'UserInputs'!H37)>0.05*OpeningPoolBalance) -> TRUE | E39: =IF(D39,E38,CashFlowsLedgers!BB38+CashFlowsLedgers!BF38+CashFlowsLedgers!BJ38+CashFlowsLedgers!BN38+CashFlowsLedgers!BR38) -> 264327630.5 | F39: =IF(CashFlowsLedgers!CH38,0,General_Reserve_Percent*E39)-M39 -> 365100 | G39: =CashFlowsLedgers!BX38 -> 365100 | H39: 0 | I39: 0 | K39: =CashFlowsLedgers!BF38<0.1 -> FALSE | L39: =IF(D39,L38,CashFlowsLedgers!BB38+CashFlowsLedgers!BF38) -> 239987630.5 | M39: 3599814.457 | N39: =CashFlowsLedgers!BY38 -> 3599814.457 | O39: 0 | P39: 0 | S39: =IF(#REF!-#REF!-#REF!=0,"OK") ->  | T39: =IF(#REF!>#REF!,IF(#REF!-#REF!=SUM(#REF!),"OK","Oops"),"No Excess") -> 
A40: 24 | B40: =UserInputs!B38 -> 2024-03-12 | D40: =OR(AND(TriggersEvents!N40,SUM(CashFlowsLedgers!BB39,CashFlowsLedgers!BF39,CashFlowsLedgers!BJ39,CashFlowsLedgers!BN39,CashFlowsLedgers!BR39)>0.1),SUM(UserInputs!H$15:'UserInputs'!H38)>0.05*OpeningPoolBalance) -> TRUE | E40: =IF(D40,E39,CashFlowsLedgers!BB39+CashFlowsLedgers!BF39+CashFlowsLedgers!BJ39+CashFlowsLedgers!BN39+CashFlowsLedgers!BR39) -> 264327630.5 | F40: =IF(CashFlowsLedgers!CH39,0,General_Reserve_Percent*E40)-M40 -> 365100 | G40: =CashFlowsLedgers!BX39 -> 365100 | H40: 0 | I40: 0 | K40: =CashFlowsLedgers!BF39<0.1 -> FALSE | L40: =IF(D40,L39,CashFlowsLedgers!BB39+CashFlowsLedgers!BF39) -> 239987630.5 | M40: 3599814.457 | N40: =CashFlowsLedgers!BY39 -> 3599814.457 | O40: 0 | P40: 0 | S40: =IF(#REF!-#REF!-#REF!=0,"OK") ->  | T40: =IF(#REF!>#REF!,IF(#REF!-#REF!=SUM(#REF!),"OK","Oops"),"No Excess") -> 
A41: 25 | B41: =UserInputs!B39 -> 2024-06-12 | D41: =OR(AND(TriggersEvents!N41,SUM(CashFlowsLedgers!BB40,CashFlowsLedgers!BF40,CashFlowsLedgers!BJ40,CashFlowsLedgers!BN40,CashFlowsLedgers!BR40)>0.1),SUM(UserInputs!H$15:'UserInputs'!H39)>0.05*OpeningPoolBalance) -> TRUE | E41: =IF(D41,E40,CashFlowsLedgers!BB40+CashFlowsLedgers!BF40+CashFlowsLedgers!BJ40+CashFlowsLedgers!BN40+CashFlowsLedgers!BR40) -> 264327630.5 | F41: =IF(CashFlowsLedgers!CH40,0,General_Reserve_Percent*E41)-M41 -> 365100 | G41: =CashFlowsLedgers!BX40 -> 365100 | H41: 0 | I41: 0 | K41: =CashFlowsLedgers!BF40<0.1 -> FALSE | L41: =IF(D41,L40,CashFlowsLedgers!BB40+CashFlowsLedgers!BF40) -> 239987630.5 | M41: 3599814.457 | N41: =CashFlowsLedgers!BY40 -> 3599814.457 | O41: 0 | P41: 0 | S41: =IF(#REF!-#REF!-#REF!=0,"OK") ->  | T41: =IF(#REF!>#REF!,IF(#REF!-#REF!=SUM(#REF!),"OK","Oops"),"No Excess") -> 
A42: 26 | B42: =UserInputs!B40 -> 2024-09-12 | D42: =OR(AND(TriggersEvents!N42,SUM(CashFlowsLedgers!BB41,CashFlowsLedgers!BF41,CashFlowsLedgers!BJ41,CashFlowsLedgers!BN41,CashFlowsLedgers!BR41)>0.1),SUM(UserInputs!H$15:'UserInputs'!H40)>0.05*OpeningPoolBalance) -> TRUE | E42: =IF(D42,E41,CashFlowsLedgers!BB41+CashFlowsLedgers!BF41+CashFlowsLedgers!BJ41+CashFlowsLedgers!BN41+CashFlowsLedgers!BR41) -> 264327630.5 | F42: =IF(CashFlowsLedgers!CH41,0,General_Reserve_Percent*E42)-M42 -> 365100 | G42: =CashFlowsLedgers!BX41 -> 365100 | H42: 0 | I42: 0 | K42: =CashFlowsLedgers!BF41<0.1 -> FALSE | L42: =IF(D42,L41,CashFlowsLedgers!BB41+CashFlowsLedgers!BF41) -> 239987630.5 | M42: 3599814.457 | N42: =CashFlowsLedgers!BY41 -> 3599814.457 | O42: 0 | P42: 0 | S42: =IF(#REF!-#REF!-#REF!=0,"OK") ->  | T42: =IF(#REF!>#REF!,IF(#REF!-#REF!=SUM(#REF!),"OK","Oops"),"No Excess") -> 
A43: 27 | B43: =UserInputs!B41 -> 2024-12-12 | D43: =OR(AND(TriggersEvents!N43,SUM(CashFlowsLedgers!BB42,CashFlowsLedgers!BF42,CashFlowsLedgers!BJ42,CashFlowsLedgers!BN42,CashFlowsLedgers!BR42)>0.1),SUM(UserInputs!H$15:'UserInputs'!H41)>0.05*OpeningPoolBalance) -> TRUE | E43: =IF(D43,E42,CashFlowsLedgers!BB42+CashFlowsLedgers!BF42+CashFlowsLedgers!BJ42+CashFlowsLedgers!BN42+CashFlowsLedgers!BR42) -> 264327630.5 | F43: =IF(CashFlowsLedgers!CH42,0,General_Reserve_Percent*E43)-M43 -> 365100 | G43: =CashFlowsLedgers!BX42 -> 365100 | H43: 0 | I43: 0 | K43: =CashFlowsLedgers!BF42<0.1 -> FALSE | L43: =IF(D43,L42,CashFlowsLedgers!BB42+CashFlowsLedgers!BF42) -> 239987630.5 | M43: 3599814.457 | N43: =CashFlowsLedgers!BY42 -> 3599814.457 | O43: 0 | P43: 0 | S43: =IF(#REF!-#REF!-#REF!=0,"OK") ->  | T43: =IF(#REF!>#REF!,IF(#REF!-#REF!=SUM(#REF!),"OK","Oops"),"No Excess") -> 
A44: 28 | B44: =UserInputs!B42 -> 2025-03-12 | D44: =OR(AND(TriggersEvents!N44,SUM(CashFlowsLedgers!BB43,CashFlowsLedgers!BF43,CashFlowsLedgers!BJ43,CashFlowsLedgers!BN43,CashFlowsLedgers!BR43)>0.1),SUM(UserInputs!H$15:'UserInputs'!H42)>0.05*OpeningPoolBalance) -> TRUE | E44: =IF(D44,E43,CashFlowsLedgers!BB43+CashFlowsLedgers!BF43+CashFlowsLedgers!BJ43+CashFlowsLedgers!BN43+CashFlowsLedgers!BR43) -> 264327630.5 | F44: =IF(CashFlowsLedgers!CH43,0,General_Reserve_Percent*E44)-M44 -> 365100 | G44: =CashFlowsLedgers!BX43 -> 365100 | H44: 0 | I44: 0 | K44: =CashFlowsLedgers!BF43<0.1 -> FALSE | L44: =IF(D44,L43,CashFlowsLedgers!BB43+CashFlowsLedgers!BF43) -> 239987630.5 | M44: 3599814.457 | N44: =CashFlowsLedgers!BY43 -> 3599814.457 | O44: 0 | P44: 0 | S44: =IF(#REF!-#REF!-#REF!=0,"OK") ->  | T44: =IF(#REF!>#REF!,IF(#REF!-#REF!=SUM(#REF!),"OK","Oops"),"No Excess") -> 
A45: 29 | B45: =UserInputs!B43 -> 2025-06-12 | D45: =OR(AND(TriggersEvents!N45,SUM(CashFlowsLedgers!BB44,CashFlowsLedgers!BF44,CashFlowsLedgers!BJ44,CashFlowsLedgers!BN44,CashFlowsLedgers!BR44)>0.1),SUM(UserInputs!H$15:'UserInputs'!H43)>0.05*OpeningPoolBalance) -> TRUE | E45: =IF(D45,E44,CashFlowsLedgers!BB44+CashFlowsLedgers!BF44+CashFlowsLedgers!BJ44+CashFlowsLedgers!BN44+CashFlowsLedgers!BR44) -> 264327630.5 | F45: =IF(CashFlowsLedgers!CH44,0,General_Reserve_Percent*E45)-M45 -> 365100 | G45: =CashFlowsLedgers!BX44 -> 365100 | H45: 0 | I45: 0 | K45: =CashFlowsLedgers!BF44<0.1 -> FALSE | L45: =IF(D45,L44,CashFlowsLedgers!BB44+CashFlowsLedgers!BF44) -> 239987630.5 | M45: 3599814.457 | N45: =CashFlowsLedgers!BY44 -> 3599814.457 | O45: 0 | P45: 0 | S45: =IF(#REF!-#REF!-#REF!=0,"OK") ->  | T45: =IF(#REF!>#REF!,IF(#REF!-#REF!=SUM(#REF!),"OK","Oops"),"No Excess") -> 
A46: 30 | B46: =UserInputs!B44 -> 2025-09-12 | D46: =OR(AND(TriggersEvents!N46,SUM(CashFlowsLedgers!BB45,CashFlowsLedgers!BF45,CashFlowsLedgers!BJ45,CashFlowsLedgers!BN45,CashFlowsLedgers!BR45)>0.1),SUM(UserInputs!H$15:'UserInputs'!H44)>0.05*OpeningPoolBalance) -> TRUE | E46: =IF(D46,E45,CashFlowsLedgers!BB45+CashFlowsLedgers!BF45+CashFlowsLedgers!BJ45+CashFlowsLedgers!BN45+CashFlowsLedgers!BR45) -> 264327630.5 | F46: =IF(CashFlowsLedgers!CH45,0,General_Reserve_Percent*E46)-M46 -> 365100 | G46: =CashFlowsLedgers!BX45 -> 365100 | H46: 0 | I46: 0 | K46: =CashFlowsLedgers!BF45<0.1 -> FALSE | L46: =IF(D46,L45,CashFlowsLedgers!BB45+CashFlowsLedgers!BF45) -> 239987630.5 | M46: 3599814.457 | N46: =CashFlowsLedgers!BY45 -> 3599814.457 | O46: 0 | P46: 0 | S46: =IF(#REF!-#REF!-#REF!=0,"OK") ->  | T46: =IF(#REF!>#REF!,IF(#REF!-#REF!=SUM(#REF!),"OK","Oops"),"No Excess") -> 
A47: 31 | B47: =UserInputs!B45 -> 2025-12-12 | D47: =OR(AND(TriggersEvents!N47,SUM(CashFlowsLedgers!BB46,CashFlowsLedgers!BF46,CashFlowsLedgers!BJ46,CashFlowsLedgers!BN46,CashFlowsLedgers!BR46)>0.1),SUM(UserInputs!H$15:'UserInputs'!H45)>0.05*OpeningPoolBalance) -> TRUE | E47: =IF(D47,E46,CashFlowsLedgers!BB46+CashFlowsLedgers!BF46+CashFlowsLedgers!BJ46+CashFlowsLedgers!BN46+CashFlowsLedgers!BR46) -> 264327630.5 | F47: =IF(CashFlowsLedgers!CH46,0,General_Reserve_Percent*E47)-M47 -> 365100 | G47: =CashFlowsLedgers!BX46 -> 365100 | H47: 0 | I47: 0 | K47: =CashFlowsLedgers!BF46<0.1 -> FALSE | L47: =IF(D47,L46,CashFlowsLedgers!BB46+CashFlowsLedgers!BF46) -> 239987630.5 | M47: 3599814.457 | N47: =CashFlowsLedgers!BY46 -> 3599814.457 | O47: 0 | P47: 0 | S47: =IF(#REF!-#REF!-#REF!=0,"OK") ->  | T47: =IF(#REF!>#REF!,IF(#REF!-#REF!=SUM(#REF!),"OK","Oops"),"No Excess") -> 
A48: 32 | B48: =UserInputs!B46 -> 2026-03-12 | D48: =OR(AND(TriggersEvents!N48,SUM(CashFlowsLedgers!BB47,CashFlowsLedgers!BF47,CashFlowsLedgers!BJ47,CashFlowsLedgers!BN47,CashFlowsLedgers!BR47)>0.1),SUM(UserInputs!H$15:'UserInputs'!H46)>0.05*OpeningPoolBalance) -> TRUE | E48: =IF(D48,E47,CashFlowsLedgers!BB47+CashFlowsLedgers!BF47+CashFlowsLedgers!BJ47+CashFlowsLedgers!BN47+CashFlowsLedgers!BR47) -> 264327630.5 | F48: =IF(CashFlowsLedgers!CH47,0,General_Reserve_Percent*E48)-M48 -> 365100 | G48: =CashFlowsLedgers!BX47 -> 365100 | H48: 0 | I48: 0 | K48: =CashFlowsLedgers!BF47<0.1 -> FALSE | L48: =IF(D48,L47,CashFlowsLedgers!BB47+CashFlowsLedgers!BF47) -> 239987630.5 | M48: 3599814.457 | N48: =CashFlowsLedgers!BY47 -> 3599814.457 | O48: 0 | P48: 0 | S48: =IF(#REF!-#REF!-#REF!=0,"OK") ->  | T48: =IF(#REF!>#REF!,IF(#REF!-#REF!=SUM(#REF!),"OK","Oops"),"No Excess") -> 
A49: 33 | B49: =UserInputs!B47 -> 2026-06-12 | D49: =OR(AND(TriggersEvents!N49,SUM(CashFlowsLedgers!BB48,CashFlowsLedgers!BF48,CashFlowsLedgers!BJ48,CashFlowsLedgers!BN48,CashFlowsLedgers!BR48)>0.1),SUM(UserInputs!H$15:'UserInputs'!H47)>0.05*OpeningPoolBalance) -> TRUE | E49: =IF(D49,E48,CashFlowsLedgers!BB48+CashFlowsLedgers!BF48+CashFlowsLedgers!BJ48+CashFlowsLedgers!BN48+CashFlowsLedgers!BR48) -> 264327630.5 | F49: =IF(CashFlowsLedgers!CH48,0,General_Reserve_Percent*E49)-M49 -> 365100 | G49: =CashFlowsLedgers!BX48 -> 365100 | H49: 0 | I49: 0 | K49: =CashFlowsLedgers!BF48<0.1 -> FALSE | L49: =IF(D49,L48,CashFlowsLedgers!BB48+CashFlowsLedgers!BF48) -> 239987630.5 | M49: =IF(K49,0,ClassAB_Liquidity_Fund_Percent*L49) -> 3599814.457 | N49: =CashFlowsLedgers!BY48 -> 3599814.457 | O49: 0 | P49: 0 | S49: =IF(#REF!-#REF!-#REF!=0,"OK") ->  | T49: =IF(#REF!>#REF!,IF(#REF!-#REF!=SUM(#REF!),"OK","Oops"),"No Excess") -> 
A50: 34 | B50: =UserInputs!B48 -> 2026-09-12 | D50: =OR(AND(TriggersEvents!N50,SUM(CashFlowsLedgers!BB49,CashFlowsLedgers!BF49,CashFlowsLedgers!BJ49,CashFlowsLedgers!BN49,CashFlowsLedgers!BR49)>0.1),SUM(UserInputs!H$15:'UserInputs'!H48)>0.05*OpeningPoolBalance) -> TRUE | E50: =IF(D50,E49,CashFlowsLedgers!BB49+CashFlowsLedgers!BF49+CashFlowsLedgers!BJ49+CashFlowsLedgers!BN49+CashFlowsLedgers!BR49) -> 264327630.5 | F50: =IF(CashFlowsLedgers!CH49,0,General_Reserve_Percent*E50)-M50 -> 365100 | G50: =CashFlowsLedgers!BX49 -> 365100 | H50: 0 | I50: 0 | K50: =CashFlowsLedgers!BF49<0.1 -> FALSE | L50: =IF(D50,L49,CashFlowsLedgers!BB49+CashFlowsLedgers!BF49) -> 239987630.5 | M50: 3599814.457 | N50: =CashFlowsLedgers!BY49 -> 3599814.457 | O50: 0 | P50: 0 | S50: =IF(#REF!-#REF!-#REF!=0,"OK") ->  | T50: =IF(#REF!>#REF!,IF(#REF!-#REF!=SUM(#REF!),"OK","Oops"),"No Excess") -> 
A51: 35 | B51: =UserInputs!B49 -> 2026-12-12 | D51: =OR(AND(TriggersEvents!N51,SUM(CashFlowsLedgers!BB50,CashFlowsLedgers!BF50,CashFlowsLedgers!BJ50,CashFlowsLedgers!BN50,CashFlowsLedgers!BR50)>0.1),SUM(UserInputs!H$15:'UserInputs'!H49)>0.05*OpeningPoolBalance) -> TRUE | E51: =IF(D51,E50,CashFlowsLedgers!BB50+CashFlowsLedgers!BF50+CashFlowsLedgers!BJ50+CashFlowsLedgers!BN50+CashFlowsLedgers!BR50) -> 264327630.5 | F51: =IF(CashFlowsLedgers!CH50,0,General_Reserve_Percent*E51)-M51 -> 365100 | G51: =CashFlowsLedgers!BX50 -> 365100 | H51: 0 | I51: 0 | K51: =CashFlowsLedgers!BF50<0.1 -> FALSE | L51: =IF(D51,L50,CashFlowsLedgers!BB50+CashFlowsLedgers!BF50) -> 239987630.5 | M51: 3599814.457 | N51: =CashFlowsLedgers!BY50 -> 3599814.457 | O51: 0 | P51: 0 | S51: =IF(#REF!-#REF!-#REF!=0,"OK") ->  | T51: =IF(#REF!>#REF!,IF(#REF!-#REF!=SUM(#REF!),"OK","Oops"),"No Excess") -> 
A52: 36 | B52: =UserInputs!B50 -> 2027-03-12 | D52: =OR(AND(TriggersEvents!N52,SUM(CashFlowsLedgers!BB51,CashFlowsLedgers!BF51,CashFlowsLedgers!BJ51,CashFlowsLedgers!BN51,CashFlowsLedgers!BR51)>0.1),SUM(UserInputs!H$15:'UserInputs'!H50)>0.05*OpeningPoolBalance) -> TRUE | E52: =IF(D52,E51,CashFlowsLedgers!BB51+CashFlowsLedgers!BF51+CashFlowsLedgers!BJ51+CashFlowsLedgers!BN51+CashFlowsLedgers!BR51) -> 264327630.5 | F52: =IF(CashFlowsLedgers!CH51,0,General_Reserve_Percent*E52)-M52 -> 365100 | G52: =CashFlowsLedgers!BX51 -> 365100 | H52: 0 | I52: 0 | K52: =CashFlowsLedgers!BF51<0.1 -> FALSE | L52: =IF(D52,L51,CashFlowsLedgers!BB51+CashFlowsLedgers!BF51) -> 239987630.5 | M52: 3599814.457 | N52: =CashFlowsLedgers!BY51 -> 3599814.457 | O52: 0 | P52: 0 | S52: =IF(#REF!-#REF!-#REF!=0,"OK") ->  | T52: =IF(#REF!>#REF!,IF(#REF!-#REF!=SUM(#REF!),"OK","Oops"),"No Excess") -> 
A53: 37 | B53: =UserInputs!B51 -> 2027-06-12 | D53: =OR(AND(TriggersEvents!N53,SUM(CashFlowsLedgers!BB52,CashFlowsLedgers!BF52,CashFlowsLedgers!BJ52,CashFlowsLedgers!BN52,CashFlowsLedgers!BR52)>0.1),SUM(UserInputs!H$15:'UserInputs'!H51)>0.05*OpeningPoolBalance) -> TRUE | E53: =IF(D53,E52,CashFlowsLedgers!BB52+CashFlowsLedgers!BF52+CashFlowsLedgers!BJ52+CashFlowsLedgers!BN52+CashFlowsLedgers!BR52) -> 264327630.5 | F53: =IF(CashFlowsLedgers!CH52,0,General_Reserve_Percent*E53)-M53 -> 365100 | G53: =CashFlowsLedgers!BX52 -> 365100 | H53: 0 | I53: 0 | K53: =CashFlowsLedgers!BF52<0.1 -> FALSE | L53: =IF(D53,L52,CashFlowsLedgers!BB52+CashFlowsLedgers!BF52) -> 239987630.5 | M53: 3599814.457 | N53: =CashFlowsLedgers!BY52 -> 3599814.457 | O53: 0 | P53: 0 | S53: =IF(#REF!-#REF!-#REF!=0,"OK") ->  | T53: =IF(#REF!>#REF!,IF(#REF!-#REF!=SUM(#REF!),"OK","Oops"),"No Excess") -> 
A54: 38 | B54: =UserInputs!B52 -> 2027-09-12 | D54: =OR(AND(TriggersEvents!N54,SUM(CashFlowsLedgers!BB53,CashFlowsLedgers!BF53,CashFlowsLedgers!BJ53,CashFlowsLedgers!BN53,CashFlowsLedgers!BR53)>0.1),SUM(UserInputs!H$15:'UserInputs'!H52)>0.05*OpeningPoolBalance) -> TRUE | E54: =IF(D54,E53,CashFlowsLedgers!BB53+CashFlowsLedgers!BF53+CashFlowsLedgers!BJ53+CashFlowsLedgers!BN53+CashFlowsLedgers!BR53) -> 264327630.5 | F54: =IF(CashFlowsLedgers!CH53,0,General_Reserve_Percent*E54)-M54 -> 365100 | G54: =CashFlowsLedgers!BX53 -> 365100 | H54: 0 | I54: 0 | K54: =CashFlowsLedgers!BF53<0.1 -> FALSE | L54: =IF(D54,L53,CashFlowsLedgers!BB53+CashFlowsLedgers!BF53) -> 239987630.5 | M54: 3599814.457 | N54: =CashFlowsLedgers!BY53 -> 3599814.457 | O54: 0 | P54: 0 | S54: =IF(#REF!-#REF!-#REF!=0,"OK") ->  | T54: =IF(#REF!>#REF!,IF(#REF!-#REF!=SUM(#REF!),"OK","Oops"),"No Excess") -> 
A55: 39 | B55: =UserInputs!B53 -> 2027-12-12 | D55: =OR(AND(TriggersEvents!N55,SUM(CashFlowsLedgers!BB54,CashFlowsLedgers!BF54,CashFlowsLedgers!BJ54,CashFlowsLedgers!BN54,CashFlowsLedgers!BR54)>0.1),SUM(UserInputs!H$15:'UserInputs'!H53)>0.05*OpeningPoolBalance) -> TRUE | E55: =IF(D55,E54,CashFlowsLedgers!BB54+CashFlowsLedgers!BF54+CashFlowsLedgers!BJ54+CashFlowsLedgers!BN54+CashFlowsLedgers!BR54) -> 264327630.5 | F55: =IF(CashFlowsLedgers!CH54,0,General_Reserve_Percent*E55)-M55 -> 365100 | G55: =CashFlowsLedgers!BX54 -> 365100 | H55: 0 | I55: 0 | K55: =CashFlowsLedgers!BF54<0.1 -> FALSE | L55: =IF(D55,L54,CashFlowsLedgers!BB54+CashFlowsLedgers!BF54) -> 239987630.5 | M55: 3599814.457 | N55: =CashFlowsLedgers!BY54 -> 3599814.457 | O55: 0 | P55: 0 | S55: =IF(#REF!-#REF!-#REF!=0,"OK") ->  | T55: =IF(#REF!>#REF!,IF(#REF!-#REF!=SUM(#REF!),"OK","Oops"),"No Excess") -> 
A56: 40 | B56: =UserInputs!B54 -> 2028-03-12 | D56: =OR(AND(TriggersEvents!N56,SUM(CashFlowsLedgers!BB55,CashFlowsLedgers!BF55,CashFlowsLedgers!BJ55,CashFlowsLedgers!BN55,CashFlowsLedgers!BR55)>0.1),SUM(UserInputs!H$15:'UserInputs'!H54)>0.05*OpeningPoolBalance) -> TRUE | E56: =IF(D56,E55,CashFlowsLedgers!BB55+CashFlowsLedgers!BF55+CashFlowsLedgers!BJ55+CashFlowsLedgers!BN55+CashFlowsLedgers!BR55) -> 264327630.5 | F56: =IF(CashFlowsLedgers!CH55,0,General_Reserve_Percent*E56)-M56 -> 365100 | G56: =CashFlowsLedgers!BX55 -> 365100 | H56: 0 | I56: 0 | K56: =CashFlowsLedgers!BF55<0.1 -> FALSE | L56: =IF(D56,L55,CashFlowsLedgers!BB55+CashFlowsLedgers!BF55) -> 239987630.5 | M56: 3599814.457 | N56: =CashFlowsLedgers!BY55 -> 3599814.457 | O56: 0 | P56: 0 | S56: =IF(#REF!-#REF!-#REF!=0,"OK") ->  | T56: =IF(#REF!>#REF!,IF(#REF!-#REF!=SUM(#REF!),"OK","Oops"),"No Excess") -> 
A57: 41 | B57: =UserInputs!B55 -> 2028-06-12 | D57: =OR(AND(TriggersEvents!N57,SUM(CashFlowsLedgers!BB56,CashFlowsLedgers!BF56,CashFlowsLedgers!BJ56,CashFlowsLedgers!BN56,CashFlowsLedgers!BR56)>0.1),SUM(UserInputs!H$15:'UserInputs'!H55)>0.05*OpeningPoolBalance) -> TRUE | E57: =IF(D57,E56,CashFlowsLedgers!BB56+CashFlowsLedgers!BF56+CashFlowsLedgers!BJ56+CashFlowsLedgers!BN56+CashFlowsLedgers!BR56) -> 264327630.5 | F57: =IF(CashFlowsLedgers!CH56,0,General_Reserve_Percent*E57)-M57 -> 365100 | G57: =CashFlowsLedgers!BX56 -> 365100 | H57: 0 | I57: 0 | K57: =CashFlowsLedgers!BF56<0.1 -> FALSE | L57: =IF(D57,L56,CashFlowsLedgers!BB56+CashFlowsLedgers!BF56) -> 239987630.5 | M57: 3599814.457 | N57: =CashFlowsLedgers!BY56 -> 3599814.457 | O57: 0 | P57: 0 | S57: =IF(#REF!-#REF!-#REF!=0,"OK") ->  | T57: =IF(#REF!>#REF!,IF(#REF!-#REF!=SUM(#REF!),"OK","Oops"),"No Excess") -> 
A58: 42 | B58: =UserInputs!B56 -> 2028-09-12 | D58: =OR(AND(TriggersEvents!N58,SUM(CashFlowsLedgers!BB57,CashFlowsLedgers!BF57,CashFlowsLedgers!BJ57,CashFlowsLedgers!BN57,CashFlowsLedgers!BR57)>0.1),SUM(UserInputs!H$15:'UserInputs'!H56)>0.05*OpeningPoolBalance) -> TRUE | E58: =IF(D58,E57,CashFlowsLedgers!BB57+CashFlowsLedgers!BF57+CashFlowsLedgers!BJ57+CashFlowsLedgers!BN57+CashFlowsLedgers!BR57) -> 264327630.5 | F58: =IF(CashFlowsLedgers!CH57,0,General_Reserve_Percent*E58)-M58 -> 365100 | G58: =CashFlowsLedgers!BX57 -> 365100 | H58: 0 | I58: 0 | K58: =CashFlowsLedgers!BF57<0.1 -> FALSE | L58: =IF(D58,L57,CashFlowsLedgers!BB57+CashFlowsLedgers!BF57) -> 239987630.5 | M58: 3599814.457 | N58: =CashFlowsLedgers!BY57 -> 3599814.457 | O58: 0 | P58: 0 | S58: =IF(#REF!-#REF!-#REF!=0,"OK") ->  | T58: =IF(#REF!>#REF!,IF(#REF!-#REF!=SUM(#REF!),"OK","Oops"),"No Excess") -> 
A59: 43 | B59: =UserInputs!B57 -> 2028-12-12 | D59: =OR(AND(TriggersEvents!N59,SUM(CashFlowsLedgers!BB58,CashFlowsLedgers!BF58,CashFlowsLedgers!BJ58,CashFlowsLedgers!BN58,CashFlowsLedgers!BR58)>0.1),SUM(UserInputs!H$15:'UserInputs'!H57)>0.05*OpeningPoolBalance) -> TRUE | E59: =IF(D59,E58,CashFlowsLedgers!BB58+CashFlowsLedgers!BF58+CashFlowsLedgers!BJ58+CashFlowsLedgers!BN58+CashFlowsLedgers!BR58) -> 264327630.5 | F59: =IF(CashFlowsLedgers!CH58,0,General_Reserve_Percent*E59)-M59 -> 365100 | G59: =CashFlowsLedgers!BX58 -> 365100 | H59: 0 | I59: 0 | K59: =CashFlowsLedgers!BF58<0.1 -> FALSE | L59: =IF(D59,L58,CashFlowsLedgers!BB58+CashFlowsLedgers!BF58) -> 239987630.5 | M59: 3599814.457 | N59: =CashFlowsLedgers!BY58 -> 3599814.457 | O59: 0 | P59: 0 | S59: =IF(#REF!-#REF!-#REF!=0,"OK") ->  | T59: =IF(#REF!>#REF!,IF(#REF!-#REF!=SUM(#REF!),"OK","Oops"),"No Excess") -> 
A60: 44 | B60: =UserInputs!B58 -> 2029-03-12 | D60: =OR(AND(TriggersEvents!N60,SUM(CashFlowsLedgers!BB59,CashFlowsLedgers!BF59,CashFlowsLedgers!BJ59,CashFlowsLedgers!BN59,CashFlowsLedgers!BR59)>0.1),SUM(UserInputs!H$15:'UserInputs'!H58)>0.05*OpeningPoolBalance) -> TRUE | E60: =IF(D60,E59,CashFlowsLedgers!BB59+CashFlowsLedgers!BF59+CashFlowsLedgers!BJ59+CashFlowsLedgers!BN59+CashFlowsLedgers!BR59) -> 264327630.5 | F60: =IF(CashFlowsLedgers!CH59,0,General_Reserve_Percent*E60)-M60 -> 365100 | G60: =CashFlowsLedgers!BX59 -> 365100 | H60: 0 | I60: 0 | K60: =CashFlowsLedgers!BF59<0.1 -> FALSE | L60: =IF(D60,L59,CashFlowsLedgers!BB59+CashFlowsLedgers!BF59) -> 239987630.5 | M60: 3599814.457 | N60: =CashFlowsLedgers!BY59 -> 3599814.457 | O60: 0 | P60: 0 | S60: =IF(#REF!-#REF!-#REF!=0,"OK") ->  | T60: =IF(#REF!>#REF!,IF(#REF!-#REF!=SUM(#REF!),"OK","Oops"),"No Excess") -> 
A61: 45 | B61: =UserInputs!B59 -> 2029-06-12 | D61: =OR(AND(TriggersEvents!N61,SUM(CashFlowsLedgers!BB60,CashFlowsLedgers!BF60,CashFlowsLedgers!BJ60,CashFlowsLedgers!BN60,CashFlowsLedgers!BR60)>0.1),SUM(UserInputs!H$15:'UserInputs'!H59)>0.05*OpeningPoolBalance) -> TRUE | E61: =IF(D61,E60,CashFlowsLedgers!BB60+CashFlowsLedgers!BF60+CashFlowsLedgers!BJ60+CashFlowsLedgers!BN60+CashFlowsLedgers!BR60) -> 264327630.5 | F61: =IF(CashFlowsLedgers!CH60,0,General_Reserve_Percent*E61)-M61 -> 365100 | G61: =CashFlowsLedgers!BX60 -> 365100 | H61: 0 | I61: 0 | K61: =CashFlowsLedgers!BF60<0.1 -> FALSE | L61: =IF(D61,L60,CashFlowsLedgers!BB60+CashFlowsLedgers!BF60) -> 239987630.5 | M61: 3599814.457 | N61: =CashFlowsLedgers!BY60 -> 3599814.457 | O61: 0 | P61: 0 | S61: =IF(#REF!-#REF!-#REF!=0,"OK") ->  | T61: =IF(#REF!>#REF!,IF(#REF!-#REF!=SUM(#REF!),"OK","Oops"),"No Excess") -> 
A62: 46 | B62: =UserInputs!B60 -> 2029-09-12 | D62: =OR(AND(TriggersEvents!N62,SUM(CashFlowsLedgers!BB61,CashFlowsLedgers!BF61,CashFlowsLedgers!BJ61,CashFlowsLedgers!BN61,CashFlowsLedgers!BR61)>0.1),SUM(UserInputs!H$15:'UserInputs'!H60)>0.05*OpeningPoolBalance) -> TRUE | E62: =IF(D62,E61,CashFlowsLedgers!BB61+CashFlowsLedgers!BF61+CashFlowsLedgers!BJ61+CashFlowsLedgers!BN61+CashFlowsLedgers!BR61) -> 264327630.5 | F62: =IF(CashFlowsLedgers!CH61,0,General_Reserve_Percent*E62)-M62 -> 365100 | G62: =CashFlowsLedgers!BX61 -> 365100 | H62: 0 | I62: 0 | K62: =CashFlowsLedgers!BF61<0.1 -> FALSE | L62: =IF(D62,L61,CashFlowsLedgers!BB61+CashFlowsLedgers!BF61) -> 239987630.5 | M62: 3599814.457 | N62: =CashFlowsLedgers!BY61 -> 3599814.457 | O62: 0 | P62: 0 | S62: =IF(#REF!-#REF!-#REF!=0,"OK") ->  | T62: =IF(#REF!>#REF!,IF(#REF!-#REF!=SUM(#REF!),"OK","Oops"),"No Excess") -> 
A63: 47 | B63: =UserInputs!B61 -> 2029-12-12 | D63: =OR(AND(TriggersEvents!N63,SUM(CashFlowsLedgers!BB62,CashFlowsLedgers!BF62,CashFlowsLedgers!BJ62,CashFlowsLedgers!BN62,CashFlowsLedgers!BR62)>0.1),SUM(UserInputs!H$15:'UserInputs'!H61)>0.05*OpeningPoolBalance) -> TRUE | E63: =IF(D63,E62,CashFlowsLedgers!BB62+CashFlowsLedgers!BF62+CashFlowsLedgers!BJ62+CashFlowsLedgers!BN62+CashFlowsLedgers!BR62) -> 264327630.5 | F63: =IF(CashFlowsLedgers!CH62,0,General_Reserve_Percent*E63)-M63 -> 365100 | G63: =CashFlowsLedgers!BX62 -> 365100 | H63: 0 | I63: 0 | K63: =CashFlowsLedgers!BF62<0.1 -> FALSE | L63: =IF(D63,L62,CashFlowsLedgers!BB62+CashFlowsLedgers!BF62) -> 239987630.5 | M63: 3599814.457 | N63: =CashFlowsLedgers!BY62 -> 3599814.457 | O63: 0 | P63: 0 | S63: =IF(#REF!-#REF!-#REF!=0,"OK") ->  | T63: =IF(#REF!>#REF!,IF(#REF!-#REF!=SUM(#REF!),"OK","Oops"),"No Excess") -> 
A64: 48 | B64: =UserInputs!B62 -> 2030-03-12 | D64: =OR(AND(TriggersEvents!N64,SUM(CashFlowsLedgers!BB63,CashFlowsLedgers!BF63,CashFlowsLedgers!BJ63,CashFlowsLedgers!BN63,CashFlowsLedgers!BR63)>0.1),SUM(UserInputs!H$15:'UserInputs'!H62)>0.05*OpeningPoolBalance) -> TRUE | E64: =IF(D64,E63,CashFlowsLedgers!BB63+CashFlowsLedgers!BF63+CashFlowsLedgers!BJ63+CashFlowsLedgers!BN63+CashFlowsLedgers!BR63) -> 264327630.5 | F64: =IF(CashFlowsLedgers!CH63,0,General_Reserve_Percent*E64)-M64 -> 365100 | G64: =CashFlowsLedgers!BX63 -> 365100 | H64: 0 | I64: 0 | K64: =CashFlowsLedgers!BF63<0.1 -> FALSE | L64: =IF(D64,L63,CashFlowsLedgers!BB63+CashFlowsLedgers!BF63) -> 239987630.5 | M64: 3599814.457 | N64: =CashFlowsLedgers!BY63 -> 3599814.457 | O64: 0 | P64: 0 | S64: =IF(#REF!-#REF!-#REF!=0,"OK") ->  | T64: =IF(#REF!>#REF!,IF(#REF!-#REF!=SUM(#REF!),"OK","Oops"),"No Excess") -> 
A65: 49 | B65: =UserInputs!B63 -> 2030-06-12 | D65: =OR(AND(TriggersEvents!N65,SUM(CashFlowsLedgers!BB64,CashFlowsLedgers!BF64,CashFlowsLedgers!BJ64,CashFlowsLedgers!BN64,CashFlowsLedgers!BR64)>0.1),SUM(UserInputs!H$15:'UserInputs'!H63)>0.05*OpeningPoolBalance) -> TRUE | E65: =IF(D65,E64,CashFlowsLedgers!BB64+CashFlowsLedgers!BF64+CashFlowsLedgers!BJ64+CashFlowsLedgers!BN64+CashFlowsLedgers!BR64) -> 264327630.5 | F65: =IF(CashFlowsLedgers!CH64,0,General_Reserve_Percent*E65)-M65 -> 365100 | G65: =CashFlowsLedgers!BX64 -> 365100 | H65: 0 | I65: 0 | K65: =CashFlowsLedgers!BF64<0.1 -> FALSE | L65: =IF(D65,L64,CashFlowsLedgers!BB64+CashFlowsLedgers!BF64) -> 239987630.5 | M65: 3599814.457 | N65: =CashFlowsLedgers!BY64 -> 3599814.457 | O65: 0 | P65: 0 | S65: =IF(#REF!-#REF!-#REF!=0,"OK") ->  | T65: =IF(#REF!>#REF!,IF(#REF!-#REF!=SUM(#REF!),"OK","Oops"),"No Excess") -> 
A66: 50 | B66: =UserInputs!B64 -> 2030-09-12 | D66: =OR(AND(TriggersEvents!N66,SUM(CashFlowsLedgers!BB65,CashFlowsLedgers!BF65,CashFlowsLedgers!BJ65,CashFlowsLedgers!BN65,CashFlowsLedgers!BR65)>0.1),SUM(UserInputs!H$15:'UserInputs'!H64)>0.05*OpeningPoolBalance) -> TRUE | E66: =IF(D66,E65,CashFlowsLedgers!BB65+CashFlowsLedgers!BF65+CashFlowsLedgers!BJ65+CashFlowsLedgers!BN65+CashFlowsLedgers!BR65) -> 264327630.5 | F66: =IF(CashFlowsLedgers!CH65,0,General_Reserve_Percent*E66)-M66 -> 365100 | G66: =CashFlowsLedgers!BX65 -> 365100 | H66: 0 | I66: 0 | K66: =CashFlowsLedgers!BF65<0.1 -> FALSE | L66: =IF(D66,L65,CashFlowsLedgers!BB65+CashFlowsLedgers!BF65) -> 239987630.5 | M66: 3599814.457 | N66: =CashFlowsLedgers!BY65 -> 3599814.457 | O66: 0 | P66: 0 | S66: =IF(#REF!-#REF!-#REF!=0,"OK") ->  | T66: =IF(#REF!>#REF!,IF(#REF!-#REF!=SUM(#REF!),"OK","Oops"),"No Excess") -> 
A67: 51 | B67: =UserInputs!B65 -> 2030-12-12 | D67: =OR(AND(TriggersEvents!N67,SUM(CashFlowsLedgers!BB66,CashFlowsLedgers!BF66,CashFlowsLedgers!BJ66,CashFlowsLedgers!BN66,CashFlowsLedgers!BR66)>0.1),SUM(UserInputs!H$15:'UserInputs'!H65)>0.05*OpeningPoolBalance) -> TRUE | E67: =IF(D67,E66,CashFlowsLedgers!BB66+CashFlowsLedgers!BF66+CashFlowsLedgers!BJ66+CashFlowsLedgers!BN66+CashFlowsLedgers!BR66) -> 264327630.5 | F67: =IF(CashFlowsLedgers!CH66,0,General_Reserve_Percent*E67)-M67 -> 365100 | G67: =CashFlowsLedgers!BX66 -> 365100 | H67: 0 | I67: 0 | K67: =CashFlowsLedgers!BF66<0.1 -> FALSE | L67: =IF(D67,L66,CashFlowsLedgers!BB66+CashFlowsLedgers!BF66) -> 239987630.5 | M67: 3599814.457 | N67: =CashFlowsLedgers!BY66 -> 3599814.457 | O67: 0 | P67: 0 | S67: =IF(#REF!-#REF!-#REF!=0,"OK") ->  | T67: =IF(#REF!>#REF!,IF(#REF!-#REF!=SUM(#REF!),"OK","Oops"),"No Excess") -> 
A68: 52 | B68: =UserInputs!B66 -> 2031-03-12 | D68: =OR(AND(TriggersEvents!N68,SUM(CashFlowsLedgers!BB67,CashFlowsLedgers!BF67,CashFlowsLedgers!BJ67,CashFlowsLedgers!BN67,CashFlowsLedgers!BR67)>0.1),SUM(UserInputs!H$15:'UserInputs'!H66)>0.05*OpeningPoolBalance) -> TRUE | E68: =IF(D68,E67,CashFlowsLedgers!BB67+CashFlowsLedgers!BF67+CashFlowsLedgers!BJ67+CashFlowsLedgers!BN67+CashFlowsLedgers!BR67) -> 264327630.5 | F68: =IF(CashFlowsLedgers!CH67,0,General_Reserve_Percent*E68)-M68 -> 365100 | G68: =CashFlowsLedgers!BX67 -> 365100 | H68: 0 | I68: 0 | K68: =CashFlowsLedgers!BF67<0.1 -> FALSE | L68: =IF(D68,L67,CashFlowsLedgers!BB67+CashFlowsLedgers!BF67) -> 239987630.5 | M68: 3599814.457 | N68: =CashFlowsLedgers!BY67 -> 3599814.457 | O68: 0 | P68: 0 | S68: =IF(#REF!-#REF!-#REF!=0,"OK") ->  | T68: =IF(#REF!>#REF!,IF(#REF!-#REF!=SUM(#REF!),"OK","Oops"),"No Excess") -> 
A69: 53 | B69: =UserInputs!B67 -> 2031-06-12 | D69: =OR(AND(TriggersEvents!N69,SUM(CashFlowsLedgers!BB68,CashFlowsLedgers!BF68,CashFlowsLedgers!BJ68,CashFlowsLedgers!BN68,CashFlowsLedgers!BR68)>0.1),SUM(UserInputs!H$15:'UserInputs'!H67)>0.05*OpeningPoolBalance) -> TRUE | E69: =IF(D69,E68,CashFlowsLedgers!BB68+CashFlowsLedgers!BF68+CashFlowsLedgers!BJ68+CashFlowsLedgers!BN68+CashFlowsLedgers!BR68) -> 264327630.5 | F69: =IF(CashFlowsLedgers!CH68,0,General_Reserve_Percent*E69)-M69 -> 365100 | G69: =CashFlowsLedgers!BX68 -> 365100 | H69: 0 | I69: 0 | K69: =CashFlowsLedgers!BF68<0.1 -> FALSE | L69: =IF(D69,L68,CashFlowsLedgers!BB68+CashFlowsLedgers!BF68) -> 239987630.5 | M69: 3599814.457 | N69: =CashFlowsLedgers!BY68 -> 3599814.457 | O69: 0 | P69: 0 | S69: =IF(#REF!-#REF!-#REF!=0,"OK") ->  | T69: =IF(#REF!>#REF!,IF(#REF!-#REF!=SUM(#REF!),"OK","Oops"),"No Excess") -> 
A70: 54 | B70: =UserInputs!B68 -> 2031-09-12 | D70: =OR(AND(TriggersEvents!N70,SUM(CashFlowsLedgers!BB69,CashFlowsLedgers!BF69,CashFlowsLedgers!BJ69,CashFlowsLedgers!BN69,CashFlowsLedgers!BR69)>0.1),SUM(UserInputs!H$15:'UserInputs'!H68)>0.05*OpeningPoolBalance) -> TRUE | E70: =IF(D70,E69,CashFlowsLedgers!BB69+CashFlowsLedgers!BF69+CashFlowsLedgers!BJ69+CashFlowsLedgers!BN69+CashFlowsLedgers!BR69) -> 264327630.5 | F70: =IF(CashFlowsLedgers!CH69,0,General_Reserve_Percent*E70)-M70 -> 365100 | G70: =CashFlowsLedgers!BX69 -> 365100 | H70: 0 | I70: 0 | K70: =CashFlowsLedgers!BF69<0.1 -> FALSE | L70: =IF(D70,L69,CashFlowsLedgers!BB69+CashFlowsLedgers!BF69) -> 239987630.5 | M70: 3599814.457 | N70: =CashFlowsLedgers!BY69 -> 3599814.457 | O70: 0 | P70: 0 | S70: =IF(#REF!-#REF!-#REF!=0,"OK") ->  | T70: =IF(#REF!>#REF!,IF(#REF!-#REF!=SUM(#REF!),"OK","Oops"),"No Excess") -> 
A71: 55 | B71: =UserInputs!B69 -> 2031-12-12 | D71: =OR(AND(TriggersEvents!N71,SUM(CashFlowsLedgers!BB70,CashFlowsLedgers!BF70,CashFlowsLedgers!BJ70,CashFlowsLedgers!BN70,CashFlowsLedgers!BR70)>0.1),SUM(UserInputs!H$15:'UserInputs'!H69)>0.05*OpeningPoolBalance) -> TRUE | E71: =IF(D71,E70,CashFlowsLedgers!BB70+CashFlowsLedgers!BF70+CashFlowsLedgers!BJ70+CashFlowsLedgers!BN70+CashFlowsLedgers!BR70) -> 264327630.5 | F71: =IF(CashFlowsLedgers!CH70,0,General_Reserve_Percent*E71)-M71 -> 365100 | G71: =CashFlowsLedgers!BX70 -> 365100 | H71: 0 | I71: 0 | K71: =CashFlowsLedgers!BF70<0.1 -> FALSE | L71: =IF(D71,L70,CashFlowsLedgers!BB70+CashFlowsLedgers!BF70) -> 239987630.5 | M71: 3599814.457 | N71: =CashFlowsLedgers!BY70 -> 3599814.457 | O71: 0 | P71: 0 | S71: =IF(#REF!-#REF!-#REF!=0,"OK") ->  | T71: =IF(#REF!>#REF!,IF(#REF!-#REF!=SUM(#REF!),"OK","Oops"),"No Excess") -> 
A72: 56 | B72: =UserInputs!B70 -> 2032-03-12 | D72: =OR(AND(TriggersEvents!N72,SUM(CashFlowsLedgers!BB71,CashFlowsLedgers!BF71,CashFlowsLedgers!BJ71,CashFlowsLedgers!BN71,CashFlowsLedgers!BR71)>0.1),SUM(UserInputs!H$15:'UserInputs'!H70)>0.05*OpeningPoolBalance) -> TRUE | E72: =IF(D72,E71,CashFlowsLedgers!BB71+CashFlowsLedgers!BF71+CashFlowsLedgers!BJ71+CashFlowsLedgers!BN71+CashFlowsLedgers!BR71) -> 264327630.5 | F72: =IF(CashFlowsLedgers!CH71,0,General_Reserve_Percent*E72)-M72 -> 365100 | G72: =CashFlowsLedgers!BX71 -> 365100 | H72: 0 | I72: 0 | K72: =CashFlowsLedgers!BF71<0.1 -> FALSE | L72: =IF(D72,L71,CashFlowsLedgers!BB71+CashFlowsLedgers!BF71) -> 239987630.5 | M72: 3599814.457 | N72: =CashFlowsLedgers!BY71 -> 3599814.457 | O72: 0 | P72: 0 | S72: =IF(#REF!-#REF!-#REF!=0,"OK") ->  | T72: =IF(#REF!>#REF!,IF(#REF!-#REF!=SUM(#REF!),"OK","Oops"),"No Excess") -> 
A73: 57 | B73: =UserInputs!B71 -> 2032-06-12 | D73: =OR(AND(TriggersEvents!N73,SUM(CashFlowsLedgers!BB72,CashFlowsLedgers!BF72,CashFlowsLedgers!BJ72,CashFlowsLedgers!BN72,CashFlowsLedgers!BR72)>0.1),SUM(UserInputs!H$15:'UserInputs'!H71)>0.05*OpeningPoolBalance) -> TRUE | E73: =IF(D73,E72,CashFlowsLedgers!BB72+CashFlowsLedgers!BF72+CashFlowsLedgers!BJ72+CashFlowsLedgers!BN72+CashFlowsLedgers!BR72) -> 264327630.5 | F73: =IF(CashFlowsLedgers!CH72,0,General_Reserve_Percent*E73)-M73 -> 365100 | G73: =CashFlowsLedgers!BX72 -> 365100 | H73: 0 | I73: 0 | K73: =CashFlowsLedgers!BF72<0.1 -> FALSE | L73: =IF(D73,L72,CashFlowsLedgers!BB72+CashFlowsLedgers!BF72) -> 239987630.5 | M73: 3599814.457 | N73: =CashFlowsLedgers!BY72 -> 3599814.457 | O73: 0 | P73: 0 | S73: =IF(#REF!-#REF!-#REF!=0,"OK") ->  | T73: =IF(#REF!>#REF!,IF(#REF!-#REF!=SUM(#REF!),"OK","Oops"),"No Excess") -> 
A74: 58 | B74: =UserInputs!B72 -> 2032-09-12 | D74: =OR(AND(TriggersEvents!N74,SUM(CashFlowsLedgers!BB73,CashFlowsLedgers!BF73,CashFlowsLedgers!BJ73,CashFlowsLedgers!BN73,CashFlowsLedgers!BR73)>0.1),SUM(UserInputs!H$15:'UserInputs'!H72)>0.05*OpeningPoolBalance) -> TRUE | E74: =IF(D74,E73,CashFlowsLedgers!BB73+CashFlowsLedgers!BF73+CashFlowsLedgers!BJ73+CashFlowsLedgers!BN73+CashFlowsLedgers!BR73) -> 264327630.5 | F74: =IF(CashFlowsLedgers!CH73,0,General_Reserve_Percent*E74)-M74 -> 365100 | G74: =CashFlowsLedgers!BX73 -> 365100 | H74: 0 | I74: 0 | K74: =CashFlowsLedgers!BF73<0.1 -> FALSE | L74: =IF(D74,L73,CashFlowsLedgers!BB73+CashFlowsLedgers!BF73) -> 239987630.5 | M74: 3599814.457 | N74: =CashFlowsLedgers!BY73 -> 3599814.457 | O74: 0 | P74: 0 | S74: =IF(#REF!-#REF!-#REF!=0,"OK") ->  | T74: =IF(#REF!>#REF!,IF(#REF!-#REF!=SUM(#REF!),"OK","Oops"),"No Excess") -> 
A75: 59 | B75: =UserInputs!B73 -> 2032-12-12 | D75: =OR(AND(TriggersEvents!N75,SUM(CashFlowsLedgers!BB74,CashFlowsLedgers!BF74,CashFlowsLedgers!BJ74,CashFlowsLedgers!BN74,CashFlowsLedgers!BR74)>0.1),SUM(UserInputs!H$15:'UserInputs'!H73)>0.05*OpeningPoolBalance) -> TRUE | E75: =IF(D75,E74,CashFlowsLedgers!BB74+CashFlowsLedgers!BF74+CashFlowsLedgers!BJ74+CashFlowsLedgers!BN74+CashFlowsLedgers!BR74) -> 264327630.5 | F75: =IF(CashFlowsLedgers!CH74,0,General_Reserve_Percent*E75)-M75 -> 365100 | G75: =CashFlowsLedgers!BX74 -> 365100 | H75: 0 | I75: 0 | K75: =CashFlowsLedgers!BF74<0.1 -> FALSE | L75: =IF(D75,L74,CashFlowsLedgers!BB74+CashFlowsLedgers!BF74) -> 239987630.5 | M75: 3599814.457 | N75: =CashFlowsLedgers!BY74 -> 3599814.457 | O75: 0 | P75: 0 | S75: =IF(#REF!-#REF!-#REF!=0,"OK") ->  | T75: =IF(#REF!>#REF!,IF(#REF!-#REF!=SUM(#REF!),"OK","Oops"),"No Excess") -> 
A76: 60 | B76: =UserInputs!B74 -> 2033-03-12 | D76: =OR(AND(TriggersEvents!N76,SUM(CashFlowsLedgers!BB75,CashFlowsLedgers!BF75,CashFlowsLedgers!BJ75,CashFlowsLedgers!BN75,CashFlowsLedgers!BR75)>0.1),SUM(UserInputs!H$15:'UserInputs'!H74)>0.05*OpeningPoolBalance) -> TRUE | E76: =IF(D76,E75,CashFlowsLedgers!BB75+CashFlowsLedgers!BF75+CashFlowsLedgers!BJ75+CashFlowsLedgers!BN75+CashFlowsLedgers!BR75) -> 264327630.5 | F76: =IF(CashFlowsLedgers!CH75,0,General_Reserve_Percent*E76)-M76 -> 365100 | G76: =CashFlowsLedgers!BX75 -> 365100 | H76: 0 | I76: 0 | K76: =CashFlowsLedgers!BF75<0.1 -> FALSE | L76: =IF(D76,L75,CashFlowsLedgers!BB75+CashFlowsLedgers!BF75) -> 239987630.5 | M76: 3599814.457 | N76: =CashFlowsLedgers!BY75 -> 3599814.457 | O76: 0 | P76: 0 | S76: =IF(#REF!-#REF!-#REF!=0,"OK") ->  | T76: =IF(#REF!>#REF!,IF(#REF!-#REF!=SUM(#REF!),"OK","Oops"),"No Excess") -> 
A77: 61 | B77: =UserInputs!B75 -> 2033-06-12 | D77: =OR(AND(TriggersEvents!N77,SUM(CashFlowsLedgers!BB76,CashFlowsLedgers!BF76,CashFlowsLedgers!BJ76,CashFlowsLedgers!BN76,CashFlowsLedgers!BR76)>0.1),SUM(UserInputs!H$15:'UserInputs'!H75)>0.05*OpeningPoolBalance) -> TRUE | E77: =IF(D77,E76,CashFlowsLedgers!BB76+CashFlowsLedgers!BF76+CashFlowsLedgers!BJ76+CashFlowsLedgers!BN76+CashFlowsLedgers!BR76) -> 264327630.5 | F77: =IF(CashFlowsLedgers!CH76,0,General_Reserve_Percent*E77)-M77 -> 365100 | G77: =CashFlowsLedgers!BX76 -> 365100 | H77: 0 | I77: 0 | K77: =CashFlowsLedgers!BF76<0.1 -> FALSE | L77: =IF(D77,L76,CashFlowsLedgers!BB76+CashFlowsLedgers!BF76) -> 239987630.5 | M77: 3599814.457 | N77: =CashFlowsLedgers!BY76 -> 3599814.457 | O77: 0 | P77: 0 | S77: =IF(#REF!-#REF!-#REF!=0,"OK") ->  | T77: =IF(#REF!>#REF!,IF(#REF!-#REF!=SUM(#REF!),"OK","Oops"),"No Excess") -> 
A78: 62 | B78: =UserInputs!B76 -> 2033-09-12 | D78: =OR(AND(TriggersEvents!N78,SUM(CashFlowsLedgers!BB77,CashFlowsLedgers!BF77,CashFlowsLedgers!BJ77,CashFlowsLedgers!BN77,CashFlowsLedgers!BR77)>0.1),SUM(UserInputs!H$15:'UserInputs'!H76)>0.05*OpeningPoolBalance) -> TRUE | E78: =IF(D78,E77,CashFlowsLedgers!BB77+CashFlowsLedgers!BF77+CashFlowsLedgers!BJ77+CashFlowsLedgers!BN77+CashFlowsLedgers!BR77) -> 264327630.5 | F78: =IF(CashFlowsLedgers!CH77,0,General_Reserve_Percent*E78)-M78 -> 365100 | G78: =CashFlowsLedgers!BX77 -> 365100 | H78: 0 | I78: 0 | K78: =CashFlowsLedgers!BF77<0.1 -> FALSE | L78: =IF(D78,L77,CashFlowsLedgers!BB77+CashFlowsLedgers!BF77) -> 239987630.5 | M78: 3599814.457 | N78: =CashFlowsLedgers!BY77 -> 3599814.457 | O78: 0 | P78: 0 | S78: =IF(#REF!-#REF!-#REF!=0,"OK") ->  | T78: =IF(#REF!>#REF!,IF(#REF!-#REF!=SUM(#REF!),"OK","Oops"),"No Excess") -> 
A79: 63 | B79: =UserInputs!B77 -> 2033-12-12 | D79: =OR(AND(TriggersEvents!N79,SUM(CashFlowsLedgers!BB78,CashFlowsLedgers!BF78,CashFlowsLedgers!BJ78,CashFlowsLedgers!BN78,CashFlowsLedgers!BR78)>0.1),SUM(UserInputs!H$15:'UserInputs'!H77)>0.05*OpeningPoolBalance) -> TRUE | E79: =IF(D79,E78,CashFlowsLedgers!BB78+CashFlowsLedgers!BF78+CashFlowsLedgers!BJ78+CashFlowsLedgers!BN78+CashFlowsLedgers!BR78) -> 264327630.5 | F79: =IF(CashFlowsLedgers!CH78,0,General_Reserve_Percent*E79)-M79 -> 365100 | G79: =CashFlowsLedgers!BX78 -> 365100 | H79: 0 | I79: 0 | K79: =CashFlowsLedgers!BF78<0.1 -> FALSE | L79: =IF(D79,L78,CashFlowsLedgers!BB78+CashFlowsLedgers!BF78) -> 239987630.5 | M79: 3599814.457 | N79: =CashFlowsLedgers!BY78 -> 3599814.457 | O79: 0 | P79: 0 | S79: =IF(#REF!-#REF!-#REF!=0,"OK") ->  | T79: =IF(#REF!>#REF!,IF(#REF!-#REF!=SUM(#REF!),"OK","Oops"),"No Excess") -> 
A80: 64 | B80: =UserInputs!B78 -> 2034-03-12 | D80: =OR(AND(TriggersEvents!N80,SUM(CashFlowsLedgers!BB79,CashFlowsLedgers!BF79,CashFlowsLedgers!BJ79,CashFlowsLedgers!BN79,CashFlowsLedgers!BR79)>0.1),SUM(UserInputs!H$15:'UserInputs'!H78)>0.05*OpeningPoolBalance) -> TRUE | E80: =IF(D80,E79,CashFlowsLedgers!BB79+CashFlowsLedgers!BF79+CashFlowsLedgers!BJ79+CashFlowsLedgers!BN79+CashFlowsLedgers!BR79) -> 264327630.5 | F80: =IF(CashFlowsLedgers!CH79,0,General_Reserve_Percent*E80)-M80 -> 365100 | G80: =CashFlowsLedgers!BX79 -> 365100 | H80: 0 | I80: 0 | K80: =CashFlowsLedgers!BF79<0.1 -> FALSE | L80: =IF(D80,L79,CashFlowsLedgers!BB79+CashFlowsLedgers!BF79) -> 239987630.5 | M80: 3599814.457 | N80: =CashFlowsLedgers!BY79 -> 3599814.457 | O80: 0 | P80: 0 | S80: =IF(#REF!-#REF!-#REF!=0,"OK") ->  | T80: =IF(#REF!>#REF!,IF(#REF!-#REF!=SUM(#REF!),"OK","Oops"),"No Excess") -> 
A81: 65 | B81: =UserInputs!B79 -> 2034-06-12 | D81: =OR(AND(TriggersEvents!N81,SUM(CashFlowsLedgers!BB80,CashFlowsLedgers!BF80,CashFlowsLedgers!BJ80,CashFlowsLedgers!BN80,CashFlowsLedgers!BR80)>0.1),SUM(UserInputs!H$15:'UserInputs'!H79)>0.05*OpeningPoolBalance) -> TRUE | E81: =IF(D81,E80,CashFlowsLedgers!BB80+CashFlowsLedgers!BF80+CashFlowsLedgers!BJ80+CashFlowsLedgers!BN80+CashFlowsLedgers!BR80) -> 264327630.5 | F81: =IF(CashFlowsLedgers!CH80,0,General_Reserve_Percent*E81)-M81 -> 365100 | G81: =CashFlowsLedgers!BX80 -> 365100 | H81: 0 | I81: 0 | K81: =CashFlowsLedgers!BF80<0.1 -> FALSE | L81: =IF(D81,L80,CashFlowsLedgers!BB80+CashFlowsLedgers!BF80) -> 239987630.5 | M81: =IF(K81,0,ClassAB_Liquidity_Fund_Percent*L81) -> 3599814.457 | N81: =CashFlowsLedgers!BY80 -> 3599814.457 | O81: 0 | P81: 0 | S81: =IF(#REF!-#REF!-#REF!=0,"OK") ->  | T81: =IF(#REF!>#REF!,IF(#REF!-#REF!=SUM(#REF!),"OK","Oops"),"No Excess") -> 
A82: 66 | B82: =UserInputs!B80 -> 2034-09-12 | D82: =OR(AND(TriggersEvents!N82,SUM(CashFlowsLedgers!BB81,CashFlowsLedgers!BF81,CashFlowsLedgers!BJ81,CashFlowsLedgers!BN81,CashFlowsLedgers!BR81)>0.1),SUM(UserInputs!H$15:'UserInputs'!H80)>0.05*OpeningPoolBalance) -> TRUE | E82: =IF(D82,E81,CashFlowsLedgers!BB81+CashFlowsLedgers!BF81+CashFlowsLedgers!BJ81+CashFlowsLedgers!BN81+CashFlowsLedgers!BR81) -> 264327630.5 | F82: =IF(CashFlowsLedgers!CH81,0,General_Reserve_Percent*E82)-M82 -> 365100 | G82: =CashFlowsLedgers!BX81 -> 365100 | H82: =MAX(F82-G82,0) -> 0 | I82: =MAX(0,G82-F82) -> 0 | K82: =CashFlowsLedgers!BF81<0.1 -> FALSE | L82: =IF(D82,L81,CashFlowsLedgers!BB81+CashFlowsLedgers!BF81) -> 239987630.5 | M82: 3599814.457 | N82: =CashFlowsLedgers!BY81 -> 3599814.457 | O82: =MAX(M82-N82,0) -> 0 | P82: =MAX(0,N82-M82) -> 0 | S82: =IF(#REF!-#REF!-#REF!=0,"OK") ->  | T82: =IF(#REF!>#REF!,IF(#REF!-#REF!=SUM(#REF!),"OK","Oops"),"No Excess") -> 
A83: 67 | B83: =UserInputs!B81 -> 2034-12-12 | D83: =OR(AND(TriggersEvents!N83,SUM(CashFlowsLedgers!BB82,CashFlowsLedgers!BF82,CashFlowsLedgers!BJ82,CashFlowsLedgers!BN82,CashFlowsLedgers!BR82)>0.1),SUM(UserInputs!H$15:'UserInputs'!H81)>0.05*OpeningPoolBalance) -> TRUE | E83: =IF(D83,E82,CashFlowsLedgers!BB82+CashFlowsLedgers!BF82+CashFlowsLedgers!BJ82+CashFlowsLedgers!BN82+CashFlowsLedgers!BR82) -> 264327630.5 | F83: =IF(CashFlowsLedgers!CH82,0,General_Reserve_Percent*E83)-M83 -> 365100 | G83: =CashFlowsLedgers!BX82 -> 365100 | H83: 0 | I83: 0 | K83: =CashFlowsLedgers!BF82<0.1 -> FALSE | L83: =IF(D83,L82,CashFlowsLedgers!BB82+CashFlowsLedgers!BF82) -> 239987630.5 | M83: 3599814.457 | N83: =CashFlowsLedgers!BY82 -> 3599814.457 | O83: 0 | P83: 0 | S83: =IF(#REF!-#REF!-#REF!=0,"OK") ->  | T83: =IF(#REF!>#REF!,IF(#REF!-#REF!=SUM(#REF!),"OK","Oops"),"No Excess") -> 
A84: 68 | B84: =UserInputs!B82 -> 2035-03-12 | D84: =OR(AND(TriggersEvents!N84,SUM(CashFlowsLedgers!BB83,CashFlowsLedgers!BF83,CashFlowsLedgers!BJ83,CashFlowsLedgers!BN83,CashFlowsLedgers!BR83)>0.1),SUM(UserInputs!H$15:'UserInputs'!H82)>0.05*OpeningPoolBalance) -> TRUE | E84: =IF(D84,E83,CashFlowsLedgers!BB83+CashFlowsLedgers!BF83+CashFlowsLedgers!BJ83+CashFlowsLedgers!BN83+CashFlowsLedgers!BR83) -> 264327630.5 | F84: =IF(CashFlowsLedgers!CH83,0,General_Reserve_Percent*E84)-M84 -> 365100 | G84: =CashFlowsLedgers!BX83 -> 365100 | H84: 0 | I84: 0 | K84: =CashFlowsLedgers!BF83<0.1 -> FALSE | L84: =IF(D84,L83,CashFlowsLedgers!BB83+CashFlowsLedgers!BF83) -> 239987630.5 | M84: 3599814.457 | N84: =CashFlowsLedgers!BY83 -> 3599814.457 | O84: 0 | P84: 0 | S84: =IF(#REF!-#REF!-#REF!=0,"OK") ->  | T84: =IF(#REF!>#REF!,IF(#REF!-#REF!=SUM(#REF!),"OK","Oops"),"No Excess") -> 
A85: 69 | B85: =UserInputs!B83 -> 2035-06-12 | D85: =OR(AND(TriggersEvents!N85,SUM(CashFlowsLedgers!BB84,CashFlowsLedgers!BF84,CashFlowsLedgers!BJ84,CashFlowsLedgers!BN84,CashFlowsLedgers!BR84)>0.1),SUM(UserInputs!H$15:'UserInputs'!H83)>0.05*OpeningPoolBalance) -> TRUE | E85: =IF(D85,E84,CashFlowsLedgers!BB84+CashFlowsLedgers!BF84+CashFlowsLedgers!BJ84+CashFlowsLedgers!BN84+CashFlowsLedgers!BR84) -> 264327630.5 | F85: =IF(CashFlowsLedgers!CH84,0,General_Reserve_Percent*E85)-M85 -> 365100 | G85: =CashFlowsLedgers!BX84 -> 365100 | H85: 0 | I85: 0 | K85: =CashFlowsLedgers!BF84<0.1 -> FALSE | L85: =IF(D85,L84,CashFlowsLedgers!BB84+CashFlowsLedgers!BF84) -> 239987630.5 | M85: 3599814.457 | N85: =CashFlowsLedgers!BY84 -> 3599814.457 | O85: 0 | P85: 0 | S85: =IF(#REF!-#REF!-#REF!=0,"OK") ->  | T85: =IF(#REF!>#REF!,IF(#REF!-#REF!=SUM(#REF!),"OK","Oops"),"No Excess") -> 
A86: 70 | B86: =UserInputs!B84 -> 2035-09-12 | D86: =OR(AND(TriggersEvents!N86,SUM(CashFlowsLedgers!BB85,CashFlowsLedgers!BF85,CashFlowsLedgers!BJ85,CashFlowsLedgers!BN85,CashFlowsLedgers!BR85)>0.1),SUM(UserInputs!H$15:'UserInputs'!H84)>0.05*OpeningPoolBalance) -> TRUE | E86: =IF(D86,E85,CashFlowsLedgers!BB85+CashFlowsLedgers!BF85+CashFlowsLedgers!BJ85+CashFlowsLedgers!BN85+CashFlowsLedgers!BR85) -> 264327630.5 | F86: =IF(CashFlowsLedgers!CH85,0,General_Reserve_Percent*E86)-M86 -> 365100 | G86: =CashFlowsLedgers!BX85 -> 365100 | H86: 0 | I86: 0 | K86: =CashFlowsLedgers!BF85<0.1 -> FALSE | L86: =IF(D86,L85,CashFlowsLedgers!BB85+CashFlowsLedgers!BF85) -> 239987630.5 | M86: 3599814.457 | N86: =CashFlowsLedgers!BY85 -> 3599814.457 | O86: 0 | P86: 0 | S86: =IF(#REF!-#REF!-#REF!=0,"OK") ->  | T86: =IF(#REF!>#REF!,IF(#REF!-#REF!=SUM(#REF!),"OK","Oops"),"No Excess") -> 
A87: 71 | B87: =UserInputs!B85 -> 2035-12-12 | D87: =OR(AND(TriggersEvents!N87,SUM(CashFlowsLedgers!BB86,CashFlowsLedgers!BF86,CashFlowsLedgers!BJ86,CashFlowsLedgers!BN86,CashFlowsLedgers!BR86)>0.1),SUM(UserInputs!H$15:'UserInputs'!H85)>0.05*OpeningPoolBalance) -> TRUE | E87: =IF(D87,E86,CashFlowsLedgers!BB86+CashFlowsLedgers!BF86+CashFlowsLedgers!BJ86+CashFlowsLedgers!BN86+CashFlowsLedgers!BR86) -> 264327630.5 | F87: =IF(CashFlowsLedgers!CH86,0,General_Reserve_Percent*E87)-M87 -> 365100 | G87: =CashFlowsLedgers!BX86 -> 365100 | H87: 0 | I87: 0 | K87: =CashFlowsLedgers!BF86<0.1 -> FALSE | L87: =IF(D87,L86,CashFlowsLedgers!BB86+CashFlowsLedgers!BF86) -> 239987630.5 | M87: 3599814.457 | N87: =CashFlowsLedgers!BY86 -> 3599814.457 | O87: 0 | P87: 0 | S87: =IF(#REF!-#REF!-#REF!=0,"OK") ->  | T87: =IF(#REF!>#REF!,IF(#REF!-#REF!=SUM(#REF!),"OK","Oops"),"No Excess") -> 
A88: 72 | B88: =UserInputs!B86 -> 2036-03-12 | D88: =OR(AND(TriggersEvents!N88,SUM(CashFlowsLedgers!BB87,CashFlowsLedgers!BF87,CashFlowsLedgers!BJ87,CashFlowsLedgers!BN87,CashFlowsLedgers!BR87)>0.1),SUM(UserInputs!H$15:'UserInputs'!H86)>0.05*OpeningPoolBalance) -> TRUE | E88: =IF(D88,E87,CashFlowsLedgers!BB87+CashFlowsLedgers!BF87+CashFlowsLedgers!BJ87+CashFlowsLedgers!BN87+CashFlowsLedgers!BR87) -> 264327630.5 | F88: =IF(CashFlowsLedgers!CH87,0,General_Reserve_Percent*E88)-M88 -> 365100 | G88: =CashFlowsLedgers!BX87 -> 365100 | H88: 0 | I88: 0 | K88: =CashFlowsLedgers!BF87<0.1 -> FALSE | L88: =IF(D88,L87,CashFlowsLedgers!BB87+CashFlowsLedgers!BF87) -> 239987630.5 | M88: 3599814.457 | N88: =CashFlowsLedgers!BY87 -> 3599814.457 | O88: 0 | P88: 0 | S88: =IF(#REF!-#REF!-#REF!=0,"OK") ->  | T88: =IF(#REF!>#REF!,IF(#REF!-#REF!=SUM(#REF!),"OK","Oops"),"No Excess") -> 
A89: 73 | B89: =UserInputs!B87 -> 2036-06-12 | D89: =OR(AND(TriggersEvents!N89,SUM(CashFlowsLedgers!BB88,CashFlowsLedgers!BF88,CashFlowsLedgers!BJ88,CashFlowsLedgers!BN88,CashFlowsLedgers!BR88)>0.1),SUM(UserInputs!H$15:'UserInputs'!H87)>0.05*OpeningPoolBalance) -> TRUE | E89: =IF(D89,E88,CashFlowsLedgers!BB88+CashFlowsLedgers!BF88+CashFlowsLedgers!BJ88+CashFlowsLedgers!BN88+CashFlowsLedgers!BR88) -> 264327630.5 | F89: =IF(CashFlowsLedgers!CH88,0,General_Reserve_Percent*E89)-M89 -> 3964914.457 | G89: =CashFlowsLedgers!BX88 -> 365100 | H89: 3599814.457 | I89: 0 | K89: =CashFlowsLedgers!BF88<0.1 -> TRUE | L89: =IF(D89,L88,CashFlowsLedgers!BB88+CashFlowsLedgers!BF88) -> 239987630.5 | M89: 0 | N89: =CashFlowsLedgers!BY88 -> 3599814.457 | O89: 0 | P89: 3599814.457 | S89: =IF(#REF!-#REF!-#REF!=0,"OK") ->  | T89: =IF(#REF!>#REF!,IF(#REF!-#REF!=SUM(#REF!),"OK","Oops"),"No Excess") -> 
A90: 74 | B90: =UserInputs!B88 -> 2036-09-12 | D90: =OR(AND(TriggersEvents!N90,SUM(CashFlowsLedgers!BB89,CashFlowsLedgers!BF89,CashFlowsLedgers!BJ89,CashFlowsLedgers!BN89,CashFlowsLedgers!BR89)>0.1),SUM(UserInputs!H$15:'UserInputs'!H88)>0.05*OpeningPoolBalance) -> TRUE | E90: =IF(D90,E89,CashFlowsLedgers!BB89+CashFlowsLedgers!BF89+CashFlowsLedgers!BJ89+CashFlowsLedgers!BN89+CashFlowsLedgers!BR89) -> 264327630.5 | F90: =IF(CashFlowsLedgers!CH89,0,General_Reserve_Percent*E90)-M90 -> 3964914.457 | G90: =CashFlowsLedgers!BX89 -> 3964914.457 | H90: 0 | I90: 0 | K90: =CashFlowsLedgers!BF89<0.1 -> TRUE | L90: =IF(D90,L89,CashFlowsLedgers!BB89+CashFlowsLedgers!BF89) -> 239987630.5 | M90: 0 | N90: =CashFlowsLedgers!BY89 -> 0 | O90: 0 | P90: 0 | S90: =IF(#REF!-#REF!-#REF!=0,"OK") ->  | T90: =IF(#REF!>#REF!,IF(#REF!-#REF!=SUM(#REF!),"OK","Oops"),"No Excess") -> 
A91: 75 | B91: =UserInputs!B89 -> 2036-12-12 | D91: =OR(AND(TriggersEvents!N91,SUM(CashFlowsLedgers!BB90,CashFlowsLedgers!BF90,CashFlowsLedgers!BJ90,CashFlowsLedgers!BN90,CashFlowsLedgers!BR90)>0.1),SUM(UserInputs!H$15:'UserInputs'!H89)>0.05*OpeningPoolBalance) -> TRUE | E91: =IF(D91,E90,CashFlowsLedgers!BB90+CashFlowsLedgers!BF90+CashFlowsLedgers!BJ90+CashFlowsLedgers!BN90+CashFlowsLedgers!BR90) -> 264327630.5 | F91: =IF(CashFlowsLedgers!CH90,0,General_Reserve_Percent*E91)-M91 -> 3964914.457 | G91: =CashFlowsLedgers!BX90 -> 3964914.457 | H91: 0 | I91: 0 | K91: =CashFlowsLedgers!BF90<0.1 -> TRUE | L91: =IF(D91,L90,CashFlowsLedgers!BB90+CashFlowsLedgers!BF90) -> 239987630.5 | M91: 0 | N91: =CashFlowsLedgers!BY90 -> 0 | O91: 0 | P91: 0 | S91: =IF(#REF!-#REF!-#REF!=0,"OK") ->  | T91: =IF(#REF!>#REF!,IF(#REF!-#REF!=SUM(#REF!),"OK","Oops"),"No Excess") -> 
A92: 76 | B92: =UserInputs!B90 -> 2037-03-12 | D92: =OR(AND(TriggersEvents!N92,SUM(CashFlowsLedgers!BB91,CashFlowsLedgers!BF91,CashFlowsLedgers!BJ91,CashFlowsLedgers!BN91,CashFlowsLedgers!BR91)>0.1),SUM(UserInputs!H$15:'UserInputs'!H90)>0.05*OpeningPoolBalance) -> TRUE | E92: =IF(D92,E91,CashFlowsLedgers!BB91+CashFlowsLedgers!BF91+CashFlowsLedgers!BJ91+CashFlowsLedgers!BN91+CashFlowsLedgers!BR91) -> 264327630.5 | F92: =IF(CashFlowsLedgers!CH91,0,General_Reserve_Percent*E92)-M92 -> 3964914.457 | G92: =CashFlowsLedgers!BX91 -> 3964914.457 | H92: =MAX(F92-G92,0) -> 0 | I92: 0 | K92: =CashFlowsLedgers!BF91<0.1 -> TRUE | L92: =IF(D92,L91,CashFlowsLedgers!BB91+CashFlowsLedgers!BF91) -> 239987630.5 | M92: 0 | N92: =CashFlowsLedgers!BY91 -> 0 | O92: 0 | P92: 0 | S92: =IF(#REF!-#REF!-#REF!=0,"OK") ->  | T92: =IF(#REF!>#REF!,IF(#REF!-#REF!=SUM(#REF!),"OK","Oops"),"No Excess") -> 
A93: 77 | B93: =UserInputs!B91 -> 2037-06-12 | D93: =OR(AND(TriggersEvents!N93,SUM(CashFlowsLedgers!BB92,CashFlowsLedgers!BF92,CashFlowsLedgers!BJ92,CashFlowsLedgers!BN92,CashFlowsLedgers!BR92)>0.1),SUM(UserInputs!H$15:'UserInputs'!H91)>0.05*OpeningPoolBalance) -> TRUE | E93: =IF(D93,E92,CashFlowsLedgers!BB92+CashFlowsLedgers!BF92+CashFlowsLedgers!BJ92+CashFlowsLedgers!BN92+CashFlowsLedgers!BR92) -> 264327630.5 | F93: =IF(CashFlowsLedgers!CH92,0,General_Reserve_Percent*E93)-M93 -> 3964914.457 | G93: =CashFlowsLedgers!BX92 -> 3964914.457 | H93: 0 | I93: 0 | K93: =CashFlowsLedgers!BF92<0.1 -> TRUE | L93: =IF(D93,L92,CashFlowsLedgers!BB92+CashFlowsLedgers!BF92) -> 239987630.5 | M93: 0 | N93: =CashFlowsLedgers!BY92 -> 0 | O93: 0 | P93: 0 | S93: =IF(#REF!-#REF!-#REF!=0,"OK") ->  | T93: =IF(#REF!>#REF!,IF(#REF!-#REF!=SUM(#REF!),"OK","Oops"),"No Excess") -> 
A94: 78 | B94: =UserInputs!B92 -> 2037-09-12 | D94: =OR(AND(TriggersEvents!N94,SUM(CashFlowsLedgers!BB93,CashFlowsLedgers!BF93,CashFlowsLedgers!BJ93,CashFlowsLedgers!BN93,CashFlowsLedgers!BR93)>0.1),SUM(UserInputs!H$15:'UserInputs'!H92)>0.05*OpeningPoolBalance) -> TRUE | E94: =IF(D94,E93,CashFlowsLedgers!BB93+CashFlowsLedgers!BF93+CashFlowsLedgers!BJ93+CashFlowsLedgers!BN93+CashFlowsLedgers!BR93) -> 264327630.5 | F94: =IF(CashFlowsLedgers!CH93,0,General_Reserve_Percent*E94)-M94 -> 3964914.457 | G94: =CashFlowsLedgers!BX93 -> 3964914.457 | H94: 0 | I94: 0 | K94: =CashFlowsLedgers!BF93<0.1 -> TRUE | L94: =IF(D94,L93,CashFlowsLedgers!BB93+CashFlowsLedgers!BF93) -> 239987630.5 | M94: 0 | N94: =CashFlowsLedgers!BY93 -> 0 | O94: 0 | P94: 0 | S94: =IF(#REF!-#REF!-#REF!=0,"OK") ->  | T94: =IF(#REF!>#REF!,IF(#REF!-#REF!=SUM(#REF!),"OK","Oops"),"No Excess") -> 
A95: 79 | B95: =UserInputs!B93 -> 2037-12-12 | D95: =OR(AND(TriggersEvents!N95,SUM(CashFlowsLedgers!BB94,CashFlowsLedgers!BF94,CashFlowsLedgers!BJ94,CashFlowsLedgers!BN94,CashFlowsLedgers!BR94)>0.1),SUM(UserInputs!H$15:'UserInputs'!H93)>0.05*OpeningPoolBalance) -> FALSE | E95: =IF(D95,E94,CashFlowsLedgers!BB94+CashFlowsLedgers!BF94+CashFlowsLedgers!BJ94+CashFlowsLedgers!BN94+CashFlowsLedgers!BR94) -> 0 | F95: =IF(CashFlowsLedgers!CH94,0,General_Reserve_Percent*E95)-M95 -> 0 | G95: =CashFlowsLedgers!BX94 -> 0 | H95: 0 | I95: 0 | K95: =CashFlowsLedgers!BF94<0.1 -> TRUE | L95: =IF(D95,L94,CashFlowsLedgers!BB94+CashFlowsLedgers!BF94) -> 0 | M95: 0 | N95: =CashFlowsLedgers!BY94 -> 0 | O95: 0 | P95: 0 | S95: =IF(#REF!-#REF!-#REF!=0,"OK") ->  | T95: =IF(#REF!>#REF!,IF(#REF!-#REF!=SUM(#REF!),"OK","Oops"),"No Excess") -> 
A96: 80 | B96: =UserInputs!B94 -> 2038-03-12 | D96: =OR(AND(TriggersEvents!N96,SUM(CashFlowsLedgers!BB95,CashFlowsLedgers!BF95,CashFlowsLedgers!BJ95,CashFlowsLedgers!BN95,CashFlowsLedgers!BR95)>0.1),SUM(UserInputs!H$15:'UserInputs'!H94)>0.05*OpeningPoolBalance) -> FALSE | E96: =IF(D96,E95,CashFlowsLedgers!BB95+CashFlowsLedgers!BF95+CashFlowsLedgers!BJ95+CashFlowsLedgers!BN95+CashFlowsLedgers!BR95) -> 0 | F96: =IF(CashFlowsLedgers!CH95,0,General_Reserve_Percent*E96)-M96 -> 0 | G96: =CashFlowsLedgers!BX95 -> 0 | H96: 0 | I96: 0 | K96: =CashFlowsLedgers!BF95<0.1 -> TRUE | L96: =IF(D96,L95,CashFlowsLedgers!BB95+CashFlowsLedgers!BF95) -> 0 | M96: 0 | N96: =CashFlowsLedgers!BY95 -> 0 | O96: 0 | P96: 0 | S96: =IF(#REF!-#REF!-#REF!=0,"OK") ->  | T96: =IF(#REF!>#REF!,IF(#REF!-#REF!=SUM(#REF!),"OK","Oops"),"No Excess") -> 
A97: 81 | B97: =UserInputs!B95 -> 2038-06-12 | D97: =OR(AND(TriggersEvents!N97,SUM(CashFlowsLedgers!BB96,CashFlowsLedgers!BF96,CashFlowsLedgers!BJ96,CashFlowsLedgers!BN96,CashFlowsLedgers!BR96)>0.1),SUM(UserInputs!H$15:'UserInputs'!H95)>0.05*OpeningPoolBalance) -> FALSE | E97: =IF(D97,E96,CashFlowsLedgers!BB96+CashFlowsLedgers!BF96+CashFlowsLedgers!BJ96+CashFlowsLedgers!BN96+CashFlowsLedgers!BR96) -> 0 | F97: =IF(CashFlowsLedgers!CH96,0,General_Reserve_Percent*E97)-M97 -> 0 | G97: =CashFlowsLedgers!BX96 -> 0 | H97: 0 | I97: 0 | K97: =CashFlowsLedgers!BF96<0.1 -> TRUE | L97: =IF(D97,L96,CashFlowsLedgers!BB96+CashFlowsLedgers!BF96) -> 0 | M97: 0 | N97: =CashFlowsLedgers!BY96 -> 0 | O97: 0 | P97: 0 | S97: =IF(#REF!-#REF!-#REF!=0,"OK") ->  | T97: =IF(#REF!>#REF!,IF(#REF!-#REF!=SUM(#REF!),"OK","Oops"),"No Excess") -> 
A98: 82 | B98: =UserInputs!B96 -> 2038-09-12 | D98: =OR(AND(TriggersEvents!N98,SUM(CashFlowsLedgers!BB97,CashFlowsLedgers!BF97,CashFlowsLedgers!BJ97,CashFlowsLedgers!BN97,CashFlowsLedgers!BR97)>0.1),SUM(UserInputs!H$15:'UserInputs'!H96)>0.05*OpeningPoolBalance) -> FALSE | E98: =IF(D98,E97,CashFlowsLedgers!BB97+CashFlowsLedgers!BF97+CashFlowsLedgers!BJ97+CashFlowsLedgers!BN97+CashFlowsLedgers!BR97) -> 0 | F98: =IF(CashFlowsLedgers!CH97,0,General_Reserve_Percent*E98)-M98 -> 0 | G98: =CashFlowsLedgers!BX97 -> 0 | H98: 0 | I98: 0 | K98: =CashFlowsLedgers!BF97<0.1 -> TRUE | L98: =IF(D98,L97,CashFlowsLedgers!BB97+CashFlowsLedgers!BF97) -> 0 | M98: 0 | N98: =CashFlowsLedgers!BY97 -> 0 | O98: 0 | P98: 0 | S98: =IF(#REF!-#REF!-#REF!=0,"OK") ->  | T98: =IF(#REF!>#REF!,IF(#REF!-#REF!=SUM(#REF!),"OK","Oops"),"No Excess") -> 
A99: 83 | B99: =UserInputs!B97 -> 2038-12-12 | D99: =OR(AND(TriggersEvents!N99,SUM(CashFlowsLedgers!BB98,CashFlowsLedgers!BF98,CashFlowsLedgers!BJ98,CashFlowsLedgers!BN98,CashFlowsLedgers!BR98)>0.1),SUM(UserInputs!H$15:'UserInputs'!H97)>0.05*OpeningPoolBalance) -> FALSE | E99: =IF(D99,E98,CashFlowsLedgers!BB98+CashFlowsLedgers!BF98+CashFlowsLedgers!BJ98+CashFlowsLedgers!BN98+CashFlowsLedgers!BR98) -> 0 | F99: =IF(CashFlowsLedgers!CH98,0,General_Reserve_Percent*E99)-M99 -> 0 | G99: =CashFlowsLedgers!BX98 -> 0 | H99: 0 | I99: 0 | K99: =CashFlowsLedgers!BF98<0.1 -> TRUE | L99: =IF(D99,L98,CashFlowsLedgers!BB98+CashFlowsLedgers!BF98) -> 0 | M99: 0 | N99: =CashFlowsLedgers!BY98 -> 0 | O99: 0 | P99: 0 | S99: =IF(#REF!-#REF!-#REF!=0,"OK") ->  | T99: =IF(#REF!>#REF!,IF(#REF!-#REF!=SUM(#REF!),"OK","Oops"),"No Excess") -> 
A100: 84 | B100: =UserInputs!B98 -> 2039-03-12 | D100: =OR(AND(TriggersEvents!N100,SUM(CashFlowsLedgers!BB99,CashFlowsLedgers!BF99,CashFlowsLedgers!BJ99,CashFlowsLedgers!BN99,CashFlowsLedgers!BR99)>0.1),SUM(UserInputs!H$15:'UserInputs'!H98)>0.05*OpeningPoolBalance) -> FALSE | E100: =IF(D100,E99,CashFlowsLedgers!BB99+CashFlowsLedgers!BF99+CashFlowsLedgers!BJ99+CashFlowsLedgers!BN99+CashFlowsLedgers!BR99) -> 0 | F100: =IF(CashFlowsLedgers!CH99,0,General_Reserve_Percent*E100)-M100 -> 0 | G100: =CashFlowsLedgers!BX99 -> 0 | H100: 0 | I100: 0 | K100: =CashFlowsLedgers!BF99<0.1 -> TRUE | L100: =IF(D100,L99,CashFlowsLedgers!BB99+CashFlowsLedgers!BF99) -> 0 | M100: 0 | N100: =CashFlowsLedgers!BY99 -> 0 | O100: 0 | P100: 0 | S100: =IF(#REF!-#REF!-#REF!=0,"OK") ->  | T100: =IF(#REF!>#REF!,IF(#REF!-#REF!=SUM(#REF!),"OK","Oops"),"No Excess") -> 
A101: 85 | B101: =UserInputs!B99 -> 2039-06-12 | D101: =OR(AND(TriggersEvents!N101,SUM(CashFlowsLedgers!BB100,CashFlowsLedgers!BF100,CashFlowsLedgers!BJ100,CashFlowsLedgers!BN100,CashFlowsLedgers!BR100)>0.1),SUM(UserInputs!H$15:'UserInputs'!H99)>0.05*OpeningPoolBalance) -> FALSE | E101: =IF(D101,E100,CashFlowsLedgers!BB100+CashFlowsLedgers!BF100+CashFlowsLedgers!BJ100+CashFlowsLedgers!BN100+CashFlowsLedgers!BR100) -> 0 | F101: =IF(CashFlowsLedgers!CH100,0,General_Reserve_Percent*E101)-M101 -> 0 | G101: =CashFlowsLedgers!BX100 -> 0 | H101: 0 | I101: 0 | K101: =CashFlowsLedgers!BF100<0.1 -> TRUE | L101: =IF(D101,L100,CashFlowsLedgers!BB100+CashFlowsLedgers!BF100) -> 0 | M101: 0 | N101: =CashFlowsLedgers!BY100 -> 0 | O101: 0 | P101: 0 | S101: =IF(#REF!-#REF!-#REF!=0,"OK") ->  | T101: =IF(#REF!>#REF!,IF(#REF!-#REF!=SUM(#REF!),"OK","Oops"),"No Excess") -> 
A102: 86 | B102: =UserInputs!B100 -> 2039-09-12 | D102: =OR(AND(TriggersEvents!N102,SUM(CashFlowsLedgers!BB101,CashFlowsLedgers!BF101,CashFlowsLedgers!BJ101,CashFlowsLedgers!BN101,CashFlowsLedgers!BR101)>0.1),SUM(UserInputs!H$15:'UserInputs'!H100)>0.05*OpeningPoolBalance) -> FALSE | E102: =IF(D102,E101,CashFlowsLedgers!BB101+CashFlowsLedgers!BF101+CashFlowsLedgers!BJ101+CashFlowsLedgers!BN101+CashFlowsLedgers!BR101) -> 0 | F102: =IF(CashFlowsLedgers!CH101,0,General_Reserve_Percent*E102)-M102 -> 0 | G102: =CashFlowsLedgers!BX101 -> 0 | H102: 0 | I102: 0 | K102: =CashFlowsLedgers!BF101<0.1 -> TRUE | L102: =IF(D102,L101,CashFlowsLedgers!BB101+CashFlowsLedgers!BF101) -> 0 | M102: 0 | N102: =CashFlowsLedgers!BY101 -> 0 | O102: 0 | P102: 0 | S102: =IF(#REF!-#REF!-#REF!=0,"OK") ->  | T102: =IF(#REF!>#REF!,IF(#REF!-#REF!=SUM(#REF!),"OK","Oops"),"No Excess") -> 
A103: 87 | B103: =UserInputs!B101 -> 2039-12-12 | D103: =OR(AND(TriggersEvents!N103,SUM(CashFlowsLedgers!BB102,CashFlowsLedgers!BF102,CashFlowsLedgers!BJ102,CashFlowsLedgers!BN102,CashFlowsLedgers!BR102)>0.1),SUM(UserInputs!H$15:'UserInputs'!H101)>0.05*OpeningPoolBalance) -> FALSE | E103: =IF(D103,E102,CashFlowsLedgers!BB102+CashFlowsLedgers!BF102+CashFlowsLedgers!BJ102+CashFlowsLedgers!BN102+CashFlowsLedgers!BR102) -> 0 | F103: =IF(CashFlowsLedgers!CH102,0,General_Reserve_Percent*E103)-M103 -> 0 | G103: =CashFlowsLedgers!BX102 -> 0 | H103: 0 | I103: 0 | K103: =CashFlowsLedgers!BF102<0.1 -> TRUE | L103: =IF(D103,L102,CashFlowsLedgers!BB102+CashFlowsLedgers!BF102) -> 0 | M103: 0 | N103: =CashFlowsLedgers!BY102 -> 0 | O103: 0 | P103: 0 | S103: =IF(#REF!-#REF!-#REF!=0,"OK") ->  | T103: =IF(#REF!>#REF!,IF(#REF!-#REF!=SUM(#REF!),"OK","Oops"),"No Excess") -> 
A104: 88 | B104: =UserInputs!B102 -> 2040-03-12 | D104: =OR(AND(TriggersEvents!N104,SUM(CashFlowsLedgers!BB103,CashFlowsLedgers!BF103,CashFlowsLedgers!BJ103,CashFlowsLedgers!BN103,CashFlowsLedgers!BR103)>0.1),SUM(UserInputs!H$15:'UserInputs'!H102)>0.05*OpeningPoolBalance) -> FALSE | E104: =IF(D104,E103,CashFlowsLedgers!BB103+CashFlowsLedgers!BF103+CashFlowsLedgers!BJ103+CashFlowsLedgers!BN103+CashFlowsLedgers!BR103) -> 0 | F104: =IF(CashFlowsLedgers!CH103,0,General_Reserve_Percent*E104)-M104 -> 0 | G104: =CashFlowsLedgers!BX103 -> 0 | H104: 0 | I104: 0 | K104: =CashFlowsLedgers!BF103<0.1 -> TRUE | L104: =IF(D104,L103,CashFlowsLedgers!BB103+CashFlowsLedgers!BF103) -> 0 | M104: 0 | N104: =CashFlowsLedgers!BY103 -> 0 | O104: 0 | P104: 0 | S104: =IF(#REF!-#REF!-#REF!=0,"OK") ->  | T104: =IF(#REF!>#REF!,IF(#REF!-#REF!=SUM(#REF!),"OK","Oops"),"No Excess") -> 
A105: 89 | B105: =UserInputs!B103 -> 2040-06-12 | D105: =OR(AND(TriggersEvents!N105,SUM(CashFlowsLedgers!BB104,CashFlowsLedgers!BF104,CashFlowsLedgers!BJ104,CashFlowsLedgers!BN104,CashFlowsLedgers!BR104)>0.1),SUM(UserInputs!H$15:'UserInputs'!H103)>0.05*OpeningPoolBalance) -> FALSE | E105: =IF(D105,E104,CashFlowsLedgers!BB104+CashFlowsLedgers!BF104+CashFlowsLedgers!BJ104+CashFlowsLedgers!BN104+CashFlowsLedgers!BR104) -> 0 | F105: =IF(CashFlowsLedgers!CH104,0,General_Reserve_Percent*E105)-M105 -> 0 | G105: =CashFlowsLedgers!BX104 -> 0 | H105: 0 | I105: 0 | K105: =CashFlowsLedgers!BF104<0.1 -> TRUE | L105: =IF(D105,L104,CashFlowsLedgers!BB104+CashFlowsLedgers!BF104) -> 0 | M105: 0 | N105: =CashFlowsLedgers!BY104 -> 0 | O105: 0 | P105: 0 | S105: =IF(#REF!-#REF!-#REF!=0,"OK") ->  | T105: =IF(#REF!>#REF!,IF(#REF!-#REF!=SUM(#REF!),"OK","Oops"),"No Excess") -> 
A106: 90 | B106: =UserInputs!B104 -> 2040-09-12 | D106: =OR(AND(TriggersEvents!N106,SUM(CashFlowsLedgers!BB105,CashFlowsLedgers!BF105,CashFlowsLedgers!BJ105,CashFlowsLedgers!BN105,CashFlowsLedgers!BR105)>0.1),SUM(UserInputs!H$15:'UserInputs'!H104)>0.05*OpeningPoolBalance) -> FALSE | E106: =IF(D106,E105,CashFlowsLedgers!BB105+CashFlowsLedgers!BF105+CashFlowsLedgers!BJ105+CashFlowsLedgers!BN105+CashFlowsLedgers!BR105) -> 0 | F106: =IF(CashFlowsLedgers!CH105,0,General_Reserve_Percent*E106)-M106 -> 0 | G106: =CashFlowsLedgers!BX105 -> 0 | H106: 0 | I106: 0 | K106: =CashFlowsLedgers!BF105<0.1 -> TRUE | L106: =IF(D106,L105,CashFlowsLedgers!BB105+CashFlowsLedgers!BF105) -> 0 | M106: 0 | N106: =CashFlowsLedgers!BY105 -> 0 | O106: 0 | P106: 0 | S106: =IF(#REF!-#REF!-#REF!=0,"OK") ->  | T106: =IF(#REF!>#REF!,IF(#REF!-#REF!=SUM(#REF!),"OK","Oops"),"No Excess") -> 
A107: 91 | B107: =UserInputs!B105 -> 2040-12-12 | D107: =OR(AND(TriggersEvents!N107,SUM(CashFlowsLedgers!BB106,CashFlowsLedgers!BF106,CashFlowsLedgers!BJ106,CashFlowsLedgers!BN106,CashFlowsLedgers!BR106)>0.1),SUM(UserInputs!H$15:'UserInputs'!H105)>0.05*OpeningPoolBalance) -> FALSE | E107: =IF(D107,E106,CashFlowsLedgers!BB106+CashFlowsLedgers!BF106+CashFlowsLedgers!BJ106+CashFlowsLedgers!BN106+CashFlowsLedgers!BR106) -> 0 | F107: =IF(CashFlowsLedgers!CH106,0,General_Reserve_Percent*E107)-M107 -> 0 | G107: =CashFlowsLedgers!BX106 -> 0 | H107: 0 | I107: 0 | K107: =CashFlowsLedgers!BF106<0.1 -> TRUE | L107: =IF(D107,L106,CashFlowsLedgers!BB106+CashFlowsLedgers!BF106) -> 0 | M107: 0 | N107: =CashFlowsLedgers!BY106 -> 0 | O107: 0 | P107: 0 | S107: =IF(#REF!-#REF!-#REF!=0,"OK") ->  | T107: =IF(#REF!>#REF!,IF(#REF!-#REF!=SUM(#REF!),"OK","Oops"),"No Excess") -> 
A108: 92 | B108: =UserInputs!B106 -> 2041-03-12 | D108: =OR(AND(TriggersEvents!N108,SUM(CashFlowsLedgers!BB107,CashFlowsLedgers!BF107,CashFlowsLedgers!BJ107,CashFlowsLedgers!BN107,CashFlowsLedgers!BR107)>0.1),SUM(UserInputs!H$15:'UserInputs'!H106)>0.05*OpeningPoolBalance) -> FALSE | E108: =IF(D108,E107,CashFlowsLedgers!BB107+CashFlowsLedgers!BF107+CashFlowsLedgers!BJ107+CashFlowsLedgers!BN107+CashFlowsLedgers!BR107) -> 0 | F108: =IF(CashFlowsLedgers!CH107,0,General_Reserve_Percent*E108)-M108 -> 0 | G108: =CashFlowsLedgers!BX107 -> 0 | H108: 0 | I108: 0 | K108: =CashFlowsLedgers!BF107<0.1 -> TRUE | L108: =IF(D108,L107,CashFlowsLedgers!BB107+CashFlowsLedgers!BF107) -> 0 | M108: 0 | N108: =CashFlowsLedgers!BY107 -> 0 | O108: 0 | P108: 0 | S108: =IF(#REF!-#REF!-#REF!=0,"OK") ->  | T108: =IF(#REF!>#REF!,IF(#REF!-#REF!=SUM(#REF!),"OK","Oops"),"No Excess") -> 
A109: 93 | B109: =UserInputs!B107 -> 2041-06-12 | D109: =OR(AND(TriggersEvents!N109,SUM(CashFlowsLedgers!BB108,CashFlowsLedgers!BF108,CashFlowsLedgers!BJ108,CashFlowsLedgers!BN108,CashFlowsLedgers!BR108)>0.1),SUM(UserInputs!H$15:'UserInputs'!H107)>0.05*OpeningPoolBalance) -> FALSE | E109: =IF(D109,E108,CashFlowsLedgers!BB108+CashFlowsLedgers!BF108+CashFlowsLedgers!BJ108+CashFlowsLedgers!BN108+CashFlowsLedgers!BR108) -> 0 | F109: =IF(CashFlowsLedgers!CH108,0,General_Reserve_Percent*E109)-M109 -> 0 | G109: =CashFlowsLedgers!BX108 -> 0 | H109: 0 | I109: 0 | K109: =CashFlowsLedgers!BF108<0.1 -> TRUE | L109: =IF(D109,L108,CashFlowsLedgers!BB108+CashFlowsLedgers!BF108) -> 0 | M109: 0 | N109: =CashFlowsLedgers!BY108 -> 0 | O109: 0 | P109: 0 | S109: =IF(#REF!-#REF!-#REF!=0,"OK") ->  | T109: =IF(#REF!>#REF!,IF(#REF!-#REF!=SUM(#REF!),"OK","Oops"),"No Excess") -> 
A110: 94 | B110: =UserInputs!B108 -> 2041-09-12 | D110: =OR(AND(TriggersEvents!N110,SUM(CashFlowsLedgers!BB109,CashFlowsLedgers!BF109,CashFlowsLedgers!BJ109,CashFlowsLedgers!BN109,CashFlowsLedgers!BR109)>0.1),SUM(UserInputs!H$15:'UserInputs'!H108)>0.05*OpeningPoolBalance) -> FALSE | E110: =IF(D110,E109,CashFlowsLedgers!BB109+CashFlowsLedgers!BF109+CashFlowsLedgers!BJ109+CashFlowsLedgers!BN109+CashFlowsLedgers!BR109) -> 0 | F110: =IF(CashFlowsLedgers!CH109,0,General_Reserve_Percent*E110)-M110 -> 0 | G110: =CashFlowsLedgers!BX109 -> 0 | H110: 0 | I110: 0 | K110: =CashFlowsLedgers!BF109<0.1 -> TRUE | L110: =IF(D110,L109,CashFlowsLedgers!BB109+CashFlowsLedgers!BF109) -> 0 | M110: 0 | N110: =CashFlowsLedgers!BY109 -> 0 | O110: 0 | P110: 0 | S110: =IF(#REF!-#REF!-#REF!=0,"OK") ->  | T110: =IF(#REF!>#REF!,IF(#REF!-#REF!=SUM(#REF!),"OK","Oops"),"No Excess") -> 
A111: 95 | B111: =UserInputs!B109 -> 2041-12-12 | D111: =OR(AND(TriggersEvents!N111,SUM(CashFlowsLedgers!BB110,CashFlowsLedgers!BF110,CashFlowsLedgers!BJ110,CashFlowsLedgers!BN110,CashFlowsLedgers!BR110)>0.1),SUM(UserInputs!H$15:'UserInputs'!H109)>0.05*OpeningPoolBalance) -> FALSE | E111: =IF(D111,E110,CashFlowsLedgers!BB110+CashFlowsLedgers!BF110+CashFlowsLedgers!BJ110+CashFlowsLedgers!BN110+CashFlowsLedgers!BR110) -> 0 | F111: =IF(CashFlowsLedgers!CH110,0,General_Reserve_Percent*E111)-M111 -> 0 | G111: =CashFlowsLedgers!BX110 -> 0 | H111: 0 | I111: 0 | K111: =CashFlowsLedgers!BF110<0.1 -> TRUE | L111: =IF(D111,L110,CashFlowsLedgers!BB110+CashFlowsLedgers!BF110) -> 0 | M111: 0 | N111: =CashFlowsLedgers!BY110 -> 0 | O111: 0 | P111: 0 | S111: =IF(#REF!-#REF!-#REF!=0,"OK") ->  | T111: =IF(#REF!>#REF!,IF(#REF!-#REF!=SUM(#REF!),"OK","Oops"),"No Excess") -> 
A112: 96 | B112: =UserInputs!B110 -> 2042-03-12 | D112: =OR(AND(TriggersEvents!N112,SUM(CashFlowsLedgers!BB111,CashFlowsLedgers!BF111,CashFlowsLedgers!BJ111,CashFlowsLedgers!BN111,CashFlowsLedgers!BR111)>0.1),SUM(UserInputs!H$15:'UserInputs'!H110)>0.05*OpeningPoolBalance) -> FALSE | E112: =IF(D112,E111,CashFlowsLedgers!BB111+CashFlowsLedgers!BF111+CashFlowsLedgers!BJ111+CashFlowsLedgers!BN111+CashFlowsLedgers!BR111) -> 0 | F112: =IF(CashFlowsLedgers!CH111,0,General_Reserve_Percent*E112)-M112 -> 0 | G112: =CashFlowsLedgers!BX111 -> 0 | H112: 0 | I112: 0 | K112: =CashFlowsLedgers!BF111<0.1 -> TRUE | L112: =IF(D112,L111,CashFlowsLedgers!BB111+CashFlowsLedgers!BF111) -> 0 | M112: 0 | N112: =CashFlowsLedgers!BY111 -> 0 | O112: 0 | P112: 0 | S112: =IF(#REF!-#REF!-#REF!=0,"OK") ->  | T112: =IF(#REF!>#REF!,IF(#REF!-#REF!=SUM(#REF!),"OK","Oops"),"No Excess") -> 
A113: 97 | B113: =UserInputs!B111 -> 2042-06-12 | D113: =OR(AND(TriggersEvents!N113,SUM(CashFlowsLedgers!BB112,CashFlowsLedgers!BF112,CashFlowsLedgers!BJ112,CashFlowsLedgers!BN112,CashFlowsLedgers!BR112)>0.1),SUM(UserInputs!H$15:'UserInputs'!H111)>0.05*OpeningPoolBalance) -> FALSE | E113: =IF(D113,E112,CashFlowsLedgers!BB112+CashFlowsLedgers!BF112+CashFlowsLedgers!BJ112+CashFlowsLedgers!BN112+CashFlowsLedgers!BR112) -> 0 | F113: =IF(CashFlowsLedgers!CH112,0,General_Reserve_Percent*E113)-M113 -> 0 | G113: =CashFlowsLedgers!BX112 -> 0 | H113: 0 | I113: 0 | K113: =CashFlowsLedgers!BF112<0.1 -> TRUE | L113: =IF(D113,L112,CashFlowsLedgers!BB112+CashFlowsLedgers!BF112) -> 0 | M113: =IF(K113,0,ClassAB_Liquidity_Fund_Percent*L113) -> 0 | N113: =CashFlowsLedgers!BY112 -> 0 | O113: 0 | P113: 0 | S113: =IF(#REF!-#REF!-#REF!=0,"OK") ->  | T113: =IF(#REF!>#REF!,IF(#REF!-#REF!=SUM(#REF!),"OK","Oops"),"No Excess") -> 
A114: 98 | B114: =UserInputs!B112 -> 2042-09-12 | D114: =OR(AND(TriggersEvents!N114,SUM(CashFlowsLedgers!BB113,CashFlowsLedgers!BF113,CashFlowsLedgers!BJ113,CashFlowsLedgers!BN113,CashFlowsLedgers!BR113)>0.1),SUM(UserInputs!H$15:'UserInputs'!H112)>0.05*OpeningPoolBalance) -> FALSE | E114: =IF(D114,E113,CashFlowsLedgers!BB113+CashFlowsLedgers!BF113+CashFlowsLedgers!BJ113+CashFlowsLedgers!BN113+CashFlowsLedgers!BR113) -> 0 | F114: =IF(CashFlowsLedgers!CH113,0,General_Reserve_Percent*E114)-M114 -> 0 | G114: =CashFlowsLedgers!BX113 -> 0 | H114: 0 | I114: 0 | K114: =CashFlowsLedgers!BF113<0.1 -> TRUE | L114: =IF(D114,L113,CashFlowsLedgers!BB113+CashFlowsLedgers!BF113) -> 0 | M114: 0 | N114: =CashFlowsLedgers!BY113 -> 0 | O114: 0 | P114: 0 | S114: =IF(#REF!-#REF!-#REF!=0,"OK") ->  | T114: =IF(#REF!>#REF!,IF(#REF!-#REF!=SUM(#REF!),"OK","Oops"),"No Excess") -> 
A115: 99 | B115: =UserInputs!B113 -> 2042-12-12 | D115: =OR(AND(TriggersEvents!N115,SUM(CashFlowsLedgers!BB114,CashFlowsLedgers!BF114,CashFlowsLedgers!BJ114,CashFlowsLedgers!BN114,CashFlowsLedgers!BR114)>0.1),SUM(UserInputs!H$15:'UserInputs'!H113)>0.05*OpeningPoolBalance) -> FALSE | E115: =IF(D115,E114,CashFlowsLedgers!BB114+CashFlowsLedgers!BF114+CashFlowsLedgers!BJ114+CashFlowsLedgers!BN114+CashFlowsLedgers!BR114) -> 0 | F115: =IF(CashFlowsLedgers!CH114,0,General_Reserve_Percent*E115)-M115 -> 0 | G115: =CashFlowsLedgers!BX114 -> 0 | H115: 0 | I115: 0 | K115: =CashFlowsLedgers!BF114<0.1 -> TRUE | L115: =IF(D115,L114,CashFlowsLedgers!BB114+CashFlowsLedgers!BF114) -> 0 | M115: 0 | N115: =CashFlowsLedgers!BY114 -> 0 | O115: 0 | P115: 0 | S115: =IF(#REF!-#REF!-#REF!=0,"OK") ->  | T115: =IF(#REF!>#REF!,IF(#REF!-#REF!=SUM(#REF!),"OK","Oops"),"No Excess") -> 
A116: 100 | B116: =UserInputs!B114 -> 2043-03-12 | D116: =OR(AND(TriggersEvents!N116,SUM(CashFlowsLedgers!BB115,CashFlowsLedgers!BF115,CashFlowsLedgers!BJ115,CashFlowsLedgers!BN115,CashFlowsLedgers!BR115)>0.1),SUM(UserInputs!H$15:'UserInputs'!H114)>0.05*OpeningPoolBalance) -> FALSE | E116: =IF(D116,E115,CashFlowsLedgers!BB115+CashFlowsLedgers!BF115+CashFlowsLedgers!BJ115+CashFlowsLedgers!BN115+CashFlowsLedgers!BR115) -> 0 | F116: =IF(CashFlowsLedgers!CH115,0,General_Reserve_Percent*E116)-M116 -> 0 | G116: =CashFlowsLedgers!BX115 -> 0 | H116: 0 | I116: 0 | K116: =CashFlowsLedgers!BF115<0.1 -> TRUE | L116: =IF(D116,L115,CashFlowsLedgers!BB115+CashFlowsLedgers!BF115) -> 0 | M116: 0 | N116: =CashFlowsLedgers!BY115 -> 0 | O116: 0 | P116: 0 | S116: =IF(#REF!-#REF!-#REF!=0,"OK") ->  | T116: =IF(#REF!>#REF!,IF(#REF!-#REF!=SUM(#REF!),"OK","Oops"),"No Excess") -> 
A117: 101 | B117: =UserInputs!B115 -> 2043-06-12 | D117: =OR(AND(TriggersEvents!N117,SUM(CashFlowsLedgers!BB116,CashFlowsLedgers!BF116,CashFlowsLedgers!BJ116,CashFlowsLedgers!BN116,CashFlowsLedgers!BR116)>0.1),SUM(UserInputs!H$15:'UserInputs'!H115)>0.05*OpeningPoolBalance) -> FALSE | E117: =IF(D117,E116,CashFlowsLedgers!BB116+CashFlowsLedgers!BF116+CashFlowsLedgers!BJ116+CashFlowsLedgers!BN116+CashFlowsLedgers!BR116) -> 0 | F117: =IF(CashFlowsLedgers!CH116,0,General_Reserve_Percent*E117)-M117 -> 0 | G117: =CashFlowsLedgers!BX116 -> 0 | H117: 0 | I117: 0 | K117: =CashFlowsLedgers!BF116<0.1 -> TRUE | L117: =IF(D117,L116,CashFlowsLedgers!BB116+CashFlowsLedgers!BF116) -> 0 | M117: 0 | N117: =CashFlowsLedgers!BY116 -> 0 | O117: 0 | P117: 0 | S117: =IF(#REF!-#REF!-#REF!=0,"OK") ->  | T117: =IF(#REF!>#REF!,IF(#REF!-#REF!=SUM(#REF!),"OK","Oops"),"No Excess") -> 
A118: 102 | B118: =UserInputs!B116 -> 2043-09-12 | D118: =OR(AND(TriggersEvents!N118,SUM(CashFlowsLedgers!BB117,CashFlowsLedgers!BF117,CashFlowsLedgers!BJ117,CashFlowsLedgers!BN117,CashFlowsLedgers!BR117)>0.1),SUM(UserInputs!H$15:'UserInputs'!H116)>0.05*OpeningPoolBalance) -> FALSE | E118: =IF(D118,E117,CashFlowsLedgers!BB117+CashFlowsLedgers!BF117+CashFlowsLedgers!BJ117+CashFlowsLedgers!BN117+CashFlowsLedgers!BR117) -> 0 | F118: =IF(CashFlowsLedgers!CH117,0,General_Reserve_Percent*E118)-M118 -> 0 | G118: =CashFlowsLedgers!BX117 -> 0 | H118: 0 | I118: 0 | K118: =CashFlowsLedgers!BF117<0.1 -> TRUE | L118: =IF(D118,L117,CashFlowsLedgers!BB117+CashFlowsLedgers!BF117) -> 0 | M118: 0 | N118: =CashFlowsLedgers!BY117 -> 0 | O118: 0 | P118: 0 | S118: =IF(#REF!-#REF!-#REF!=0,"OK") ->  | T118: =IF(#REF!>#REF!,IF(#REF!-#REF!=SUM(#REF!),"OK","Oops"),"No Excess") -> 
A119: 103 | B119: =UserInputs!B117 -> 2043-12-12 | D119: =OR(AND(TriggersEvents!N119,SUM(CashFlowsLedgers!BB118,CashFlowsLedgers!BF118,CashFlowsLedgers!BJ118,CashFlowsLedgers!BN118,CashFlowsLedgers!BR118)>0.1),SUM(UserInputs!H$15:'UserInputs'!H117)>0.05*OpeningPoolBalance) -> FALSE | E119: =IF(D119,E118,CashFlowsLedgers!BB118+CashFlowsLedgers!BF118+CashFlowsLedgers!BJ118+CashFlowsLedgers!BN118+CashFlowsLedgers!BR118) -> 0 | F119: =IF(CashFlowsLedgers!CH118,0,General_Reserve_Percent*E119)-M119 -> 0 | G119: =CashFlowsLedgers!BX118 -> 0 | H119: 0 | I119: 0 | K119: =CashFlowsLedgers!BF118<0.1 -> TRUE | L119: =IF(D119,L118,CashFlowsLedgers!BB118+CashFlowsLedgers!BF118) -> 0 | M119: 0 | N119: =CashFlowsLedgers!BY118 -> 0 | O119: 0 | P119: 0 | S119: =IF(#REF!-#REF!-#REF!=0,"OK") ->  | T119: =IF(#REF!>#REF!,IF(#REF!-#REF!=SUM(#REF!),"OK","Oops"),"No Excess") -> 
A120: 104 | B120: =UserInputs!B118 -> 2044-03-12 | D120: =OR(AND(TriggersEvents!N120,SUM(CashFlowsLedgers!BB119,CashFlowsLedgers!BF119,CashFlowsLedgers!BJ119,CashFlowsLedgers!BN119,CashFlowsLedgers!BR119)>0.1),SUM(UserInputs!H$15:'UserInputs'!H118)>0.05*OpeningPoolBalance) -> FALSE | E120: =IF(D120,E119,CashFlowsLedgers!BB119+CashFlowsLedgers!BF119+CashFlowsLedgers!BJ119+CashFlowsLedgers!BN119+CashFlowsLedgers!BR119) -> 0 | F120: =IF(CashFlowsLedgers!CH119,0,General_Reserve_Percent*E120)-M120 -> 0 | G120: =CashFlowsLedgers!BX119 -> 0 | H120: 0 | I120: 0 | K120: =CashFlowsLedgers!BF119<0.1 -> TRUE | L120: =IF(D120,L119,CashFlowsLedgers!BB119+CashFlowsLedgers!BF119) -> 0 | M120: 0 | N120: =CashFlowsLedgers!BY119 -> 0 | O120: 0 | P120: 0 | S120: =IF(#REF!-#REF!-#REF!=0,"OK") ->  | T120: =IF(#REF!>#REF!,IF(#REF!-#REF!=SUM(#REF!),"OK","Oops"),"No Excess") -> 
A121: 105 | B121: =UserInputs!B119 -> 2044-06-12 | D121: =OR(AND(TriggersEvents!N121,SUM(CashFlowsLedgers!BB120,CashFlowsLedgers!BF120,CashFlowsLedgers!BJ120,CashFlowsLedgers!BN120,CashFlowsLedgers!BR120)>0.1),SUM(UserInputs!H$15:'UserInputs'!H119)>0.05*OpeningPoolBalance) -> FALSE | E121: =IF(D121,E120,CashFlowsLedgers!BB120+CashFlowsLedgers!BF120+CashFlowsLedgers!BJ120+CashFlowsLedgers!BN120+CashFlowsLedgers!BR120) -> 0 | F121: =IF(CashFlowsLedgers!CH120,0,General_Reserve_Percent*E121)-M121 -> 0 | G121: =CashFlowsLedgers!BX120 -> 0 | H121: 0 | I121: 0 | K121: =CashFlowsLedgers!BF120<0.1 -> TRUE | L121: =IF(D121,L120,CashFlowsLedgers!BB120+CashFlowsLedgers!BF120) -> 0 | M121: 0 | N121: =CashFlowsLedgers!BY120 -> 0 | O121: 0 | P121: 0 | S121: =IF(#REF!-#REF!-#REF!=0,"OK") ->  | T121: =IF(#REF!>#REF!,IF(#REF!-#REF!=SUM(#REF!),"OK","Oops"),"No Excess") -> 
A122: 106 | B122: =UserInputs!B120 -> 2044-09-12 | D122: =OR(AND(TriggersEvents!N122,SUM(CashFlowsLedgers!BB121,CashFlowsLedgers!BF121,CashFlowsLedgers!BJ121,CashFlowsLedgers!BN121,CashFlowsLedgers!BR121)>0.1),SUM(UserInputs!H$15:'UserInputs'!H120)>0.05*OpeningPoolBalance) -> FALSE | E122: =IF(D122,E121,CashFlowsLedgers!BB121+CashFlowsLedgers!BF121+CashFlowsLedgers!BJ121+CashFlowsLedgers!BN121+CashFlowsLedgers!BR121) -> 0 | F122: =IF(CashFlowsLedgers!CH121,0,General_Reserve_Percent*E122)-M122 -> 0 | G122: =CashFlowsLedgers!BX121 -> 0 | H122: 0 | I122: 0 | K122: =CashFlowsLedgers!BF121<0.1 -> TRUE | L122: =IF(D122,L121,CashFlowsLedgers!BB121+CashFlowsLedgers!BF121) -> 0 | M122: 0 | N122: =CashFlowsLedgers!BY121 -> 0 | O122: 0 | P122: 0 | S122: =IF(#REF!-#REF!-#REF!=0,"OK") ->  | T122: =IF(#REF!>#REF!,IF(#REF!-#REF!=SUM(#REF!),"OK","Oops"),"No Excess") -> 
A123: 107 | B123: =UserInputs!B121 -> 2044-12-12 | D123: =OR(AND(TriggersEvents!N123,SUM(CashFlowsLedgers!BB122,CashFlowsLedgers!BF122,CashFlowsLedgers!BJ122,CashFlowsLedgers!BN122,CashFlowsLedgers!BR122)>0.1),SUM(UserInputs!H$15:'UserInputs'!H121)>0.05*OpeningPoolBalance) -> FALSE | E123: =IF(D123,E122,CashFlowsLedgers!BB122+CashFlowsLedgers!BF122+CashFlowsLedgers!BJ122+CashFlowsLedgers!BN122+CashFlowsLedgers!BR122) -> 0 | F123: =IF(CashFlowsLedgers!CH122,0,General_Reserve_Percent*E123)-M123 -> 0 | G123: =CashFlowsLedgers!BX122 -> 0 | H123: 0 | I123: 0 | K123: =CashFlowsLedgers!BF122<0.1 -> TRUE | L123: =IF(D123,L122,CashFlowsLedgers!BB122+CashFlowsLedgers!BF122) -> 0 | M123: 0 | N123: =CashFlowsLedgers!BY122 -> 0 | O123: 0 | P123: 0 | S123: =IF(#REF!-#REF!-#REF!=0,"OK") ->  | T123: =IF(#REF!>#REF!,IF(#REF!-#REF!=SUM(#REF!),"OK","Oops"),"No Excess") -> 
A124: 108 | B124: =UserInputs!B122 -> 2045-03-12 | D124: =OR(AND(TriggersEvents!N124,SUM(CashFlowsLedgers!BB123,CashFlowsLedgers!BF123,CashFlowsLedgers!BJ123,CashFlowsLedgers!BN123,CashFlowsLedgers!BR123)>0.1),SUM(UserInputs!H$15:'UserInputs'!H122)>0.05*OpeningPoolBalance) -> FALSE | E124: =IF(D124,E123,CashFlowsLedgers!BB123+CashFlowsLedgers!BF123+CashFlowsLedgers!BJ123+CashFlowsLedgers!BN123+CashFlowsLedgers!BR123) -> 0 | F124: =IF(CashFlowsLedgers!CH123,0,General_Reserve_Percent*E124)-M124 -> 0 | G124: =CashFlowsLedgers!BX123 -> 0 | H124: 0 | I124: 0 | K124: =CashFlowsLedgers!BF123<0.1 -> TRUE | L124: =IF(D124,L123,CashFlowsLedgers!BB123+CashFlowsLedgers!BF123) -> 0 | M124: 0 | N124: =CashFlowsLedgers!BY123 -> 0 | O124: 0 | P124: 0 | S124: =IF(#REF!-#REF!-#REF!=0,"OK") ->  | T124: =IF(#REF!>#REF!,IF(#REF!-#REF!=SUM(#REF!),"OK","Oops"),"No Excess") -> 
A125: 109 | B125: =UserInputs!B123 -> 2045-06-12 | D125: =OR(AND(TriggersEvents!N125,SUM(CashFlowsLedgers!BB124,CashFlowsLedgers!BF124,CashFlowsLedgers!BJ124,CashFlowsLedgers!BN124,CashFlowsLedgers!BR124)>0.1),SUM(UserInputs!H$15:'UserInputs'!H123)>0.05*OpeningPoolBalance) -> FALSE | E125: =IF(D125,E124,CashFlowsLedgers!BB124+CashFlowsLedgers!BF124+CashFlowsLedgers!BJ124+CashFlowsLedgers!BN124+CashFlowsLedgers!BR124) -> 0 | F125: =IF(CashFlowsLedgers!CH124,0,General_Reserve_Percent*E125)-M125 -> 0 | G125: =CashFlowsLedgers!BX124 -> 0 | H125: 0 | I125: 0 | K125: =CashFlowsLedgers!BF124<0.1 -> TRUE | L125: =IF(D125,L124,CashFlowsLedgers!BB124+CashFlowsLedgers!BF124) -> 0 | M125: 0 | N125: =CashFlowsLedgers!BY124 -> 0 | O125: 0 | P125: 0 | S125: =IF(#REF!-#REF!-#REF!=0,"OK") ->  | T125: =IF(#REF!>#REF!,IF(#REF!-#REF!=SUM(#REF!),"OK","Oops"),"No Excess") -> 
A126: 110 | B126: =UserInputs!B124 -> 2045-09-12 | D126: =OR(AND(TriggersEvents!N126,SUM(CashFlowsLedgers!BB125,CashFlowsLedgers!BF125,CashFlowsLedgers!BJ125,CashFlowsLedgers!BN125,CashFlowsLedgers!BR125)>0.1),SUM(UserInputs!H$15:'UserInputs'!H124)>0.05*OpeningPoolBalance) -> FALSE | E126: =IF(D126,E125,CashFlowsLedgers!BB125+CashFlowsLedgers!BF125+CashFlowsLedgers!BJ125+CashFlowsLedgers!BN125+CashFlowsLedgers!BR125) -> 0 | F126: =IF(CashFlowsLedgers!CH125,0,General_Reserve_Percent*E126)-M126 -> 0 | G126: =CashFlowsLedgers!BX125 -> 0 | H126: 0 | I126: 0 | K126: =CashFlowsLedgers!BF125<0.1 -> TRUE | L126: =IF(D126,L125,CashFlowsLedgers!BB125+CashFlowsLedgers!BF125) -> 0 | M126: 0 | N126: =CashFlowsLedgers!BY125 -> 0 | O126: 0 | P126: 0 | S126: =IF(#REF!-#REF!-#REF!=0,"OK") ->  | T126: =IF(#REF!>#REF!,IF(#REF!-#REF!=SUM(#REF!),"OK","Oops"),"No Excess") -> 
A127: 111 | B127: =UserInputs!B125 -> 2045-12-12 | D127: =OR(AND(TriggersEvents!N127,SUM(CashFlowsLedgers!BB126,CashFlowsLedgers!BF126,CashFlowsLedgers!BJ126,CashFlowsLedgers!BN126,CashFlowsLedgers!BR126)>0.1),SUM(UserInputs!H$15:'UserInputs'!H125)>0.05*OpeningPoolBalance) -> FALSE | E127: =IF(D127,E126,CashFlowsLedgers!BB126+CashFlowsLedgers!BF126+CashFlowsLedgers!BJ126+CashFlowsLedgers!BN126+CashFlowsLedgers!BR126) -> 0 | F127: =IF(CashFlowsLedgers!CH126,0,General_Reserve_Percent*E127)-M127 -> 0 | G127: =CashFlowsLedgers!BX126 -> 0 | H127: 0 | I127: 0 | K127: =CashFlowsLedgers!BF126<0.1 -> TRUE | L127: =IF(D127,L126,CashFlowsLedgers!BB126+CashFlowsLedgers!BF126) -> 0 | M127: 0 | N127: =CashFlowsLedgers!BY126 -> 0 | O127: 0 | P127: 0 | S127: =IF(#REF!-#REF!-#REF!=0,"OK") ->  | T127: =IF(#REF!>#REF!,IF(#REF!-#REF!=SUM(#REF!),"OK","Oops"),"No Excess") -> 
A128: 112 | B128: =UserInputs!B126 -> 2046-03-12 | D128: =OR(AND(TriggersEvents!N128,SUM(CashFlowsLedgers!BB127,CashFlowsLedgers!BF127,CashFlowsLedgers!BJ127,CashFlowsLedgers!BN127,CashFlowsLedgers!BR127)>0.1),SUM(UserInputs!H$15:'UserInputs'!H126)>0.05*OpeningPoolBalance) -> FALSE | E128: =IF(D128,E127,CashFlowsLedgers!BB127+CashFlowsLedgers!BF127+CashFlowsLedgers!BJ127+CashFlowsLedgers!BN127+CashFlowsLedgers!BR127) -> 0 | F128: =IF(CashFlowsLedgers!CH127,0,General_Reserve_Percent*E128)-M128 -> 0 | G128: =CashFlowsLedgers!BX127 -> 0 | H128: 0 | I128: 0 | K128: =CashFlowsLedgers!BF127<0.1 -> TRUE | L128: =IF(D128,L127,CashFlowsLedgers!BB127+CashFlowsLedgers!BF127) -> 0 | M128: 0 | N128: =CashFlowsLedgers!BY127 -> 0 | O128: 0 | P128: 0 | S128: =IF(#REF!-#REF!-#REF!=0,"OK") ->  | T128: =IF(#REF!>#REF!,IF(#REF!-#REF!=SUM(#REF!),"OK","Oops"),"No Excess") -> 
A129: 113 | B129: =UserInputs!B127 -> 2046-06-12 | D129: =OR(AND(TriggersEvents!N129,SUM(CashFlowsLedgers!BB128,CashFlowsLedgers!BF128,CashFlowsLedgers!BJ128,CashFlowsLedgers!BN128,CashFlowsLedgers!BR128)>0.1),SUM(UserInputs!H$15:'UserInputs'!H127)>0.05*OpeningPoolBalance) -> FALSE | E129: =IF(D129,E128,CashFlowsLedgers!BB128+CashFlowsLedgers!BF128+CashFlowsLedgers!BJ128+CashFlowsLedgers!BN128+CashFlowsLedgers!BR128) -> 0 | F129: =IF(CashFlowsLedgers!CH128,0,General_Reserve_Percent*E129)-M129 -> 0 | G129: =CashFlowsLedgers!BX128 -> 0 | H129: 0 | I129: 0 | K129: =CashFlowsLedgers!BF128<0.1 -> TRUE | L129: =IF(D129,L128,CashFlowsLedgers!BB128+CashFlowsLedgers!BF128) -> 0 | M129: 0 | N129: =CashFlowsLedgers!BY128 -> 0 | O129: 0 | P129: 0 | S129: =IF(#REF!-#REF!-#REF!=0,"OK") ->  | T129: =IF(#REF!>#REF!,IF(#REF!-#REF!=SUM(#REF!),"OK","Oops"),"No Excess") -> 
A130: 114 | B130: =UserInputs!B128 -> 2046-09-12 | D130: =OR(AND(TriggersEvents!N130,SUM(CashFlowsLedgers!BB129,CashFlowsLedgers!BF129,CashFlowsLedgers!BJ129,CashFlowsLedgers!BN129,CashFlowsLedgers!BR129)>0.1),SUM(UserInputs!H$15:'UserInputs'!H128)>0.05*OpeningPoolBalance) -> FALSE | E130: =IF(D130,E129,CashFlowsLedgers!BB129+CashFlowsLedgers!BF129+CashFlowsLedgers!BJ129+CashFlowsLedgers!BN129+CashFlowsLedgers!BR129) -> 0 | F130: =IF(CashFlowsLedgers!CH129,0,General_Reserve_Percent*E130)-M130 -> 0 | G130: =CashFlowsLedgers!BX129 -> 0 | H130: 0 | I130: 0 | K130: =CashFlowsLedgers!BF129<0.1 -> TRUE | L130: =IF(D130,L129,CashFlowsLedgers!BB129+CashFlowsLedgers!BF129) -> 0 | M130: 0 | N130: =CashFlowsLedgers!BY129 -> 0 | O130: 0 | P130: 0 | S130: =IF(#REF!-#REF!-#REF!=0,"OK") ->  | T130: =IF(#REF!>#REF!,IF(#REF!-#REF!=SUM(#REF!),"OK","Oops"),"No Excess") -> 
A131: 115 | B131: =UserInputs!B129 -> 2046-12-12 | D131: =OR(AND(TriggersEvents!N131,SUM(CashFlowsLedgers!BB130,CashFlowsLedgers!BF130,CashFlowsLedgers!BJ130,CashFlowsLedgers!BN130,CashFlowsLedgers!BR130)>0.1),SUM(UserInputs!H$15:'UserInputs'!H129)>0.05*OpeningPoolBalance) -> FALSE | E131: =IF(D131,E130,CashFlowsLedgers!BB130+CashFlowsLedgers!BF130+CashFlowsLedgers!BJ130+CashFlowsLedgers!BN130+CashFlowsLedgers!BR130) -> 0 | F131: =IF(CashFlowsLedgers!CH130,0,General_Reserve_Percent*E131)-M131 -> 0 | G131: =CashFlowsLedgers!BX130 -> 0 | H131: 0 | I131: 0 | K131: =CashFlowsLedgers!BF130<0.1 -> TRUE | L131: =IF(D131,L130,CashFlowsLedgers!BB130+CashFlowsLedgers!BF130) -> 0 | M131: 0 | N131: =CashFlowsLedgers!BY130 -> 0 | O131: 0 | P131: 0 | S131: =IF(#REF!-#REF!-#REF!=0,"OK") ->  | T131: =IF(#REF!>#REF!,IF(#REF!-#REF!=SUM(#REF!),"OK","Oops"),"No Excess") -> 
A132: 116 | B132: =UserInputs!B130 -> 2047-03-12 | D132: =OR(AND(TriggersEvents!N132,SUM(CashFlowsLedgers!BB131,CashFlowsLedgers!BF131,CashFlowsLedgers!BJ131,CashFlowsLedgers!BN131,CashFlowsLedgers!BR131)>0.1),SUM(UserInputs!H$15:'UserInputs'!H130)>0.05*OpeningPoolBalance) -> FALSE | E132: =IF(D132,E131,CashFlowsLedgers!BB131+CashFlowsLedgers!BF131+CashFlowsLedgers!BJ131+CashFlowsLedgers!BN131+CashFlowsLedgers!BR131) -> 0 | F132: =IF(CashFlowsLedgers!CH131,0,General_Reserve_Percent*E132)-M132 -> 0 | G132: =CashFlowsLedgers!BX131 -> 0 | H132: 0 | I132: 0 | K132: =CashFlowsLedgers!BF131<0.1 -> TRUE | L132: =IF(D132,L131,CashFlowsLedgers!BB131+CashFlowsLedgers!BF131) -> 0 | M132: 0 | N132: =CashFlowsLedgers!BY131 -> 0 | O132: 0 | P132: 0 | S132: =IF(#REF!-#REF!-#REF!=0,"OK") ->  | T132: =IF(#REF!>#REF!,IF(#REF!-#REF!=SUM(#REF!),"OK","Oops"),"No Excess") -> 
A133: 117 | B133: =UserInputs!B131 -> 2047-06-12 | D133: =OR(AND(TriggersEvents!N133,SUM(CashFlowsLedgers!BB132,CashFlowsLedgers!BF132,CashFlowsLedgers!BJ132,CashFlowsLedgers!BN132,CashFlowsLedgers!BR132)>0.1),SUM(UserInputs!H$15:'UserInputs'!H131)>0.05*OpeningPoolBalance) -> FALSE | E133: =IF(D133,E132,CashFlowsLedgers!BB132+CashFlowsLedgers!BF132+CashFlowsLedgers!BJ132+CashFlowsLedgers!BN132+CashFlowsLedgers!BR132) -> 0 | F133: =IF(CashFlowsLedgers!CH132,0,General_Reserve_Percent*E133)-M133 -> 0 | G133: =CashFlowsLedgers!BX132 -> 0 | H133: 0 | I133: 0 | K133: =CashFlowsLedgers!BF132<0.1 -> TRUE | L133: =IF(D133,L132,CashFlowsLedgers!BB132+CashFlowsLedgers!BF132) -> 0 | M133: 0 | N133: =CashFlowsLedgers!BY132 -> 0 | O133: 0 | P133: 0 | S133: =IF(#REF!-#REF!-#REF!=0,"OK") ->  | T133: =IF(#REF!>#REF!,IF(#REF!-#REF!=SUM(#REF!),"OK","Oops"),"No Excess") -> 
A134: 118 | B134: =UserInputs!B132 -> 2047-09-12 | D134: =OR(AND(TriggersEvents!N134,SUM(CashFlowsLedgers!BB133,CashFlowsLedgers!BF133,CashFlowsLedgers!BJ133,CashFlowsLedgers!BN133,CashFlowsLedgers!BR133)>0.1),SUM(UserInputs!H$15:'UserInputs'!H132)>0.05*OpeningPoolBalance) -> FALSE | E134: =IF(D134,E133,CashFlowsLedgers!BB133+CashFlowsLedgers!BF133+CashFlowsLedgers!BJ133+CashFlowsLedgers!BN133+CashFlowsLedgers!BR133) -> 0 | F134: =IF(CashFlowsLedgers!CH133,0,General_Reserve_Percent*E134)-M134 -> 0 | G134: =CashFlowsLedgers!BX133 -> 0 | H134: 0 | I134: 0 | K134: =CashFlowsLedgers!BF133<0.1 -> TRUE | L134: =IF(D134,L133,CashFlowsLedgers!BB133+CashFlowsLedgers!BF133) -> 0 | M134: 0 | N134: =CashFlowsLedgers!BY133 -> 0 | O134: 0 | P134: 0 | S134: =IF(#REF!-#REF!-#REF!=0,"OK") ->  | T134: =IF(#REF!>#REF!,IF(#REF!-#REF!=SUM(#REF!),"OK","Oops"),"No Excess") -> 
A135: 119 | B135: =UserInputs!B133 -> 2047-12-12 | D135: =OR(AND(TriggersEvents!N135,SUM(CashFlowsLedgers!BB134,CashFlowsLedgers!BF134,CashFlowsLedgers!BJ134,CashFlowsLedgers!BN134,CashFlowsLedgers!BR134)>0.1),SUM(UserInputs!H$15:'UserInputs'!H133)>0.05*OpeningPoolBalance) -> FALSE | E135: =IF(D135,E134,CashFlowsLedgers!BB134+CashFlowsLedgers!BF134+CashFlowsLedgers!BJ134+CashFlowsLedgers!BN134+CashFlowsLedgers!BR134) -> 0 | F135: =IF(CashFlowsLedgers!CH134,0,General_Reserve_Percent*E135)-M135 -> 0 | G135: =CashFlowsLedgers!BX134 -> 0 | H135: 0 | I135: 0 | K135: =CashFlowsLedgers!BF134<0.1 -> TRUE | L135: =IF(D135,L134,CashFlowsLedgers!BB134+CashFlowsLedgers!BF134) -> 0 | M135: 0 | N135: =CashFlowsLedgers!BY134 -> 0 | O135: 0 | P135: 0 | S135: =IF(#REF!-#REF!-#REF!=0,"OK") ->  | T135: =IF(#REF!>#REF!,IF(#REF!-#REF!=SUM(#REF!),"OK","Oops"),"No Excess") -> 
A136: 120 | B136: =UserInputs!B134 -> 2048-03-12 | D136: =OR(AND(TriggersEvents!N136,SUM(CashFlowsLedgers!BB135,CashFlowsLedgers!BF135,CashFlowsLedgers!BJ135,CashFlowsLedgers!BN135,CashFlowsLedgers!BR135)>0.1),SUM(UserInputs!H$15:'UserInputs'!H134)>0.05*OpeningPoolBalance) -> FALSE | E136: =IF(D136,E135,CashFlowsLedgers!BB135+CashFlowsLedgers!BF135+CashFlowsLedgers!BJ135+CashFlowsLedgers!BN135+CashFlowsLedgers!BR135) -> 0 | F136: =IF(CashFlowsLedgers!CH135,0,General_Reserve_Percent*E136)-M136 -> 0 | G136: =CashFlowsLedgers!BX135 -> 0 | H136: 0 | I136: 0 | K136: =CashFlowsLedgers!BF135<0.1 -> TRUE | L136: =IF(D136,L135,CashFlowsLedgers!BB135+CashFlowsLedgers!BF135) -> 0 | M136: 0 | N136: =CashFlowsLedgers!BY135 -> 0 | O136: 0 | P136: 0 | S136: =IF(#REF!-#REF!-#REF!=0,"OK") ->  | T136: =IF(#REF!>#REF!,IF(#REF!-#REF!=SUM(#REF!),"OK","Oops"),"No Excess") -> 
A137: 121 | B137: =UserInputs!B135 -> 2048-06-12 | D137: =OR(AND(TriggersEvents!N137,SUM(CashFlowsLedgers!BB136,CashFlowsLedgers!BF136,CashFlowsLedgers!BJ136,CashFlowsLedgers!BN136,CashFlowsLedgers!BR136)>0.1),SUM(UserInputs!H$15:'UserInputs'!H135)>0.05*OpeningPoolBalance) -> FALSE | E137: =IF(D137,E136,CashFlowsLedgers!BB136+CashFlowsLedgers!BF136+CashFlowsLedgers!BJ136+CashFlowsLedgers!BN136+CashFlowsLedgers!BR136) -> 0 | F137: =IF(CashFlowsLedgers!CH136,0,General_Reserve_Percent*E137)-M137 -> 0 | G137: =CashFlowsLedgers!BX136 -> 0 | H137: 0 | I137: 0 | K137: =CashFlowsLedgers!BF136<0.1 -> TRUE | L137: =IF(D137,L136,CashFlowsLedgers!BB136+CashFlowsLedgers!BF136) -> 0 | M137: 0 | N137: =CashFlowsLedgers!BY136 -> 0 | O137: 0 | P137: 0 | S137: =IF(#REF!-#REF!-#REF!=0,"OK") ->  | T137: =IF(#REF!>#REF!,IF(#REF!-#REF!=SUM(#REF!),"OK","Oops"),"No Excess") -> 
A138: 122 | B138: =UserInputs!B136 -> 2048-09-12 | D138: =OR(AND(TriggersEvents!N138,SUM(CashFlowsLedgers!BB137,CashFlowsLedgers!BF137,CashFlowsLedgers!BJ137,CashFlowsLedgers!BN137,CashFlowsLedgers!BR137)>0.1),SUM(UserInputs!H$15:'UserInputs'!H136)>0.05*OpeningPoolBalance) -> FALSE | E138: =IF(D138,E137,CashFlowsLedgers!BB137+CashFlowsLedgers!BF137+CashFlowsLedgers!BJ137+CashFlowsLedgers!BN137+CashFlowsLedgers!BR137) -> 0 | F138: =IF(CashFlowsLedgers!CH137,0,General_Reserve_Percent*E138)-M138 -> 0 | G138: =CashFlowsLedgers!BX137 -> 0 | H138: 0 | I138: 0 | K138: =CashFlowsLedgers!BF137<0.1 -> TRUE | L138: =IF(D138,L137,CashFlowsLedgers!BB137+CashFlowsLedgers!BF137) -> 0 | M138: 0 | N138: =CashFlowsLedgers!BY137 -> 0 | O138: 0 | P138: 0 | S138: =IF(#REF!-#REF!-#REF!=0,"OK") ->  | T138: =IF(#REF!>#REF!,IF(#REF!-#REF!=SUM(#REF!),"OK","Oops"),"No Excess") -> 
A139: 123 | B139: =UserInputs!B137 -> 2048-12-12 | D139: =OR(AND(TriggersEvents!N139,SUM(CashFlowsLedgers!BB138,CashFlowsLedgers!BF138,CashFlowsLedgers!BJ138,CashFlowsLedgers!BN138,CashFlowsLedgers!BR138)>0.1),SUM(UserInputs!H$15:'UserInputs'!H137)>0.05*OpeningPoolBalance) -> FALSE | E139: =IF(D139,E138,CashFlowsLedgers!BB138+CashFlowsLedgers!BF138+CashFlowsLedgers!BJ138+CashFlowsLedgers!BN138+CashFlowsLedgers!BR138) -> 0 | F139: =IF(CashFlowsLedgers!CH138,0,General_Reserve_Percent*E139)-M139 -> 0 | G139: =CashFlowsLedgers!BX138 -> 0 | H139: 0 | I139: 0 | K139: =CashFlowsLedgers!BF138<0.1 -> TRUE | L139: =IF(D139,L138,CashFlowsLedgers!BB138+CashFlowsLedgers!BF138) -> 0 | M139: 0 | N139: =CashFlowsLedgers!BY138 -> 0 | O139: 0 | P139: 0 | S139: =IF(#REF!-#REF!-#REF!=0,"OK") ->  | T139: =IF(#REF!>#REF!,IF(#REF!-#REF!=SUM(#REF!),"OK","Oops"),"No Excess") -> 
A140: 124 | B140: =UserInputs!B138 -> 2049-03-12 | D140: =OR(AND(TriggersEvents!N140,SUM(CashFlowsLedgers!BB139,CashFlowsLedgers!BF139,CashFlowsLedgers!BJ139,CashFlowsLedgers!BN139,CashFlowsLedgers!BR139)>0.1),SUM(UserInputs!H$15:'UserInputs'!H138)>0.05*OpeningPoolBalance) -> FALSE | E140: =IF(D140,E139,CashFlowsLedgers!BB139+CashFlowsLedgers!BF139+CashFlowsLedgers!BJ139+CashFlowsLedgers!BN139+CashFlowsLedgers!BR139) -> 0 | F140: =IF(CashFlowsLedgers!CH139,0,General_Reserve_Percent*E140)-M140 -> 0 | G140: =CashFlowsLedgers!BX139 -> 0 | H140: 0 | I140: 0 | K140: =CashFlowsLedgers!BF139<0.1 -> TRUE | L140: =IF(D140,L139,CashFlowsLedgers!BB139+CashFlowsLedgers!BF139) -> 0 | M140: 0 | N140: =CashFlowsLedgers!BY139 -> 0 | O140: 0 | P140: 0 | S140: =IF(#REF!-#REF!-#REF!=0,"OK") ->  | T140: =IF(#REF!>#REF!,IF(#REF!-#REF!=SUM(#REF!),"OK","Oops"),"No Excess") -> 
A141: 125 | B141: =UserInputs!B139 -> 2049-06-12 | D141: =OR(AND(TriggersEvents!N141,SUM(CashFlowsLedgers!BB140,CashFlowsLedgers!BF140,CashFlowsLedgers!BJ140,CashFlowsLedgers!BN140,CashFlowsLedgers!BR140)>0.1),SUM(UserInputs!H$15:'UserInputs'!H139)>0.05*OpeningPoolBalance) -> FALSE | E141: =IF(D141,E140,CashFlowsLedgers!BB140+CashFlowsLedgers!BF140+CashFlowsLedgers!BJ140+CashFlowsLedgers!BN140+CashFlowsLedgers!BR140) -> 0 | F141: =IF(CashFlowsLedgers!CH140,0,General_Reserve_Percent*E141)-M141 -> 0 | G141: =CashFlowsLedgers!BX140 -> 0 | H141: 0 | I141: 0 | K141: =CashFlowsLedgers!BF140<0.1 -> TRUE | L141: =IF(D141,L140,CashFlowsLedgers!BB140+CashFlowsLedgers!BF140) -> 0 | M141: 0 | N141: =CashFlowsLedgers!BY140 -> 0 | O141: 0 | P141: 0 | S141: =IF(#REF!-#REF!-#REF!=0,"OK") ->  | T141: =IF(#REF!>#REF!,IF(#REF!-#REF!=SUM(#REF!),"OK","Oops"),"No Excess") -> 
A142: 126 | B142: =UserInputs!B140 -> 2049-09-12 | D142: =OR(AND(TriggersEvents!N142,SUM(CashFlowsLedgers!BB141,CashFlowsLedgers!BF141,CashFlowsLedgers!BJ141,CashFlowsLedgers!BN141,CashFlowsLedgers!BR141)>0.1),SUM(UserInputs!H$15:'UserInputs'!H140)>0.05*OpeningPoolBalance) -> FALSE | E142: =IF(D142,E141,CashFlowsLedgers!BB141+CashFlowsLedgers!BF141+CashFlowsLedgers!BJ141+CashFlowsLedgers!BN141+CashFlowsLedgers!BR141) -> 0 | F142: =IF(CashFlowsLedgers!CH141,0,General_Reserve_Percent*E142)-M142 -> 0 | G142: =CashFlowsLedgers!BX141 -> 0 | H142: 0 | I142: 0 | K142: =CashFlowsLedgers!BF141<0.1 -> TRUE | L142: =IF(D142,L141,CashFlowsLedgers!BB141+CashFlowsLedgers!BF141) -> 0 | M142: 0 | N142: =CashFlowsLedgers!BY141 -> 0 | O142: 0 | P142: 0 | S142: =IF(#REF!-#REF!-#REF!=0,"OK") ->  | T142: =IF(#REF!>#REF!,IF(#REF!-#REF!=SUM(#REF!),"OK","Oops"),"No Excess") -> 
A143: 127 | B143: =UserInputs!B141 -> 2049-12-12 | D143: =OR(AND(TriggersEvents!N143,SUM(CashFlowsLedgers!BB142,CashFlowsLedgers!BF142,CashFlowsLedgers!BJ142,CashFlowsLedgers!BN142,CashFlowsLedgers!BR142)>0.1),SUM(UserInputs!H$15:'UserInputs'!H141)>0.05*OpeningPoolBalance) -> FALSE | E143: =IF(D143,E142,CashFlowsLedgers!BB142+CashFlowsLedgers!BF142+CashFlowsLedgers!BJ142+CashFlowsLedgers!BN142+CashFlowsLedgers!BR142) -> 0 | F143: =IF(CashFlowsLedgers!CH142,0,General_Reserve_Percent*E143)-M143 -> 0 | G143: =CashFlowsLedgers!BX142 -> 0 | H143: 0 | I143: 0 | K143: =CashFlowsLedgers!BF142<0.1 -> TRUE | L143: =IF(D143,L142,CashFlowsLedgers!BB142+CashFlowsLedgers!BF142) -> 0 | M143: 0 | N143: =CashFlowsLedgers!BY142 -> 0 | O143: 0 | P143: 0 | S143: =IF(#REF!-#REF!-#REF!=0,"OK") ->  | T143: =IF(#REF!>#REF!,IF(#REF!-#REF!=SUM(#REF!),"OK","Oops"),"No Excess") -> 
A144: 128 | B144: =UserInputs!B142 -> 2050-03-12 | D144: =OR(AND(TriggersEvents!N144,SUM(CashFlowsLedgers!BB143,CashFlowsLedgers!BF143,CashFlowsLedgers!BJ143,CashFlowsLedgers!BN143,CashFlowsLedgers!BR143)>0.1),SUM(UserInputs!H$15:'UserInputs'!H142)>0.05*OpeningPoolBalance) -> FALSE | E144: =IF(D144,E143,CashFlowsLedgers!BB143+CashFlowsLedgers!BF143+CashFlowsLedgers!BJ143+CashFlowsLedgers!BN143+CashFlowsLedgers!BR143) -> 0 | F144: =IF(CashFlowsLedgers!CH143,0,General_Reserve_Percent*E144)-M144 -> 0 | G144: =CashFlowsLedgers!BX143 -> 0 | H144: 0 | I144: 0 | K144: =CashFlowsLedgers!BF143<0.1 -> TRUE | L144: =IF(D144,L143,CashFlowsLedgers!BB143+CashFlowsLedgers!BF143) -> 0 | M144: 0 | N144: =CashFlowsLedgers!BY143 -> 0 | O144: 0 | P144: 0 | S144: =IF(#REF!-#REF!-#REF!=0,"OK") ->  | T144: =IF(#REF!>#REF!,IF(#REF!-#REF!=SUM(#REF!),"OK","Oops"),"No Excess") -> 
A145: 129 | B145: =UserInputs!B143 -> 2050-06-12 | D145: =OR(AND(TriggersEvents!N145,SUM(CashFlowsLedgers!BB144,CashFlowsLedgers!BF144,CashFlowsLedgers!BJ144,CashFlowsLedgers!BN144,CashFlowsLedgers!BR144)>0.1),SUM(UserInputs!H$15:'UserInputs'!H143)>0.05*OpeningPoolBalance) -> FALSE | E145: =IF(D145,E144,CashFlowsLedgers!BB144+CashFlowsLedgers!BF144+CashFlowsLedgers!BJ144+CashFlowsLedgers!BN144+CashFlowsLedgers!BR144) -> 0 | F145: =IF(CashFlowsLedgers!CH144,0,General_Reserve_Percent*E145)-M145 -> 0 | G145: =CashFlowsLedgers!BX144 -> 0 | H145: 0 | I145: 0 | K145: =CashFlowsLedgers!BF144<0.1 -> TRUE | L145: =IF(D145,L144,CashFlowsLedgers!BB144+CashFlowsLedgers!BF144) -> 0 | M145: =IF(K145,0,ClassAB_Liquidity_Fund_Percent*L145) -> 0 | N145: =CashFlowsLedgers!BY144 -> 0 | O145: 0 | P145: 0 | S145: =IF(#REF!-#REF!-#REF!=0,"OK") ->  | T145: =IF(#REF!>#REF!,IF(#REF!-#REF!=SUM(#REF!),"OK","Oops"),"No Excess") -> 
A146: 130 | B146: =UserInputs!B144 -> 2050-09-12 | D146: =OR(AND(TriggersEvents!N146,SUM(CashFlowsLedgers!BB145,CashFlowsLedgers!BF145,CashFlowsLedgers!BJ145,CashFlowsLedgers!BN145,CashFlowsLedgers!BR145)>0.1),SUM(UserInputs!H$15:'UserInputs'!H144)>0.05*OpeningPoolBalance) -> FALSE | E146: =IF(D146,E145,CashFlowsLedgers!BB145+CashFlowsLedgers!BF145+CashFlowsLedgers!BJ145+CashFlowsLedgers!BN145+CashFlowsLedgers!BR145) -> 0 | F146: =IF(CashFlowsLedgers!CH145,0,General_Reserve_Percent*E146)-M146 -> 0 | G146: =CashFlowsLedgers!BX145 -> 0 | H146: =MAX(F146-G146,0) -> 0 | I146: =MAX(0,G146-F146) -> 0 | K146: =CashFlowsLedgers!BF145<0.1 -> TRUE | L146: =IF(D146,L145,CashFlowsLedgers!BB145+CashFlowsLedgers!BF145) -> 0 | M146: 0 | N146: =CashFlowsLedgers!BY145 -> 0 | O146: =MAX(M146-N146,0) -> 0 | P146: =MAX(0,N146-M146) -> 0 | S146: =IF(#REF!-#REF!-#REF!=0,"OK") ->  | T146: =IF(#REF!>#REF!,IF(#REF!-#REF!=SUM(#REF!),"OK","Oops"),"No Excess") -> 
A147: 131 | B147: =UserInputs!B145 -> 2050-12-12 | D147: =OR(AND(TriggersEvents!N147,SUM(CashFlowsLedgers!BB146,CashFlowsLedgers!BF146,CashFlowsLedgers!BJ146,CashFlowsLedgers!BN146,CashFlowsLedgers!BR146)>0.1),SUM(UserInputs!H$15:'UserInputs'!H145)>0.05*OpeningPoolBalance) -> FALSE | E147: =IF(D147,E146,CashFlowsLedgers!BB146+CashFlowsLedgers!BF146+CashFlowsLedgers!BJ146+CashFlowsLedgers!BN146+CashFlowsLedgers!BR146) -> 0 | F147: =IF(CashFlowsLedgers!CH146,0,General_Reserve_Percent*E147)-M147 -> 0 | G147: =CashFlowsLedgers!BX146 -> 0 | H147: 0 | I147: 0 | K147: =CashFlowsLedgers!BF146<0.1 -> TRUE | L147: =IF(D147,L146,CashFlowsLedgers!BB146+CashFlowsLedgers!BF146) -> 0 | M147: 0 | N147: =CashFlowsLedgers!BY146 -> 0 | O147: 0 | P147: 0 | S147: =IF(#REF!-#REF!-#REF!=0,"OK") ->  | T147: =IF(#REF!>#REF!,IF(#REF!-#REF!=SUM(#REF!),"OK","Oops"),"No Excess") -> 
A148: 132 | B148: =UserInputs!B146 -> 2051-03-12 | D148: =OR(AND(TriggersEvents!N148,SUM(CashFlowsLedgers!BB147,CashFlowsLedgers!BF147,CashFlowsLedgers!BJ147,CashFlowsLedgers!BN147,CashFlowsLedgers!BR147)>0.1),SUM(UserInputs!H$15:'UserInputs'!H146)>0.05*OpeningPoolBalance) -> FALSE | E148: =IF(D148,E147,CashFlowsLedgers!BB147+CashFlowsLedgers!BF147+CashFlowsLedgers!BJ147+CashFlowsLedgers!BN147+CashFlowsLedgers!BR147) -> 0 | F148: =IF(CashFlowsLedgers!CH147,0,General_Reserve_Percent*E148)-M148 -> 0 | G148: =CashFlowsLedgers!BX147 -> 0 | H148: 0 | I148: 0 | K148: =CashFlowsLedgers!BF147<0.1 -> TRUE | L148: =IF(D148,L147,CashFlowsLedgers!BB147+CashFlowsLedgers!BF147) -> 0 | M148: 0 | N148: =CashFlowsLedgers!BY147 -> 0 | O148: 0 | P148: 0 | S148: =IF(#REF!-#REF!-#REF!=0,"OK") ->  | T148: =IF(#REF!>#REF!,IF(#REF!-#REF!=SUM(#REF!),"OK","Oops"),"No Excess") -> 
A149: 133 | B149: =UserInputs!B147 -> 2051-06-12 | D149: =OR(AND(TriggersEvents!N149,SUM(CashFlowsLedgers!BB148,CashFlowsLedgers!BF148,CashFlowsLedgers!BJ148,CashFlowsLedgers!BN148,CashFlowsLedgers!BR148)>0.1),SUM(UserInputs!H$15:'UserInputs'!H147)>0.05*OpeningPoolBalance) -> FALSE | E149: =IF(D149,E148,CashFlowsLedgers!BB148+CashFlowsLedgers!BF148+CashFlowsLedgers!BJ148+CashFlowsLedgers!BN148+CashFlowsLedgers!BR148) -> 0 | F149: =IF(CashFlowsLedgers!CH148,0,General_Reserve_Percent*E149)-M149 -> 0 | G149: =CashFlowsLedgers!BX148 -> 0 | H149: 0 | I149: 0 | K149: =CashFlowsLedgers!BF148<0.1 -> TRUE | L149: =IF(D149,L148,CashFlowsLedgers!BB148+CashFlowsLedgers!BF148) -> 0 | M149: 0 | N149: =CashFlowsLedgers!BY148 -> 0 | O149: 0 | P149: 0 | S149: =IF(#REF!-#REF!-#REF!=0,"OK") ->  | T149: =IF(#REF!>#REF!,IF(#REF!-#REF!=SUM(#REF!),"OK","Oops"),"No Excess") -> 
A150: 134 | B150: =UserInputs!B148 -> 2051-09-12 | D150: =OR(AND(TriggersEvents!N150,SUM(CashFlowsLedgers!BB149,CashFlowsLedgers!BF149,CashFlowsLedgers!BJ149,CashFlowsLedgers!BN149,CashFlowsLedgers!BR149)>0.1),SUM(UserInputs!H$15:'UserInputs'!H148)>0.05*OpeningPoolBalance) -> FALSE | E150: =IF(D150,E149,CashFlowsLedgers!BB149+CashFlowsLedgers!BF149+CashFlowsLedgers!BJ149+CashFlowsLedgers!BN149+CashFlowsLedgers!BR149) -> 0 | F150: =IF(CashFlowsLedgers!CH149,0,General_Reserve_Percent*E150)-M150 -> 0 | G150: =CashFlowsLedgers!BX149 -> 0 | H150: 0 | I150: 0 | K150: =CashFlowsLedgers!BF149<0.1 -> TRUE | L150: =IF(D150,L149,CashFlowsLedgers!BB149+CashFlowsLedgers!BF149) -> 0 | M150: 0 | N150: =CashFlowsLedgers!BY149 -> 0 | O150: 0 | P150: 0 | S150: =IF(#REF!-#REF!-#REF!=0,"OK") ->  | T150: =IF(#REF!>#REF!,IF(#REF!-#REF!=SUM(#REF!),"OK","Oops"),"No Excess") -> 
A151: 135 | B151: =UserInputs!B149 -> 2051-12-12 | D151: =OR(AND(TriggersEvents!N151,SUM(CashFlowsLedgers!BB150,CashFlowsLedgers!BF150,CashFlowsLedgers!BJ150,CashFlowsLedgers!BN150,CashFlowsLedgers!BR150)>0.1),SUM(UserInputs!H$15:'UserInputs'!H149)>0.05*OpeningPoolBalance) -> FALSE | E151: =IF(D151,E150,CashFlowsLedgers!BB150+CashFlowsLedgers!BF150+CashFlowsLedgers!BJ150+CashFlowsLedgers!BN150+CashFlowsLedgers!BR150) -> 0 | F151: =IF(CashFlowsLedgers!CH150,0,General_Reserve_Percent*E151)-M151 -> 0 | G151: =CashFlowsLedgers!BX150 -> 0 | H151: 0 | I151: 0 | K151: =CashFlowsLedgers!BF150<0.1 -> TRUE | L151: =IF(D151,L150,CashFlowsLedgers!BB150+CashFlowsLedgers!BF150) -> 0 | M151: 0 | N151: =CashFlowsLedgers!BY150 -> 0 | O151: 0 | P151: 0 | S151: =IF(#REF!-#REF!-#REF!=0,"OK") ->  | T151: =IF(#REF!>#REF!,IF(#REF!-#REF!=SUM(#REF!),"OK","Oops"),"No Excess") -> 
A152: 136 | B152: =UserInputs!B150 -> 2052-03-12 | D152: =OR(AND(TriggersEvents!N152,SUM(CashFlowsLedgers!BB151,CashFlowsLedgers!BF151,CashFlowsLedgers!BJ151,CashFlowsLedgers!BN151,CashFlowsLedgers!BR151)>0.1),SUM(UserInputs!H$15:'UserInputs'!H150)>0.05*OpeningPoolBalance) -> FALSE | E152: =IF(D152,E151,CashFlowsLedgers!BB151+CashFlowsLedgers!BF151+CashFlowsLedgers!BJ151+CashFlowsLedgers!BN151+CashFlowsLedgers!BR151) -> 0 | F152: =IF(CashFlowsLedgers!CH151,0,General_Reserve_Percent*E152)-M152 -> 0 | G152: =CashFlowsLedgers!BX151 -> 0 | H152: 0 | I152: 0 | K152: =CashFlowsLedgers!BF151<0.1 -> TRUE | L152: =IF(D152,L151,CashFlowsLedgers!BB151+CashFlowsLedgers!BF151) -> 0 | M152: 0 | N152: =CashFlowsLedgers!BY151 -> 0 | O152: 0 | P152: 0 | S152: =IF(#REF!-#REF!-#REF!=0,"OK") ->  | T152: =IF(#REF!>#REF!,IF(#REF!-#REF!=SUM(#REF!),"OK","Oops"),"No Excess") -> 
A153: 137 | B153: =UserInputs!B151 -> 2052-06-12 | D153: =OR(AND(TriggersEvents!N153,SUM(CashFlowsLedgers!BB152,CashFlowsLedgers!BF152,CashFlowsLedgers!BJ152,CashFlowsLedgers!BN152,CashFlowsLedgers!BR152)>0.1),SUM(UserInputs!H$15:'UserInputs'!H151)>0.05*OpeningPoolBalance) -> FALSE | E153: =IF(D153,E152,CashFlowsLedgers!BB152+CashFlowsLedgers!BF152+CashFlowsLedgers!BJ152+CashFlowsLedgers!BN152+CashFlowsLedgers!BR152) -> 0 | F153: =IF(CashFlowsLedgers!CH152,0,General_Reserve_Percent*E153)-M153 -> 0 | G153: =CashFlowsLedgers!BX152 -> 0 | H153: 0 | I153: 0 | K153: =CashFlowsLedgers!BF152<0.1 -> TRUE | L153: =IF(D153,L152,CashFlowsLedgers!BB152+CashFlowsLedgers!BF152) -> 0 | M153: 0 | N153: =CashFlowsLedgers!BY152 -> 0 | O153: 0 | P153: 0 | S153: =IF(#REF!-#REF!-#REF!=0,"OK") ->  | T153: =IF(#REF!>#REF!,IF(#REF!-#REF!=SUM(#REF!),"OK","Oops"),"No Excess") -> 
A154: 138 | B154: =UserInputs!B152 -> 2052-09-12 | D154: =OR(AND(TriggersEvents!N154,SUM(CashFlowsLedgers!BB153,CashFlowsLedgers!BF153,CashFlowsLedgers!BJ153,CashFlowsLedgers!BN153,CashFlowsLedgers!BR153)>0.1),SUM(UserInputs!H$15:'UserInputs'!H152)>0.05*OpeningPoolBalance) -> FALSE | E154: =IF(D154,E153,CashFlowsLedgers!BB153+CashFlowsLedgers!BF153+CashFlowsLedgers!BJ153+CashFlowsLedgers!BN153+CashFlowsLedgers!BR153) -> 0 | F154: =IF(CashFlowsLedgers!CH153,0,General_Reserve_Percent*E154)-M154 -> 0 | G154: =CashFlowsLedgers!BX153 -> 0 | H154: 0 | I154: 0 | K154: =CashFlowsLedgers!BF153<0.1 -> TRUE | L154: =IF(D154,L153,CashFlowsLedgers!BB153+CashFlowsLedgers!BF153) -> 0 | M154: 0 | N154: =CashFlowsLedgers!BY153 -> 0 | O154: 0 | P154: 0 | S154: =IF(#REF!-#REF!-#REF!=0,"OK") ->  | T154: =IF(#REF!>#REF!,IF(#REF!-#REF!=SUM(#REF!),"OK","Oops"),"No Excess") -> 
A155: 139 | B155: =UserInputs!B153 -> 2052-12-12 | D155: =OR(AND(TriggersEvents!N155,SUM(CashFlowsLedgers!BB154,CashFlowsLedgers!BF154,CashFlowsLedgers!BJ154,CashFlowsLedgers!BN154,CashFlowsLedgers!BR154)>0.1),SUM(UserInputs!H$15:'UserInputs'!H153)>0.05*OpeningPoolBalance) -> FALSE | E155: =IF(D155,E154,CashFlowsLedgers!BB154+CashFlowsLedgers!BF154+CashFlowsLedgers!BJ154+CashFlowsLedgers!BN154+CashFlowsLedgers!BR154) -> 0 | F155: =IF(CashFlowsLedgers!CH154,0,General_Reserve_Percent*E155)-M155 -> 0 | G155: =CashFlowsLedgers!BX154 -> 0 | H155: 0 | I155: 0 | K155: =CashFlowsLedgers!BF154<0.1 -> TRUE | L155: =IF(D155,L154,CashFlowsLedgers!BB154+CashFlowsLedgers!BF154) -> 0 | M155: 0 | N155: =CashFlowsLedgers!BY154 -> 0 | O155: 0 | P155: 0 | S155: =IF(#REF!-#REF!-#REF!=0,"OK") ->  | T155: =IF(#REF!>#REF!,IF(#REF!-#REF!=SUM(#REF!),"OK","Oops"),"No Excess") -> 
A156: 140 | B156: =UserInputs!B154 -> 2053-03-12 | D156: =OR(AND(TriggersEvents!N156,SUM(CashFlowsLedgers!BB155,CashFlowsLedgers!BF155,CashFlowsLedgers!BJ155,CashFlowsLedgers!BN155,CashFlowsLedgers!BR155)>0.1),SUM(UserInputs!H$15:'UserInputs'!H154)>0.05*OpeningPoolBalance) -> FALSE | E156: =IF(D156,E155,CashFlowsLedgers!BB155+CashFlowsLedgers!BF155+CashFlowsLedgers!BJ155+CashFlowsLedgers!BN155+CashFlowsLedgers!BR155) -> 0 | F156: =IF(CashFlowsLedgers!CH155,0,General_Reserve_Percent*E156)-M156 -> 0 | G156: =CashFlowsLedgers!BX155 -> 0 | H156: 0 | I156: 0 | K156: =CashFlowsLedgers!BF155<0.1 -> TRUE | L156: =IF(D156,L155,CashFlowsLedgers!BB155+CashFlowsLedgers!BF155) -> 0 | M156: 0 | N156: =CashFlowsLedgers!BY155 -> 0 | O156: 0 | P156: 0 | S156: =IF(#REF!-#REF!-#REF!=0,"OK") ->  | T156: =IF(#REF!>#REF!,IF(#REF!-#REF!=SUM(#REF!),"OK","Oops"),"No Excess") -> 
A157: 141 | B157: =UserInputs!B155 -> 2053-06-12 | D157: =OR(AND(TriggersEvents!N157,SUM(CashFlowsLedgers!BB156,CashFlowsLedgers!BF156,CashFlowsLedgers!BJ156,CashFlowsLedgers!BN156,CashFlowsLedgers!BR156)>0.1),SUM(UserInputs!H$15:'UserInputs'!H155)>0.05*OpeningPoolBalance) -> FALSE | E157: =IF(D157,E156,CashFlowsLedgers!BB156+CashFlowsLedgers!BF156+CashFlowsLedgers!BJ156+CashFlowsLedgers!BN156+CashFlowsLedgers!BR156) -> 0 | F157: =IF(CashFlowsLedgers!CH156,0,General_Reserve_Percent*E157)-M157 -> 0 | G157: =CashFlowsLedgers!BX156 -> 0 | H157: 0 | I157: 0 | K157: =CashFlowsLedgers!BF156<0.1 -> TRUE | L157: =IF(D157,L156,CashFlowsLedgers!BB156+CashFlowsLedgers!BF156) -> 0 | M157: 0 | N157: =CashFlowsLedgers!BY156 -> 0 | O157: 0 | P157: 0 | S157: =IF(#REF!-#REF!-#REF!=0,"OK") ->  | T157: =IF(#REF!>#REF!,IF(#REF!-#REF!=SUM(#REF!),"OK","Oops"),"No Excess") -> 
A158: 142 | B158: =UserInputs!B156 -> 2053-09-12 | D158: =OR(AND(TriggersEvents!N158,SUM(CashFlowsLedgers!BB157,CashFlowsLedgers!BF157,CashFlowsLedgers!BJ157,CashFlowsLedgers!BN157,CashFlowsLedgers!BR157)>0.1),SUM(UserInputs!H$15:'UserInputs'!H156)>0.05*OpeningPoolBalance) -> FALSE | E158: =IF(D158,E157,CashFlowsLedgers!BB157+CashFlowsLedgers!BF157+CashFlowsLedgers!BJ157+CashFlowsLedgers!BN157+CashFlowsLedgers!BR157) -> 0 | F158: =IF(CashFlowsLedgers!CH157,0,General_Reserve_Percent*E158)-M158 -> 0 | G158: =CashFlowsLedgers!BX157 -> 0 | H158: 0 | I158: 0 | K158: =CashFlowsLedgers!BF157<0.1 -> TRUE | L158: =IF(D158,L157,CashFlowsLedgers!BB157+CashFlowsLedgers!BF157) -> 0 | M158: 0 | N158: =CashFlowsLedgers!BY157 -> 0 | O158: 0 | P158: 0 | S158: =IF(#REF!-#REF!-#REF!=0,"OK") ->  | T158: =IF(#REF!>#REF!,IF(#REF!-#REF!=SUM(#REF!),"OK","Oops"),"No Excess") -> 
A159: 143 | B159: =UserInputs!B157 -> 2053-12-12 | D159: =OR(AND(TriggersEvents!N159,SUM(CashFlowsLedgers!BB158,CashFlowsLedgers!BF158,CashFlowsLedgers!BJ158,CashFlowsLedgers!BN158,CashFlowsLedgers!BR158)>0.1),SUM(UserInputs!H$15:'UserInputs'!H157)>0.05*OpeningPoolBalance) -> FALSE | E159: =IF(D159,E158,CashFlowsLedgers!BB158+CashFlowsLedgers!BF158+CashFlowsLedgers!BJ158+CashFlowsLedgers!BN158+CashFlowsLedgers!BR158) -> 0 | F159: =IF(CashFlowsLedgers!CH158,0,General_Reserve_Percent*E159)-M159 -> 0 | G159: =CashFlowsLedgers!BX158 -> 0 | H159: 0 | I159: 0 | K159: =CashFlowsLedgers!BF158<0.1 -> TRUE | L159: =IF(D159,L158,CashFlowsLedgers!BB158+CashFlowsLedgers!BF158) -> 0 | M159: 0 | N159: =CashFlowsLedgers!BY158 -> 0 | O159: 0 | P159: 0 | S159: =IF(#REF!-#REF!-#REF!=0,"OK") ->  | T159: =IF(#REF!>#REF!,IF(#REF!-#REF!=SUM(#REF!),"OK","Oops"),"No Excess") -> 
A160: 144 | B160: =UserInputs!B158 -> 2054-03-12 | D160: =OR(AND(TriggersEvents!N160,SUM(CashFlowsLedgers!BB159,CashFlowsLedgers!BF159,CashFlowsLedgers!BJ159,CashFlowsLedgers!BN159,CashFlowsLedgers!BR159)>0.1),SUM(UserInputs!H$15:'UserInputs'!H158)>0.05*OpeningPoolBalance) -> FALSE | E160: =IF(D160,E159,CashFlowsLedgers!BB159+CashFlowsLedgers!BF159+CashFlowsLedgers!BJ159+CashFlowsLedgers!BN159+CashFlowsLedgers!BR159) -> 0 | F160: =IF(CashFlowsLedgers!CH159,0,General_Reserve_Percent*E160)-M160 -> 0 | G160: =CashFlowsLedgers!BX159 -> 0 | H160: 0 | I160: 0 | K160: =CashFlowsLedgers!BF159<0.1 -> TRUE | L160: =IF(D160,L159,CashFlowsLedgers!BB159+CashFlowsLedgers!BF159) -> 0 | M160: 0 | N160: =CashFlowsLedgers!BY159 -> 0 | O160: 0 | P160: 0 | S160: =IF(#REF!-#REF!-#REF!=0,"OK") ->  | T160: =IF(#REF!>#REF!,IF(#REF!-#REF!=SUM(#REF!),"OK","Oops"),"No Excess") -> 
A161: 145 | B161: =UserInputs!B159 -> 2054-06-12 | D161: =OR(AND(TriggersEvents!N161,SUM(CashFlowsLedgers!BB160,CashFlowsLedgers!BF160,CashFlowsLedgers!BJ160,CashFlowsLedgers!BN160,CashFlowsLedgers!BR160)>0.1),SUM(UserInputs!H$15:'UserInputs'!H159)>0.05*OpeningPoolBalance) -> FALSE | E161: =IF(D161,E160,CashFlowsLedgers!BB160+CashFlowsLedgers!BF160+CashFlowsLedgers!BJ160+CashFlowsLedgers!BN160+CashFlowsLedgers!BR160) -> 0 | F161: =IF(CashFlowsLedgers!CH160,0,General_Reserve_Percent*E161)-M161 -> 0 | G161: =CashFlowsLedgers!BX160 -> 0 | H161: 0 | I161: 0 | K161: =CashFlowsLedgers!BF160<0.1 -> TRUE | L161: =IF(D161,L160,CashFlowsLedgers!BB160+CashFlowsLedgers!BF160) -> 0 | M161: 0 | N161: =CashFlowsLedgers!BY160 -> 0 | O161: 0 | P161: 0 | S161: =IF(#REF!-#REF!-#REF!=0,"OK") ->  | T161: =IF(#REF!>#REF!,IF(#REF!-#REF!=SUM(#REF!),"OK","Oops"),"No Excess") -> 
A162: 146 | B162: =UserInputs!B160 -> 2054-09-12 | D162: =OR(AND(TriggersEvents!N162,SUM(CashFlowsLedgers!BB161,CashFlowsLedgers!BF161,CashFlowsLedgers!BJ161,CashFlowsLedgers!BN161,CashFlowsLedgers!BR161)>0.1),SUM(UserInputs!H$15:'UserInputs'!H160)>0.05*OpeningPoolBalance) -> FALSE | E162: =IF(D162,E161,CashFlowsLedgers!BB161+CashFlowsLedgers!BF161+CashFlowsLedgers!BJ161+CashFlowsLedgers!BN161+CashFlowsLedgers!BR161) -> 0 | F162: =IF(CashFlowsLedgers!CH161,0,General_Reserve_Percent*E162)-M162 -> 0 | G162: =CashFlowsLedgers!BX161 -> 0 | H162: 0 | I162: 0 | K162: =CashFlowsLedgers!BF161<0.1 -> TRUE | L162: =IF(D162,L161,CashFlowsLedgers!BB161+CashFlowsLedgers!BF161) -> 0 | M162: 0 | N162: =CashFlowsLedgers!BY161 -> 0 | O162: 0 | P162: 0 | S162: =IF(#REF!-#REF!-#REF!=0,"OK") ->  | T162: =IF(#REF!>#REF!,IF(#REF!-#REF!=SUM(#REF!),"OK","Oops"),"No Excess") -> 
A163: 147 | B163: =UserInputs!B161 -> 2054-12-12 | D163: =OR(AND(TriggersEvents!N163,SUM(CashFlowsLedgers!BB162,CashFlowsLedgers!BF162,CashFlowsLedgers!BJ162,CashFlowsLedgers!BN162,CashFlowsLedgers!BR162)>0.1),SUM(UserInputs!H$15:'UserInputs'!H161)>0.05*OpeningPoolBalance) -> FALSE | E163: =IF(D163,E162,CashFlowsLedgers!BB162+CashFlowsLedgers!BF162+CashFlowsLedgers!BJ162+CashFlowsLedgers!BN162+CashFlowsLedgers!BR162) -> 0 | F163: =IF(CashFlowsLedgers!CH162,0,General_Reserve_Percent*E163)-M163 -> 0 | G163: =CashFlowsLedgers!BX162 -> 0 | H163: =MAX(F163-G163,0) -> 0 | I163: =MAX(0,G163-F163) -> 0 | K163: =CashFlowsLedgers!BF162<0.1 -> TRUE | L163: =IF(D163,L162,CashFlowsLedgers!BB162+CashFlowsLedgers!BF162) -> 0 | M163: =IF(K163,0,ClassAB_Liquidity_Fund_Percent*L163) -> 0 | N163: =CashFlowsLedgers!BY162 -> 0 | O163: =MAX(M163-N163,0) -> 0 | P163: =MAX(0,N163-M163) -> 0 | S163: =IF(#REF!-#REF!-#REF!=0,"OK") ->  | T163: =IF(#REF!>#REF!,IF(#REF!-#REF!=SUM(#REF!),"OK","Oops"),"No Excess") -> 
A164: 148 | B164: =UserInputs!B162 -> 2055-03-12 | D164: =OR(AND(TriggersEvents!N164,SUM(CashFlowsLedgers!BB163,CashFlowsLedgers!BF163,CashFlowsLedgers!BJ163,CashFlowsLedgers!BN163,CashFlowsLedgers!BR163)>0.1),SUM(UserInputs!H$15:'UserInputs'!H162)>0.05*OpeningPoolBalance) -> FALSE | E164: =IF(D164,E163,CashFlowsLedgers!BB163+CashFlowsLedgers!BF163+CashFlowsLedgers!BJ163+CashFlowsLedgers!BN163+CashFlowsLedgers!BR163) -> 0 | F164: =IF(CashFlowsLedgers!CH163,0,General_Reserve_Percent*E164)-M164 -> 0 | G164: =CashFlowsLedgers!BX163 -> 0 | H164: 0 | I164: 0 | K164: =CashFlowsLedgers!BF163<0.1 -> TRUE | L164: =IF(D164,L163,CashFlowsLedgers!BB163+CashFlowsLedgers!BF163) -> 0 | M164: 0 | N164: =CashFlowsLedgers!BY163 -> 0 | O164: 0 | P164: 0 | S164: =IF(#REF!-#REF!-#REF!=0,"OK") ->  | T164: =IF(#REF!>#REF!,IF(#REF!-#REF!=SUM(#REF!),"OK","Oops"),"No Excess") -> 

Sheet SeniorFees
A1: Senior Fees and Expenses
C13: ="The fees within this table are set at £" & OtherFeesAmount & " per annum excl VAT and will be divided equally and brought into the Cash flow Model. " -> The fees within this table are set at £110000 per annum excl VAT and will be divided equally and brought into the Cash flow Model. | L13: Amounts due as Senior Fees in the Priority of Payments
C14: Note Trustee (a)(i) | D14: Security Trustee (a)(ii) | E14: Agent Bank, Registrar, Paying Agent (b)(i) | F14: Cash Manager (b)(ii) | G14: Back-Up Servicer Facilitator (b)(iv) | H14: Corporate Servicer Provider (b)(iv) | I14: Issuer Account Bank (b)(vi) | J14: Collection Account Bank (b)(vii) | L14: Trustee Fee (a) | M14: Total Fees, Costs and Expenses (b) | N14: Third Party Amounts and Unpaid Transfer Costs (c)(i) & (c)(ii) | O14: Issuer Profit (e)
A15: Period | B15: Date | C15: Amount | D15: Amount | E15: Amount | F15: Amount | G15: Amount | H15: Amount | I15: Amount | J15: Amount | L15: Amount | M15: Amount | N15: Amount | O15: Amount
A16: 0 | B16: =Timing!$E16 -> 2018-03-20
A17: 1 | B17: =Timing!$E17 -> 2018-06-12 | C17: =UserInputs!$C15*OtherFeesAmount/8 -> 3164.383562 | D17: =UserInputs!$C15*OtherFeesAmount/8 -> 3164.383562 | E17: =UserInputs!$C15*OtherFeesAmount/8 -> 3164.383562 | F17: =UserInputs!$C15*OtherFeesAmount/8 -> 3164.383562 | G17: =UserInputs!$C15*OtherFeesAmount/8 -> 3164.383562 | H17: =UserInputs!$C15*OtherFeesAmount/8 -> 3164.383562 | I17: =UserInputs!$C15*OtherFeesAmount/8 -> 3164.383562 | J17: =UserInputs!$C15*OtherFeesAmount/8 -> 3164.383562 | L17: =C17+D17 -> 6328.767123 | M17: =SUM(E17:J17,UserInputs!AA15) -> 187457.1182 | N17: =SUM(UserInputs!AE15,UserInputs!AF15) -> 0 | O17: =UserInputs!AH15 -> 300
A18: 2 | B18: =Timing!$E18 -> 2018-09-12 | C18: =UserInputs!$C16*OtherFeesAmount/8 -> 3465.753425 | D18: =UserInputs!$C16*OtherFeesAmount/8 -> 3465.753425 | E18: =UserInputs!$C16*OtherFeesAmount/8 -> 3465.753425 | F18: =UserInputs!$C16*OtherFeesAmount/8 -> 3465.753425 | G18: =UserInputs!$C16*OtherFeesAmount/8 -> 3465.753425 | H18: =UserInputs!$C16*OtherFeesAmount/8 -> 3465.753425 | I18: =UserInputs!$C16*OtherFeesAmount/8 -> 3465.753425 | J18: =UserInputs!$C16*OtherFeesAmount/8 -> 3465.753425 | L18: =C18+D18 -> 6931.506849 | M18: =SUM(E18:J18,UserInputs!AA16) -> 201443.146 | N18: =SUM(UserInputs!AE16,UserInputs!AF16) -> 0 | O18: =UserInputs!AH16 -> 300
A19: 3 | B19: =Timing!$E19 -> 2018-12-12 | C19: =UserInputs!$C17*OtherFeesAmount/8 -> 3428.082192 | D19: =UserInputs!$C17*OtherFeesAmount/8 -> 3428.082192 | E19: =UserInputs!$C17*OtherFeesAmount/8 -> 3428.082192 | F19: =UserInputs!$C17*OtherFeesAmount/8 -> 3428.082192 | G19: =UserInputs!$C17*OtherFeesAmount/8 -> 3428.082192 | H19: =UserInputs!$C17*OtherFeesAmount/8 -> 3428.082192 | I19: =UserInputs!$C17*OtherFeesAmount/8 -> 3428.082192 | J19: =UserInputs!$C17*OtherFeesAmount/8 -> 3428.082192 | L19: 6856.164384 | M19: =SUM(E19:J19,UserInputs!AA17) -> 195540.1234 | N19: =SUM(UserInputs!AE17,UserInputs!AF17) -> 0 | O19: =UserInputs!AH17 -> 300
A20: 4 | B20: =Timing!$E20 -> 2019-03-12 | C20: =UserInputs!$C18*OtherFeesAmount/8 -> 3390.410959 | D20: =UserInputs!$C18*OtherFeesAmount/8 -> 3390.410959 | E20: =UserInputs!$C18*OtherFeesAmount/8 -> 3390.410959 | F20: =UserInputs!$C18*OtherFeesAmount/8 -> 3390.410959 | G20: =UserInputs!$C18*OtherFeesAmount/8 -> 3390.410959 | H20: =UserInputs!$C18*OtherFeesAmount/8 -> 3390.410959 | I20: =UserInputs!$C18*OtherFeesAmount/8 -> 3390.410959 | J20: =UserInputs!$C18*OtherFeesAmount/8 -> 3390.410959 | L20: 6780.821918 | M20: =SUM(E20:J20,UserInputs!AA18) -> 189861.1157 | N20: =SUM(UserInputs!AE18,UserInputs!AF18) -> 0 | O20: =UserInputs!AH18 -> 300
A21: 5 | B21: =Timing!$E21 -> 2019-06-12 | C21: =UserInputs!$C19*OtherFeesAmount/8 -> 3465.753425 | D21: =UserInputs!$C19*OtherFeesAmount/8 -> 3465.753425 | E21: =UserInputs!$C19*OtherFeesAmount/8 -> 3465.753425 | F21: =UserInputs!$C19*OtherFeesAmount/8 -> 3465.753425 | G21: =UserInputs!$C19*OtherFeesAmount/8 -> 3465.753425 | H21: =UserInputs!$C19*OtherFeesAmount/8 -> 3465.753425 | I21: =UserInputs!$C19*OtherFeesAmount/8 -> 3465.753425 | J21: =UserInputs!$C19*OtherFeesAmount/8 -> 3465.753425 | L21: 6931.506849 | M21: =SUM(E21:J21,UserInputs!AA19) -> 190500.0989 | N21: =SUM(UserInputs!AE19,UserInputs!AF19) -> 0 | O21: =UserInputs!AH19 -> 300
A22: 6 | B22: =Timing!$E22 -> 2019-09-12 | C22: =UserInputs!$C20*OtherFeesAmount/8 -> 3465.753425 | D22: =UserInputs!$C20*OtherFeesAmount/8 -> 3465.753425 | E22: =UserInputs!$C20*OtherFeesAmount/8 -> 3465.753425 | F22: =UserInputs!$C20*OtherFeesAmount/8 -> 3465.753425 | G22: =UserInputs!$C20*OtherFeesAmount/8 -> 3465.753425 | H22: =UserInputs!$C20*OtherFeesAmount/8 -> 3465.753425 | I22: =UserInputs!$C20*OtherFeesAmount/8 -> 3465.753425 | J22: =UserInputs!$C20*OtherFeesAmount/8 -> 3465.753425 | L22: 6931.506849 | M22: =SUM(E22:J22,UserInputs!AA20) -> 187237.8195 | N22: =SUM(UserInputs!AE20,UserInputs!AF20) -> 0 | O22: =UserInputs!AH20 -> 300
A23: 7 | B23: =Timing!$E23 -> 2019-12-12 | C23: =UserInputs!$C21*OtherFeesAmount/8 -> 3428.082192 | D23: =UserInputs!$C21*OtherFeesAmount/8 -> 3428.082192 | E23: =UserInputs!$C21*OtherFeesAmount/8 -> 3428.082192 | F23: =UserInputs!$C21*OtherFeesAmount/8 -> 3428.082192 | G23: =UserInputs!$C21*OtherFeesAmount/8 -> 3428.082192 | H23: =UserInputs!$C21*OtherFeesAmount/8 -> 3428.082192 | I23: =UserInputs!$C21*OtherFeesAmount/8 -> 3428.082192 | J23: =UserInputs!$C21*OtherFeesAmount/8 -> 3428.082192 | L23: 6856.164384 | M23: =SUM(E23:J23,UserInputs!AA21) -> 182000.8136 | N23: =SUM(UserInputs!AE21,UserInputs!AF21) -> 0 | O23: =UserInputs!AH21 -> 300
A24: 8 | B24: =Timing!$E24 -> 2020-03-12 | C24: =UserInputs!$C22*OtherFeesAmount/8 -> 3428.082192 | D24: =UserInputs!$C22*OtherFeesAmount/8 -> 3428.082192 | E24: =UserInputs!$C22*OtherFeesAmount/8 -> 3428.082192 | F24: =UserInputs!$C22*OtherFeesAmount/8 -> 3428.082192 | G24: =UserInputs!$C22*OtherFeesAmount/8 -> 3428.082192 | H24: =UserInputs!$C22*OtherFeesAmount/8 -> 3428.082192 | I24: =UserInputs!$C22*OtherFeesAmount/8 -> 3428.082192 | J24: =UserInputs!$C22*OtherFeesAmount/8 -> 3428.082192 | L24: 6856.164384 | M24: =SUM(E24:J24,UserInputs!AA22) -> 178851.0542 | N24: =SUM(UserInputs!AE22,UserInputs!AF22) -> 0 | O24: =UserInputs!AH22 -> 300
A25: 9 | B25: =Timing!$E25 -> 2020-06-12 | C25: =UserInputs!$C23*OtherFeesAmount/8 -> 3465.753425 | D25: =UserInputs!$C23*OtherFeesAmount/8 -> 3465.753425 | E25: =UserInputs!$C23*OtherFeesAmount/8 -> 3465.753425 | F25: =UserInputs!$C23*OtherFeesAmount/8 -> 3465.753425 | G25: =UserInputs!$C23*OtherFeesAmount/8 -> 3465.753425 | H25: =UserInputs!$C23*OtherFeesAmount/8 -> 3465.753425 | I25: =UserInputs!$C23*OtherFeesAmount/8 -> 3465.753425 | J25: =UserInputs!$C23*OtherFeesAmount/8 -> 3465.753425 | L25: 6931.506849 | M25: =SUM(E25:J25,UserInputs!AA23) -> 177925.5325 | N25: =SUM(UserInputs!AE23,UserInputs!AF23) -> 0 | O25: =UserInputs!AH23 -> 300
A26: 10 | B26: =Timing!$E26 -> 2020-09-14 | C26: =UserInputs!$C24*OtherFeesAmount/8 -> 3541.09589 | D26: =UserInputs!$C24*OtherFeesAmount/8 -> 3541.09589 | E26: =UserInputs!$C24*OtherFeesAmount/8 -> 3541.09589 | F26: =UserInputs!$C24*OtherFeesAmount/8 -> 3541.09589 | G26: =UserInputs!$C24*OtherFeesAmount/8 -> 3541.09589 | H26: =UserInputs!$C24*OtherFeesAmount/8 -> 3541.09589 | I26: =UserInputs!$C24*OtherFeesAmount/8 -> 3541.09589 | J26: =UserInputs!$C24*OtherFeesAmount/8 -> 3541.09589 | L26: 7082.191781 | M26: =SUM(E26:J26,UserInputs!AA24) -> 178798.0924 | N26: =SUM(UserInputs!AE24,UserInputs!AF24) -> 0 | O26: =UserInputs!AH24 -> 300
A27: 11 | B27: =Timing!$E27 -> 2020-12-14 | C27: =UserInputs!$C25*OtherFeesAmount/8 -> 3428.082192 | D27: =UserInputs!$C25*OtherFeesAmount/8 -> 3428.082192 | E27: =UserInputs!$C25*OtherFeesAmount/8 -> 3428.082192 | F27: =UserInputs!$C25*OtherFeesAmount/8 -> 3428.082192 | G27: =UserInputs!$C25*OtherFeesAmount/8 -> 3428.082192 | H27: =UserInputs!$C25*OtherFeesAmount/8 -> 3428.082192 | I27: =UserInputs!$C25*OtherFeesAmount/8 -> 3428.082192 | J27: =UserInputs!$C25*OtherFeesAmount/8 -> 3428.082192 | L27: 6856.164384 | M27: =SUM(E27:J27,UserInputs!AA25) -> 170343.8253 | N27: =SUM(UserInputs!AE25,UserInputs!AF25) -> 0 | O27: =UserInputs!AH25 -> 300
A28: 12 | B28: =Timing!$E28 -> 2021-03-12 | C28: =UserInputs!$C26*OtherFeesAmount/8 -> 3315.068493 | D28: =UserInputs!$C26*OtherFeesAmount/8 -> 3315.068493 | E28: =UserInputs!$C26*OtherFeesAmount/8 -> 3315.068493 | F28: =UserInputs!$C26*OtherFeesAmount/8 -> 3315.068493 | G28: =UserInputs!$C26*OtherFeesAmount/8 -> 3315.068493 | H28: =UserInputs!$C26*OtherFeesAmount/8 -> 3315.068493 | I28: =UserInputs!$C26*OtherFeesAmount/8 -> 3315.068493 | J28: =UserInputs!$C26*OtherFeesAmount/8 -> 3315.068493 | L28: 6630.136986 | M28: =SUM(E28:J28,UserInputs!AA26) -> 162024.3248 | N28: =SUM(UserInputs!AE26,UserInputs!AF26) -> 0 | O28: =UserInputs!AH26 -> 300
A29: 13 | B29: =Timing!$E29 -> 2021-06-14 | C29: =UserInputs!$C27*OtherFeesAmount/8 -> 3541.09589 | D29: =UserInputs!$C27*OtherFeesAmount/8 -> 3541.09589 | E29: =UserInputs!$C27*OtherFeesAmount/8 -> 3541.09589 | F29: =UserInputs!$C27*OtherFeesAmount/8 -> 3541.09589 | G29: =UserInputs!$C27*OtherFeesAmount/8 -> 3541.09589 | H29: =UserInputs!$C27*OtherFeesAmount/8 -> 3541.09589 | I29: =UserInputs!$C27*OtherFeesAmount/8 -> 3541.09589 | J29: =UserInputs!$C27*OtherFeesAmount/8 -> 3541.09589 | L29: 7082.191781 | M29: =SUM(E29:J29,UserInputs!AA27) -> 170344.4932 | N29: =SUM(UserInputs!AE27,UserInputs!AF27) -> 0 | O29: =UserInputs!AH27 -> 300
A30: 14 | B30: =Timing!$E30 -> 2021-09-13 | C30: =UserInputs!$C28*OtherFeesAmount/8 -> 3428.082192 | D30: =UserInputs!$C28*OtherFeesAmount/8 -> 3428.082192 | E30: =UserInputs!$C28*OtherFeesAmount/8 -> 3428.082192 | F30: =UserInputs!$C28*OtherFeesAmount/8 -> 3428.082192 | G30: =UserInputs!$C28*OtherFeesAmount/8 -> 3428.082192 | H30: =UserInputs!$C28*OtherFeesAmount/8 -> 3428.082192 | I30: =UserInputs!$C28*OtherFeesAmount/8 -> 3428.082192 | J30: =UserInputs!$C28*OtherFeesAmount/8 -> 3428.082192 | L30: 6856.164384 | M30: =SUM(E30:J30,UserInputs!AA28) -> 162239.7527 | N30: =SUM(UserInputs!AE28,UserInputs!AF28) -> 0 | O30: =UserInputs!AH28 -> 300
A31: 15 | B31: =Timing!$E31 -> 2021-12-13 | C31: =UserInputs!$C29*OtherFeesAmount/8 -> 3428.082192 | D31: =UserInputs!$C29*OtherFeesAmount/8 -> 3428.082192 | E31: =UserInputs!$C29*OtherFeesAmount/8 -> 3428.082192 | F31: =UserInputs!$C29*OtherFeesAmount/8 -> 3428.082192 | G31: =UserInputs!$C29*OtherFeesAmount/8 -> 3428.082192 | H31: =UserInputs!$C29*OtherFeesAmount/8 -> 3428.082192 | I31: =UserInputs!$C29*OtherFeesAmount/8 -> 3428.082192 | J31: =UserInputs!$C29*OtherFeesAmount/8 -> 3428.082192 | L31: 6856.164384 | M31: =SUM(E31:J31,UserInputs!AA29) -> 159560.6164 | N31: =SUM(UserInputs!AE29,UserInputs!AF29) -> 0 | O31: =UserInputs!AH29 -> 300
A32: 16 | B32: =Timing!$E32 -> 2022-03-14 | C32: =UserInputs!$C30*OtherFeesAmount/8 -> 3428.082192 | D32: =UserInputs!$C30*OtherFeesAmount/8 -> 3428.082192 | E32: =UserInputs!$C30*OtherFeesAmount/8 -> 3428.082192 | F32: =UserInputs!$C30*OtherFeesAmount/8 -> 3428.082192 | G32: =UserInputs!$C30*OtherFeesAmount/8 -> 3428.082192 | H32: =UserInputs!$C30*OtherFeesAmount/8 -> 3428.082192 | I32: =UserInputs!$C30*OtherFeesAmount/8 -> 3428.082192 | J32: =UserInputs!$C30*OtherFeesAmount/8 -> 3428.082192 | L32: 6856.164384 | M32: =SUM(E32:J32,UserInputs!AA30) -> 157206.6762 | N32: =SUM(UserInputs!AE30,UserInputs!AF30) -> 0 | O32: =UserInputs!AH30 -> 300
A33: 17 | B33: =Timing!$E33 -> 2022-06-13 | C33: =UserInputs!$C31*OtherFeesAmount/8 -> 3428.082192 | D33: =UserInputs!$C31*OtherFeesAmount/8 -> 3428.082192 | E33: =UserInputs!$C31*OtherFeesAmount/8 -> 3428.082192 | F33: =UserInputs!$C31*OtherFeesAmount/8 -> 3428.082192 | G33: =UserInputs!$C31*OtherFeesAmount/8 -> 3428.082192 | H33: =UserInputs!$C31*OtherFeesAmount/8 -> 3428.082192 | I33: =UserInputs!$C31*OtherFeesAmount/8 -> 3428.082192 | J33: =UserInputs!$C31*OtherFeesAmount/8 -> 3428.082192 | L33: 6856.164384 | M33: =SUM(E33:J33,UserInputs!AA31) -> 154741.6932 | N33: =SUM(UserInputs!AE31,UserInputs!AF31) -> 0 | O33: =UserInputs!AH31 -> 300
A34: 18 | B34: =Timing!$E34 -> 2022-09-12 | C34: =UserInputs!$C32*OtherFeesAmount/8 -> 3428.082192 | D34: =UserInputs!$C32*OtherFeesAmount/8 -> 3428.082192 | E34: =UserInputs!$C32*OtherFeesAmount/8 -> 3428.082192 | F34: =UserInputs!$C32*OtherFeesAmount/8 -> 3428.082192 | G34: =UserInputs!$C32*OtherFeesAmount/8 -> 3428.082192 | H34: =UserInputs!$C32*OtherFeesAmount/8 -> 3428.082192 | I34: =UserInputs!$C32*OtherFeesAmount/8 -> 3428.082192 | J34: =UserInputs!$C32*OtherFeesAmount/8 -> 3428.082192 | L34: 6856.164384 | M34: =SUM(E34:J34,UserInputs!AA32) -> 152370.4539 | N34: =SUM(UserInputs!AE32,UserInputs!AF32) -> 0 | O34: =UserInputs!AH32 -> 300
A35: 19 | B35: =Timing!$E35 -> 2022-12-12 | C35: =UserInputs!$C33*OtherFeesAmount/8 -> 3428.082192 | D35: =UserInputs!$C33*OtherFeesAmount/8 -> 3428.082192 | E35: =UserInputs!$C33*OtherFeesAmount/8 -> 3428.082192 | F35: =UserInputs!$C33*OtherFeesAmount/8 -> 3428.082192 | G35: =UserInputs!$C33*OtherFeesAmount/8 -> 3428.082192 | H35: =UserInputs!$C33*OtherFeesAmount/8 -> 3428.082192 | I35: =UserInputs!$C33*OtherFeesAmount/8 -> 3428.082192 | J35: =UserInputs!$C33*OtherFeesAmount/8 -> 3428.082192 | L35: 6856.164384 | M35: =SUM(E35:J35,UserInputs!AA33) -> 149966.9608 | N35: =SUM(UserInputs!AE33,UserInputs!AF33) -> 0 | O35: =UserInputs!AH33 -> 300
A36: 20 | B36: =Timing!$E36 -> 2023-03-13 | C36: =UserInputs!$C34*OtherFeesAmount/8 -> 3428.082192 | D36: =UserInputs!$C34*OtherFeesAmount/8 -> 3428.082192 | E36: =UserInputs!$C34*OtherFeesAmount/8 -> 3428.082192 | F36: =UserInputs!$C34*OtherFeesAmount/8 -> 3428.082192 | G36: =UserInputs!$C34*OtherFeesAmount/8 -> 3428.082192 | H36: =UserInputs!$C34*OtherFeesAmount/8 -> 3428.082192 | I36: =UserInputs!$C34*OtherFeesAmount/8 -> 3428.082192 | J36: =UserInputs!$C34*OtherFeesAmount/8 -> 3428.082192 | L36: 6856.164384 | M36: =SUM(E36:J36,UserInputs!AA34) -> 147555.5995 | N36: =SUM(UserInputs!AE34,UserInputs!AF34) -> 0 | O36: =UserInputs!AH34 -> 300
A37: 21 | B37: =Timing!$E37 -> 2023-06-12 | C37: =UserInputs!$C35*OtherFeesAmount/8 -> 3428.082192 | D37: =UserInputs!$C35*OtherFeesAmount/8 -> 3428.082192 | E37: =UserInputs!$C35*OtherFeesAmount/8 -> 3428.082192 | F37: =UserInputs!$C35*OtherFeesAmount/8 -> 3428.082192 | G37: =UserInputs!$C35*OtherFeesAmount/8 -> 3428.082192 | H37: =UserInputs!$C35*OtherFeesAmount/8 -> 3428.082192 | I37: =UserInputs!$C35*OtherFeesAmount/8 -> 3428.082192 | J37: =UserInputs!$C35*OtherFeesAmount/8 -> 3428.082192 | L37: 6856.164384 | M37: =SUM(E37:J37,UserInputs!AA35) -> 145323.6107 | N37: =SUM(UserInputs!AE35,UserInputs!AF35) -> 0 | O37: =UserInputs!AH35 -> 300
A38: 22 | B38: =Timing!$E38 -> 2023-09-12 | C38: =UserInputs!$C36*OtherFeesAmount/8 -> 3465.753425 | D38: =UserInputs!$C36*OtherFeesAmount/8 -> 3465.753425 | E38: =UserInputs!$C36*OtherFeesAmount/8 -> 3465.753425 | F38: =UserInputs!$C36*OtherFeesAmount/8 -> 3465.753425 | G38: =UserInputs!$C36*OtherFeesAmount/8 -> 3465.753425 | H38: =UserInputs!$C36*OtherFeesAmount/8 -> 3465.753425 | I38: =UserInputs!$C36*OtherFeesAmount/8 -> 3465.753425 | J38: =UserInputs!$C36*OtherFeesAmount/8 -> 3465.753425 | L38: 6931.506849 | M38: =SUM(E38:J38,UserInputs!AA36) -> 144662.1863 | N38: =SUM(UserInputs!AE36,UserInputs!AF36) -> 0 | O38: =UserInputs!AH36 -> 300
A39: 23 | B39: =Timing!$E39 -> 2023-12-12 | C39: =UserInputs!$C37*OtherFeesAmount/8 -> 3428.082192 | D39: =UserInputs!$C37*OtherFeesAmount/8 -> 3428.082192 | E39: =UserInputs!$C37*OtherFeesAmount/8 -> 3428.082192 | F39: =UserInputs!$C37*OtherFeesAmount/8 -> 3428.082192 | G39: =UserInputs!$C37*OtherFeesAmount/8 -> 3428.082192 | H39: =UserInputs!$C37*OtherFeesAmount/8 -> 3428.082192 | I39: =UserInputs!$C37*OtherFeesAmount/8 -> 3428.082192 | J39: =UserInputs!$C37*OtherFeesAmount/8 -> 3428.082192 | L39: 6856.164384 | M39: =SUM(E39:J39,UserInputs!AA37) -> 140920.2972 | N39: =SUM(UserInputs!AE37,UserInputs!AF37) -> 0 | O39: =UserInputs!AH37 -> 300
A40: 24 | B40: =Timing!$E40 -> 2024-03-12 | C40: =UserInputs!$C38*OtherFeesAmount/8 -> 3428.082192 | D40: =UserInputs!$C38*OtherFeesAmount/8 -> 3428.082192 | E40: =UserInputs!$C38*OtherFeesAmount/8 -> 3428.082192 | F40: =UserInputs!$C38*OtherFeesAmount/8 -> 3428.082192 | G40: =UserInputs!$C38*OtherFeesAmount/8 -> 3428.082192 | H40: =UserInputs!$C38*OtherFeesAmount/8 -> 3428.082192 | I40: =UserInputs!$C38*OtherFeesAmount/8 -> 3428.082192 | J40: =UserInputs!$C38*OtherFeesAmount/8 -> 3428.082192 | L40: 6856.164384 | M40: =SUM(E40:J40,UserInputs!AA38) -> 138722.4526 | N40: =SUM(UserInputs!AE38,UserInputs!AF38) -> 0 | O40: =UserInputs!AH38 -> 300
A41: 25 | B41: =Timing!$E41 -> 2024-06-12 | C41: =UserInputs!$C39*OtherFeesAmount/8 -> 3465.753425 | D41: =UserInputs!$C39*OtherFeesAmount/8 -> 3465.753425 | E41: =UserInputs!$C39*OtherFeesAmount/8 -> 3465.753425 | F41: =UserInputs!$C39*OtherFeesAmount/8 -> 3465.753425 | G41: =UserInputs!$C39*OtherFeesAmount/8 -> 3465.753425 | H41: =UserInputs!$C39*OtherFeesAmount/8 -> 3465.753425 | I41: =UserInputs!$C39*OtherFeesAmount/8 -> 3465.753425 | J41: =UserInputs!$C39*OtherFeesAmount/8 -> 3465.753425 | L41: 6931.506849 | M41: =SUM(E41:J41,UserInputs!AA39) -> 137920.9814 | N41: =SUM(UserInputs!AE39,UserInputs!AF39) -> 0 | O41: =UserInputs!AH39 -> 300
A42: 26 | B42: =Timing!$E42 -> 2024-09-12 | C42: =UserInputs!$C40*OtherFeesAmount/8 -> 3465.753425 | D42: =UserInputs!$C40*OtherFeesAmount/8 -> 3465.753425 | E42: =UserInputs!$C40*OtherFeesAmount/8 -> 3465.753425 | F42: =UserInputs!$C40*OtherFeesAmount/8 -> 3465.753425 | G42: =UserInputs!$C40*OtherFeesAmount/8 -> 3465.753425 | H42: =UserInputs!$C40*OtherFeesAmount/8 -> 3465.753425 | I42: =UserInputs!$C40*OtherFeesAmount/8 -> 3465.753425 | J42: =UserInputs!$C40*OtherFeesAmount/8 -> 3465.753425 | L42: 6931.506849 | M42: =SUM(E42:J42,UserInputs!AA40) -> 135755.4592 | N42: =SUM(UserInputs!AE40,UserInputs!AF40) -> 0 | O42: =UserInputs!AH40 -> 300
A43: 27 | B43: =Timing!$E43 -> 2024-12-12 | C43: =UserInputs!$C41*OtherFeesAmount/8 -> 3428.082192 | D43: =UserInputs!$C41*OtherFeesAmount/8 -> 3428.082192 | E43: =UserInputs!$C41*OtherFeesAmount/8 -> 3428.082192 | F43: =UserInputs!$C41*OtherFeesAmount/8 -> 3428.082192 | G43: =UserInputs!$C41*OtherFeesAmount/8 -> 3428.082192 | H43: =UserInputs!$C41*OtherFeesAmount/8 -> 3428.082192 | I43: =UserInputs!$C41*OtherFeesAmount/8 -> 3428.082192 | J43: =UserInputs!$C41*OtherFeesAmount/8 -> 3428.082192 | L43: 6856.164384 | M43: =SUM(E43:J43,UserInputs!AA41) -> 132122.8983 | N43: =SUM(UserInputs!AE41,UserInputs!AF41) -> 0 | O43: =UserInputs!AH41 -> 300
A44: 28 | B44: =Timing!$E44 -> 2025-03-12 | C44: =UserInputs!$C42*OtherFeesAmount/8 -> 3390.410959 | D44: =UserInputs!$C42*OtherFeesAmount/8 -> 3390.410959 | E44: =UserInputs!$C42*OtherFeesAmount/8 -> 3390.410959 | F44: =UserInputs!$C42*OtherFeesAmount/8 -> 3390.410959 | G44: =UserInputs!$C42*OtherFeesAmount/8 -> 3390.410959 | H44: =UserInputs!$C42*OtherFeesAmount/8 -> 3390.410959 | I44: =UserInputs!$C42*OtherFeesAmount/8 -> 3390.410959 | J44: =UserInputs!$C42*OtherFeesAmount/8 -> 3390.410959 | L44: 6780.821918 | M44: =SUM(E44:J44,UserInputs!AA42) -> 128616.7379 | N44: =SUM(UserInputs!AE42,UserInputs!AF42) -> 0 | O44: =UserInputs!AH42 -> 300
A45: 29 | B45: =Timing!$E45 -> 2025-06-12 | C45: =UserInputs!$C43*OtherFeesAmount/8 -> 3465.753425 | D45: =UserInputs!$C43*OtherFeesAmount/8 -> 3465.753425 | E45: =UserInputs!$C43*OtherFeesAmount/8 -> 3465.753425 | F45: =UserInputs!$C43*OtherFeesAmount/8 -> 3465.753425 | G45: =UserInputs!$C43*OtherFeesAmount/8 -> 3465.753425 | H45: =UserInputs!$C43*OtherFeesAmount/8 -> 3465.753425 | I45: =UserInputs!$C43*OtherFeesAmount/8 -> 3465.753425 | J45: =UserInputs!$C43*OtherFeesAmount/8 -> 3465.753425 | L45: 6931.506849 | M45: =SUM(E45:J45,UserInputs!AA43) -> 129331.8731 | N45: =SUM(UserInputs!AE43,UserInputs!AF43) -> 0 | O45: =UserInputs!AH43 -> 300
A46: 30 | B46: =Timing!$E46 -> 2025-09-12 | C46: =UserInputs!$C44*OtherFeesAmount/8 -> 3465.753425 | D46: =UserInputs!$C44*OtherFeesAmount/8 -> 3465.753425 | E46: =UserInputs!$C44*OtherFeesAmount/8 -> 3465.753425 | F46: =UserInputs!$C44*OtherFeesAmount/8 -> 3465.753425 | G46: =UserInputs!$C44*OtherFeesAmount/8 -> 3465.753425 | H46: =UserInputs!$C44*OtherFeesAmount/8 -> 3465.753425 | I46: =UserInputs!$C44*OtherFeesAmount/8 -> 3465.753425 | J46: =UserInputs!$C44*OtherFeesAmount/8 -> 3465.753425 | L46: 6931.506849 | M46: =SUM(E46:J46,UserInputs!AA44) -> 127270.4454 | N46: =SUM(UserInputs!AE44,UserInputs!AF44) -> 0 | O46: =UserInputs!AH44 -> 300
A47: 31 | B47: =Timing!$E47 -> 2025-12-12 | C47: =UserInputs!$C45*OtherFeesAmount/8 -> 3428.082192 | D47: =UserInputs!$C45*OtherFeesAmount/8 -> 3428.082192 | E47: =UserInputs!$C45*OtherFeesAmount/8 -> 3428.082192 | F47: =UserInputs!$C45*OtherFeesAmount/8 -> 3428.082192 | G47: =UserInputs!$C45*OtherFeesAmount/8 -> 3428.082192 | H47: =UserInputs!$C45*OtherFeesAmount/8 -> 3428.082192 | I47: =UserInputs!$C45*OtherFeesAmount/8 -> 3428.082192 | J47: =UserInputs!$C45*OtherFeesAmount/8 -> 3428.082192 | L47: 6856.164384 | M47: =SUM(E47:J47,UserInputs!AA45) -> 123908.9639 | N47: =SUM(UserInputs!AE45,UserInputs!AF45) -> 0 | O47: =UserInputs!AH45 -> 300
A48: 32 | B48: =Timing!$E48 -> 2026-03-12 | C48: =UserInputs!$C46*OtherFeesAmount/8 -> 3390.410959 | D48: =UserInputs!$C46*OtherFeesAmount/8 -> 3390.410959 | E48: =UserInputs!$C46*OtherFeesAmount/8 -> 3390.410959 | F48: =UserInputs!$C46*OtherFeesAmount/8 -> 3390.410959 | G48: =UserInputs!$C46*OtherFeesAmount/8 -> 3390.410959 | H48: =UserInputs!$C46*OtherFeesAmount/8 -> 3390.410959 | I48: =UserInputs!$C46*OtherFeesAmount/8 -> 3390.410959 | J48: =UserInputs!$C46*OtherFeesAmount/8 -> 3390.410959 | L48: 6780.821918 | M48: =SUM(E48:J48,UserInputs!AA46) -> 120479.4095 | N48: =SUM(UserInputs!AE46,UserInputs!AF46) -> 0 | O48: =UserInputs!AH46 -> 300
A49: 33 | B49: =Timing!$E49 -> 2026-06-12 | C49: =UserInputs!$C47*OtherFeesAmount/8 -> 3465.753425 | D49: =UserInputs!$C47*OtherFeesAmount/8 -> 3465.753425 | E49: =UserInputs!$C47*OtherFeesAmount/8 -> 3465.753425 | F49: =UserInputs!$C47*OtherFeesAmount/8 -> 3465.753425 | G49: =UserInputs!$C47*OtherFeesAmount/8 -> 3465.753425 | H49: =UserInputs!$C47*OtherFeesAmount/8 -> 3465.753425 | I49: =UserInputs!$C47*OtherFeesAmount/8 -> 3465.753425 | J49: =UserInputs!$C47*OtherFeesAmount/8 -> 3465.753425 | L49: 6931.506849 | M49: =SUM(E49:J49,UserInputs!AA47) -> 121189.9558 | N49: =SUM(UserInputs!AE47,UserInputs!AF47) -> 0 | O49: =UserInputs!AH47 -> 300
A50: 34 | B50: =Timing!$E50 -> 2026-09-14 | C50: =UserInputs!$C48*OtherFeesAmount/8 -> 3541.09589 | D50: =UserInputs!$C48*OtherFeesAmount/8 -> 3541.09589 | E50: =UserInputs!$C48*OtherFeesAmount/8 -> 3541.09589 | F50: =UserInputs!$C48*OtherFeesAmount/8 -> 3541.09589 | G50: =UserInputs!$C48*OtherFeesAmount/8 -> 3541.09589 | H50: =UserInputs!$C48*OtherFeesAmount/8 -> 3541.09589 | I50: =UserInputs!$C48*OtherFeesAmount/8 -> 3541.09589 | J50: =UserInputs!$C48*OtherFeesAmount/8 -> 3541.09589 | L50: 7082.191781 | M50: =SUM(E50:J50,UserInputs!AA48) -> 121962.9402 | N50: =SUM(UserInputs!AE48,UserInputs!AF48) -> 0 | O50: =UserInputs!AH48 -> 300
A51: 35 | B51: =Timing!$E51 -> 2026-12-14 | C51: =UserInputs!$C49*OtherFeesAmount/8 -> 3428.082192 | D51: =UserInputs!$C49*OtherFeesAmount/8 -> 3428.082192 | E51: =UserInputs!$C49*OtherFeesAmount/8 -> 3428.082192 | F51: =UserInputs!$C49*OtherFeesAmount/8 -> 3428.082192 | G51: =UserInputs!$C49*OtherFeesAmount/8 -> 3428.082192 | H51: =UserInputs!$C49*OtherFeesAmount/8 -> 3428.082192 | I51: =UserInputs!$C49*OtherFeesAmount/8 -> 3428.082192 | J51: =UserInputs!$C49*OtherFeesAmount/8 -> 3428.082192 | L51: 6856.164384 | M51: =SUM(E51:J51,UserInputs!AA49) -> 116226.0389 | N51: =SUM(UserInputs!AE49,UserInputs!AF49) -> 0 | O51: =UserInputs!AH49 -> 300
A52: 36 | B52: =Timing!$E52 -> 2027-03-12 | C52: =UserInputs!$C50*OtherFeesAmount/8 -> 3315.068493 | D52: =UserInputs!$C50*OtherFeesAmount/8 -> 3315.068493 | E52: =UserInputs!$C50*OtherFeesAmount/8 -> 3315.068493 | F52: =UserInputs!$C50*OtherFeesAmount/8 -> 3315.068493 | G52: =UserInputs!$C50*OtherFeesAmount/8 -> 3315.068493 | H52: =UserInputs!$C50*OtherFeesAmount/8 -> 3315.068493 | I52: =UserInputs!$C50*OtherFeesAmount/8 -> 3315.068493 | J52: =UserInputs!$C50*OtherFeesAmount/8 -> 3315.068493 | L52: 6630.136986 | M52: =SUM(E52:J52,UserInputs!AA50) -> 110520.0533 | N52: =SUM(UserInputs!AE50,UserInputs!AF50) -> 0 | O52: =UserInputs!AH50 -> 300
A53: 37 | B53: =Timing!$E53 -> 2027-06-14 | C53: =UserInputs!$C51*OtherFeesAmount/8 -> 3541.09589 | D53: =UserInputs!$C51*OtherFeesAmount/8 -> 3541.09589 | E53: =UserInputs!$C51*OtherFeesAmount/8 -> 3541.09589 | F53: =UserInputs!$C51*OtherFeesAmount/8 -> 3541.09589 | G53: =UserInputs!$C51*OtherFeesAmount/8 -> 3541.09589 | H53: =UserInputs!$C51*OtherFeesAmount/8 -> 3541.09589 | I53: =UserInputs!$C51*OtherFeesAmount/8 -> 3541.09589 | J53: =UserInputs!$C51*OtherFeesAmount/8 -> 3541.09589 | L53: 7082.191781 | M53: =SUM(E53:J53,UserInputs!AA51) -> 116109.4423 | N53: =SUM(UserInputs!AE51,UserInputs!AF51) -> 0 | O53: =UserInputs!AH51 -> 300
A54: 38 | B54: =Timing!$E54 -> 2027-09-13 | C54: =UserInputs!$C52*OtherFeesAmount/8 -> 3428.082192 | D54: =UserInputs!$C52*OtherFeesAmount/8 -> 3428.082192 | E54: =UserInputs!$C52*OtherFeesAmount/8 -> 3428.082192 | F54: =UserInputs!$C52*OtherFeesAmount/8 -> 3428.082192 | G54: =UserInputs!$C52*OtherFeesAmount/8 -> 3428.082192 | H54: =UserInputs!$C52*OtherFeesAmount/8 -> 3428.082192 | I54: =UserInputs!$C52*OtherFeesAmount/8 -> 3428.082192 | J54: =UserInputs!$C52*OtherFeesAmount/8 -> 3428.082192 | L54: 6856.164384 | M54: =SUM(E54:J54,UserInputs!AA52) -> 110620.6551 | N54: =SUM(UserInputs!AE52,UserInputs!AF52) -> 0 | O54: =UserInputs!AH52 -> 300
A55: 39 | B55: =Timing!$E55 -> 2027-12-13 | C55: =UserInputs!$C53*OtherFeesAmount/8 -> 3428.082192 | D55: =UserInputs!$C53*OtherFeesAmount/8 -> 3428.082192 | E55: =UserInputs!$C53*OtherFeesAmount/8 -> 3428.082192 | F55: =UserInputs!$C53*OtherFeesAmount/8 -> 3428.082192 | G55: =UserInputs!$C53*OtherFeesAmount/8 -> 3428.082192 | H55: =UserInputs!$C53*OtherFeesAmount/8 -> 3428.082192 | I55: =UserInputs!$C53*OtherFeesAmount/8 -> 3428.082192 | J55: =UserInputs!$C53*OtherFeesAmount/8 -> 3428.082192 | L55: 6856.164384 | M55: =SUM(E55:J55,UserInputs!AA53) -> 108963.2187 | N55: =SUM(UserInputs!AE53,UserInputs!AF53) -> 0 | O55: =UserInputs!AH53 -> 300
A56: 40 | B56: =Timing!$E56 -> 2028-03-13 | C56: =UserInputs!$C54*OtherFeesAmount/8 -> 3428.082192 | D56: =UserInputs!$C54*OtherFeesAmount/8 -> 3428.082192 | E56: =UserInputs!$C54*OtherFeesAmount/8 -> 3428.082192 | F56: =UserInputs!$C54*OtherFeesAmount/8 -> 3428.082192 | G56: =UserInputs!$C54*OtherFeesAmount/8 -> 3428.082192 | H56: =UserInputs!$C54*OtherFeesAmount/8 -> 3428.082192 | I56: =UserInputs!$C54*OtherFeesAmount/8 -> 3428.082192 | J56: =UserInputs!$C54*OtherFeesAmount/8 -> 3428.082192 | L56: 6856.164384 | M56: =SUM(E56:J56,UserInputs!AA54) -> 107186.3984 | N56: =SUM(UserInputs!AE54,UserInputs!AF54) -> 0 | O56: =UserInputs!AH54 -> 300
A57: 41 | B57: =Timing!$E57 -> 2028-06-12 | C57: =UserInputs!$C55*OtherFeesAmount/8 -> 3428.082192 | D57: =UserInputs!$C55*OtherFeesAmount/8 -> 3428.082192 | E57: =UserInputs!$C55*OtherFeesAmount/8 -> 3428.082192 | F57: =UserInputs!$C55*OtherFeesAmount/8 -> 3428.082192 | G57: =UserInputs!$C55*OtherFeesAmount/8 -> 3428.082192 | H57: =UserInputs!$C55*OtherFeesAmount/8 -> 3428.082192 | I57: =UserInputs!$C55*OtherFeesAmount/8 -> 3428.082192 | J57: =UserInputs!$C55*OtherFeesAmount/8 -> 3428.082192 | L57: 6856.164384 | M57: =SUM(E57:J57,UserInputs!AA55) -> 105635.7666 | N57: =SUM(UserInputs!AE55,UserInputs!AF55) -> 0 | O57: =UserInputs!AH55 -> 300
A58: 42 | B58: =Timing!$E58 -> 2028-09-12 | C58: =UserInputs!$C56*OtherFeesAmount/8 -> 3465.753425 | D58: =UserInputs!$C56*OtherFeesAmount/8 -> 3465.753425 | E58: =UserInputs!$C56*OtherFeesAmount/8 -> 3465.753425 | F58: =UserInputs!$C56*OtherFeesAmount/8 -> 3465.753425 | G58: =UserInputs!$C56*OtherFeesAmount/8 -> 3465.753425 | H58: =UserInputs!$C56*OtherFeesAmount/8 -> 3465.753425 | I58: =UserInputs!$C56*OtherFeesAmount/8 -> 3465.753425 | J58: =UserInputs!$C56*OtherFeesAmount/8 -> 3465.753425 | L58: 6931.506849 | M58: =SUM(E58:J58,UserInputs!AA56) -> 105248.6001 | N58: =SUM(UserInputs!AE56,UserInputs!AF56) -> 0 | O58: =UserInputs!AH56 -> 300
A59: 43 | B59: =Timing!$E59 -> 2028-12-12 | C59: =UserInputs!$C57*OtherFeesAmount/8 -> 3428.082192 | D59: =UserInputs!$C57*OtherFeesAmount/8 -> 3428.082192 | E59: =UserInputs!$C57*OtherFeesAmount/8 -> 3428.082192 | F59: =UserInputs!$C57*OtherFeesAmount/8 -> 3428.082192 | G59: =UserInputs!$C57*OtherFeesAmount/8 -> 3428.082192 | H59: =UserInputs!$C57*OtherFeesAmount/8 -> 3428.082192 | I59: =UserInputs!$C57*OtherFeesAmount/8 -> 3428.082192 | J59: =UserInputs!$C57*OtherFeesAmount/8 -> 3428.082192 | L59: 6856.164384 | M59: =SUM(E59:J59,UserInputs!AA57) -> 102592.9397 | N59: =SUM(UserInputs!AE57,UserInputs!AF57) -> 0 | O59: =UserInputs!AH57 -> 300
A60: 44 | B60: =Timing!$E60 -> 2029-03-12 | C60: =UserInputs!$C58*OtherFeesAmount/8 -> 3390.410959 | D60: =UserInputs!$C58*OtherFeesAmount/8 -> 3390.410959 | E60: =UserInputs!$C58*OtherFeesAmount/8 -> 3390.410959 | F60: =UserInputs!$C58*OtherFeesAmount/8 -> 3390.410959 | G60: =UserInputs!$C58*OtherFeesAmount/8 -> 3390.410959 | H60: =UserInputs!$C58*OtherFeesAmount/8 -> 3390.410959 | I60: =UserInputs!$C58*OtherFeesAmount/8 -> 3390.410959 | J60: =UserInputs!$C58*OtherFeesAmount/8 -> 3390.410959 | L60: 6780.821918 | M60: =SUM(E60:J60,UserInputs!AA58) -> 99989.50315 | N60: =SUM(UserInputs!AE58,UserInputs!AF58) -> 0 | O60: =UserInputs!AH58 -> 300
A61: 45 | B61: =Timing!$E61 -> 2029-06-12 | C61: =UserInputs!$C59*OtherFeesAmount/8 -> 3465.753425 | D61: =UserInputs!$C59*OtherFeesAmount/8 -> 3465.753425 | E61: =UserInputs!$C59*OtherFeesAmount/8 -> 3465.753425 | F61: =UserInputs!$C59*OtherFeesAmount/8 -> 3465.753425 | G61: =UserInputs!$C59*OtherFeesAmount/8 -> 3465.753425 | H61: =UserInputs!$C59*OtherFeesAmount/8 -> 3465.753425 | I61: =UserInputs!$C59*OtherFeesAmount/8 -> 3465.753425 | J61: =UserInputs!$C59*OtherFeesAmount/8 -> 3465.753425 | L61: 6931.506849 | M61: =SUM(E61:J61,UserInputs!AA59) -> 99717.68084 | N61: =SUM(UserInputs!AE59,UserInputs!AF59) -> 0 | O61: =UserInputs!AH59 -> 300
A62: 46 | B62: =Timing!$E62 -> 2029-09-12 | C62: =UserInputs!$C60*OtherFeesAmount/8 -> 3465.753425 | D62: =UserInputs!$C60*OtherFeesAmount/8 -> 3465.753425 | E62: =UserInputs!$C60*OtherFeesAmount/8 -> 3465.753425 | F62: =UserInputs!$C60*OtherFeesAmount/8 -> 3465.753425 | G62: =UserInputs!$C60*OtherFeesAmount/8 -> 3465.753425 | H62: =UserInputs!$C60*OtherFeesAmount/8 -> 3465.753425 | I62: =UserInputs!$C60*OtherFeesAmount/8 -> 3465.753425 | J62: =UserInputs!$C60*OtherFeesAmount/8 -> 3465.753425 | L62: 6931.506849 | M62: =SUM(E62:J62,UserInputs!AA60) -> 97405.32079 | N62: =SUM(UserInputs!AE60,UserInputs!AF60) -> 0 | O62: =UserInputs!AH60 -> 300
A63: 47 | B63: =Timing!$E63 -> 2029-12-12 | C63: =UserInputs!$C61*OtherFeesAmount/8 -> 3428.082192 | D63: =UserInputs!$C61*OtherFeesAmount/8 -> 3428.082192 | E63: =UserInputs!$C61*OtherFeesAmount/8 -> 3428.082192 | F63: =UserInputs!$C61*OtherFeesAmount/8 -> 3428.082192 | G63: =UserInputs!$C61*OtherFeesAmount/8 -> 3428.082192 | H63: =UserInputs!$C61*OtherFeesAmount/8 -> 3428.082192 | I63: =UserInputs!$C61*OtherFeesAmount/8 -> 3428.082192 | J63: =UserInputs!$C61*OtherFeesAmount/8 -> 3428.082192 | L63: 6856.164384 | M63: =SUM(E63:J63,UserInputs!AA61) -> 94271.10446 | N63: =SUM(UserInputs!AE61,UserInputs!AF61) -> 0 | O63: =UserInputs!AH61 -> 300
A64: 48 | B64: =Timing!$E64 -> 2030-03-12 | C64: =UserInputs!$C62*OtherFeesAmount/8 -> 3390.410959 | D64: =UserInputs!$C62*OtherFeesAmount/8 -> 3390.410959 | E64: =UserInputs!$C62*OtherFeesAmount/8 -> 3390.410959 | F64: =UserInputs!$C62*OtherFeesAmount/8 -> 3390.410959 | G64: =UserInputs!$C62*OtherFeesAmount/8 -> 3390.410959 | H64: =UserInputs!$C62*OtherFeesAmount/8 -> 3390.410959 | I64: =UserInputs!$C62*OtherFeesAmount/8 -> 3390.410959 | J64: =UserInputs!$C62*OtherFeesAmount/8 -> 3390.410959 | L64: 6780.821918 | M64: =SUM(E64:J64,UserInputs!AA62) -> 90887.44647 | N64: =SUM(UserInputs!AE62,UserInputs!AF62) -> 0 | O64: =UserInputs!AH62 -> 300
A65: 49 | B65: =Timing!$E65 -> 2030-06-12 | C65: =UserInputs!$C63*OtherFeesAmount/8 -> 3465.753425 | D65: =UserInputs!$C63*OtherFeesAmount/8 -> 3465.753425 | E65: =UserInputs!$C63*OtherFeesAmount/8 -> 3465.753425 | F65: =UserInputs!$C63*OtherFeesAmount/8 -> 3465.753425 | G65: =UserInputs!$C63*OtherFeesAmount/8 -> 3465.753425 | H65: =UserInputs!$C63*OtherFeesAmount/8 -> 3465.753425 | I65: =UserInputs!$C63*OtherFeesAmount/8 -> 3465.753425 | J65: =UserInputs!$C63*OtherFeesAmount/8 -> 3465.753425 | L65: 6931.506849 | M65: =SUM(E65:J65,UserInputs!AA63) -> 90869.86691 | N65: =SUM(UserInputs!AE63,UserInputs!AF63) -> 0 | O65: =UserInputs!AH63 -> 300
A66: 50 | B66: =Timing!$E66 -> 2030-09-12 | C66: =UserInputs!$C64*OtherFeesAmount/8 -> 3465.753425 | D66: =UserInputs!$C64*OtherFeesAmount/8 -> 3465.753425 | E66: =UserInputs!$C64*OtherFeesAmount/8 -> 3465.753425 | F66: =UserInputs!$C64*OtherFeesAmount/8 -> 3465.753425 | G66: =UserInputs!$C64*OtherFeesAmount/8 -> 3465.753425 | H66: =UserInputs!$C64*OtherFeesAmount/8 -> 3465.753425 | I66: =UserInputs!$C64*OtherFeesAmount/8 -> 3465.753425 | J66: =UserInputs!$C64*OtherFeesAmount/8 -> 3465.753425 | L66: 6931.506849 | M66: =SUM(E66:J66,UserInputs!AA64) -> 88759.0551 | N66: =SUM(UserInputs!AE64,UserInputs!AF64) -> 0 | O66: =UserInputs!AH64 -> 300
A67: 51 | B67: =Timing!$E67 -> 2030-12-12 | C67: =UserInputs!$C65*OtherFeesAmount/8 -> 3428.082192 | D67: =UserInputs!$C65*OtherFeesAmount/8 -> 3428.082192 | E67: =UserInputs!$C65*OtherFeesAmount/8 -> 3428.082192 | F67: =UserInputs!$C65*OtherFeesAmount/8 -> 3428.082192 | G67: =UserInputs!$C65*OtherFeesAmount/8 -> 3428.082192 | H67: =UserInputs!$C65*OtherFeesAmount/8 -> 3428.082192 | I67: =UserInputs!$C65*OtherFeesAmount/8 -> 3428.082192 | J67: =UserInputs!$C65*OtherFeesAmount/8 -> 3428.082192 | L67: 6856.164384 | M67: =SUM(E67:J67,UserInputs!AA65) -> 85669.16856 | N67: =SUM(UserInputs!AE65,UserInputs!AF65) -> 0 | O67: =UserInputs!AH65 -> 300
A68: 52 | B68: =Timing!$E68 -> 2031-03-12 | C68: =UserInputs!$C66*OtherFeesAmount/8 -> 3390.410959 | D68: =UserInputs!$C66*OtherFeesAmount/8 -> 3390.410959 | E68: =UserInputs!$C66*OtherFeesAmount/8 -> 3390.410959 | F68: =UserInputs!$C66*OtherFeesAmount/8 -> 3390.410959 | G68: =UserInputs!$C66*OtherFeesAmount/8 -> 3390.410959 | H68: =UserInputs!$C66*OtherFeesAmount/8 -> 3390.410959 | I68: =UserInputs!$C66*OtherFeesAmount/8 -> 3390.410959 | J68: =UserInputs!$C66*OtherFeesAmount/8 -> 3390.410959 | L68: 6780.821918 | M68: =SUM(E68:J68,UserInputs!AA66) -> 82928.53431 | N68: =SUM(UserInputs!AE66,UserInputs!AF66) -> 0 | O68: =UserInputs!AH66 -> 300
A69: 53 | B69: =Timing!$E69 -> 2031-06-12 | C69: =UserInputs!$C67*OtherFeesAmount/8 -> 3465.753425 | D69: =UserInputs!$C67*OtherFeesAmount/8 -> 3465.753425 | E69: =UserInputs!$C67*OtherFeesAmount/8 -> 3465.753425 | F69: =UserInputs!$C67*OtherFeesAmount/8 -> 3465.753425 | G69: =UserInputs!$C67*OtherFeesAmount/8 -> 3465.753425 | H69: =UserInputs!$C67*OtherFeesAmount/8 -> 3465.753425 | I69: =UserInputs!$C67*OtherFeesAmount/8 -> 3465.753425 | J69: =UserInputs!$C67*OtherFeesAmount/8 -> 3465.753425 | L69: 6931.506849 | M69: =SUM(E69:J69,UserInputs!AA67) -> 82655.52349 | N69: =SUM(UserInputs!AE67,UserInputs!AF67) -> 0 | O69: =UserInputs!AH67 -> 300
A70: 54 | B70: =Timing!$E70 -> 2031-09-12 | C70: =UserInputs!$C68*OtherFeesAmount/8 -> 3465.753425 | D70: =UserInputs!$C68*OtherFeesAmount/8 -> 3465.753425 | E70: =UserInputs!$C68*OtherFeesAmount/8 -> 3465.753425 | F70: =UserInputs!$C68*OtherFeesAmount/8 -> 3465.753425 | G70: =UserInputs!$C68*OtherFeesAmount/8 -> 3465.753425 | H70: =UserInputs!$C68*OtherFeesAmount/8 -> 3465.753425 | I70: =UserInputs!$C68*OtherFeesAmount/8 -> 3465.753425 | J70: =UserInputs!$C68*OtherFeesAmount/8 -> 3465.753425 | L70: 6931.506849 | M70: =SUM(E70:J70,UserInputs!AA68) -> 80678.31442 | N70: =SUM(UserInputs!AE68,UserInputs!AF68) -> 0 | O70: =UserInputs!AH68 -> 300
A71: 55 | B71: =Timing!$E71 -> 2031-12-12 | C71: =UserInputs!$C69*OtherFeesAmount/8 -> 3428.082192 | D71: =UserInputs!$C69*OtherFeesAmount/8 -> 3428.082192 | E71: =UserInputs!$C69*OtherFeesAmount/8 -> 3428.082192 | F71: =UserInputs!$C69*OtherFeesAmount/8 -> 3428.082192 | G71: =UserInputs!$C69*OtherFeesAmount/8 -> 3428.082192 | H71: =UserInputs!$C69*OtherFeesAmount/8 -> 3428.082192 | I71: =UserInputs!$C69*OtherFeesAmount/8 -> 3428.082192 | J71: =UserInputs!$C69*OtherFeesAmount/8 -> 3428.082192 | L71: 6856.164384 | M71: =SUM(E71:J71,UserInputs!AA69) -> 77985.16489 | N71: =SUM(UserInputs!AE69,UserInputs!AF69) -> 0 | O71: =UserInputs!AH69 -> 300
A72: 56 | B72: =Timing!$E72 -> 2032-03-12 | C72: =UserInputs!$C70*OtherFeesAmount/8 -> 3428.082192 | D72: =UserInputs!$C70*OtherFeesAmount/8 -> 3428.082192 | E72: =UserInputs!$C70*OtherFeesAmount/8 -> 3428.082192 | F72: =UserInputs!$C70*OtherFeesAmount/8 -> 3428.082192 | G72: =UserInputs!$C70*OtherFeesAmount/8 -> 3428.082192 | H72: =UserInputs!$C70*OtherFeesAmount/8 -> 3428.082192 | I72: =UserInputs!$C70*OtherFeesAmount/8 -> 3428.082192 | J72: =UserInputs!$C70*OtherFeesAmount/8 -> 3428.082192 | L72: 6856.164384 | M72: =SUM(E72:J72,UserInputs!AA70) -> 75859.52492 | N72: =SUM(UserInputs!AE70,UserInputs!AF70) -> 0 | O72: =UserInputs!AH70 -> 300
A73: 57 | B73: =Timing!$E73 -> 2032-06-14 | C73: =UserInputs!$C71*OtherFeesAmount/8 -> 3541.09589 | D73: =UserInputs!$C71*OtherFeesAmount/8 -> 3541.09589 | E73: =UserInputs!$C71*OtherFeesAmount/8 -> 3541.09589 | F73: =UserInputs!$C71*OtherFeesAmount/8 -> 3541.09589 | G73: =UserInputs!$C71*OtherFeesAmount/8 -> 3541.09589 | H73: =UserInputs!$C71*OtherFeesAmount/8 -> 3541.09589 | I73: =UserInputs!$C71*OtherFeesAmount/8 -> 3541.09589 | J73: =UserInputs!$C71*OtherFeesAmount/8 -> 3541.09589 | L73: 7082.191781 | M73: =SUM(E73:J73,UserInputs!AA71) -> 76583.48236 | N73: =SUM(UserInputs!AE71,UserInputs!AF71) -> 0 | O73: =UserInputs!AH71 -> 300
A74: 58 | B74: =Timing!$E74 -> 2032-09-13 | C74: =UserInputs!$C72*OtherFeesAmount/8 -> 3428.082192 | D74: =UserInputs!$C72*OtherFeesAmount/8 -> 3428.082192 | E74: =UserInputs!$C72*OtherFeesAmount/8 -> 3428.082192 | F74: =UserInputs!$C72*OtherFeesAmount/8 -> 3428.082192 | G74: =UserInputs!$C72*OtherFeesAmount/8 -> 3428.082192 | H74: =UserInputs!$C72*OtherFeesAmount/8 -> 3428.082192 | I74: =UserInputs!$C72*OtherFeesAmount/8 -> 3428.082192 | J74: =UserInputs!$C72*OtherFeesAmount/8 -> 3428.082192 | L74: 6856.164384 | M74: =SUM(E74:J74,UserInputs!AA72) -> 72330.72924 | N74: =SUM(UserInputs!AE72,UserInputs!AF72) -> 0 | O74: =UserInputs!AH72 -> 300
A75: 59 | B75: =Timing!$E75 -> 2032-12-13 | C75: =UserInputs!$C73*OtherFeesAmount/8 -> 3428.082192 | D75: =UserInputs!$C73*OtherFeesAmount/8 -> 3428.082192 | E75: =UserInputs!$C73*OtherFeesAmount/8 -> 3428.082192 | F75: =UserInputs!$C73*OtherFeesAmount/8 -> 3428.082192 | G75: =UserInputs!$C73*OtherFeesAmount/8 -> 3428.082192 | H75: =UserInputs!$C73*OtherFeesAmount/8 -> 3428.082192 | I75: =UserInputs!$C73*OtherFeesAmount/8 -> 3428.082192 | J75: =UserInputs!$C73*OtherFeesAmount/8 -> 3428.082192 | L75: 6856.164384 | M75: =SUM(E75:J75,UserInputs!AA73) -> 70369.01212 | N75: =SUM(UserInputs!AE73,UserInputs!AF73) -> 0 | O75: =UserInputs!AH73 -> 300
A76: 60 | B76: =Timing!$E76 -> 2033-03-14 | C76: =UserInputs!$C74*OtherFeesAmount/8 -> 3428.082192 | D76: =UserInputs!$C74*OtherFeesAmount/8 -> 3428.082192 | E76: =UserInputs!$C74*OtherFeesAmount/8 -> 3428.082192 | F76: =UserInputs!$C74*OtherFeesAmount/8 -> 3428.082192 | G76: =UserInputs!$C74*OtherFeesAmount/8 -> 3428.082192 | H76: =UserInputs!$C74*OtherFeesAmount/8 -> 3428.082192 | I76: =UserInputs!$C74*OtherFeesAmount/8 -> 3428.082192 | J76: =UserInputs!$C74*OtherFeesAmount/8 -> 3428.082192 | L76: 6856.164384 | M76: =SUM(E76:J76,UserInputs!AA74) -> 68659.96698 | N76: =SUM(UserInputs!AE74,UserInputs!AF74) -> 0 | O76: =UserInputs!AH74 -> 300
A77: 61 | B77: =Timing!$E77 -> 2033-06-13 | C77: =UserInputs!$C75*OtherFeesAmount/8 -> 3428.082192 | D77: =UserInputs!$C75*OtherFeesAmount/8 -> 3428.082192 | E77: =UserInputs!$C75*OtherFeesAmount/8 -> 3428.082192 | F77: =UserInputs!$C75*OtherFeesAmount/8 -> 3428.082192 | G77: =UserInputs!$C75*OtherFeesAmount/8 -> 3428.082192 | H77: =UserInputs!$C75*OtherFeesAmount/8 -> 3428.082192 | I77: =UserInputs!$C75*OtherFeesAmount/8 -> 3428.082192 | J77: =UserInputs!$C75*OtherFeesAmount/8 -> 3428.082192 | L77: 6856.164384 | M77: =SUM(E77:J77,UserInputs!AA75) -> 67700.47956 | N77: =SUM(UserInputs!AE75,UserInputs!AF75) -> 0 | O77: =UserInputs!AH75 -> 300
A78: 62 | B78: =Timing!$E78 -> 2033-09-12 | C78: =UserInputs!$C76*OtherFeesAmount/8 -> 3428.082192 | D78: =UserInputs!$C76*OtherFeesAmount/8 -> 3428.082192 | E78: =UserInputs!$C76*OtherFeesAmount/8 -> 3428.082192 | F78: =UserInputs!$C76*OtherFeesAmount/8 -> 3428.082192 | G78: =UserInputs!$C76*OtherFeesAmount/8 -> 3428.082192 | H78: =UserInputs!$C76*OtherFeesAmount/8 -> 3428.082192 | I78: =UserInputs!$C76*OtherFeesAmount/8 -> 3428.082192 | J78: =UserInputs!$C76*OtherFeesAmount/8 -> 3428.082192 | L78: 6856.164384 | M78: =SUM(E78:J78,UserInputs!AA76) -> 66815.50004 | N78: =SUM(UserInputs!AE76,UserInputs!AF76) -> 0 | O78: =UserInputs!AH76 -> 300
A79: 63 | B79: =Timing!$E79 -> 2033-12-12 | C79: =UserInputs!$C77*OtherFeesAmount/8 -> 3428.082192 | D79: =UserInputs!$C77*OtherFeesAmount/8 -> 3428.082192 | E79: =UserInputs!$C77*OtherFeesAmount/8 -> 3428.082192 | F79: =UserInputs!$C77*OtherFeesAmount/8 -> 3428.082192 | G79: =UserInputs!$C77*OtherFeesAmount/8 -> 3428.082192 | H79: =UserInputs!$C77*OtherFeesAmount/8 -> 3428.082192 | I79: =UserInputs!$C77*OtherFeesAmount/8 -> 3428.082192 | J79: =UserInputs!$C77*OtherFeesAmount/8 -> 3428.082192 | L79: 6856.164384 | M79: =SUM(E79:J79,UserInputs!AA77) -> 65941.88005 | N79: =SUM(UserInputs!AE77,UserInputs!AF77) -> 0 | O79: =UserInputs!AH77 -> 300
A80: 64 | B80: =Timing!$E80 -> 2034-03-13 | C80: =UserInputs!$C78*OtherFeesAmount/8 -> 3428.082192 | D80: =UserInputs!$C78*OtherFeesAmount/8 -> 3428.082192 | E80: =UserInputs!$C78*OtherFeesAmount/8 -> 3428.082192 | F80: =UserInputs!$C78*OtherFeesAmount/8 -> 3428.082192 | G80: =UserInputs!$C78*OtherFeesAmount/8 -> 3428.082192 | H80: =UserInputs!$C78*OtherFeesAmount/8 -> 3428.082192 | I80: =UserInputs!$C78*OtherFeesAmount/8 -> 3428.082192 | J80: =UserInputs!$C78*OtherFeesAmount/8 -> 3428.082192 | L80: 6856.164384 | M80: =SUM(E80:J80,UserInputs!AA78) -> 65079.48072 | N80: =SUM(UserInputs!AE78,UserInputs!AF78) -> 0 | O80: =UserInputs!AH78 -> 300
A81: 65 | B81: =Timing!$E81 -> 2034-06-12 | C81: =UserInputs!$C79*OtherFeesAmount/8 -> 3428.082192 | D81: =UserInputs!$C79*OtherFeesAmount/8 -> 3428.082192 | E81: =UserInputs!$C79*OtherFeesAmount/8 -> 3428.082192 | F81: =UserInputs!$C79*OtherFeesAmount/8 -> 3428.082192 | G81: =UserInputs!$C79*OtherFeesAmount/8 -> 3428.082192 | H81: =UserInputs!$C79*OtherFeesAmount/8 -> 3428.082192 | I81: =UserInputs!$C79*OtherFeesAmount/8 -> 3428.082192 | J81: =UserInputs!$C79*OtherFeesAmount/8 -> 3428.082192 | L81: 6856.164384 | M81: =SUM(E81:J81,UserInputs!AA79) -> 62809.76652 | N81: =SUM(UserInputs!AE79,UserInputs!AF79) -> 0 | O81: =UserInputs!AH79 -> 300
A82: 66 | B82: =Timing!$E82 -> 2034-09-12 | C82: =UserInputs!$C80*OtherFeesAmount/8 -> 3465.753425 | D82: =UserInputs!$C80*OtherFeesAmount/8 -> 3465.753425 | E82: =UserInputs!$C80*OtherFeesAmount/8 -> 3465.753425 | F82: =UserInputs!$C80*OtherFeesAmount/8 -> 3465.753425 | G82: =UserInputs!$C80*OtherFeesAmount/8 -> 3465.753425 | H82: =UserInputs!$C80*OtherFeesAmount/8 -> 3465.753425 | I82: =UserInputs!$C80*OtherFeesAmount/8 -> 3465.753425 | J82: =UserInputs!$C80*OtherFeesAmount/8 -> 3465.753425 | L82: =C82+D82 -> 6931.506849 | M82: =SUM(E82:J82,UserInputs!AA80) -> 61084.82801 | N82: =SUM(UserInputs!AE80,UserInputs!AF80) -> 0 | O82: =UserInputs!AH80 -> 300
A83: 67 | B83: =Timing!$E83 -> 2034-12-12 | C83: =UserInputs!$C81*OtherFeesAmount/8 -> 3428.082192 | D83: =UserInputs!$C81*OtherFeesAmount/8 -> 3428.082192 | E83: =UserInputs!$C81*OtherFeesAmount/8 -> 3428.082192 | F83: =UserInputs!$C81*OtherFeesAmount/8 -> 3428.082192 | G83: =UserInputs!$C81*OtherFeesAmount/8 -> 3428.082192 | H83: =UserInputs!$C81*OtherFeesAmount/8 -> 3428.082192 | I83: =UserInputs!$C81*OtherFeesAmount/8 -> 3428.082192 | J83: =UserInputs!$C81*OtherFeesAmount/8 -> 3428.082192 | L83: 6856.164384 | M83: =SUM(E83:J83,UserInputs!AA81) -> 58264.75588 | N83: =SUM(UserInputs!AE81,UserInputs!AF81) -> 0 | O83: =UserInputs!AH81 -> 300
A84: 68 | B84: =Timing!$E84 -> 2035-03-12 | C84: =UserInputs!$C82*OtherFeesAmount/8 -> 3390.410959 | D84: =UserInputs!$C82*OtherFeesAmount/8 -> 3390.410959 | E84: =UserInputs!$C82*OtherFeesAmount/8 -> 3390.410959 | F84: =UserInputs!$C82*OtherFeesAmount/8 -> 3390.410959 | G84: =UserInputs!$C82*OtherFeesAmount/8 -> 3390.410959 | H84: =UserInputs!$C82*OtherFeesAmount/8 -> 3390.410959 | I84: =UserInputs!$C82*OtherFeesAmount/8 -> 3390.410959 | J84: =UserInputs!$C82*OtherFeesAmount/8 -> 3390.410959 | L84: 6780.821918 | M84: =SUM(E84:J84,UserInputs!AA82) -> 55421.22535 | N84: =SUM(UserInputs!AE82,UserInputs!AF82) -> 0 | O84: =UserInputs!AH82 -> 300
A85: 69 | B85: =Timing!$E85 -> 2035-06-12 | C85: =UserInputs!$C83*OtherFeesAmount/8 -> 3465.753425 | D85: =UserInputs!$C83*OtherFeesAmount/8 -> 3465.753425 | E85: =UserInputs!$C83*OtherFeesAmount/8 -> 3465.753425 | F85: =UserInputs!$C83*OtherFeesAmount/8 -> 3465.753425 | G85: =UserInputs!$C83*OtherFeesAmount/8 -> 3465.753425 | H85: =UserInputs!$C83*OtherFeesAmount/8 -> 3465.753425 | I85: =UserInputs!$C83*OtherFeesAmount/8 -> 3465.753425 | J85: =UserInputs!$C83*OtherFeesAmount/8 -> 3465.753425 | L85: 6931.506849 | M85: =SUM(E85:J85,UserInputs!AA83) -> 54378.30173 | N85: =SUM(UserInputs!AE83,UserInputs!AF83) -> 0 | O85: =UserInputs!AH83 -> 300
A86: 70 | B86: =Timing!$E86 -> 2035-09-12 | C86: =UserInputs!$C84*OtherFeesAmount/8 -> 3465.753425 | D86: =UserInputs!$C84*OtherFeesAmount/8 -> 3465.753425 | E86: =UserInputs!$C84*OtherFeesAmount/8 -> 3465.753425 | F86: =UserInputs!$C84*OtherFeesAmount/8 -> 3465.753425 | G86: =UserInputs!$C84*OtherFeesAmount/8 -> 3465.753425 | H86: =UserInputs!$C84*OtherFeesAmount/8 -> 3465.753425 | I86: =UserInputs!$C84*OtherFeesAmount/8 -> 3465.753425 | J86: =UserInputs!$C84*OtherFeesAmount/8 -> 3465.753425 | L86: 6931.506849 | M86: =SUM(E86:J86,UserInputs!AA84) -> 52233.7316 | N86: =SUM(UserInputs!AE84,UserInputs!AF84) -> 0 | O86: =UserInputs!AH84 -> 300
A87: 71 | B87: =Timing!$E87 -> 2035-12-12 | C87: =UserInputs!$C85*OtherFeesAmount/8 -> 3428.082192 | D87: =UserInputs!$C85*OtherFeesAmount/8 -> 3428.082192 | E87: =UserInputs!$C85*OtherFeesAmount/8 -> 3428.082192 | F87: =UserInputs!$C85*OtherFeesAmount/8 -> 3428.082192 | G87: =UserInputs!$C85*OtherFeesAmount/8 -> 3428.082192 | H87: =UserInputs!$C85*OtherFeesAmount/8 -> 3428.082192 | I87: =UserInputs!$C85*OtherFeesAmount/8 -> 3428.082192 | J87: =UserInputs!$C85*OtherFeesAmount/8 -> 3428.082192 | L87: 6856.164384 | M87: =SUM(E87:J87,UserInputs!AA85) -> 49819.43005 | N87: =SUM(UserInputs!AE85,UserInputs!AF85) -> 0 | O87: =UserInputs!AH85 -> 300
A88: 72 | B88: =Timing!$E88 -> 2036-03-12 | C88: =UserInputs!$C86*OtherFeesAmount/8 -> 3428.082192 | D88: =UserInputs!$C86*OtherFeesAmount/8 -> 3428.082192 | E88: =UserInputs!$C86*OtherFeesAmount/8 -> 3428.082192 | F88: =UserInputs!$C86*OtherFeesAmount/8 -> 3428.082192 | G88: =UserInputs!$C86*OtherFeesAmount/8 -> 3428.082192 | H88: =UserInputs!$C86*OtherFeesAmount/8 -> 3428.082192 | I88: =UserInputs!$C86*OtherFeesAmount/8 -> 3428.082192 | J88: =UserInputs!$C86*OtherFeesAmount/8 -> 3428.082192 | L88: 6856.164384 | M88: =SUM(E88:J88,UserInputs!AA86) -> 47531.31958 | N88: =SUM(UserInputs!AE86,UserInputs!AF86) -> 0 | O88: =UserInputs!AH86 -> 300
A89: 73 | B89: =Timing!$E89 -> 2036-06-12 | C89: =UserInputs!$C87*OtherFeesAmount/8 -> 3465.753425 | D89: =UserInputs!$C87*OtherFeesAmount/8 -> 3465.753425 | E89: =UserInputs!$C87*OtherFeesAmount/8 -> 3465.753425 | F89: =UserInputs!$C87*OtherFeesAmount/8 -> 3465.753425 | G89: =UserInputs!$C87*OtherFeesAmount/8 -> 3465.753425 | H89: =UserInputs!$C87*OtherFeesAmount/8 -> 3465.753425 | I89: =UserInputs!$C87*OtherFeesAmount/8 -> 3465.753425 | J89: =UserInputs!$C87*OtherFeesAmount/8 -> 3465.753425 | L89: 6931.506849 | M89: =SUM(E89:J89,UserInputs!AA87) -> 46092.2874 | N89: =SUM(UserInputs!AE87,UserInputs!AF87) -> 0 | O89: =UserInputs!AH87 -> 300
A90: 74 | B90: =Timing!$E90 -> 2036-09-12 | C90: =UserInputs!$C88*OtherFeesAmount/8 -> 3465.753425 | D90: =UserInputs!$C88*OtherFeesAmount/8 -> 3465.753425 | E90: =UserInputs!$C88*OtherFeesAmount/8 -> 3465.753425 | F90: =UserInputs!$C88*OtherFeesAmount/8 -> 3465.753425 | G90: =UserInputs!$C88*OtherFeesAmount/8 -> 3465.753425 | H90: =UserInputs!$C88*OtherFeesAmount/8 -> 3465.753425 | I90: =UserInputs!$C88*OtherFeesAmount/8 -> 3465.753425 | J90: =UserInputs!$C88*OtherFeesAmount/8 -> 3465.753425 | L90: 6931.506849 | M90: =SUM(E90:J90,UserInputs!AA88) -> 44218.86851 | N90: =SUM(UserInputs!AE88,UserInputs!AF88) -> 0 | O90: =UserInputs!AH88 -> 300
A91: 75 | B91: =Timing!$E91 -> 2036-12-12 | C91: =UserInputs!$C89*OtherFeesAmount/8 -> 3428.082192 | D91: =UserInputs!$C89*OtherFeesAmount/8 -> 3428.082192 | E91: =UserInputs!$C89*OtherFeesAmount/8 -> 3428.082192 | F91: =UserInputs!$C89*OtherFeesAmount/8 -> 3428.082192 | G91: =UserInputs!$C89*OtherFeesAmount/8 -> 3428.082192 | H91: =UserInputs!$C89*OtherFeesAmount/8 -> 3428.082192 | I91: =UserInputs!$C89*OtherFeesAmount/8 -> 3428.082192 | J91: =UserInputs!$C89*OtherFeesAmount/8 -> 3428.082192 | L91: 6856.164384 | M91: =SUM(E91:J91,UserInputs!AA89) -> 41941.84357 | N91: =SUM(UserInputs!AE89,UserInputs!AF89) -> 0 | O91: =UserInputs!AH89 -> 300
A92: 76 | B92: =Timing!$E92 -> 2037-03-12 | C92: =UserInputs!$C90*OtherFeesAmount/8 -> 3390.410959 | D92: =UserInputs!$C90*OtherFeesAmount/8 -> 3390.410959 | E92: =UserInputs!$C90*OtherFeesAmount/8 -> 3390.410959 | F92: =UserInputs!$C90*OtherFeesAmount/8 -> 3390.410959 | G92: =UserInputs!$C90*OtherFeesAmount/8 -> 3390.410959 | H92: =UserInputs!$C90*OtherFeesAmount/8 -> 3390.410959 | I92: =UserInputs!$C90*OtherFeesAmount/8 -> 3390.410959 | J92: =UserInputs!$C90*OtherFeesAmount/8 -> 3390.410959 | L92: 6780.821918 | M92: =SUM(E92:J92,UserInputs!AA90) -> 39616.2608 | N92: =SUM(UserInputs!AE90,UserInputs!AF90) -> 0 | O92: =UserInputs!AH90 -> 300
A93: 77 | B93: =Timing!$E93 -> 2037-06-12 | C93: =UserInputs!$C91*OtherFeesAmount/8 -> 3465.753425 | D93: =UserInputs!$C91*OtherFeesAmount/8 -> 3465.753425 | E93: =UserInputs!$C91*OtherFeesAmount/8 -> 3465.753425 | F93: =UserInputs!$C91*OtherFeesAmount/8 -> 3465.753425 | G93: =UserInputs!$C91*OtherFeesAmount/8 -> 3465.753425 | H93: =UserInputs!$C91*OtherFeesAmount/8 -> 3465.753425 | I93: =UserInputs!$C91*OtherFeesAmount/8 -> 3465.753425 | J93: =UserInputs!$C91*OtherFeesAmount/8 -> 3465.753425 | L93: 6931.506849 | M93: =SUM(E93:J93,UserInputs!AA91) -> 38688.07125 | N93: =SUM(UserInputs!AE91,UserInputs!AF91) -> 0 | O93: =UserInputs!AH91 -> 300
A94: 78 | B94: =Timing!$E94 -> 2037-09-14 | C94: =UserInputs!$C92*OtherFeesAmount/8 -> 3541.09589 | D94: =UserInputs!$C92*OtherFeesAmount/8 -> 3541.09589 | E94: =UserInputs!$C92*OtherFeesAmount/8 -> 3541.09589 | F94: =UserInputs!$C92*OtherFeesAmount/8 -> 3541.09589 | G94: =UserInputs!$C92*OtherFeesAmount/8 -> 3541.09589 | H94: =UserInputs!$C92*OtherFeesAmount/8 -> 3541.09589 | I94: =UserInputs!$C92*OtherFeesAmount/8 -> 3541.09589 | J94: =UserInputs!$C92*OtherFeesAmount/8 -> 3541.09589 | L94: 7082.191781 | M94: =SUM(E94:J94,UserInputs!AA92) -> 37985.09301 | N94: =SUM(UserInputs!AE92,UserInputs!AF92) -> 0 | O94: =UserInputs!AH92 -> 300
A95: 79 | B95: =Timing!$E95 -> 2037-12-14 | C95: =UserInputs!$C93*OtherFeesAmount/8 -> 3428.082192 | D95: =UserInputs!$C93*OtherFeesAmount/8 -> 3428.082192 | E95: =UserInputs!$C93*OtherFeesAmount/8 -> 3428.082192 | F95: =UserInputs!$C93*OtherFeesAmount/8 -> 3428.082192 | G95: =UserInputs!$C93*OtherFeesAmount/8 -> 3428.082192 | H95: =UserInputs!$C93*OtherFeesAmount/8 -> 3428.082192 | I95: =UserInputs!$C93*OtherFeesAmount/8 -> 3428.082192 | J95: =UserInputs!$C93*OtherFeesAmount/8 -> 3428.082192 | L95: 6856.164384 | M95: =SUM(E95:J95,UserInputs!AA93) -> 35092.01931 | N95: =SUM(UserInputs!AE93,UserInputs!AF93) -> 0 | O95: =UserInputs!AH93 -> 300
A96: 80 | B96: =Timing!$E96 -> 2038-03-12 | C96: =UserInputs!$C94*OtherFeesAmount/8 -> 3315.068493 | D96: =UserInputs!$C94*OtherFeesAmount/8 -> 3315.068493 | E96: =UserInputs!$C94*OtherFeesAmount/8 -> 3315.068493 | F96: =UserInputs!$C94*OtherFeesAmount/8 -> 3315.068493 | G96: =UserInputs!$C94*OtherFeesAmount/8 -> 3315.068493 | H96: =UserInputs!$C94*OtherFeesAmount/8 -> 3315.068493 | I96: =UserInputs!$C94*OtherFeesAmount/8 -> 3315.068493 | J96: =UserInputs!$C94*OtherFeesAmount/8 -> 3315.068493 | L96: 6630.136986 | M96: =SUM(E96:J96,UserInputs!AA94) -> 32388.37584 | N96: =SUM(UserInputs!AE94,UserInputs!AF94) -> 0 | O96: =UserInputs!AH94 -> 300
A97: 81 | B97: =Timing!$E97 -> 2038-06-14 | C97: =UserInputs!$C95*OtherFeesAmount/8 -> 3541.09589 | D97: =UserInputs!$C95*OtherFeesAmount/8 -> 3541.09589 | E97: =UserInputs!$C95*OtherFeesAmount/8 -> 3541.09589 | F97: =UserInputs!$C95*OtherFeesAmount/8 -> 3541.09589 | G97: =UserInputs!$C95*OtherFeesAmount/8 -> 3541.09589 | H97: =UserInputs!$C95*OtherFeesAmount/8 -> 3541.09589 | I97: =UserInputs!$C95*OtherFeesAmount/8 -> 3541.09589 | J97: =UserInputs!$C95*OtherFeesAmount/8 -> 3541.09589 | L97: 7082.191781 | M97: =SUM(E97:J97,UserInputs!AA95) -> 34338.63076 | N97: =SUM(UserInputs!AE95,UserInputs!AF95) -> 0 | O97: =UserInputs!AH95 -> 300
A98: 82 | B98: =Timing!$E98 -> 2038-09-13 | C98: =UserInputs!$C96*OtherFeesAmount/8 -> 3428.082192 | D98: =UserInputs!$C96*OtherFeesAmount/8 -> 3428.082192 | E98: =UserInputs!$C96*OtherFeesAmount/8 -> 3428.082192 | F98: =UserInputs!$C96*OtherFeesAmount/8 -> 3428.082192 | G98: =UserInputs!$C96*OtherFeesAmount/8 -> 3428.082192 | H98: =UserInputs!$C96*OtherFeesAmount/8 -> 3428.082192 | I98: =UserInputs!$C96*OtherFeesAmount/8 -> 3428.082192 | J98: =UserInputs!$C96*OtherFeesAmount/8 -> 3428.082192 | L98: 6856.164384 | M98: =SUM(E98:J98,UserInputs!AA96) -> 33006.39965 | N98: =SUM(UserInputs!AE96,UserInputs!AF96) -> 0 | O98: =UserInputs!AH96 -> 300
A99: 83 | B99: =Timing!$E99 -> 2038-12-13 | C99: =UserInputs!$C97*OtherFeesAmount/8 -> 3428.082192 | D99: =UserInputs!$C97*OtherFeesAmount/8 -> 3428.082192 | E99: =UserInputs!$C97*OtherFeesAmount/8 -> 3428.082192 | F99: =UserInputs!$C97*OtherFeesAmount/8 -> 3428.082192 | G99: =UserInputs!$C97*OtherFeesAmount/8 -> 3428.082192 | H99: =UserInputs!$C97*OtherFeesAmount/8 -> 3428.082192 | I99: =UserInputs!$C97*OtherFeesAmount/8 -> 3428.082192 | J99: =UserInputs!$C97*OtherFeesAmount/8 -> 3428.082192 | L99: 6856.164384 | M99: =SUM(E99:J99,UserInputs!AA97) -> 32773.11229 | N99: =SUM(UserInputs!AE97,UserInputs!AF97) -> 0 | O99: =UserInputs!AH97 -> 300
A100: 84 | B100: =Timing!$E100 -> 2039-03-14 | C100: =UserInputs!$C98*OtherFeesAmount/8 -> 3428.082192 | D100: =UserInputs!$C98*OtherFeesAmount/8 -> 3428.082192 | E100: =UserInputs!$C98*OtherFeesAmount/8 -> 3428.082192 | F100: =UserInputs!$C98*OtherFeesAmount/8 -> 3428.082192 | G100: =UserInputs!$C98*OtherFeesAmount/8 -> 3428.082192 | H100: =UserInputs!$C98*OtherFeesAmount/8 -> 3428.082192 | I100: =UserInputs!$C98*OtherFeesAmount/8 -> 3428.082192 | J100: =UserInputs!$C98*OtherFeesAmount/8 -> 3428.082192 | L100: 6856.164384 | M100: =SUM(E100:J100,UserInputs!AA98) -> 32542.81791 | N100: =SUM(UserInputs!AE98,UserInputs!AF98) -> 0 | O100: =UserInputs!AH98 -> 300
A101: 85 | B101: =Timing!$E101 -> 2039-06-13 | C101: =UserInputs!$C99*OtherFeesAmount/8 -> 3428.082192 | D101: =UserInputs!$C99*OtherFeesAmount/8 -> 3428.082192 | E101: =UserInputs!$C99*OtherFeesAmount/8 -> 3428.082192 | F101: =UserInputs!$C99*OtherFeesAmount/8 -> 3428.082192 | G101: =UserInputs!$C99*OtherFeesAmount/8 -> 3428.082192 | H101: =UserInputs!$C99*OtherFeesAmount/8 -> 3428.082192 | I101: =UserInputs!$C99*OtherFeesAmount/8 -> 3428.082192 | J101: =UserInputs!$C99*OtherFeesAmount/8 -> 3428.082192 | L101: 6856.164384 | M101: =SUM(E101:J101,UserInputs!AA99) -> 31825.0601 | N101: =SUM(UserInputs!AE99,UserInputs!AF99) -> 0 | O101: =UserInputs!AH99 -> 300
A102: 86 | B102: =Timing!$E102 -> 2039-09-12 | C102: =UserInputs!$C100*OtherFeesAmount/8 -> 3428.082192 | D102: =UserInputs!$C100*OtherFeesAmount/8 -> 3428.082192 | E102: =UserInputs!$C100*OtherFeesAmount/8 -> 3428.082192 | F102: =UserInputs!$C100*OtherFeesAmount/8 -> 3428.082192 | G102: =UserInputs!$C100*OtherFeesAmount/8 -> 3428.082192 | H102: =UserInputs!$C100*OtherFeesAmount/8 -> 3428.082192 | I102: =UserInputs!$C100*OtherFeesAmount/8 -> 3428.082192 | J102: =UserInputs!$C100*OtherFeesAmount/8 -> 3428.082192 | L102: 6856.164384 | M102: =SUM(E102:J102,UserInputs!AA100) -> 30881.85858 | N102: =SUM(UserInputs!AE100,UserInputs!AF100) -> 0 | O102: =UserInputs!AH100 -> 300
A103: 87 | B103: =Timing!$E103 -> 2039-12-12 | C103: =UserInputs!$C101*OtherFeesAmount/8 -> 3428.082192 | D103: =UserInputs!$C101*OtherFeesAmount/8 -> 3428.082192 | E103: =UserInputs!$C101*OtherFeesAmount/8 -> 3428.082192 | F103: =UserInputs!$C101*OtherFeesAmount/8 -> 3428.082192 | G103: =UserInputs!$C101*OtherFeesAmount/8 -> 3428.082192 | H103: =UserInputs!$C101*OtherFeesAmount/8 -> 3428.082192 | I103: =UserInputs!$C101*OtherFeesAmount/8 -> 3428.082192 | J103: =UserInputs!$C101*OtherFeesAmount/8 -> 3428.082192 | L103: 6856.164384 | M103: =SUM(E103:J103,UserInputs!AA101) -> 30075.06611 | N103: =SUM(UserInputs!AE101,UserInputs!AF101) -> 0 | O103: =UserInputs!AH101 -> 300
A104: 88 | B104: =Timing!$E104 -> 2040-03-12 | C104: =UserInputs!$C102*OtherFeesAmount/8 -> 3428.082192 | D104: =UserInputs!$C102*OtherFeesAmount/8 -> 3428.082192 | E104: =UserInputs!$C102*OtherFeesAmount/8 -> 3428.082192 | F104: =UserInputs!$C102*OtherFeesAmount/8 -> 3428.082192 | G104: =UserInputs!$C102*OtherFeesAmount/8 -> 3428.082192 | H104: =UserInputs!$C102*OtherFeesAmount/8 -> 3428.082192 | I104: =UserInputs!$C102*OtherFeesAmount/8 -> 3428.082192 | J104: =UserInputs!$C102*OtherFeesAmount/8 -> 3428.082192 | L104: 6856.164384 | M104: =SUM(E104:J104,UserInputs!AA102) -> 29081.35535 | N104: =SUM(UserInputs!AE102,UserInputs!AF102) -> 0 | O104: =UserInputs!AH102 -> 300
A105: 89 | B105: =Timing!$E105 -> 2040-06-12 | C105: =UserInputs!$C103*OtherFeesAmount/8 -> 3465.753425 | D105: =UserInputs!$C103*OtherFeesAmount/8 -> 3465.753425 | E105: =UserInputs!$C103*OtherFeesAmount/8 -> 3465.753425 | F105: =UserInputs!$C103*OtherFeesAmount/8 -> 3465.753425 | G105: =UserInputs!$C103*OtherFeesAmount/8 -> 3465.753425 | H105: =UserInputs!$C103*OtherFeesAmount/8 -> 3465.753425 | I105: =UserInputs!$C103*OtherFeesAmount/8 -> 3465.753425 | J105: =UserInputs!$C103*OtherFeesAmount/8 -> 3465.753425 | L105: 6931.506849 | M105: =SUM(E105:J105,UserInputs!AA103) -> 28525.71684 | N105: =SUM(UserInputs!AE103,UserInputs!AF103) -> 0 | O105: =UserInputs!AH103 -> 300
A106: 90 | B106: =Timing!$E106 -> 2040-09-12 | C106: =UserInputs!$C104*OtherFeesAmount/8 -> 3465.753425 | D106: =UserInputs!$C104*OtherFeesAmount/8 -> 3465.753425 | E106: =UserInputs!$C104*OtherFeesAmount/8 -> 3465.753425 | F106: =UserInputs!$C104*OtherFeesAmount/8 -> 3465.753425 | G106: =UserInputs!$C104*OtherFeesAmount/8 -> 3465.753425 | H106: =UserInputs!$C104*OtherFeesAmount/8 -> 3465.753425 | I106: =UserInputs!$C104*OtherFeesAmount/8 -> 3465.753425 | J106: =UserInputs!$C104*OtherFeesAmount/8 -> 3465.753425 | L106: 6931.506849 | M106: =SUM(E106:J106,UserInputs!AA104) -> 27761.22988 | N106: =SUM(UserInputs!AE104,UserInputs!AF104) -> 0 | O106: =UserInputs!AH104 -> 300
A107: 91 | B107: =Timing!$E107 -> 2040-12-12 | C107: =UserInputs!$C105*OtherFeesAmount/8 -> 3428.082192 | D107: =UserInputs!$C105*OtherFeesAmount/8 -> 3428.082192 | E107: =UserInputs!$C105*OtherFeesAmount/8 -> 3428.082192 | F107: =UserInputs!$C105*OtherFeesAmount/8 -> 3428.082192 | G107: =UserInputs!$C105*OtherFeesAmount/8 -> 3428.082192 | H107: =UserInputs!$C105*OtherFeesAmount/8 -> 3428.082192 | I107: =UserInputs!$C105*OtherFeesAmount/8 -> 3428.082192 | J107: =UserInputs!$C105*OtherFeesAmount/8 -> 3428.082192 | L107: 6856.164384 | M107: =SUM(E107:J107,UserInputs!AA105) -> 26714.40643 | N107: =SUM(UserInputs!AE105,UserInputs!AF105) -> 0 | O107: =UserInputs!AH105 -> 300
A108: 92 | B108: =Timing!$E108 -> 2041-03-12 | C108: =UserInputs!$C106*OtherFeesAmount/8 -> 3390.410959 | D108: =UserInputs!$C106*OtherFeesAmount/8 -> 3390.410959 | E108: =UserInputs!$C106*OtherFeesAmount/8 -> 3390.410959 | F108: =UserInputs!$C106*OtherFeesAmount/8 -> 3390.410959 | G108: =UserInputs!$C106*OtherFeesAmount/8 -> 3390.410959 | H108: =UserInputs!$C106*OtherFeesAmount/8 -> 3390.410959 | I108: =UserInputs!$C106*OtherFeesAmount/8 -> 3390.410959 | J108: =UserInputs!$C106*OtherFeesAmount/8 -> 3390.410959 | L108: 6780.821918 | M108: =SUM(E108:J108,UserInputs!AA106) -> 25847.67729 | N108: =SUM(UserInputs!AE106,UserInputs!AF106) -> 0 | O108: =UserInputs!AH106 -> 300
A109: 93 | B109: =Timing!$E109 -> 2041-06-12 | C109: =UserInputs!$C107*OtherFeesAmount/8 -> 3465.753425 | D109: =UserInputs!$C107*OtherFeesAmount/8 -> 3465.753425 | E109: =UserInputs!$C107*OtherFeesAmount/8 -> 3465.753425 | F109: =UserInputs!$C107*OtherFeesAmount/8 -> 3465.753425 | G109: =UserInputs!$C107*OtherFeesAmount/8 -> 3465.753425 | H109: =UserInputs!$C107*OtherFeesAmount/8 -> 3465.753425 | I109: =UserInputs!$C107*OtherFeesAmount/8 -> 3465.753425 | J109: =UserInputs!$C107*OtherFeesAmount/8 -> 3465.753425 | L109: 6931.506849 | M109: =SUM(E109:J109,UserInputs!AA107) -> 25739.44273 | N109: =SUM(UserInputs!AE107,UserInputs!AF107) -> 0 | O109: =UserInputs!AH107 -> 300
A110: 94 | B110: =Timing!$E110 -> 2041-09-12 | C110: =UserInputs!$C108*OtherFeesAmount/8 -> 3465.753425 | D110: =UserInputs!$C108*OtherFeesAmount/8 -> 3465.753425 | E110: =UserInputs!$C108*OtherFeesAmount/8 -> 3465.753425 | F110: =UserInputs!$C108*OtherFeesAmount/8 -> 3465.753425 | G110: =UserInputs!$C108*OtherFeesAmount/8 -> 3465.753425 | H110: =UserInputs!$C108*OtherFeesAmount/8 -> 3465.753425 | I110: =UserInputs!$C108*OtherFeesAmount/8 -> 3465.753425 | J110: =UserInputs!$C108*OtherFeesAmount/8 -> 3465.753425 | L110: 6931.506849 | M110: =SUM(E110:J110,UserInputs!AA108) -> 25029.45108 | N110: =SUM(UserInputs!AE108,UserInputs!AF108) -> 0 | O110: =UserInputs!AH108 -> 300
A111: 95 | B111: =Timing!$E111 -> 2041-12-12 | C111: =UserInputs!$C109*OtherFeesAmount/8 -> 3428.082192 | D111: =UserInputs!$C109*OtherFeesAmount/8 -> 3428.082192 | E111: =UserInputs!$C109*OtherFeesAmount/8 -> 3428.082192 | F111: =UserInputs!$C109*OtherFeesAmount/8 -> 3428.082192 | G111: =UserInputs!$C109*OtherFeesAmount/8 -> 3428.082192 | H111: =UserInputs!$C109*OtherFeesAmount/8 -> 3428.082192 | I111: =UserInputs!$C109*OtherFeesAmount/8 -> 3428.082192 | J111: =UserInputs!$C109*OtherFeesAmount/8 -> 3428.082192 | L111: 6856.164384 | M111: =SUM(E111:J111,UserInputs!AA109) -> 24127.29786 | N111: =SUM(UserInputs!AE109,UserInputs!AF109) -> 0 | O111: =UserInputs!AH109 -> 300
A112: 96 | B112: =Timing!$E112 -> 2042-03-12 | C112: =UserInputs!$C110*OtherFeesAmount/8 -> 3390.410959 | D112: =UserInputs!$C110*OtherFeesAmount/8 -> 3390.410959 | E112: =UserInputs!$C110*OtherFeesAmount/8 -> 3390.410959 | F112: =UserInputs!$C110*OtherFeesAmount/8 -> 3390.410959 | G112: =UserInputs!$C110*OtherFeesAmount/8 -> 3390.410959 | H112: =UserInputs!$C110*OtherFeesAmount/8 -> 3390.410959 | I112: =UserInputs!$C110*OtherFeesAmount/8 -> 3390.410959 | J112: =UserInputs!$C110*OtherFeesAmount/8 -> 3390.410959 | L112: 6780.821918 | M112: =SUM(E112:J112,UserInputs!AA110) -> 23264.98641 | N112: =SUM(UserInputs!AE110,UserInputs!AF110) -> 0 | O112: =UserInputs!AH110 -> 300
A113: 97 | B113: =Timing!$E113 -> 2042-06-12 | C113: =UserInputs!$C111*OtherFeesAmount/8 -> 3465.753425 | D113: =UserInputs!$C111*OtherFeesAmount/8 -> 3465.753425 | E113: =UserInputs!$C111*OtherFeesAmount/8 -> 3465.753425 | F113: =UserInputs!$C111*OtherFeesAmount/8 -> 3465.753425 | G113: =UserInputs!$C111*OtherFeesAmount/8 -> 3465.753425 | H113: =UserInputs!$C111*OtherFeesAmount/8 -> 3465.753425 | I113: =UserInputs!$C111*OtherFeesAmount/8 -> 3465.753425 | J113: =UserInputs!$C111*OtherFeesAmount/8 -> 3465.753425 | L113: 6931.506849 | M113: =SUM(E113:J113,UserInputs!AA111) -> 23130.02933 | N113: =SUM(UserInputs!AE111,UserInputs!AF111) -> 0 | O113: =UserInputs!AH111 -> 300
A114: 98 | B114: =Timing!$E114 -> 2042-09-12 | C114: =UserInputs!$C112*OtherFeesAmount/8 -> 3465.753425 | D114: =UserInputs!$C112*OtherFeesAmount/8 -> 3465.753425 | E114: =UserInputs!$C112*OtherFeesAmount/8 -> 3465.753425 | F114: =UserInputs!$C112*OtherFeesAmount/8 -> 3465.753425 | G114: =UserInputs!$C112*OtherFeesAmount/8 -> 3465.753425 | H114: =UserInputs!$C112*OtherFeesAmount/8 -> 3465.753425 | I114: =UserInputs!$C112*OtherFeesAmount/8 -> 3465.753425 | J114: =UserInputs!$C112*OtherFeesAmount/8 -> 3465.753425 | L114: 6931.506849 | M114: =SUM(E114:J114,UserInputs!AA112) -> 22618.13285 | N114: =SUM(UserInputs!AE112,UserInputs!AF112) -> 0 | O114: =UserInputs!AH112 -> 300
A115: 99 | B115: =Timing!$E115 -> 2042-12-12 | C115: =UserInputs!$C113*OtherFeesAmount/8 -> 3428.082192 | D115: =UserInputs!$C113*OtherFeesAmount/8 -> 3428.082192 | E115: =UserInputs!$C113*OtherFeesAmount/8 -> 3428.082192 | F115: =UserInputs!$C113*OtherFeesAmount/8 -> 3428.082192 | G115: =UserInputs!$C113*OtherFeesAmount/8 -> 3428.082192 | H115: =UserInputs!$C113*OtherFeesAmount/8 -> 3428.082192 | I115: =UserInputs!$C113*OtherFeesAmount/8 -> 3428.082192 | J115: =UserInputs!$C113*OtherFeesAmount/8 -> 3428.082192 | L115: 6856.164384 | M115: =SUM(E115:J115,UserInputs!AA113) -> 21915.71605 | N115: =SUM(UserInputs!AE113,UserInputs!AF113) -> 0 | O115: =UserInputs!AH113 -> 300
A116: 100 | B116: =Timing!$E116 -> 2043-03-12 | C116: =UserInputs!$C114*OtherFeesAmount/8 -> 3390.410959 | D116: =UserInputs!$C114*OtherFeesAmount/8 -> 3390.410959 | E116: =UserInputs!$C114*OtherFeesAmount/8 -> 3390.410959 | F116: =UserInputs!$C114*OtherFeesAmount/8 -> 3390.410959 | G116: =UserInputs!$C114*OtherFeesAmount/8 -> 3390.410959 | H116: =UserInputs!$C114*OtherFeesAmount/8 -> 3390.410959 | I116: =UserInputs!$C114*OtherFeesAmount/8 -> 3390.410959 | J116: =UserInputs!$C114*OtherFeesAmount/8 -> 3390.410959 | L116: 6780.821918 | M116: =SUM(E116:J116,UserInputs!AA114) -> 21023.18842 | N116: =SUM(UserInputs!AE114,UserInputs!AF114) -> 0 | O116: =UserInputs!AH114 -> 300
A117: 101 | B117: =Timing!$E117 -> 2043-06-12 | C117: =UserInputs!$C115*OtherFeesAmount/8 -> 3465.753425 | D117: =UserInputs!$C115*OtherFeesAmount/8 -> 3465.753425 | E117: =UserInputs!$C115*OtherFeesAmount/8 -> 3465.753425 | F117: =UserInputs!$C115*OtherFeesAmount/8 -> 3465.753425 | G117: =UserInputs!$C115*OtherFeesAmount/8 -> 3465.753425 | H117: =UserInputs!$C115*OtherFeesAmount/8 -> 3465.753425 | I117: =UserInputs!$C115*OtherFeesAmount/8 -> 3465.753425 | J117: =UserInputs!$C115*OtherFeesAmount/8 -> 3465.753425 | L117: 6931.506849 | M117: =SUM(E117:J117,UserInputs!AA115) -> 21474.17989 | N117: =SUM(UserInputs!AE115,UserInputs!AF115) -> 0 | O117: =UserInputs!AH115 -> 300
A118: 102 | B118: =Timing!$E118 -> 2043-09-14 | C118: =UserInputs!$C116*OtherFeesAmount/8 -> 3541.09589 | D118: =UserInputs!$C116*OtherFeesAmount/8 -> 3541.09589 | E118: =UserInputs!$C116*OtherFeesAmount/8 -> 3541.09589 | F118: =UserInputs!$C116*OtherFeesAmount/8 -> 3541.09589 | G118: =UserInputs!$C116*OtherFeesAmount/8 -> 3541.09589 | H118: =UserInputs!$C116*OtherFeesAmount/8 -> 3541.09589 | I118: =UserInputs!$C116*OtherFeesAmount/8 -> 3541.09589 | J118: =UserInputs!$C116*OtherFeesAmount/8 -> 3541.09589 | L118: 7082.191781 | M118: =SUM(E118:J118,UserInputs!AA116) -> 21918.6189 | N118: =SUM(UserInputs!AE116,UserInputs!AF116) -> 0 | O118: =UserInputs!AH116 -> 300
A119: 103 | B119: =Timing!$E119 -> 2043-12-14 | C119: =UserInputs!$C117*OtherFeesAmount/8 -> 3428.082192 | D119: =UserInputs!$C117*OtherFeesAmount/8 -> 3428.082192 | E119: =UserInputs!$C117*OtherFeesAmount/8 -> 3428.082192 | F119: =UserInputs!$C117*OtherFeesAmount/8 -> 3428.082192 | G119: =UserInputs!$C117*OtherFeesAmount/8 -> 3428.082192 | H119: =UserInputs!$C117*OtherFeesAmount/8 -> 3428.082192 | I119: =UserInputs!$C117*OtherFeesAmount/8 -> 3428.082192 | J119: =UserInputs!$C117*OtherFeesAmount/8 -> 3428.082192 | L119: 6856.164384 | M119: =SUM(E119:J119,UserInputs!AA117) -> 21198.76387 | N119: =SUM(UserInputs!AE117,UserInputs!AF117) -> 0 | O119: =UserInputs!AH117 -> 300
A120: 104 | B120: =Timing!$E120 -> 2044-03-14 | C120: =UserInputs!$C118*OtherFeesAmount/8 -> 3428.082192 | D120: =UserInputs!$C118*OtherFeesAmount/8 -> 3428.082192 | E120: =UserInputs!$C118*OtherFeesAmount/8 -> 3428.082192 | F120: =UserInputs!$C118*OtherFeesAmount/8 -> 3428.082192 | G120: =UserInputs!$C118*OtherFeesAmount/8 -> 3428.082192 | H120: =UserInputs!$C118*OtherFeesAmount/8 -> 3428.082192 | I120: =UserInputs!$C118*OtherFeesAmount/8 -> 3428.082192 | J120: =UserInputs!$C118*OtherFeesAmount/8 -> 3428.082192 | L120: 6856.164384 | M120: =SUM(E120:J120,UserInputs!AA118) -> 21180.96553 | N120: =SUM(UserInputs!AE118,UserInputs!AF118) -> 0 | O120: =UserInputs!AH118 -> 300
A121: 105 | B121: =Timing!$E121 -> 2044-06-13 | C121: =UserInputs!$C119*OtherFeesAmount/8 -> 3428.082192 | D121: =UserInputs!$C119*OtherFeesAmount/8 -> 3428.082192 | E121: =UserInputs!$C119*OtherFeesAmount/8 -> 3428.082192 | F121: =UserInputs!$C119*OtherFeesAmount/8 -> 3428.082192 | G121: =UserInputs!$C119*OtherFeesAmount/8 -> 3428.082192 | H121: =UserInputs!$C119*OtherFeesAmount/8 -> 3428.082192 | I121: =UserInputs!$C119*OtherFeesAmount/8 -> 3428.082192 | J121: =UserInputs!$C119*OtherFeesAmount/8 -> 3428.082192 | L121: 6856.164384 | M121: =SUM(E121:J121,UserInputs!AA119) -> 21083.72306 | N121: =SUM(UserInputs!AE119,UserInputs!AF119) -> 0 | O121: =UserInputs!AH119 -> 300
A122: 106 | B122: =Timing!$E122 -> 2044-09-12 | C122: =UserInputs!$C120*OtherFeesAmount/8 -> 3428.082192 | D122: =UserInputs!$C120*OtherFeesAmount/8 -> 3428.082192 | E122: =UserInputs!$C120*OtherFeesAmount/8 -> 3428.082192 | F122: =UserInputs!$C120*OtherFeesAmount/8 -> 3428.082192 | G122: =UserInputs!$C120*OtherFeesAmount/8 -> 3428.082192 | H122: =UserInputs!$C120*OtherFeesAmount/8 -> 3428.082192 | I122: =UserInputs!$C120*OtherFeesAmount/8 -> 3428.082192 | J122: =UserInputs!$C120*OtherFeesAmount/8 -> 3428.082192 | L122: 6856.164384 | M122: =SUM(E122:J122,UserInputs!AA120) -> 20908.01956 | N122: =SUM(UserInputs!AE120,UserInputs!AF120) -> 0 | O122: =UserInputs!AH120 -> 300
A123: 107 | B123: =Timing!$E123 -> 2044-12-12 | C123: =UserInputs!$C121*OtherFeesAmount/8 -> 3428.082192 | D123: =UserInputs!$C121*OtherFeesAmount/8 -> 3428.082192 | E123: =UserInputs!$C121*OtherFeesAmount/8 -> 3428.082192 | F123: =UserInputs!$C121*OtherFeesAmount/8 -> 3428.082192 | G123: =UserInputs!$C121*OtherFeesAmount/8 -> 3428.082192 | H123: =UserInputs!$C121*OtherFeesAmount/8 -> 3428.082192 | I123: =UserInputs!$C121*OtherFeesAmount/8 -> 3428.082192 | J123: =UserInputs!$C121*OtherFeesAmount/8 -> 3428.082192 | L123: 6856.164384 | M123: =SUM(E123:J123,UserInputs!AA121) -> 20768.72111 | N123: =SUM(UserInputs!AE121,UserInputs!AF121) -> 0 | O123: =UserInputs!AH121 -> 300
A124: 108 | B124: =Timing!$E124 -> 2045-03-13 | C124: =UserInputs!$C122*OtherFeesAmount/8 -> 3428.082192 | D124: =UserInputs!$C122*OtherFeesAmount/8 -> 3428.082192 | E124: =UserInputs!$C122*OtherFeesAmount/8 -> 3428.082192 | F124: =UserInputs!$C122*OtherFeesAmount/8 -> 3428.082192 | G124: =UserInputs!$C122*OtherFeesAmount/8 -> 3428.082192 | H124: =UserInputs!$C122*OtherFeesAmount/8 -> 3428.082192 | I124: =UserInputs!$C122*OtherFeesAmount/8 -> 3428.082192 | J124: =UserInputs!$C122*OtherFeesAmount/8 -> 3428.082192 | L124: 6856.164384 | M124: =SUM(E124:J124,UserInputs!AA122) -> 20644.96143 | N124: =SUM(UserInputs!AE122,UserInputs!AF122) -> 0 | O124: =UserInputs!AH122 -> 300
A125: 109 | B125: =Timing!$E125 -> 2045-06-12 | C125: =UserInputs!$C123*OtherFeesAmount/8 -> 3428.082192 | D125: =UserInputs!$C123*OtherFeesAmount/8 -> 3428.082192 | E125: =UserInputs!$C123*OtherFeesAmount/8 -> 3428.082192 | F125: =UserInputs!$C123*OtherFeesAmount/8 -> 3428.082192 | G125: =UserInputs!$C123*OtherFeesAmount/8 -> 3428.082192 | H125: =UserInputs!$C123*OtherFeesAmount/8 -> 3428.082192 | I125: =UserInputs!$C123*OtherFeesAmount/8 -> 3428.082192 | J125: =UserInputs!$C123*OtherFeesAmount/8 -> 3428.082192 | L125: 6856.164384 | M125: =SUM(E125:J125,UserInputs!AA123) -> 20568.49315 | N125: =SUM(UserInputs!AE123,UserInputs!AF123) -> 0 | O125: =UserInputs!AH123 -> 300
A126: 110 | B126: =Timing!$E126 -> 2045-09-12 | C126: =UserInputs!$C124*OtherFeesAmount/8 -> 3465.753425 | D126: =UserInputs!$C124*OtherFeesAmount/8 -> 3465.753425 | E126: =UserInputs!$C124*OtherFeesAmount/8 -> 3465.753425 | F126: =UserInputs!$C124*OtherFeesAmount/8 -> 3465.753425 | G126: =UserInputs!$C124*OtherFeesAmount/8 -> 3465.753425 | H126: =UserInputs!$C124*OtherFeesAmount/8 -> 3465.753425 | I126: =UserInputs!$C124*OtherFeesAmount/8 -> 3465.753425 | J126: =UserInputs!$C124*OtherFeesAmount/8 -> 3465.753425 | L126: 6931.506849 | M126: =SUM(E126:J126,UserInputs!AA124) -> 20794.52055 | N126: =SUM(UserInputs!AE124,UserInputs!AF124) -> 0 | O126: =UserInputs!AH124 -> 300
A127: 111 | B127: =Timing!$E127 -> 2045-12-12 | C127: =UserInputs!$C125*OtherFeesAmount/8 -> 3428.082192 | D127: =UserInputs!$C125*OtherFeesAmount/8 -> 3428.082192 | E127: =UserInputs!$C125*OtherFeesAmount/8 -> 3428.082192 | F127: =UserInputs!$C125*OtherFeesAmount/8 -> 3428.082192 | G127: =UserInputs!$C125*OtherFeesAmount/8 -> 3428.082192 | H127: =UserInputs!$C125*OtherFeesAmount/8 -> 3428.082192 | I127: =UserInputs!$C125*OtherFeesAmount/8 -> 3428.082192 | J127: =UserInputs!$C125*OtherFeesAmount/8 -> 3428.082192 | L127: 6856.164384 | M127: =SUM(E127:J127,UserInputs!AA125) -> 20568.49315 | N127: =SUM(UserInputs!AE125,UserInputs!AF125) -> 0 | O127: =UserInputs!AH125 -> 300
A128: 112 | B128: =Timing!$E128 -> 2046-03-12 | C128: =UserInputs!$C126*OtherFeesAmount/8 -> 3390.410959 | D128: =UserInputs!$C126*OtherFeesAmount/8 -> 3390.410959 | E128: =UserInputs!$C126*OtherFeesAmount/8 -> 3390.410959 | F128: =UserInputs!$C126*OtherFeesAmount/8 -> 3390.410959 | G128: =UserInputs!$C126*OtherFeesAmount/8 -> 3390.410959 | H128: =UserInputs!$C126*OtherFeesAmount/8 -> 3390.410959 | I128: =UserInputs!$C126*OtherFeesAmount/8 -> 3390.410959 | J128: =UserInputs!$C126*OtherFeesAmount/8 -> 3390.410959 | L128: 6780.821918 | M128: =SUM(E128:J128,UserInputs!AA126) -> 20342.46575 | N128: =SUM(UserInputs!AE126,UserInputs!AF126) -> 0 | O128: =UserInputs!AH126 -> 300
A129: 113 | B129: =Timing!$E129 -> 2046-06-12 | C129: =UserInputs!$C127*OtherFeesAmount/8 -> 3465.753425 | D129: =UserInputs!$C127*OtherFeesAmount/8 -> 3465.753425 | E129: =UserInputs!$C127*OtherFeesAmount/8 -> 3465.753425 | F129: =UserInputs!$C127*OtherFeesAmount/8 -> 3465.753425 | G129: =UserInputs!$C127*OtherFeesAmount/8 -> 3465.753425 | H129: =UserInputs!$C127*OtherFeesAmount/8 -> 3465.753425 | I129: =UserInputs!$C127*OtherFeesAmount/8 -> 3465.753425 | J129: =UserInputs!$C127*OtherFeesAmount/8 -> 3465.753425 | L129: 6931.506849 | M129: =SUM(E129:J129,UserInputs!AA127) -> 20794.52055 | N129: =SUM(UserInputs!AE127,UserInputs!AF127) -> 0 | O129: =UserInputs!AH127 -> 300
A130: 114 | B130: =Timing!$E130 -> 2046-09-12 | C130: =UserInputs!$C128*OtherFeesAmount/8 -> 3465.753425 | D130: =UserInputs!$C128*OtherFeesAmount/8 -> 3465.753425 | E130: =UserInputs!$C128*OtherFeesAmount/8 -> 3465.753425 | F130: =UserInputs!$C128*OtherFeesAmount/8 -> 3465.753425 | G130: =UserInputs!$C128*OtherFeesAmount/8 -> 3465.753425 | H130: =UserInputs!$C128*OtherFeesAmount/8 -> 3465.753425 | I130: =UserInputs!$C128*OtherFeesAmount/8 -> 3465.753425 | J130: =UserInputs!$C128*OtherFeesAmount/8 -> 3465.753425 | L130: 6931.506849 | M130: =SUM(E130:J130,UserInputs!AA128) -> 20794.52055 | N130: =SUM(UserInputs!AE128,UserInputs!AF128) -> 0 | O130: =UserInputs!AH128 -> 300
A131: 115 | B131: =Timing!$E131 -> 2046-12-12 | C131: =UserInputs!$C129*OtherFeesAmount/8 -> 3428.082192 | D131: =UserInputs!$C129*OtherFeesAmount/8 -> 3428.082192 | E131: =UserInputs!$C129*OtherFeesAmount/8 -> 3428.082192 | F131: =UserInputs!$C129*OtherFeesAmount/8 -> 3428.082192 | G131: =UserInputs!$C129*OtherFeesAmount/8 -> 3428.082192 | H131: =UserInputs!$C129*OtherFeesAmount/8 -> 3428.082192 | I131: =UserInputs!$C129*OtherFeesAmount/8 -> 3428.082192 | J131: =UserInputs!$C129*OtherFeesAmount/8 -> 3428.082192 | L131: 6856.164384 | M131: =SUM(E131:J131,UserInputs!AA129) -> 20568.49315 | N131: =SUM(UserInputs!AE129,UserInputs!AF129) -> 0 | O131: =UserInputs!AH129 -> 300
A132: 116 | B132: =Timing!$E132 -> 2047-03-12 | C132: =UserInputs!$C130*OtherFeesAmount/8 -> 3390.410959 | D132: =UserInputs!$C130*OtherFeesAmount/8 -> 3390.410959 | E132: =UserInputs!$C130*OtherFeesAmount/8 -> 3390.410959 | F132: =UserInputs!$C130*OtherFeesAmount/8 -> 3390.410959 | G132: =UserInputs!$C130*OtherFeesAmount/8 -> 3390.410959 | H132: =UserInputs!$C130*OtherFeesAmount/8 -> 3390.410959 | I132: =UserInputs!$C130*OtherFeesAmount/8 -> 3390.410959 | J132: =UserInputs!$C130*OtherFeesAmount/8 -> 3390.410959 | L132: 6780.821918 | M132: =SUM(E132:J132,UserInputs!AA130) -> 20342.46575 | N132: =SUM(UserInputs!AE130,UserInputs!AF130) -> 0 | O132: =UserInputs!AH130 -> 300
A133: 117 | B133: =Timing!$E133 -> 2047-06-12 | C133: =UserInputs!$C131*OtherFeesAmount/8 -> 3465.753425 | D133: =UserInputs!$C131*OtherFeesAmount/8 -> 3465.753425 | E133: =UserInputs!$C131*OtherFeesAmount/8 -> 3465.753425 | F133: =UserInputs!$C131*OtherFeesAmount/8 -> 3465.753425 | G133: =UserInputs!$C131*OtherFeesAmount/8 -> 3465.753425 | H133: =UserInputs!$C131*OtherFeesAmount/8 -> 3465.753425 | I133: =UserInputs!$C131*OtherFeesAmount/8 -> 3465.753425 | J133: =UserInputs!$C131*OtherFeesAmount/8 -> 3465.753425 | L133: 6931.506849 | M133: =SUM(E133:J133,UserInputs!AA131) -> 20794.52055 | N133: =SUM(UserInputs!AE131,UserInputs!AF131) -> 0 | O133: =UserInputs!AH131 -> 300
A134: 118 | B134: =Timing!$E134 -> 2047-09-12 | C134: =UserInputs!$C132*OtherFeesAmount/8 -> 3465.753425 | D134: =UserInputs!$C132*OtherFeesAmount/8 -> 3465.753425 | E134: =UserInputs!$C132*OtherFeesAmount/8 -> 3465.753425 | F134: =UserInputs!$C132*OtherFeesAmount/8 -> 3465.753425 | G134: =UserInputs!$C132*OtherFeesAmount/8 -> 3465.753425 | H134: =UserInputs!$C132*OtherFeesAmount/8 -> 3465.753425 | I134: =UserInputs!$C132*OtherFeesAmount/8 -> 3465.753425 | J134: =UserInputs!$C132*OtherFeesAmount/8 -> 3465.753425 | L134: 6931.506849 | M134: =SUM(E134:J134,UserInputs!AA132) -> 20794.52055 | N134: =SUM(UserInputs!AE132,UserInputs!AF132) -> 0 | O134: =UserInputs!AH132 -> 300
A135: 119 | B135: =Timing!$E135 -> 2047-12-12 | C135: =UserInputs!$C133*OtherFeesAmount/8 -> 3428.082192 | D135: =UserInputs!$C133*OtherFeesAmount/8 -> 3428.082192 | E135: =UserInputs!$C133*OtherFeesAmount/8 -> 3428.082192 | F135: =UserInputs!$C133*OtherFeesAmount/8 -> 3428.082192 | G135: =UserInputs!$C133*OtherFeesAmount/8 -> 3428.082192 | H135: =UserInputs!$C133*OtherFeesAmount/8 -> 3428.082192 | I135: =UserInputs!$C133*OtherFeesAmount/8 -> 3428.082192 | J135: =UserInputs!$C133*OtherFeesAmount/8 -> 3428.082192 | L135: 6856.164384 | M135: =SUM(E135:J135,UserInputs!AA133) -> 20568.49315 | N135: =SUM(UserInputs!AE133,UserInputs!AF133) -> 0 | O135: =UserInputs!AH133 -> 300
A136: 120 | B136: =Timing!$E136 -> 2048-03-12 | C136: =UserInputs!$C134*OtherFeesAmount/8 -> 3428.082192 | D136: =UserInputs!$C134*OtherFeesAmount/8 -> 3428.082192 | E136: =UserInputs!$C134*OtherFeesAmount/8 -> 3428.082192 | F136: =UserInputs!$C134*OtherFeesAmount/8 -> 3428.082192 | G136: =UserInputs!$C134*OtherFeesAmount/8 -> 3428.082192 | H136: =UserInputs!$C134*OtherFeesAmount/8 -> 3428.082192 | I136: =UserInputs!$C134*OtherFeesAmount/8 -> 3428.082192 | J136: =UserInputs!$C134*OtherFeesAmount/8 -> 3428.082192 | L136: 6856.164384 | M136: =SUM(E136:J136,UserInputs!AA134) -> 20568.49315 | N136: =SUM(UserInputs!AE134,UserInputs!AF134) -> 0 | O136: =UserInputs!AH134 -> 300
A137: 121 | B137: =Timing!$E137 -> 2048-06-12 | C137: =UserInputs!$C135*OtherFeesAmount/8 -> 3465.753425 | D137: =UserInputs!$C135*OtherFeesAmount/8 -> 3465.753425 | E137: =UserInputs!$C135*OtherFeesAmount/8 -> 3465.753425 | F137: =UserInputs!$C135*OtherFeesAmount/8 -> 3465.753425 | G137: =UserInputs!$C135*OtherFeesAmount/8 -> 3465.753425 | H137: =UserInputs!$C135*OtherFeesAmount/8 -> 3465.753425 | I137: =UserInputs!$C135*OtherFeesAmount/8 -> 3465.753425 | J137: =UserInputs!$C135*OtherFeesAmount/8 -> 3465.753425 | L137: 6931.506849 | M137: =SUM(E137:J137,UserInputs!AA135) -> 20794.52055 | N137: =SUM(UserInputs!AE135,UserInputs!AF135) -> 0 | O137: =UserInputs!AH135 -> 300
A138: 122 | B138: =Timing!$E138 -> 2048-09-14 | C138: =UserInputs!$C136*OtherFeesAmount/8 -> 3541.09589 | D138: =UserInputs!$C136*OtherFeesAmount/8 -> 3541.09589 | E138: =UserInputs!$C136*OtherFeesAmount/8 -> 3541.09589 | F138: =UserInputs!$C136*OtherFeesAmount/8 -> 3541.09589 | G138: =UserInputs!$C136*OtherFeesAmount/8 -> 3541.09589 | H138: =UserInputs!$C136*OtherFeesAmount/8 -> 3541.09589 | I138: =UserInputs!$C136*OtherFeesAmount/8 -> 3541.09589 | J138: =UserInputs!$C136*OtherFeesAmount/8 -> 3541.09589 | L138: 7082.191781 | M138: =SUM(E138:J138,UserInputs!AA136) -> 21246.57534 | N138: =SUM(UserInputs!AE136,UserInputs!AF136) -> 0 | O138: =UserInputs!AH136 -> 300
A139: 123 | B139: =Timing!$E139 -> 2048-12-14 | C139: =UserInputs!$C137*OtherFeesAmount/8 -> 3428.082192 | D139: =UserInputs!$C137*OtherFeesAmount/8 -> 3428.082192 | E139: =UserInputs!$C137*OtherFeesAmount/8 -> 3428.082192 | F139: =UserInputs!$C137*OtherFeesAmount/8 -> 3428.082192 | G139: =UserInputs!$C137*OtherFeesAmount/8 -> 3428.082192 | H139: =UserInputs!$C137*OtherFeesAmount/8 -> 3428.082192 | I139: =UserInputs!$C137*OtherFeesAmount/8 -> 3428.082192 | J139: =UserInputs!$C137*OtherFeesAmount/8 -> 3428.082192 | L139: 6856.164384 | M139: =SUM(E139:J139,UserInputs!AA137) -> 20568.49315 | N139: =SUM(UserInputs!AE137,UserInputs!AF137) -> 0 | O139: =UserInputs!AH137 -> 300
A140: 124 | B140: =Timing!$E140 -> 2049-03-12 | C140: =UserInputs!$C138*OtherFeesAmount/8 -> 3315.068493 | D140: =UserInputs!$C138*OtherFeesAmount/8 -> 3315.068493 | E140: =UserInputs!$C138*OtherFeesAmount/8 -> 3315.068493 | F140: =UserInputs!$C138*OtherFeesAmount/8 -> 3315.068493 | G140: =UserInputs!$C138*OtherFeesAmount/8 -> 3315.068493 | H140: =UserInputs!$C138*OtherFeesAmount/8 -> 3315.068493 | I140: =UserInputs!$C138*OtherFeesAmount/8 -> 3315.068493 | J140: =UserInputs!$C138*OtherFeesAmount/8 -> 3315.068493 | L140: 6630.136986 | M140: =SUM(E140:J140,UserInputs!AA138) -> 19890.41096 | N140: =SUM(UserInputs!AE138,UserInputs!AF138) -> 0 | O140: =UserInputs!AH138 -> 300
A141: 125 | B141: =Timing!$E141 -> 2049-06-14 | C141: =UserInputs!$C139*OtherFeesAmount/8 -> 3541.09589 | D141: =UserInputs!$C139*OtherFeesAmount/8 -> 3541.09589 | E141: =UserInputs!$C139*OtherFeesAmount/8 -> 3541.09589 | F141: =UserInputs!$C139*OtherFeesAmount/8 -> 3541.09589 | G141: =UserInputs!$C139*OtherFeesAmount/8 -> 3541.09589 | H141: =UserInputs!$C139*OtherFeesAmount/8 -> 3541.09589 | I141: =UserInputs!$C139*OtherFeesAmount/8 -> 3541.09589 | J141: =UserInputs!$C139*OtherFeesAmount/8 -> 3541.09589 | L141: 7082.191781 | M141: =SUM(E141:J141,UserInputs!AA139) -> 21246.57534 | N141: =SUM(UserInputs!AE139,UserInputs!AF139) -> 0 | O141: =UserInputs!AH139 -> 300
